{"text_format":"1","workbook":"xlsx","n_sheets":17,"sheets":["Notes","Summary","ICB Q1","Trusts Q1","Sites Q1","ICB Q2","Trusts Q2","Sites Q2","ICB Q3","Trusts Q3","Sites Q3","ICB Q4","Trusts Q4","BSQ1","BSQ2","BSQ3","BSQ4"],"not_rendered":{"charts":0,"images":0,"macros":1,"external_links":1,"defined_names":15,"comments":0,"pivot_tables":0},"unopened":[],"bounds":{"document_bytes":16777216,"sheet_cells":100000,"rows_first":2000,"rows_last":500,"rows_between":2000,"halvings":0,"cell_chars":16384,"cell_head_chars":4096},"cells_cut":0,"cells_raw":0,"read":"whole","date_system":"1900"}

{"sheet":"Notes","index":0,"n_rows":2,"n_cols":1,"rows_kept":2,"cut":false,"hidden":false,"merged":[[1,8,3,14]]}
[]
["Maternity Friends and Family Test (FFT) Data - February 2025"]

{"sheet":"Summary","index":1,"n_rows":23,"n_cols":10,"rows_kept":23,"cut":false,"hidden":false,"merged":[[6,1,7,1],[6,4,6,5],[6,6,6,7],[6,8,6,9]]}
[]
[]
[]
[]
[]
[]
[null,"FFT","Number of organisations submitting","Total responses to date","Responses",null,"Percentage Positive",null,"Percentage Negative"]
[null,null,"2024-12-01","2024-12-01","2024-12-01","2024-01-26","2024-12-01","2024-01-26","2024-12-01","2024-01-26"]
[null,"Maternity Total","NA",3562048,16596,18270,0.92287298144131114,0.92276956759715378,4.3986502771752228E-2,4.3842364532019708E-2]
[null,"Maternity NHS Total","NA",3558645,16596,18270,0.92287298144131114,0.92276956759715378,4.3986502771752228E-2,4.3842364532019708E-2]
[null,"Maternity IS Total","NA",3403,0,0,"NA","NA","NA","NA"]
[null,"Antenatal Total",111,777266,4783,5471,0.91846121680953374,0.92067263754341067,5.0804934141752037E-2,4.807165052092853E-2]
[null,"Antenatal NHS ",111,776082,4783,5471,0.91846121680953374,0.92067263754341067,5.0804934141752037E-2,4.807165052092853E-2]
[null,"Antenatal IS",0,1184,0,0,"NA","NA","NA","NA"]
[null,"Birth Total",119,1098337,4894,5151,0.92521454842664486,0.91069695204814594,4.495300367797303E-2,5.5523199378761406E-2]
[null,"Birth NHS",119,1097913,4894,5151,0.92521454842664486,0.91069695204814594,4.495300367797303E-2,5.5523199378761406E-2]
[null,"Birth IS",0,424,0,0,"NA","NA","NA","NA"]
[null,"Postnatal Ward Total",114,1210744,5415,6125,0.92169898430286246,0.93191836734693878,3.9889196675900275E-2,3.3795918367346939E-2]
[null,"Postnatal Ward Total NHS",114,1210744,5415,6125,0.92169898430286246,0.93191836734693878,3.9889196675900275E-2,3.3795918367346939E-2]
[null,"Postnatal Ward Total IS","NA","NA","NA","NA","NA","NA","NA","NA"]
[null,"Postnatal Community Total",119,475701,1504,1523,0.93351063829787229,0.93434011818778728,3.3909574468085103E-2,2.9546946815495731E-2]
[null,"Postnatal Community NHS",119,473906,1504,1523,0.93351063829787229,0.93434011818778728,3.3909574468085103E-2,2.9546946815495731E-2]
[null,"Postnatal Community IS",0,1795,0,0,"NA","NA","NA","NA"]

{"sheet":"ICB Q1","index":2,"n_rows":55,"n_cols":11,"rows_kept":55,"cut":false,"hidden":false,"merged":[[8,0,9,0],[8,1,9,1],[8,2,9,2],[8,3,9,3],[8,4,9,4],[8,5,8,10]]}
[]
[]
[]
[]
[]
[null,"   Sort data by:           "]
[]
[]
["ICB Code","ICB Name","Total Responses","Percentage Positive","Percentage Negative","Breakdown of Responses"]
[null,null,null,null,null,"Very Good","Good","Neither Good nor Poor","Poor","Very Poor","Don't Know"]
[null,"England (including Independent Sector providers)",4783,0.91846121680953374,5.0804934141752037E-2,3588,805,130,111,132,17]
[null,"England (excluding Independent Sector providers)",4783,0.91846121680953374,5.0804934141752037E-2,3588,805,130,111,132,17]
[null,"Selection (excluding suppressed data)",{"$f":"SUBTOTAL(9,C14:C55)","v":4783},{"$f":"IFERROR((F13+G13)/SUM(F13:K13), \"-\")","v":0.91846121680953374},{"$f":"IFERROR((I13+J13)/SUM(F13:K13), \"-\")","v":5.0804934141752037E-2},{"$f":"SUBTOTAL(9,F14:F55)","v":3588},805,130,111,132,17]
["QE1","LANCASHIRE AND SOUTH CUMBRIA ICB",196,0.91326530612244894,5.6122448979591837E-2,138,41,5,4,7,1]
["QF7","SOUTH YORKSHIRE ICB",122,0.92622950819672134,4.0983606557377046E-2,89,24,4,3,2,0]
["QGH","HEREFORDSHIRE AND WORCESTERSHIRE ICB",41,0.87804878048780488,7.3170731707317069E-2,29,7,2,1,2,0]
["QH8","MID AND SOUTH ESSEX ICB",5,0.8,0.2,3,1,0,0,1,0]
["QHG","BEDFORDSHIRE, LUTON AND MILTON KEYNES ICB",484,0.89049586776859502,4.3388429752066117E-2,297,134,28,11,10,4]
["QHL","BIRMINGHAM AND SOLIHULL ICB",173,0.87283236994219648,9.8265895953757232E-2,139,12,5,4,13,0]
["QHM","NORTH EAST AND NORTH CUMBRIA ICB",248,0.94354838709677424,2.4193548387096774E-2,191,43,8,3,3,0]
["QJ2","DERBY AND DERBYSHIRE ICB",76,0.80263157894736847,0.13157894736842105,32,29,5,9,1,0]
["QJG","SUFFOLK AND NORTH EAST ESSEX ICB",53,0.98113207547169812,1.8867924528301886E-2,44,8,0,0,1,0]
["QJK","DEVON ICB",10,1,0,8,2,0,0,0,0]
["QJM","LINCOLNSHIRE ICB",0,"NA","NA",0,0,0,0,0,0]
["QK1","LEICESTER, LEICESTERSHIRE AND RUTLAND ICB",53,0.86792452830188682,9.4339622641509441E-2,39,7,2,1,4,0]
["QKK","SOUTH EAST LONDON ICB",38,0.92105263157894735,5.2631578947368418E-2,27,8,1,2,0,0]
["QKS","KENT AND MEDWAY ICB",228,0.93421052631578949,3.9473684210526314E-2,183,30,4,6,3,2]
["QM7","HERTFORDSHIRE AND WEST ESSEX ICB",101,0.95049504950495045,2.9702970297029702E-2,73,23,2,3,0,0]
["QMF","NORTH EAST LONDON ICB",171,0.8771929824561403,0.10526315789473684,136,14,3,6,12,0]
["QMJ","NORTH CENTRAL LONDON ICB",80,0.78749999999999998,0.15,48,15,4,5,7,1]
["QMM","NORFOLK AND WAVENEY ICB",182,0.97802197802197799,0,163,15,4,0,0,0]
["QNC","STAFFORDSHIRE AND STOKE-ON-TRENT ICB",23,0.91304347826086951,8.6956521739130432E-2,16,5,0,2,0,0]
["QNQ","FRIMLEY ICB",14,0.9285714285714286,0,9,4,0,0,0,1]
["QNX","SUSSEX ICB",0,"NA","NA",0,0,0,0,0,0]
["QOC","SHROPSHIRE, TELFORD AND WREKIN ICB",26,1,0,24,2,0,0,0,0]
["QOP","GREATER MANCHESTER ICB",456,0.97368421052631582,1.9736842105263157E-2,385,59,3,2,7,0]
["QOQ","HUMBER AND NORTH YORKSHIRE ICB",11,0.81818181818181823,0.18181818181818182,7,2,0,1,1,0]
["QOX","BATH AND NORTH EAST SOMERSET, SWINDON AND WILTSHIRE ICB",105,0.89523809523809528,7.6190476190476197E-2,83,11,3,4,4,0]
["QPM","NORTHAMPTONSHIRE ICB",116,0.97413793103448276,1.7241379310344827E-2,101,12,0,1,1,1]
["QR1","GLOUCESTERSHIRE ICB",0,"NA","NA",0,0,0,0,0,0]
["QRL","HAMPSHIRE AND ISLE OF WIGHT ICB",185,0.94054054054054059,2.7027027027027029E-2,139,35,6,4,1,0]
["QRV","NORTH WEST LONDON ICB",118,0.92372881355932202,2.5423728813559324E-2,85,24,6,0,3,0]
["QSL","SOMERSET ICB",7,1,0,7,0,0,0,0,0]
["QT1","NOTTINGHAM AND NOTTINGHAMSHIRE ICB",222,0.95945945945945943,2.2522522522522521E-2,180,33,3,2,3,1]
["QT6","CORNWALL AND THE ISLES OF SCILLY ICB",40,0.85,7.4999999999999997E-2,28,6,3,2,1,0]
["QU9","BUCKINGHAMSHIRE, OXFORDSHIRE AND BERKSHIRE WEST ICB",92,0.79347826086956519,0.19565217391304349,63,10,1,5,13,0]
["QUA","BLACK COUNTRY ICB",223,0.93721973094170408,3.5874439461883408E-2,114,95,5,5,3,1]
["QUE","CAMBRIDGESHIRE AND PETERBOROUGH ICB",98,0.9285714285714286,5.1020408163265307E-2,78,13,2,4,1,0]
["QUY","BRISTOL, NORTH SOMERSET AND SOUTH GLOUCESTERSHIRE ICB",25,1,0,24,1,0,0,0,0]
["QVV","DORSET ICB",48,0.83333333333333337,8.3333333333333329E-2,34,6,4,2,2,0]
["QWE","SOUTH WEST LONDON ICB",108,0.87962962962962965,6.4814814814814811E-2,84,11,5,5,2,1]
["QWO","WEST YORKSHIRE ICB",380,0.91315789473684206,5.526315789473684E-2,316,31,9,10,11,3]
["QWU","COVENTRY AND WARWICKSHIRE ICB",97,0.87628865979381443,0.1134020618556701,77,8,1,0,11,0]
["QXU","SURREY HEARTLANDS ICB",17,0.94117647058823528,0,11,5,0,0,0,1]
["QYG","CHESHIRE AND MERSEYSIDE ICB",111,0.92792792792792789,5.4054054054054057E-2,84,19,2,4,2,0]

{"sheet":"Trusts Q1","index":3,"n_rows":124,"n_cols":20,"rows_kept":124,"cut":false,"hidden":false,"merged":[[8,6,8,11],[8,12,8,19],[8,0,9,0],[8,1,9,1],[8,2,9,2],[8,3,9,3],[8,4,9,4],[8,5,9,5]]}
[]
[]
[]
[]
[]
[null,"   Sort data by:           "]
[]
[]
["ICB Code","Trust Code","Trust Name","Total Responses","Percentage Positive","Percentage Negative","Breakdown of Responses",null,null,null,null,null,"Mode of Collection"]
[null,null,null,null,null,null,"Very Good","Good","Neither Good nor Poor","Poor","Very Poor","Don't Know","Mode SMS","Mode Electronic Discharge","Mode Electronic Home","Mode Paper Discharge","Mode Paper Home","Mode Telephone","Mode Online","Mode Other"]
[null,null,"England (including Independent Sector providers)",4783,0.91846121680953374,5.0804934141752037E-2,3588,805,130,111,132,17,1346,717,82,1450,33,0,1146,9]
[null,null,"England (excluding Independent Sector providers)",4783,0.91846121680953374,5.0804934141752037E-2,3588,805,130,111,132,17,1346,717,82,1450,33,0,1146,9]
[null,null,"Selection (excluding suppressed data)",{"$f":"SUBTOTAL(9,D14:D298)","v":4783},{"$f":"IFERROR((G13+H13)/SUM(G13:L13), \"-\")","v":0.920104211897525},{"$f":"IFERROR((J13+K13)/SUM(G13:L13), \"-\")","v":5.0151975683890578E-2},{"$f":"SUBTOTAL(9,G14:G298)","v":3463},775,121,105,126,16,1320,691,77,1418,25,0,1067,{"$f":"SUBTOTAL(9,T14:T298)","v":8}]
["QE1","RTX","UNIVERSITY HOSPITALS OF MORECAMBE BAY NHS FOUNDATION TRUST",2,"*","*","*","*","*","*","*","*","*","*","*","*","*","*","*","*"]
["QE1","RXN","LANCASHIRE TEACHING HOSPITALS NHS FOUNDATION TRUST",17,0.88235294117647056,5.8823529411764705E-2,"*","*","*","*","*","*","*","*","*","*","*","*","*","*"]
["QE1","RXL","BLACKPOOL TEACHING HOSPITALS NHS FOUNDATION TRUST",50,0.94,0.04,35,12,1,1,1,0,16,0,0,0,0,0,34,0]
["QE1","RXR","EAST LANCASHIRE HOSPITALS NHS TRUST",127,0.90551181102362199,6.2992125984251968E-2,91,24,3,3,5,1,58,0,0,68,0,0,1,0]
["QF7","RFF","BARNSLEY HOSPITAL NHS FOUNDATION TRUST",6,1,0,5,1,0,0,0,0,1,5,0,0,0,0,0,0]
["QF7","RFR","THE ROTHERHAM NHS FOUNDATION TRUST",8,0.875,0.125,4,3,0,0,1,0,0,0,0,4,0,0,4,0]
["QF7","RP5","DONCASTER AND BASSETLAW TEACHING HOSPITALS NHS FOUNDATION TRUST",24,1,0,22,2,0,0,0,0,0,0,0,11,0,0,13,0]
["QF7","RHQ","SHEFFIELD TEACHING HOSPITALS NHS FOUNDATION TRUST",84,0.90476190476190477,4.7619047619047616E-2,58,18,4,3,1,0,65,0,0,18,0,0,1,0]
["QGH","RLQ","WYE VALLEY NHS TRUST",10,0.9,0.1,8,1,0,0,1,0,10,0,0,0,0,0,0,0]
["QGH","RWP","WORCESTERSHIRE ACUTE HOSPITALS NHS TRUST",31,0.87096774193548387,6.4516129032258063E-2,21,6,2,1,1,0,0,31,0,0,0,0,0,0]
["QH8","RAJ","MID AND SOUTH ESSEX NHS FOUNDATION TRUST",5,0.8,0.2,3,1,0,0,1,0,0,0,0,0,0,0,5,0]
["QHG","RC9","BEDFORDSHIRE HOSPITALS NHS FOUNDATION TRUST",122,0.93442622950819676,2.4590163934426229E-2,73,41,5,2,1,0,0,106,0,0,0,0,16,0]
["QHG","RD8","MILTON KEYNES UNIVERSITY HOSPITAL NHS FOUNDATION TRUST",362,0.87569060773480667,4.9723756906077346E-2,224,93,23,9,9,4,328,0,0,22,0,0,12,0]
["QHL","RRK","UNIVERSITY HOSPITALS BIRMINGHAM NHS FOUNDATION TRUST",8,0.5,0.375,4,0,1,0,3,0,0,8,0,0,0,0,0,0]
["QHL","RXK","SANDWELL AND WEST BIRMINGHAM HOSPITALS NHS TRUST",40,0.7,0.22500000000000001,24,4,3,3,6,0,40,0,0,0,0,0,0,0]
["QHL","RQ3","BIRMINGHAM WOMEN'S AND CHILDREN'S NHS FOUNDATION TRUST",125,0.95199999999999996,0.04,111,8,1,1,4,0,0,0,0,0,0,0,125,0]
["QHM","RTF","NORTHUMBRIA HEALTHCARE NHS FOUNDATION TRUST",0,"NA","NA",0,0,0,0,0,0,0,0,0,0,0,0,0,0]
["QHM","RNN","NORTH CUMBRIA INTEGRATED CARE NHS FOUNDATION TRUST",1,"*","*","*","*","*","*","*","*","*","*","*","*","*","*","*","*"]
["QHM","RVW","NORTH TEES AND HARTLEPOOL NHS FOUNDATION TRUST",6,1,0,"*","*","*","*","*","*","*","*","*","*","*","*","*","*"]
["QHM","R0B","SOUTH TYNESIDE AND SUNDERLAND NHS FOUNDATION TRUST",7,1,0,7,0,0,0,0,0,0,0,0,0,0,0,7,0]
["QHM","RR7","GATESHEAD HEALTH NHS FOUNDATION TRUST",14,1,0,14,0,0,0,0,0,13,0,0,1,0,0,0,0]
["QHM","RXP","COUNTY DURHAM AND DARLINGTON NHS FOUNDATION TRUST",14,1,0,13,1,0,0,0,0,0,0,0,14,0,0,0,0]
["QHM","RTD","THE NEWCASTLE UPON TYNE HOSPITALS NHS FOUNDATION TRUST",59,0.9152542372881356,3.3898305084745763E-2,39,15,3,0,2,0,59,0,0,0,0,0,0,0]
["QHM","RTR","SOUTH TEES HOSPITALS NHS FOUNDATION TRUST",147,0.93877551020408168,2.7210884353741496E-2,112,26,5,3,1,0,120,27,0,0,0,0,0,0]
["QJ2","RFS","CHESTERFIELD ROYAL HOSPITAL NHS FOUNDATION TRUST",25,0.76,0.16,13,6,2,4,0,0,25,0,0,0,0,0,0,0]
["QJ2","RTG","UNIVERSITY HOSPITALS OF DERBY AND BURTON NHS FOUNDATION TRUST",51,0.82352941176470584,0.11764705882352941,19,23,3,5,1,0,50,0,0,0,0,0,1,0]
["QJG","RDE","EAST SUFFOLK AND NORTH ESSEX NHS FOUNDATION TRUST",21,0.95238095238095233,4.7619047619047616E-2,18,2,0,0,1,0,0,0,0,0,0,0,21,0]
["QJG","RGR","WEST SUFFOLK NHS FOUNDATION TRUST",32,1,0,26,6,0,0,0,0,0,0,0,1,0,0,31,0]
["QJK","RA9","TORBAY AND SOUTH DEVON NHS FOUNDATION TRUST",1,"*","*","*","*","*","*","*","*","*","*","*","*","*","*","*","*"]
["QJK","RK9","UNIVERSITY HOSPITALS PLYMOUTH NHS TRUST",3,"*","*","*","*","*","*","*","*","*","*","*","*","*","*","*","*"]
["QJK","RH8","ROYAL DEVON UNIVERSITY HEALTHCARE NHS FOUNDATION TRUST",6,1,0,4,2,0,0,0,0,0,0,0,2,0,0,4,0]
["QJM","RWD","UNITED LINCOLNSHIRE TEACHING HOSPITALS NHS TRUST",0,"NA","NA",0,0,0,0,0,0,0,0,0,0,0,0,0,0]
["QK1","RWE","UNIVERSITY HOSPITALS OF LEICESTER NHS TRUST",53,0.86792452830188682,9.4339622641509441E-2,39,7,2,1,4,0,46,5,0,2,0,0,0,0]
["QKK","RJ1","GUY'S AND ST THOMAS' NHS FOUNDATION TRUST",8,1,0,7,1,0,0,0,0,0,0,0,0,0,0,8,0]
["QKK","RJ2","LEWISHAM AND GREENWICH NHS TRUST",30,0.9,6.6666666666666666E-2,20,7,1,2,0,0,0,0,0,17,0,0,13,0]
["QKS","RVV","EAST KENT HOSPITALS UNIVERSITY NHS FOUNDATION TRUST",18,0.88888888888888884,5.5555555555555552E-2,13,3,1,1,0,0,18,0,0,0,0,0,0,0]
["QKS","RPA","MEDWAY NHS FOUNDATION TRUST",19,0.94736842105263153,5.2631578947368418E-2,17,1,0,0,1,0,0,0,0,0,0,0,19,0]
["QKS","RWF","MAIDSTONE AND TUNBRIDGE WELLS NHS TRUST",31,0.90322580645161288,6.4516129032258063E-2,25,3,1,1,1,0,20,0,0,0,4,0,7,0]
["QKS","RN7","DARTFORD AND GRAVESHAM NHS TRUST",160,0.94374999999999998,3.125E-2,128,23,2,4,1,2,0,0,0,0,0,0,160,0]
["QM7","RQW","THE PRINCESS ALEXANDRA HOSPITAL NHS TRUST",0,"NA","NA",0,0,0,0,0,0,0,0,0,0,0,0,0,0]
["QM7","RWG","WEST HERTFORDSHIRE TEACHING HOSPITALS NHS TRUST",0,"NA","NA",0,0,0,0,0,0,0,0,0,0,0,0,0,0]
["QM7","RWH","EAST AND NORTH HERTFORDSHIRE NHS TRUST",101,0.95049504950495045,2.9702970297029702E-2,73,23,2,3,0,0,0,9,77,11,0,0,0,4]
["QMF","RQX","HOMERTON HEALTHCARE NHS FOUNDATION TRUST",2,"*","*","*","*","*","*","*","*","*","*","*","*","*","*","*","*"]
["QMF","RF4","BARKING, HAVERING AND REDBRIDGE UNIVERSITY HOSPITALS NHS TRUST",9,0.88888888888888884,0.1111111111111111,"*","*","*","*","*","*","*","*","*","*","*","*","*","*"]
["QMF","R1H","BARTS HEALTH NHS TRUST",160,0.88124999999999998,0.1,130,11,3,5,11,0,0,0,0,102,0,0,58,0]
["QMJ","RRV","UNIVERSITY COLLEGE LONDON HOSPITALS NHS FOUNDATION TRUST",0,"NA","NA",0,0,0,0,0,0,0,0,0,0,0,0,0,0]
["QMJ","RKE","WHITTINGTON HEALTH NHS TRUST",14,1,0,14,0,0,0,0,0,0,0,0,14,0,0,0,0]
["QMJ","RAL","ROYAL FREE LONDON NHS FOUNDATION TRUST",66,0.74242424242424243,0.18181818181818182,34,15,4,5,7,1,32,34,0,0,0,0,0,0]
["QMM","RGP","JAMES PAGET UNIVERSITY HOSPITALS NHS FOUNDATION TRUST",0,"NA","NA",0,0,0,0,0,0,0,0,0,0,0,0,0,0]
["QMM","RCX","THE QUEEN ELIZABETH HOSPITAL, KING'S LYNN, NHS FOUNDATION TRUST",90,0.96666666666666667,0,78,9,3,0,0,0,0,0,0,90,0,0,0,0]
["QMM","RM1","NORFOLK AND NORWICH UNIVERSITY HOSPITALS NHS FOUNDATION TRUST",92,0.98913043478260865,0,85,6,1,0,0,0,0,0,0,85,0,0,7,0]
["QNC","RJE","UNIVERSITY HOSPITALS OF NORTH MIDLANDS NHS TRUST",23,0.91304347826086951,8.6956521739130432E-2,16,5,0,2,0,0,20,0,0,3,0,0,0,0]
["QNQ","RDU","FRIMLEY HEALTH NHS FOUNDATION TRUST",14,0.9285714285714286,0,9,4,0,0,0,1,0,0,0,12,0,0,2,0]
["QOC","RXW","THE SHREWSBURY AND TELFORD HOSPITAL NHS TRUST",26,1,0,24,2,0,0,0,0,0,0,0,25,0,0,1,0]
["QOP","RWJ","STOCKPORT NHS FOUNDATION TRUST",0,"NA","NA",0,0,0,0,0,0,0,0,0,0,0,0,0,0]
["QOP","RRF","WRIGHTINGTON, WIGAN AND LEIGH NHS FOUNDATION TRUST",4,"*","*","*","*","*","*","*","*","*","*","*","*","*","*","*","*"]
["QOP","RMP","TAMESIDE AND GLOSSOP INTEGRATED CARE NHS FOUNDATION TRUST",28,0.9642857142857143,3.5714285714285712E-2,"*","*","*","*","*","*","*","*","*","*","*","*","*","*"]
["QOP","RMC","BOLTON NHS FOUNDATION TRUST",58,1,0,58,0,0,0,0,0,0,0,0,58,0,0,0,0]
["QOP","R0A","MANCHESTER UNIVERSITY NHS FOUNDATION TRUST",366,0.97267759562841527,1.912568306010929E-2,299,57,3,2,5,0,0,189,0,145,0,0,32,0]
["QOQ","RCD","HARROGATE AND DISTRICT NHS FOUNDATION TRUST",1,"*","*","*","*","*","*","*","*","*","*","*","*","*","*","*","*"]
["QOQ","RWA","HULL UNIVERSITY TEACHING HOSPITALS NHS TRUST",1,"*","*","*","*","*","*","*","*","*","*","*","*","*","*","*","*"]
["QOQ","RJL","NORTHERN LINCOLNSHIRE AND GOOLE NHS FOUNDATION TRUST",9,0.77777777777777779,0.22222222222222221,5,2,0,1,1,0,9,0,0,0,0,0,0,0]
["QOX","RD1","ROYAL UNITED HOSPITALS BATH NHS FOUNDATION TRUST",16,0.75,0.25,9,3,0,2,2,0,16,0,0,0,0,0,0,0]
["QOX","RN3","GREAT WESTERN HOSPITALS NHS FOUNDATION TRUST",40,0.92500000000000004,2.5000000000000001E-2,36,1,2,0,1,0,0,34,0,2,0,0,4,0]
["QOX","RNZ","SALISBURY NHS FOUNDATION TRUST",49,0.91836734693877553,6.1224489795918366E-2,38,7,1,2,1,0,49,0,0,0,0,0,0,0]
["QPM","RNQ","KETTERING GENERAL HOSPITAL NHS FOUNDATION TRUST",16,0.875,6.25E-2,11,3,0,1,0,1,0,0,0,0,0,0,16,0]
["QPM","RNS","NORTHAMPTON GENERAL HOSPITAL NHS TRUST",100,0.99,0.01,90,9,0,0,1,0,4,0,0,86,0,0,10,0]
["QRL","RHU","PORTSMOUTH HOSPITALS UNIVERSITY NATIONAL HEALTH SERVICE TRUST",2,"*","*","*","*","*","*","*","*","*","*","*","*","*","*","*","*"]
["QRL","R1F","ISLE OF WIGHT NHS TRUST",8,1,0,"*","*","*","*","*","*","*","*","*","*","*","*","*","*"]
["QRL","RN5","HAMPSHIRE HOSPITALS NHS FOUNDATION TRUST",61,0.91803278688524592,3.2786885245901641E-2,56,0,3,2,0,0,0,0,0,53,0,0,8,0]
["QRL","RHM","UNIVERSITY HOSPITAL SOUTHAMPTON NHS FOUNDATION TRUST",114,0.94736842105263153,2.6315789473684209E-2,73,35,3,2,1,0,0,0,0,0,0,0,114,0]
["QRV","R1K","LONDON NORTH WEST UNIVERSITY HEALTHCARE NHS TRUST",7,1,0,7,0,0,0,0,0,0,0,0,5,0,0,2,0]
["QRV","RQM","CHELSEA AND WESTMINSTER HOSPITAL NHS FOUNDATION TRUST",24,0.79166666666666663,8.3333333333333329E-2,17,2,3,0,2,0,0,0,0,0,0,0,24,0]
["QRV","RYJ","IMPERIAL COLLEGE HEALTHCARE NHS TRUST",38,0.97368421052631582,2.6315789473684209E-2,29,8,0,0,1,0,0,0,0,0,0,0,38,0]
["QRV","RAS","THE HILLINGDON HOSPITALS NHS FOUNDATION TRUST",49,0.93877551020408168,0,32,14,3,0,0,0,0,0,0,0,0,0,49,0]
["QSL","RH5","SOMERSET NHS FOUNDATION TRUST",7,1,0,7,0,0,0,0,0,4,0,0,0,3,0,0,0]
["QT1","RK5","SHERWOOD FOREST HOSPITALS NHS FOUNDATION TRUST",8,0.875,0.125,7,0,0,0,1,0,0,0,0,0,0,0,8,0]
["QT1","RX1","NOTTINGHAM UNIVERSITY HOSPITALS NHS TRUST",214,0.96261682242990654,1.8691588785046728E-2,173,33,3,2,2,1,0,20,0,193,0,0,1,0]
["QT6","REF","ROYAL CORNWALL HOSPITALS NHS TRUST",40,0.85,7.4999999999999997E-2,28,6,3,2,1,0,0,8,0,0,0,0,32,0]
["QU9","RTH","OXFORD UNIVERSITY HOSPITALS NHS FOUNDATION TRUST",5,0,1,0,0,0,1,4,0,0,0,0,0,0,0,5,0]
["QU9","RHW","ROYAL BERKSHIRE NHS FOUNDATION TRUST",36,0.97222222222222221,2.7777777777777776E-2,31,4,0,0,1,0,13,0,0,21,0,0,2,0]
["QU9","RXQ","BUCKINGHAMSHIRE HEALTHCARE NHS TRUST",51,0.74509803921568629,0.23529411764705882,32,6,1,4,8,0,49,0,0,0,0,0,2,0]
["QUA","RNA","THE DUDLEY GROUP NHS FOUNDATION TRUST",6,1,0,6,0,0,0,0,0,5,0,0,1,0,0,0,0]
["QUA","RL4","THE ROYAL WOLVERHAMPTON NHS TRUST",22,0.81818181818181823,0.13636363636363635,16,2,1,3,0,0,22,0,0,0,0,0,0,0]
["QUA","RBK","WALSALL HEALTHCARE NHS TRUST",195,0.94871794871794868,2.564102564102564E-2,92,93,4,2,3,1,54,141,0,0,0,0,0,0]
["QUE","RGT","CAMBRIDGE UNIVERSITY HOSPITALS NHS FOUNDATION TRUST",12,0.58333333333333337,0.25,3,4,2,3,0,0,0,5,0,0,0,0,7,0]
["QUE","RGN","NORTH WEST ANGLIA NHS FOUNDATION TRUST",86,0.97674418604651159,2.3255813953488372E-2,75,9,0,1,1,0,0,0,0,85,0,0,1,0]
["QUY","RVJ","NORTH BRISTOL NHS TRUST",0,"NA","NA",0,0,0,0,0,0,0,0,0,0,0,0,0,0]
["QUY","RA7","UNIVERSITY HOSPITALS BRISTOL AND WESTON NHS FOUNDATION TRUST",25,1,0,24,1,0,0,0,0,0,0,0,25,0,0,0,0]
["QVV","RBD","DORSET COUNTY HOSPITAL NHS FOUNDATION TRUST",2,"*","*","*","*","*","*","*","*","*","*","*","*","*","*","*","*"]
["QVV","R0D","UNIVERSITY HOSPITALS DORSET NHS FOUNDATION TRUST",46,0.82608695652173914,8.6956521739130432E-2,"*","*","*","*","*","*","*","*","*","*","*","*","*","*"]
["QWE","RVR","EPSOM AND ST HELIER UNIVERSITY HOSPITALS NHS TRUST",3,"*","*","*","*","*","*","*","*","*","*","*","*","*","*","*","*"]
["QWE","RJ7","ST GEORGE'S UNIVERSITY HOSPITALS NHS FOUNDATION TRUST",24,0.75,0.125,"*","*","*","*","*","*","*","*","*","*","*","*","*","*"]
["QWE","RAX","KINGSTON AND RICHMOND NHS FOUNDATION TRUST",81,0.92592592592592593,4.9382716049382713E-2,72,3,1,2,2,1,0,15,0,0,0,0,66,0]
["QWO","RWY","CALDERDALE AND HUDDERSFIELD NHS FOUNDATION TRUST",11,1,0,11,0,0,0,0,0,0,0,0,0,0,0,11,0]
["QWO","RAE","BRADFORD TEACHING HOSPITALS NHS FOUNDATION TRUST",48,0.75,0.16666666666666666,28,8,4,4,4,0,0,0,0,0,0,0,48,0]
["QWO","RR8","LEEDS TEACHING HOSPITALS NHS TRUST",80,0.9375,2.5000000000000001E-2,67,8,2,2,0,1,71,8,0,0,0,0,1,0]
["QWO","RXF","MID YORKSHIRE TEACHING NHS TRUST",241,0.93360995850622408,4.5643153526970952E-2,210,15,3,4,7,2,19,0,0,218,0,0,4,0]
["QWU","RJC","SOUTH WARWICKSHIRE UNIVERSITY NHS FOUNDATION TRUST",0,"NA","NA",0,0,0,0,0,0,0,0,0,0,0,0,0,0]
["QWU","RLT","GEORGE ELIOT HOSPITAL NHS TRUST",0,"NA","NA",0,0,0,0,0,0,0,0,0,0,0,0,0,0]
["QWU","RKB","UNIVERSITY HOSPITALS COVENTRY AND WARWICKSHIRE NHS TRUST",97,0.87628865979381443,0.1134020618556701,77,8,1,0,11,0,45,42,0,0,0,0,10,0]
["QXU","RTK","ASHFORD AND ST PETER'S HOSPITALS NHS FOUNDATION TRUST",0,"NA","NA",0,0,0,0,0,0,0,0,0,0,0,0,0,0]
["QXU","RA2","ROYAL SURREY COUNTY HOSPITAL NHS FOUNDATION TRUST",3,"*","*","*","*","*","*","*","*","*","*","*","*","*","*","*","*"]
["QXU","RTP","SURREY AND SUSSEX HEALTHCARE NHS TRUST",14,1,0,"*","*","*","*","*","*","*","*","*","*","*","*","*","*"]
["QYG","RWW","WARRINGTON AND HALTON TEACHING HOSPITALS NHS FOUNDATION TRUST",0,"NA","NA",0,0,0,0,0,0,0,0,0,0,0,0,0,0]
["QYG","RBT","MID CHESHIRE HOSPITALS NHS FOUNDATION TRUST",10,1,0,9,1,0,0,0,0,10,0,0,0,0,0,0,0]
["QYG","RJN","EAST CHESHIRE NHS TRUST",10,1,0,9,1,0,0,0,0,10,0,0,0,0,0,0,0]
["QYG","REP","LIVERPOOL WOMEN'S NHS FOUNDATION TRUST",17,0.94117647058823528,5.8823529411764705E-2,15,1,0,0,1,0,13,0,0,0,0,0,0,4]
["QYG","RBN","MERSEY AND WEST LANCASHIRE TEACHING HOSPITALS NHS TRUST",22,1,0,15,7,0,0,0,0,0,0,0,0,0,0,22,0]
["QYG","RJR","COUNTESS OF CHESTER HOSPITAL NHS FOUNDATION TRUST",24,0.91666666666666663,8.3333333333333329E-2,19,3,0,2,0,0,6,0,0,0,18,0,0,0]
["QYG","RBL","WIRRAL UNIVERSITY TEACHING HOSPITAL NHS FOUNDATION TRUST",28,0.8214285714285714,0.10714285714285714,17,6,2,2,1,0,0,4,0,24,0,0,0,0]

{"sheet":"Sites Q1","index":4,"n_rows":203,"n_cols":14,"rows_kept":203,"cut":false,"hidden":false,"merged":[[8,6,9,6],[8,7,9,7],[8,8,8,13],[8,0,9,0],[8,1,9,1],[8,2,9,2],[8,3,9,3],[8,4,9,4],[8,5,9,5]]}
[]
[]
[]
[]
[]
[null,"   Sort data by:           "]
[]
[]
["ICB Code","Trust Code","Trust Name","Site Code","Site Name","Total Responses","Percentage Positive","Percentage Negative","Breakdown of Responses"]
[null,null,null,null,null,null,null,null,"Very Good","Good","Neither Good nor Poor","Poor","Very Poor","Don't Know"]
[null,null,null,null,"England (including Independent Sector providers)",4783,0.91846121680953374,5.0804934141752037E-2,3588,805,130,111,132,17]
[null,null,null,null,"England (excluding Independent Sector providers)",4783,0.91846121680953374,5.0804934141752037E-2,3588,805,130,111,132,17]
[null,null,null,null,"Selection (excluding suppressed data)",{"$f":"SUBTOTAL(9,F14:F297)","v":4783},{"$f":"IFERROR((I13+J13)/SUM(I13:N13), \"-\")","v":0.92302452316076289},{"$f":"IFERROR((L13+M13)/SUM(I13:N13), \"-\")","v":4.7683923705722074E-2},{"$f":"SUBTOTAL(9,I14:I297)","v":3317},748,113,97,113,16]
["QE1","RXL","BLACKPOOL TEACHING HOSPITALS NHS FOUNDATION TRUST","RXL01","Blackpool Victoria Hospital",50,0.94,0.04,35,12,1,1,1,0]
["QE1","RXR","EAST LANCASHIRE HOSPITALS NHS TRUST","RXR20","Royal Blackburn Hospital",127,0.90551181102362199,6.2992125984251968E-2,91,24,3,3,5,1]
["QE1","RXN","LANCASHIRE TEACHING HOSPITALS NHS FOUNDATION TRUST","RXN01","Chorley and South Ribble Hospital",0,"NA","NA",0,0,0,0,0,0]
["QE1","RXN","LANCASHIRE TEACHING HOSPITALS NHS FOUNDATION TRUST","RXN02","Royal Preston Hospital",17,0.88235294117647056,5.8823529411764705E-2,"*","*","*","*","*","*"]
["QE1","RTX","UNIVERSITY HOSPITALS OF MORECAMBE BAY NHS FOUNDATION TRUST","RTXBU","Furness General Hospital",1,"*","*","*","*","*","*","*","*"]
["QE1","RTX","UNIVERSITY HOSPITALS OF MORECAMBE BAY NHS FOUNDATION TRUST","RTX02","Royal Lancaster Infirmary",1,"*","*","*","*","*","*","*","*"]
["QE1","RTX","UNIVERSITY HOSPITALS OF MORECAMBE BAY NHS FOUNDATION TRUST","RTXBW","Westmorland General Hospital",0,"NA","NA",0,0,0,0,0,0]
["QF7","RFF","BARNSLEY HOSPITAL NHS FOUNDATION TRUST","RFFAA","Barnsley Hospital NHS Foundation Trust HQ",6,1,0,5,1,0,0,0,0]
["QF7","RP5","DONCASTER AND BASSETLAW TEACHING HOSPITALS NHS FOUNDATION TRUST","RP5BA","Bassetlaw Hospital",0,"NA","NA",0,0,0,0,0,0]
["QF7","RP5","DONCASTER AND BASSETLAW TEACHING HOSPITALS NHS FOUNDATION TRUST","RP5DR","Doncaster Royal Infirmary",1,"*","*","*","*","*","*","*","*"]
["QF7","RP5","DONCASTER AND BASSETLAW TEACHING HOSPITALS NHS FOUNDATION TRUST","RP5XXX","Non-hospital site",23,1,0,"*","*","*","*","*","*"]
["QF7","RHQ","SHEFFIELD TEACHING HOSPITALS NHS FOUNDATION TRUST","RHQHH","Royal Hallamshire Hospital",84,0.90476190476190477,4.7619047619047616E-2,58,18,4,3,1,0]
["QF7","RFR","THE ROTHERHAM NHS FOUNDATION TRUST","RFRPA","Rotherham District General Hospital",8,0.875,0.125,4,3,0,0,1,0]
["QGH","RWP","WORCESTERSHIRE ACUTE HOSPITALS NHS TRUST","RWP01","Alexandra Hospital",0,"NA","NA",0,0,0,0,0,0]
["QGH","RWP","WORCESTERSHIRE ACUTE HOSPITALS NHS TRUST","RWP31","Kidderminster Hospital",0,"NA","NA",0,0,0,0,0,0]
["QGH","RWP","WORCESTERSHIRE ACUTE HOSPITALS NHS TRUST","RWP50","Worcestershire Royal Hospital",31,0.87096774193548387,6.4516129032258063E-2,21,6,2,1,1,0]
["QGH","RLQ","WYE VALLEY NHS TRUST","RLQ01","Hereford County Hospital",10,0.9,0.1,8,1,0,0,1,0]
["QH8","RAJ","MID AND SOUTH ESSEX NHS FOUNDATION TRUST","RAJ12","BASILDON HOSPITAL",1,"*","*","*","*","*","*","*","*"]
["QH8","RAJ","MID AND SOUTH ESSEX NHS FOUNDATION TRUST","RAJ32","MID ESSEX HOSPITAL",0,"NA","NA",0,0,0,0,0,0]
["QH8","RAJ","MID AND SOUTH ESSEX NHS FOUNDATION TRUST","RAJ01","Southend Hospital",4,"*","*","*","*","*","*","*","*"]
["QHG","RC9","BEDFORDSHIRE HOSPITALS NHS FOUNDATION TRUST","RC979","BEDFORD HOSPITAL SOUTH WING",5,0.8,0.2,3,1,0,0,1,0]
["QHG","RC9","BEDFORDSHIRE HOSPITALS NHS FOUNDATION TRUST","RC971","Luton and Dunstable Hospital",117,0.94017094017094016,1.7094017094017096E-2,70,40,5,2,0,0]
["QHG","RD8","MILTON KEYNES UNIVERSITY HOSPITAL NHS FOUNDATION TRUST","RD816","Milton Keynes Hospital",362,0.87569060773480667,4.9723756906077346E-2,224,93,23,9,9,4]
["QHL","RQ3","BIRMINGHAM WOMEN'S AND CHILDREN'S NHS FOUNDATION TRUST","RQ370","Birmingham Women's Hospital",125,0.95199999999999996,0.04,111,8,1,1,4,0]
["QHL","RXK","SANDWELL AND WEST BIRMINGHAM HOSPITALS NHS TRUST","RXK02","City Hospital",3,"*","*","*","*","*","*","*","*"]
["QHL","RXK","SANDWELL AND WEST BIRMINGHAM HOSPITALS NHS TRUST","RXK01","Sandwell General Hospital",37,0.70270270270270274,0.21621621621621623,"*","*","*","*","*","*"]
["QHL","RRK","UNIVERSITY HOSPITALS BIRMINGHAM NHS FOUNDATION TRUST","RRK98","Good Hope Hospital",2,"*","*","*","*","*","*","*","*"]
["QHL","RRK","UNIVERSITY HOSPITALS BIRMINGHAM NHS FOUNDATION TRUST","RRK97","Heartlands Hospital",6,0.5,0.33333333333333331,"*","*","*","*","*","*"]
["QHL","RRK","UNIVERSITY HOSPITALS BIRMINGHAM NHS FOUNDATION TRUST","RRK99","Solihull Hospital",0,"NA","NA",0,0,0,0,0,0]
["QHM","RXP","COUNTY DURHAM AND DARLINGTON NHS FOUNDATION TRUST","RXPCP","University Hospital Of North Durham",14,1,0,13,1,0,0,0,0]
["QHM","RR7","GATESHEAD HEALTH NHS FOUNDATION TRUST","RR7EN","Queen Elizabeth Hospital",14,1,0,14,0,0,0,0,0]
["QHM","RNN","NORTH CUMBRIA INTEGRATED CARE NHS FOUNDATION TRUST","RNN62","Cumberland Infirmary",1,"*","*","*","*","*","*","*","*"]
["QHM","RVW","NORTH TEES AND HARTLEPOOL NHS FOUNDATION TRUST","RVWXXX","Non-hospital site",1,"*","*","*","*","*","*","*","*"]
["QHM","RVW","NORTH TEES AND HARTLEPOOL NHS FOUNDATION TRUST","RVWAE","University Hospital Of North Tees",5,1,0,"*","*","*","*","*","*"]
["QHM","RTF","NORTHUMBRIA HEALTHCARE NHS FOUNDATION TRUST","RTFXXX","Non-hospital site",0,"NA","NA",0,0,0,0,0,0]
["QHM","RTR","SOUTH TEES HOSPITALS NHS FOUNDATION TRUST","RTR45","Friarage Hospital Site",11,0.90909090909090906,0,8,2,1,0,0,0]
["QHM","RTR","SOUTH TEES HOSPITALS NHS FOUNDATION TRUST","RTRAT","The James Cook University Hospital",136,0.94117647058823528,2.9411764705882353E-2,104,24,4,3,1,0]
["QHM","R0B","SOUTH TYNESIDE AND SUNDERLAND NHS FOUNDATION TRUST","R0BXXX","Non-hospital site",5,1,0,5,0,0,0,0,0]
["QHM","R0B","SOUTH TYNESIDE AND SUNDERLAND NHS FOUNDATION TRUST","R0B0Q","South Tyneside District Hospital",1,"*","*","*","*","*","*","*","*"]
["QHM","R0B","SOUTH TYNESIDE AND SUNDERLAND NHS FOUNDATION TRUST","R0B01","Sunderland Royal Hospital",1,"*","*","*","*","*","*","*","*"]
["QHM","RTD","THE NEWCASTLE UPON TYNE HOSPITALS NHS FOUNDATION TRUST","RTD02","The Royal Victoria Infirmary",59,0.9152542372881356,3.3898305084745763E-2,39,15,3,0,2,0]
["QJ2","RFS","CHESTERFIELD ROYAL HOSPITAL NHS FOUNDATION TRUST","RFSDA","Chesterfield Royal Hospital",25,0.76,0.16,13,6,2,4,0,0]
["QJ2","RTG","UNIVERSITY HOSPITALS OF DERBY AND BURTON NHS FOUNDATION TRUST","RTG02","Queens Hospital, Burton Upon Trent",14,0.8571428571428571,7.1428571428571425E-2,7,5,1,1,0,0]
["QJ2","RTG","UNIVERSITY HOSPITALS OF DERBY AND BURTON NHS FOUNDATION TRUST","RTGFG","Royal Derby Hospital",37,0.81081081081081086,0.13513513513513514,12,18,2,4,1,0]
["QJG","RDE","EAST SUFFOLK AND NORTH ESSEX NHS FOUNDATION TRUST","RDEE4","Colchester General Hospital",5,1,0,5,0,0,0,0,0]
["QJG","RDE","EAST SUFFOLK AND NORTH ESSEX NHS FOUNDATION TRUST","RDE03","Ipswich Hospital",16,0.9375,6.25E-2,13,2,0,0,1,0]
["QJG","RGR","WEST SUFFOLK NHS FOUNDATION TRUST","RGR50","West Suffolk Hospital",32,1,0,26,6,0,0,0,0]
["QJK","RH8","ROYAL DEVON UNIVERSITY HEALTHCARE NHS FOUNDATION TRUST","RH880","North Devon District Hospital",4,"*","*","*","*","*","*","*","*"]
["QJK","RH8","ROYAL DEVON UNIVERSITY HEALTHCARE NHS FOUNDATION TRUST","RH801","Royal Devon and Exeter Hospital (Wonford)",2,"*","*","*","*","*","*","*","*"]
["QJK","RA9","TORBAY AND SOUTH DEVON NHS FOUNDATION TRUST","RA901","Torbay Hospital",1,"*","*","*","*","*","*","*","*"]
["QJK","RK9","UNIVERSITY HOSPITALS PLYMOUTH NHS TRUST","RK9XXX","Non-hospital site",3,"*","*","*","*","*","*","*","*"]
["QJM","RWD","UNITED LINCOLNSHIRE TEACHING HOSPITALS NHS TRUST","RWDLP","Grantham and District Hospital",0,"NA","NA",0,0,0,0,0,0]
["QJM","RWD","UNITED LINCOLNSHIRE TEACHING HOSPITALS NHS TRUST","RWDDA","Lincoln County Hospital",0,"NA","NA",0,0,0,0,0,0]
["QJM","RWD","UNITED LINCOLNSHIRE TEACHING HOSPITALS NHS TRUST","RWDLA","Pilgrim Hospital",0,"NA","NA",0,0,0,0,0,0]
["QK1","RWE","UNIVERSITY HOSPITALS OF LEICESTER NHS TRUST","RWEAK","Leicester General Hospital",3,"*","*","*","*","*","*","*","*"]
["QK1","RWE","UNIVERSITY HOSPITALS OF LEICESTER NHS TRUST","RWEAA","Leicester Royal Infirmary",3,"*","*","*","*","*","*","*","*"]
["QK1","RWE","UNIVERSITY HOSPITALS OF LEICESTER NHS TRUST","RWEXXX","Non-hospital site",42,0.88095238095238093,7.1428571428571425E-2,30,7,2,0,3,0]
["QK1","RWE","UNIVERSITY HOSPITALS OF LEICESTER NHS TRUST","RWE10","St Mary's Hospital",5,0.8,0.2,4,0,0,1,0,0]
["QKK","RJ1","GUY'S AND ST THOMAS' NHS FOUNDATION TRUST","RJ122","St Thomas' Hospital",8,1,0,7,1,0,0,0,0]
["QKK","RJ2","LEWISHAM AND GREENWICH NHS TRUST","RJ2XXX","Non-hospital site",0,"NA","NA",0,0,0,0,0,0]
["QKK","RJ2","LEWISHAM AND GREENWICH NHS TRUST","RJ231","Queen Elizabeth Hospital",11,0.81818181818181823,0.18181818181818182,6,3,0,2,0,0]
["QKK","RJ2","LEWISHAM AND GREENWICH NHS TRUST","RJ224","University Hospital Lewisham",19,0.94736842105263153,0,14,4,1,0,0,0]
["QKS","RN7","DARTFORD AND GRAVESHAM NHS TRUST","RN707","Darent Valley Hospital",160,0.94374999999999998,3.125E-2,128,23,2,4,1,2]
["QKS","RVV","EAST KENT HOSPITALS UNIVERSITY NHS FOUNDATION TRUST","RVV02","Buckland Hospital",2,"*","*","*","*","*","*","*","*"]
["QKS","RVV","EAST KENT HOSPITALS UNIVERSITY NHS FOUNDATION TRUST","RVVKC","Kent and Canterbury Hospital",1,"*","*","*","*","*","*","*","*"]
["QKS","RVV","EAST KENT HOSPITALS UNIVERSITY NHS FOUNDATION TRUST","RVVXXX","Non-hospital site",5,1,0,5,0,0,0,0,0]
["QKS","RVV","EAST KENT HOSPITALS UNIVERSITY NHS FOUNDATION TRUST","RVV09","Queen Elizabeth The Queen Mother Hospital",6,0.83333333333333337,0.16666666666666666,4,1,0,1,0,0]
["QKS","RVV","EAST KENT HOSPITALS UNIVERSITY NHS FOUNDATION TRUST","RVV01","William Harvey Hospital (Ashford)",4,"*","*","*","*","*","*","*","*"]
["QKS","RWF","MAIDSTONE AND TUNBRIDGE WELLS NHS TRUST","RWF03","Maidstone District General Hospital",20,0.85,0.1,14,3,1,1,1,0]
["QKS","RWF","MAIDSTONE AND TUNBRIDGE WELLS NHS TRUST","RWFXXX","Non-hospital site",0,"NA","NA",0,0,0,0,0,0]
["QKS","RWF","MAIDSTONE AND TUNBRIDGE WELLS NHS TRUST","RWFTW","The Tunbridge Wells Hospital",11,1,0,11,0,0,0,0,0]
["QKS","RPA","MEDWAY NHS FOUNDATION TRUST","RPA02","Medway Maritime Hospital",19,0.94736842105263153,5.2631578947368418E-2,17,1,0,0,1,0]
["QM7","RWH","EAST AND NORTH HERTFORDSHIRE NHS TRUST","RWH23","Hertford County Hospital",10,1,0,"*","*","*","*","*","*"]
["QM7","RWH","EAST AND NORTH HERTFORDSHIRE NHS TRUST","RWH01","Lister Hospital",72,0.94444444444444442,4.1666666666666664E-2,47,21,1,3,0,0]
["QM7","RWH","EAST AND NORTH HERTFORDSHIRE NHS TRUST","RWHXXX","Non-hospital site",1,"*","*","*","*","*","*","*","*"]
["QM7","RWH","EAST AND NORTH HERTFORDSHIRE NHS TRUST","RWH20","Queen Elizabeth I I Hospital",18,1,0,16,2,0,0,0,0]
["QM7","RQW","THE PRINCESS ALEXANDRA HOSPITAL NHS TRUST","RQWG0","Princess Alexandra Hospital",0,"NA","NA",0,0,0,0,0,0]
["QM7","RWG","WEST HERTFORDSHIRE TEACHING HOSPITALS NHS TRUST","RWG02","Watford General Hospital",0,"NA","NA",0,0,0,0,0,0]
["QMF","RF4","BARKING, HAVERING AND REDBRIDGE UNIVERSITY HOSPITALS NHS TRUST","RF4XXX","Non-hospital site",9,0.88888888888888884,0.1111111111111111,"*","*","*","*","*","*"]
["QMF","R1H","BARTS HEALTH NHS TRUST","R1HNH","Newham General Hospital",117,0.9145299145299145,6.8376068376068383E-2,101,6,2,3,5,0]
["QMF","R1H","BARTS HEALTH NHS TRUST","R1H12","The Royal London Hospital",19,0.68421052631578949,0.26315789473684209,10,3,1,2,3,0]
["QMF","R1H","BARTS HEALTH NHS TRUST","R1HKH","Whipps Cross University Hospital",24,0.875,0.125,19,2,0,0,3,0]
["QMF","RQX","HOMERTON HEALTHCARE NHS FOUNDATION TRUST","RQXM1","Homerton University Hospital",2,"*","*","*","*","*","*","*","*"]
["QMJ","RAL","ROYAL FREE LONDON NHS FOUNDATION TRUST","RAL26","Barnet Hospital",16,0.75,0.1875,8,4,0,0,3,1]
["QMJ","RAL","ROYAL FREE LONDON NHS FOUNDATION TRUST","RALC7","Chase Farm Hospital ",4,"*","*","*","*","*","*","*","*"]
["QMJ","RAL","ROYAL FREE LONDON NHS FOUNDATION TRUST","RAL22","Finchley Memorial Hospital",2,"*","*","*","*","*","*","*","*"]
["QMJ","RAL","ROYAL FREE LONDON NHS FOUNDATION TRUST","E3M3C","NORTH MIDDLESEX HOSPITAL DSU - ELECTIVE SURGICAL HUB",32,0.625,0.28125,16,4,3,5,4,0]
["QMJ","RAL","ROYAL FREE LONDON NHS FOUNDATION TRUST","RAL01","Royal Free Hospital",12,1,0,6,6,0,0,0,0]
["QMJ","RRV","UNIVERSITY COLLEGE LONDON HOSPITALS NHS FOUNDATION TRUST","RRV11","University College Hospital Elizabeth Garrett Anderson Wing",0,"NA","NA",0,0,0,0,0,0]
["QMJ","RKE","WHITTINGTON HEALTH NHS TRUST","RKEXXX","Non-hospital site",6,1,0,6,0,0,0,0,0]
["QMJ","RKE","WHITTINGTON HEALTH NHS TRUST","RKEQ4","The Whittington Hospital",8,1,0,8,0,0,0,0,0]
["QMM","RGP","JAMES PAGET UNIVERSITY HOSPITALS NHS FOUNDATION TRUST","RGP75","James Paget University Hospital",0,"NA","NA",0,0,0,0,0,0]
["QMM","RM1","NORFOLK AND NORWICH UNIVERSITY HOSPITALS NHS FOUNDATION TRUST","RM102","Norfolk and Norwich University Hospital",92,0.98913043478260865,0,85,6,1,0,0,0]
["QMM","RCX","THE QUEEN ELIZABETH HOSPITAL, KING'S LYNN, NHS FOUNDATION TRUST","RCXXXX","Non-hospital site",41,0.97560975609756095,0,36,4,1,0,0,0]
["QMM","RCX","THE QUEEN ELIZABETH HOSPITAL, KING'S LYNN, NHS FOUNDATION TRUST","RCX66","North Cambridgeshire Hospital",0,"NA","NA",0,0,0,0,0,0]
["QMM","RCX","THE QUEEN ELIZABETH HOSPITAL, KING'S LYNN, NHS FOUNDATION TRUST","RCX70","The Queen Elizabeth Hospital",49,0.95918367346938771,0,42,5,2,0,0,0]
["QNC","RJE","UNIVERSITY HOSPITALS OF NORTH MIDLANDS NHS TRUST","RJEXXX","Non-hospital site",3,"*","*","*","*","*","*","*","*"]
["QNC","RJE","UNIVERSITY HOSPITALS OF NORTH MIDLANDS NHS TRUST","RJE01","Royal Stoke University Hospital",20,0.9,0.1,"*","*","*","*","*","*"]
["QNQ","RDU","FRIMLEY HEALTH NHS FOUNDATION TRUST","RDU01","Frimley Park Hospital",14,0.9285714285714286,0,9,4,0,0,0,1]
["QOC","RXW","THE SHREWSBURY AND TELFORD HOSPITAL NHS TRUST","RXWAS","Royal Shrewsbury Hospital",19,1,0,18,1,0,0,0,0]
["QOC","RXW","THE SHREWSBURY AND TELFORD HOSPITAL NHS TRUST","RXWAT","The Princess Royal Hospital",7,1,0,6,1,0,0,0,0]
["QOP","RMC","BOLTON NHS FOUNDATION TRUST","RMC01","Royal Bolton Hospital",58,1,0,58,0,0,0,0,0]
["QOP","R0A","MANCHESTER UNIVERSITY NHS FOUNDATION TRUST","R0A05","St Mary's Hospital",366,0.97267759562841527,1.912568306010929E-2,299,57,3,2,5,0]
["QOP","RWJ","STOCKPORT NHS FOUNDATION TRUST","RWJ09","Stepping Hill Hospital",0,"NA","NA",0,0,0,0,0,0]
["QOP","RMP","TAMESIDE AND GLOSSOP INTEGRATED CARE NHS FOUNDATION TRUST","RMP01","Tameside General Hospital",28,0.9642857142857143,3.5714285714285712E-2,"*","*","*","*","*","*"]
["QOP","RRF","WRIGHTINGTON, WIGAN AND LEIGH NHS FOUNDATION TRUST","RRF02","Royal Albert Edward Infirmary",3,"*","*","*","*","*","*","*","*"]
["QOP","RRF","WRIGHTINGTON, WIGAN AND LEIGH NHS FOUNDATION TRUST","RRF54","Thomas Linacre Outpatient Centre",1,"*","*","*","*","*","*","*","*"]
["QOQ","RCD","HARROGATE AND DISTRICT NHS FOUNDATION TRUST","RCD01","Harrogate District Hospital",1,"*","*","*","*","*","*","*","*"]
["QOQ","RWA","HULL UNIVERSITY TEACHING HOSPITALS NHS TRUST","RWA01","Hull Royal Infirmary",1,"*","*","*","*","*","*","*","*"]
["QOQ","RJL","NORTHERN LINCOLNSHIRE AND GOOLE NHS FOUNDATION TRUST","RJL30","Diana, Princess Of Wales Hospital",4,"*","*","*","*","*","*","*","*"]
["QOQ","RJL","NORTHERN LINCOLNSHIRE AND GOOLE NHS FOUNDATION TRUST","RJL31","Goole and District Hospital (Acute)",0,"NA","NA",0,0,0,0,0,0]
["QOQ","RJL","NORTHERN LINCOLNSHIRE AND GOOLE NHS FOUNDATION TRUST","RJL32","Scunthorpe General Hospital",5,0.6,0.4,"*","*","*","*","*","*"]
["QOX","RN3","GREAT WESTERN HOSPITALS NHS FOUNDATION TRUST","RN325","The Great Western Hospital",40,0.92500000000000004,2.5000000000000001E-2,36,1,2,0,1,0]
["QOX","RD1","ROYAL UNITED HOSPITALS BATH NHS FOUNDATION TRUST","RD102","Chippenham Community Hospital ",6,0.66666666666666663,0.33333333333333331,3,1,0,1,1,0]
["QOX","RD1","ROYAL UNITED HOSPITALS BATH NHS FOUNDATION TRUST","RD121","Frome Community Hospital ",5,0.8,0.2,3,1,0,1,0,0]
["QOX","RD1","ROYAL UNITED HOSPITALS BATH NHS FOUNDATION TRUST","RD129","Paulton Memorial Hospital ",2,"*","*","*","*","*","*","*","*"]
["QOX","RD1","ROYAL UNITED HOSPITALS BATH NHS FOUNDATION TRUST","RD108","Trowbridge Community Hospital ",3,"*","*","*","*","*","*","*","*"]
["QOX","RNZ","SALISBURY NHS FOUNDATION TRUST","RNZ02","Salisbury District Hospital",49,0.91836734693877553,6.1224489795918366E-2,38,7,1,2,1,0]
["QPM","RNQ","KETTERING GENERAL HOSPITAL NHS FOUNDATION TRUST","RNQ51","Kettering General Hospital",16,0.875,6.25E-2,11,3,0,1,0,1]
["QPM","RNS","NORTHAMPTON GENERAL HOSPITAL NHS TRUST","RNS01","Northampton General Hospital (Acute)",100,0.99,0.01,90,9,0,0,1,0]
["QRL","RN5","HAMPSHIRE HOSPITALS NHS FOUNDATION TRUST","RN542","Andover War Memorial Hospital",30,0.96666666666666667,0,29,0,1,0,0,0]
["QRL","RN5","HAMPSHIRE HOSPITALS NHS FOUNDATION TRUST","RN506","Basingstoke and North Hampshire Hospital",6,0.83333333333333337,0.16666666666666666,"*","*","*","*","*","*"]
["QRL","RN5","HAMPSHIRE HOSPITALS NHS FOUNDATION TRUST","RN5XXX","Non-hospital site",1,"*","*","*","*","*","*","*","*"]
["QRL","RN5","HAMPSHIRE HOSPITALS NHS FOUNDATION TRUST","RN541","Royal Hampshire County Hospital",24,0.91666666666666663,4.1666666666666664E-2,22,0,1,1,0,0]
["QRL","R1F","ISLE OF WIGHT NHS TRUST","R1F01","St Mary's Hospital",8,1,0,"*","*","*","*","*","*"]
["QRL","RHU","PORTSMOUTH HOSPITALS UNIVERSITY NATIONAL HEALTH SERVICE TRUST","RHU03","Queen Alexandra Hospital",2,"*","*","*","*","*","*","*","*"]
["QRL","RHM","UNIVERSITY HOSPITAL SOUTHAMPTON NHS FOUNDATION TRUST","RHM12","Princess Anne Hospital",114,0.94736842105263153,2.6315789473684209E-2,73,35,3,2,1,0]
["QRV","RQM","CHELSEA AND WESTMINSTER HOSPITAL NHS FOUNDATION TRUST","RQM01","Chelsea and Westminster Hospital",15,0.8666666666666667,0.13333333333333333,12,1,0,0,2,0]
["QRV","RQM","CHELSEA AND WESTMINSTER HOSPITAL NHS FOUNDATION TRUST","RQM91","West Middlesex University Hospital",9,0.66666666666666663,0,5,1,3,0,0,0]
["QRV","RYJ","IMPERIAL COLLEGE HEALTHCARE NHS TRUST","RYJ04","Queen Charlotte's Hospital",21,0.95238095238095233,4.7619047619047616E-2,16,4,0,0,1,0]
["QRV","RYJ","IMPERIAL COLLEGE HEALTHCARE NHS TRUST","RYJ01","St Mary's Hospital (HQ)",17,1,0,13,4,0,0,0,0]
["QRV","R1K","LONDON NORTH WEST UNIVERSITY HEALTHCARE NHS TRUST","R1K01","Northwick Park Hospital",7,1,0,7,0,0,0,0,0]
["QRV","RAS","THE HILLINGDON HOSPITALS NHS FOUNDATION TRUST","RAS01","Hillingdon Hospital",49,0.93877551020408168,0,32,14,3,0,0,0]
["QSL","RH5","SOMERSET NHS FOUNDATION TRUST","RH5K6","Bridgwater Hospital",1,"*","*","*","*","*","*","*","*"]
["QSL","RH5","SOMERSET NHS FOUNDATION TRUST","RH5A8","MUSGROVE PARK HOSPITAL",2,"*","*","*","*","*","*","*","*"]
["QSL","RH5","SOMERSET NHS FOUNDATION TRUST","RH5XXXX","Non-hospital site home/in-transit births",0,"NA","NA",0,0,0,0,0,0]
["QSL","RH5","SOMERSET NHS FOUNDATION TRUST","RH5O4","Yeovil District Hospital",4,"*","*","*","*","*","*","*","*"]
["QT1","RX1","NOTTINGHAM UNIVERSITY HOSPITALS NHS TRUST","RX1XXX","Non-hospital site",5,1,0,5,0,0,0,0,0]
["QT1","RX1","NOTTINGHAM UNIVERSITY HOSPITALS NHS TRUST","RX1CC","Nottingham University Hospitals NHS Trust - City Campus",132,0.96212121212121215,1.5151515151515152E-2,108,19,2,1,1,1]
["QT1","RX1","NOTTINGHAM UNIVERSITY HOSPITALS NHS TRUST","RX1RA","Nottingham University Hospitals NHS Trust - Queen's Medical Centre Campus",77,0.96103896103896103,2.5974025974025976E-2,60,14,1,1,1,0]
["QT1","RK5","SHERWOOD FOREST HOSPITALS NHS FOUNDATION TRUST","RK5BC","King's Mill Hospital",8,0.875,0.125,7,0,0,0,1,0]
["QT6","REF","ROYAL CORNWALL HOSPITALS NHS TRUST","REFXXX","Non-hospital site",7,1,0,6,1,0,0,0,0]
["QT6","REF","ROYAL CORNWALL HOSPITALS NHS TRUST","REF12","Royal Cornwall Hospital (Treliske)",33,0.81818181818181823,9.0909090909090912E-2,22,5,3,2,1,0]
["QU9","RXQ","BUCKINGHAMSHIRE HEALTHCARE NHS TRUST","RXQ02","Stoke Mandeville Hospital",34,0.79411764705882348,0.17647058823529413,23,4,1,2,4,0]
["QU9","RXQ","BUCKINGHAMSHIRE HEALTHCARE NHS TRUST","RXQ50","Wycombe Hospital",17,0.6470588235294118,0.35294117647058826,9,2,0,2,4,0]
["QU9","RTH","OXFORD UNIVERSITY HOSPITALS NHS FOUNDATION TRUST","RTH08","John Radcliffe Hospital",5,0,1,0,0,0,1,4,0]
["QU9","RHW","ROYAL BERKSHIRE NHS FOUNDATION TRUST","RHW01","Royal Berkshire Hospital",36,0.97222222222222221,2.7777777777777776E-2,31,4,0,0,1,0]
["QUA","RNA","THE DUDLEY GROUP NHS FOUNDATION TRUST","RNA01","Russells Hall Hospital",6,1,0,6,0,0,0,0,0]
["QUA","RL4","THE ROYAL WOLVERHAMPTON NHS TRUST","RL403","New Cross Hospital",22,0.81818181818181823,0.13636363636363635,16,2,1,3,0,0]
["QUA","RBK","WALSALL HEALTHCARE NHS TRUST","RBK02","Manor Hospital",195,0.94871794871794868,2.564102564102564E-2,92,93,4,2,3,1]
["QUE","RGT","CAMBRIDGE UNIVERSITY HOSPITALS NHS FOUNDATION TRUST","RGT32","Rosie Hospital",12,0.58333333333333337,0.25,3,4,2,3,0,0]
["QUE","RGN","NORTH WEST ANGLIA NHS FOUNDATION TRUST","RGN90","Hinchingbrooke Hospital",23,1,0,23,0,0,0,0,0]
["QUE","RGN","NORTH WEST ANGLIA NHS FOUNDATION TRUST","RGN80","Peterborough City Hospital",63,0.96825396825396826,3.1746031746031744E-2,52,9,0,1,1,0]
["QUY","RVJ","NORTH BRISTOL NHS TRUST","RVJ01","Southmead Hospital",0,"NA","NA",0,0,0,0,0,0]
["QUY","RA7","UNIVERSITY HOSPITALS BRISTOL AND WESTON NHS FOUNDATION TRUST","RA707","ST MICHAEL'S HOSPITAL",25,1,0,24,1,0,0,0,0]
["QVV","RBD","DORSET COUNTY HOSPITAL NHS FOUNDATION TRUST","RBD01","Dorset County Hospital",2,"*","*","*","*","*","*","*","*"]
["QVV","R0D","UNIVERSITY HOSPITALS DORSET NHS FOUNDATION TRUST","R0D01","Poole Hospital",46,0.82608695652173914,8.6956521739130432E-2,"*","*","*","*","*","*"]
["QVV","R0D","UNIVERSITY HOSPITALS DORSET NHS FOUNDATION TRUST","R0D02","Royal Bournemouth Hospital",0,"NA","NA",0,0,0,0,0,0]
["QWE","RVR","EPSOM AND ST HELIER UNIVERSITY HOSPITALS NHS TRUST","RVR50","Epsom Hospital",0,"NA","NA",0,0,0,0,0,0]
["QWE","RVR","EPSOM AND ST HELIER UNIVERSITY HOSPITALS NHS TRUST","RVRXXX","Non-hospital site",0,"NA","NA",0,0,0,0,0,0]
["QWE","RVR","EPSOM AND ST HELIER UNIVERSITY HOSPITALS NHS TRUST","RVR05","St Helier Hospital",3,"*","*","*","*","*","*","*","*"]
["QWE","RAX","KINGSTON AND RICHMOND NHS FOUNDATION TRUST","RAX01","Kingston Hospital",81,0.92592592592592593,4.9382716049382713E-2,72,3,1,2,2,1]
["QWE","RJ7","ST GEORGE'S UNIVERSITY HOSPITALS NHS FOUNDATION TRUST","RJ701","St George's Hospital (Tooting)",24,0.75,0.125,"*","*","*","*","*","*"]
["QWO","RAE","BRADFORD TEACHING HOSPITALS NHS FOUNDATION TRUST","RAE01","Bradford Royal Infirmary",48,0.75,0.16666666666666666,28,8,4,4,4,0]
["QWO","RWY","CALDERDALE AND HUDDERSFIELD NHS FOUNDATION TRUST","RWY02","Calderdale Royal Hospital",5,1,0,"*","*","*","*","*","*"]
["QWO","RWY","CALDERDALE AND HUDDERSFIELD NHS FOUNDATION TRUST","RWY01","Huddersfield Royal Infirmary",1,"*","*","*","*","*","*","*","*"]
["QWO","RWY","CALDERDALE AND HUDDERSFIELD NHS FOUNDATION TRUST","RWYXXX","Non-hospital site",5,1,0,5,0,0,0,0,0]
["QWO","RR8","LEEDS TEACHING HOSPITALS NHS TRUST","RR801","Leeds General Infirmary",5,0.8,0.2,"*","*","*","*","*","*"]
["QWO","RR8","LEEDS TEACHING HOSPITALS NHS TRUST","RR8XXX","Non-hospital site",72,0.94444444444444442,1.3888888888888888E-2,60,8,2,1,0,1]
["QWO","RR8","LEEDS TEACHING HOSPITALS NHS TRUST","RR813","St James's University Hospital",3,"*","*","*","*","*","*","*","*"]
["QWO","RXF","MID YORKSHIRE TEACHING NHS TRUST","RXF10","Dewsbury and District Hospital",28,0.9285714285714286,7.1428571428571425E-2,24,2,0,1,1,0]
["QWO","RXF","MID YORKSHIRE TEACHING NHS TRUST","RXF05","Pinderfields General Hospital",123,0.94308943089430897,4.065040650406504E-2,106,10,1,1,4,1]
["QWO","RXF","MID YORKSHIRE TEACHING NHS TRUST","RXF03","Pontefract General Infirmary",90,0.92222222222222228,4.4444444444444446E-2,80,3,2,2,2,1]
["QWU","RLT","GEORGE ELIOT HOSPITAL NHS TRUST","RLT01","George Eliot Hospital - Acute Services",0,"NA","NA",0,0,0,0,0,0]
["QWU","RJC","SOUTH WARWICKSHIRE UNIVERSITY NHS FOUNDATION TRUST","RJCXXX","Non-hospital site",0,"NA","NA",0,0,0,0,0,0]
["QWU","RJC","SOUTH WARWICKSHIRE UNIVERSITY NHS FOUNDATION TRUST","RJC02","Warwick Hospital",0,"NA","NA",0,0,0,0,0,0]
["QWU","RKB","UNIVERSITY HOSPITALS COVENTRY AND WARWICKSHIRE NHS TRUST","RKB03","Hospital Of St Cross",0,"NA","NA",0,0,0,0,0,0]
["QWU","RKB","UNIVERSITY HOSPITALS COVENTRY AND WARWICKSHIRE NHS TRUST","RKBXXX","Non-hospital site",42,0.8571428571428571,0.11904761904761904,31,5,1,0,5,0]
["QWU","RKB","UNIVERSITY HOSPITALS COVENTRY AND WARWICKSHIRE NHS TRUST","RKB01","University Hospital (Coventry)",55,0.89090909090909087,0.10909090909090909,46,3,0,0,6,0]
["QXU","RTK","ASHFORD AND ST PETER'S HOSPITALS NHS FOUNDATION TRUST","RTK02","Ashford Hospital",0,"NA","NA",0,0,0,0,0,0]
["QXU","RA2","ROYAL SURREY COUNTY HOSPITAL NHS FOUNDATION TRUST","RA201","Royal Surrey County Hospital",3,"*","*","*","*","*","*","*","*"]
["QXU","RTP","SURREY AND SUSSEX HEALTHCARE NHS TRUST","RTP04","East Surrey Hospital",14,1,0,"*","*","*","*","*","*"]
["QYG","RJR","COUNTESS OF CHESTER HOSPITAL NHS FOUNDATION TRUST","RJR05","Countess Of Chester Hospital",24,0.91666666666666663,8.3333333333333329E-2,19,3,0,2,0,0]
["QYG","RJN","EAST CHESHIRE NHS TRUST","RJN71","Macclesfield District General Hospital",10,1,0,9,1,0,0,0,0]
["QYG","REP","LIVERPOOL WOMEN'S NHS FOUNDATION TRUST","REP01","Liverpool Womens Hospital",17,0.94117647058823528,5.8823529411764705E-2,15,1,0,0,1,0]
["QYG","RBN","MERSEY AND WEST LANCASHIRE TEACHING HOSPITALS NHS TRUST","RBN52","Ormskirk and District General Hospital",1,"*","*","*","*","*","*","*","*"]
["QYG","RBN","MERSEY AND WEST LANCASHIRE TEACHING HOSPITALS NHS TRUST","RBN01","Whiston Hospital",21,1,0,"*","*","*","*","*","*"]
["QYG","RBT","MID CHESHIRE HOSPITALS NHS FOUNDATION TRUST","RBT20","Leighton Hospital",10,1,0,9,1,0,0,0,0]
["QYG","RWW","WARRINGTON AND HALTON TEACHING HOSPITALS NHS FOUNDATION TRUST","RWWWH","Warrington Hospital",0,"NA","NA",0,0,0,0,0,0]
["QYG","RBL","WIRRAL UNIVERSITY TEACHING HOSPITAL NHS FOUNDATION TRUST","RBL14","Arrowe Park Hospital",28,0.8214285714285714,0.10714285714285714,17,6,2,2,1,0]

{"sheet":"ICB Q2","index":5,"n_rows":55,"n_cols":12,"rows_kept":55,"cut":false,"hidden":false,"merged":[[8,6,8,11],[8,0,9,0],[8,1,9,1],[8,2,9,2],[8,3,9,3],[8,4,9,4],[8,5,9,5]]}
[]
[]
[]
[]
[]
[null,"   Sort data by:           "]
[]
[]
["ICB Code","ICB Name","Total Responses","Total Eligible","Percentage Positive","Percentage Negative","Breakdown of Responses"]
[null,null,null,null,null,null,"Very Good","Good","Neither Good nor Poor","Poor","Very Poor","Don't Know"]
[null,"England (including Independent Sector providers)",4894,38134,0.92521454842664486,4.495300367797303E-2,3866,662,113,85,135,33]
[null,"England (excluding Independent Sector providers)",4894,38134,0.92521454842664486,4.495300367797303E-2,3866,662,113,85,135,33]
[null,"Selection (excluding suppressed data)",{"$f":"SUBTOTAL(9,C14:C55)","v":4894},{"$f":"SUBTOTAL(9,D14:D55)","v":38134},{"$f":"IFERROR((G13+H13)/SUM(G13:L13), \"-\")","v":0.92493847415914687},{"$f":"IFERROR((J13+K13)/SUM(G13:L13), \"-\")","v":4.5118949958982774E-2},{"$f":"SUBTOTAL(9,G14:G55)","v":3851},659,113,85,135,33]
["QE1","LANCASHIRE AND SOUTH CUMBRIA ICB",138,1030,0.91304347826086951,3.6231884057971016E-2,110,16,6,1,4,1]
["QF7","SOUTH YORKSHIRE ICB",81,1075,0.9135802469135802,3.7037037037037035E-2,64,10,4,1,2,0]
["QGH","HEREFORDSHIRE AND WORCESTERSHIRE ICB",131,235,0.97709923664122134,0,118,10,3,0,0,0]
["QH8","MID AND SOUTH ESSEX ICB",182,557,0.89010989010989006,7.6923076923076927E-2,139,23,5,3,11,1]
["QHG","BEDFORDSHIRE, LUTON AND MILTON KEYNES ICB",69,598,0.97101449275362317,1.4492753623188406E-2,55,12,1,0,1,0]
["QHL","BIRMINGHAM AND SOLIHULL ICB",130,1752,0.77692307692307694,0.15384615384615385,82,19,7,9,11,2]
["QHM","NORTH EAST AND NORTH CUMBRIA ICB",236,1812,0.92372881355932202,2.9661016949152543E-2,183,35,11,5,2,0]
["QJ2","DERBY AND DERBYSHIRE ICB",118,789,0.96610169491525422,2.5423728813559324E-2,96,18,1,1,2,0]
["QJG","SUFFOLK AND NORTH EAST ESSEX ICB",15,509,1,0,15,0,0,0,0,0]
["QJK","DEVON ICB",21,506,0.95238095238095233,0,18,2,0,0,0,1]
["QJM","LINCOLNSHIRE ICB",0,354,"NA","NA",0,0,0,0,0,0]
["QK1","LEICESTER, LEICESTERSHIRE AND RUTLAND ICB",149,698,0.93959731543624159,1.3422818791946308E-2,109,31,6,2,0,1]
["QKK","SOUTH EAST LONDON ICB",282,1378,0.96099290780141844,1.0638297872340425E-2,195,76,8,1,2,0]
["QKS","KENT AND MEDWAY ICB",147,1492,0.97278911564625847,1.3605442176870748E-2,123,20,2,2,0,0]
["QM7","HERTFORDSHIRE AND WEST ESSEX ICB",36,625,0.94444444444444442,5.5555555555555552E-2,31,3,0,0,2,0]
["QMF","NORTH EAST LONDON ICB",119,2035,0.92436974789915971,1.680672268907563E-2,88,22,1,1,1,6]
["QMJ","NORTH CENTRAL LONDON ICB",120,1359,0.95,3.3333333333333333E-2,93,21,2,3,1,0]
["QMM","NORFOLK AND WAVENEY ICB",37,593,1,0,36,1,0,0,0,0]
["QNC","STAFFORDSHIRE AND STOKE-ON-TRENT ICB",37,437,0.94594594594594594,5.4054054054054057E-2,29,6,0,0,2,0]
["QNQ","FRIMLEY ICB",91,0,0.98901098901098905,0,76,14,1,0,0,0]
["QNX","SUSSEX ICB",144,840,0.95138888888888884,1.3888888888888888E-2,123,14,5,1,1,0]
["QOC","SHROPSHIRE, TELFORD AND WREKIN ICB",17,0,1,0,16,1,0,0,0,0]
["QOP","GREATER MANCHESTER ICB",441,4595,0.87755102040816324,9.9773242630385492E-2,316,71,6,14,30,4]
["QOQ","HUMBER AND NORTH YORKSHIRE ICB",37,864,0.97297297297297303,0,34,2,1,0,0,0]
["QOX","BATH AND NORTH EAST SOMERSET, SWINDON AND WILTSHIRE ICB",69,422,0.89855072463768115,4.3478260869565216E-2,48,14,4,2,1,0]
["QPM","NORTHAMPTONSHIRE ICB",51,517,0.92156862745098034,5.8823529411764705E-2,44,3,1,0,3,0]
["QR1","GLOUCESTERSHIRE ICB",68,241,0.88235294117647056,5.8823529411764705E-2,44,16,3,2,2,1]
["QRL","HAMPSHIRE AND ISLE OF WIGHT ICB",309,1160,0.970873786407767,1.6181229773462782E-2,266,34,3,3,2,1]
["QRV","NORTH WEST LONDON ICB",277,1355,0.94584837545126355,3.6101083032490974E-2,225,37,5,4,6,0]
["QSL","SOMERSET ICB",4,323,"*","*","*","*","*","*","*","*"]
["QT1","NOTTINGHAM AND NOTTINGHAMSHIRE ICB",37,611,0.89189189189189189,0.10810810810810811,27,6,0,1,3,0]
["QT6","CORNWALL AND THE ISLES OF SCILLY ICB",14,283,1,0,"*","*","*","*","*","*"]
["QU9","BUCKINGHAMSHIRE, OXFORDSHIRE AND BERKSHIRE WEST ICB",58,967,0.67241379310344829,0.25862068965517243,34,5,3,7,8,1]
["QUA","BLACK COUNTRY ICB",139,916,0.92086330935251803,2.8776978417266189E-2,119,9,4,1,3,3]
["QUE","CAMBRIDGESHIRE AND PETERBOROUGH ICB",54,798,0.85185185185185186,9.2592592592592587E-2,41,5,1,3,2,2]
["QUY","BRISTOL, NORTH SOMERSET AND SOUTH GLOUCESTERSHIRE ICB",147,709,0.93197278911564629,4.7619047619047616E-2,121,16,2,2,5,1]
["QVV","DORSET ICB",24,350,0.95833333333333337,4.1666666666666664E-2,20,3,0,0,1,0]
["QWE","SOUTH WEST LONDON ICB",69,970,0.92753623188405798,7.2463768115942032E-2,59,5,0,2,3,0]
["QWO","WEST YORKSHIRE ICB",336,1424,0.9642857142857143,2.976190476190476E-2,301,23,2,5,5,0]
["QWU","COVENTRY AND WARWICKSHIRE ICB",77,931,0.89610389610389607,5.1948051948051951E-2,67,2,4,1,3,0]
["QXU","SURREY HEARTLANDS ICB",175,481,0.84571428571428575,7.4285714285714288E-2,126,22,7,2,11,7]
["QYG","CHESHIRE AND MERSEYSIDE ICB",208,1543,0.92307692307692313,5.2884615384615384E-2,160,32,4,6,5,1]

{"sheet":"Trusts Q2","index":6,"n_rows":132,"n_cols":21,"rows_kept":132,"cut":false,"hidden":false,"merged":[[8,6,9,6],[8,7,8,12],[8,13,8,20],[8,0,9,0],[8,1,9,1],[8,2,9,2],[8,3,9,3],[8,4,9,4],[8,5,9,5]]}
[]
[]
[]
[]
[]
[null,"   Sort data by:           "]
[]
[]
["ICB Code","Trust Code","Trust Name","Total Responses","Total Eligible","Percentage Positive","Percentage Negative","Breakdown of Responses",null,null,null,null,null,"Mode of Collection"]
[null,null,null,null,null,null,null,"Very Good","Good","Neither Good nor Poor","Poor","Very Poor","Don't Know","Mode SMS","Mode Electronic Discharge","Mode Electronic Home","Mode Paper Discharge","Mode Paper Home","Mode Telephone","Mode Online","Mode Other"]
[null,null,"England (including Independent Sector providers)",4894,38134,0.92521454842664486,4.495300367797303E-2,3866,662,113,85,135,33,1972,890,48,1002,29,0,877,76]
[null,null,"England (excluding Independent Sector providers)",4894,38134,0.92521454842664486,4.495300367797303E-2,3866,662,113,85,135,33,1972,890,48,1002,29,0,877,76]
[null,null,"Selection (excluding suppressed data)",{"$f":"SUBTOTAL(9,D14:D299)","v":4894},{"$f":"SUBTOTAL(9,E14:E299)","v":38134},{"$f":"IFERROR((H13+I13)/SUM(H13:M13), \"-\")","v":0.92507936507936506},{"$f":"IFERROR((K13+L13)/SUM(H13:M13), \"-\")","v":4.4656084656084657E-2},{"$f":"SUBTOTAL(9,H14:H299)","v":3732},{"$f":"SUBTOTAL(9,I14:I299)","v":639},110,81,130,33,1926,866,46,963,27,0,821,76]
["QE1","RXL","BLACKPOOL TEACHING HOSPITALS NHS FOUNDATION TRUST",20,173,0.95,0.05,17,2,0,1,0,0,17,0,0,0,0,0,3,0]
["QE1","RXR","EAST LANCASHIRE HOSPITALS NHS TRUST",75,436,0.8666666666666667,5.3333333333333337E-2,58,7,5,0,4,1,57,18,0,0,0,0,0,0]
["QE1","RXN","LANCASHIRE TEACHING HOSPITALS NHS FOUNDATION TRUST",13,236,0.92307692307692313,0,9,3,1,0,0,0,13,0,0,0,0,0,0,0]
["QE1","RTX","UNIVERSITY HOSPITALS OF MORECAMBE BAY NHS FOUNDATION TRUST",30,185,1,0,26,4,0,0,0,0,23,0,0,0,0,0,7,0]
["QF7","RFF","BARNSLEY HOSPITAL NHS FOUNDATION TRUST",19,183,1,0,19,0,0,0,0,0,7,12,0,0,0,0,0,0]
["QF7","RP5","DONCASTER AND BASSETLAW TEACHING HOSPITALS NHS FOUNDATION TRUST",18,318,0.77777777777777779,0.1111111111111111,11,3,2,1,1,0,0,0,0,0,0,0,18,0]
["QF7","RHQ","SHEFFIELD TEACHING HOSPITALS NHS FOUNDATION TRUST",39,426,0.92307692307692313,2.564102564102564E-2,29,7,2,0,1,0,33,0,0,5,0,0,1,0]
["QF7","RFR","THE ROTHERHAM NHS FOUNDATION TRUST",5,148,1,0,5,0,0,0,0,0,0,0,0,5,0,0,0,0]
["QGH","RWP","WORCESTERSHIRE ACUTE HOSPITALS NHS TRUST",97,127,0.98969072164948457,0,90,6,1,0,0,0,0,97,0,0,0,0,0,0]
["QGH","RLQ","WYE VALLEY NHS TRUST",34,108,0.94117647058823528,0,28,4,2,0,0,0,34,0,0,0,0,0,0,0]
["QH8","RAJ","MID AND SOUTH ESSEX NHS FOUNDATION TRUST",182,557,0.89010989010989006,7.6923076923076927E-2,139,23,5,3,11,1,181,0,0,0,0,0,1,0]
["QHG","RC9","BEDFORDSHIRE HOSPITALS NHS FOUNDATION TRUST",37,290,1,0,30,7,0,0,0,0,0,33,0,0,0,0,4,0]
["QHG","RD8","MILTON KEYNES UNIVERSITY HOSPITAL NHS FOUNDATION TRUST",32,308,0.9375,3.125E-2,25,5,1,0,1,0,8,0,0,17,0,0,7,0]
["QHL","RQ3","BIRMINGHAM WOMEN'S AND CHILDREN'S NHS FOUNDATION TRUST",16,586,0.8125,6.25E-2,11,2,2,1,0,0,0,0,0,0,0,0,16,0]
["QHL","RXK","SANDWELL AND WEST BIRMINGHAM HOSPITALS NHS TRUST",38,402,0.78947368421052633,0.18421052631578946,26,4,1,1,6,0,38,0,0,0,0,0,0,0]
["QHL","RRK","UNIVERSITY HOSPITALS BIRMINGHAM NHS FOUNDATION TRUST",76,764,0.76315789473684215,0.15789473684210525,45,13,4,7,5,2,72,4,0,0,0,0,0,0]
["QHM","RXP","COUNTY DURHAM AND DARLINGTON NHS FOUNDATION TRUST",76,314,0.97368421052631582,1.3157894736842105E-2,60,14,1,1,0,0,0,0,0,76,0,0,0,0]
["QHM","RR7","GATESHEAD HEALTH NHS FOUNDATION TRUST",13,151,1,0,13,0,0,0,0,0,13,0,0,0,0,0,0,0]
["QHM","RNN","NORTH CUMBRIA INTEGRATED CARE NHS FOUNDATION TRUST",17,175,1,0,15,2,0,0,0,0,0,0,0,16,0,0,0,1]
["QHM","RVW","NORTH TEES AND HARTLEPOOL NHS FOUNDATION TRUST",1,271,"*","*","*","*","*","*","*","*","*","*","*","*","*","*","*","*"]
["QHM","RTF","NORTHUMBRIA HEALTHCARE NHS FOUNDATION TRUST",30,261,1,0,27,3,0,0,0,0,3,0,0,27,0,0,0,0]
["QHM","RTR","SOUTH TEES HOSPITALS NHS FOUNDATION TRUST",37,345,0.91891891891891897,2.7027027027027029E-2,30,4,2,1,0,0,34,1,0,0,0,0,0,2]
["QHM","R0B","SOUTH TYNESIDE AND SUNDERLAND NHS FOUNDATION TRUST",3,295,"*","*","*","*","*","*","*","*","*","*","*","*","*","*","*","*"]
["QHM","RTD","THE NEWCASTLE UPON TYNE HOSPITALS NHS FOUNDATION TRUST",59,0,0.77966101694915257,8.4745762711864403E-2,35,11,8,3,2,0,59,0,0,0,0,0,0,0]
["QJ2","RFS","CHESTERFIELD ROYAL HOSPITAL NHS FOUNDATION TRUST",68,202,0.97058823529411764,1.4705882352941176E-2,59,7,1,1,0,0,68,0,0,0,0,0,0,0]
["QJ2","RTG","UNIVERSITY HOSPITALS OF DERBY AND BURTON NHS FOUNDATION TRUST",50,587,0.96,0.04,37,11,0,0,2,0,45,0,0,5,0,0,0,0]
["QJG","RDE","EAST SUFFOLK AND NORTH ESSEX NHS FOUNDATION TRUST",9,468,1,0,9,0,0,0,0,0,0,0,0,0,0,0,9,0]
["QJG","RGR","WEST SUFFOLK NHS FOUNDATION TRUST",6,41,1,0,6,0,0,0,0,0,0,3,0,0,0,0,3,0]
["QJK","RH8","ROYAL DEVON UNIVERSITY HEALTHCARE NHS FOUNDATION TRUST",6,310,1,0,5,1,0,0,0,0,0,0,0,2,0,0,4,0]
["QJK","RA9","TORBAY AND SOUTH DEVON NHS FOUNDATION TRUST",0,135,"NA","NA",0,0,0,0,0,0,0,0,0,0,0,0,0,0]
["QJK","RK9","UNIVERSITY HOSPITALS PLYMOUTH NHS TRUST",15,61,0.93333333333333335,0,13,1,0,0,0,1,0,0,0,0,0,0,15,0]
["QJM","RWD","UNITED LINCOLNSHIRE TEACHING HOSPITALS NHS TRUST",0,354,"NA","NA",0,0,0,0,0,0,0,0,0,0,0,0,0,0]
["QK1","RWE","UNIVERSITY HOSPITALS OF LEICESTER NHS TRUST",149,698,0.93959731543624159,1.3422818791946308E-2,109,31,6,2,0,1,0,149,0,0,0,0,0,0]
["QKK","RJ1","GUY'S AND ST THOMAS' NHS FOUNDATION TRUST",112,453,0.9464285714285714,8.9285714285714281E-3,72,34,5,0,1,0,0,0,0,108,0,0,4,0]
["QKK","RJZ","KING'S COLLEGE HOSPITAL NHS FOUNDATION TRUST",98,463,0.97959183673469385,1.020408163265306E-2,79,17,1,0,1,0,0,98,0,0,0,0,0,0]
["QKK","RJ2","LEWISHAM AND GREENWICH NHS TRUST",72,462,0.95833333333333337,1.3888888888888888E-2,44,25,2,1,0,0,0,0,0,7,0,0,65,0]
["QKS","RN7","DARTFORD AND GRAVESHAM NHS TRUST",23,338,1,0,23,0,0,0,0,0,0,9,0,0,0,0,14,0]
["QKS","RVV","EAST KENT HOSPITALS UNIVERSITY NHS FOUNDATION TRUST",45,422,0.9555555555555556,4.4444444444444446E-2,32,11,0,2,0,0,45,0,0,0,0,0,0,0]
["QKS","RWF","MAIDSTONE AND TUNBRIDGE WELLS NHS TRUST",33,433,1,0,29,4,0,0,0,0,12,0,0,1,0,0,20,0]
["QKS","RPA","MEDWAY NHS FOUNDATION TRUST",46,299,0.95652173913043481,0,39,5,2,0,0,0,0,0,0,0,0,0,45,1]
["QM7","RWH","EAST AND NORTH HERTFORDSHIRE NHS TRUST",14,336,1,0,"*","*","*","*","*","*","*","*","*","*","*","*","*","*"]
["QM7","RQW","THE PRINCESS ALEXANDRA HOSPITAL NHS TRUST",1,0,"*","*","*","*","*","*","*","*","*","*","*","*","*","*","*","*"]
["QM7","RWG","WEST HERTFORDSHIRE TEACHING HOSPITALS NHS TRUST",21,289,0.90476190476190477,9.5238095238095233E-2,16,3,0,0,2,0,0,21,0,0,0,0,0,0]
["QMF","RF4","BARKING, HAVERING AND REDBRIDGE UNIVERSITY HOSPITALS NHS TRUST",51,559,0.92156862745098034,0,40,7,0,0,0,4,2,1,46,0,0,0,2,0]
["QMF","R1H","BARTS HEALTH NHS TRUST",61,1041,0.93442622950819676,3.2786885245901641E-2,44,13,0,1,1,2,13,0,0,43,0,0,5,0]
["QMF","RQX","HOMERTON HEALTHCARE NHS FOUNDATION TRUST",7,435,0.8571428571428571,0,4,2,1,0,0,0,7,0,0,0,0,0,0,0]
["QMJ","RAL","ROYAL FREE LONDON NHS FOUNDATION TRUST",115,750,0.94782608695652171,3.4782608695652174E-2,88,21,2,3,1,0,20,30,0,65,0,0,0,0]
["QMJ","RRV","UNIVERSITY COLLEGE LONDON HOSPITALS NHS FOUNDATION TRUST",1,420,"*","*","*","*","*","*","*","*","*","*","*","*","*","*","*","*"]
["QMJ","RKE","WHITTINGTON HEALTH NHS TRUST",4,189,"*","*","*","*","*","*","*","*","*","*","*","*","*","*","*","*"]
["QMM","RGP","JAMES PAGET UNIVERSITY HOSPITALS NHS FOUNDATION TRUST",21,149,1,0,20,1,0,0,0,0,0,0,0,21,0,0,0,0]
["QMM","RM1","NORFOLK AND NORWICH UNIVERSITY HOSPITALS NHS FOUNDATION TRUST",2,332,"*","*","*","*","*","*","*","*","*","*","*","*","*","*","*","*"]
["QMM","RCX","THE QUEEN ELIZABETH HOSPITAL, KING'S LYNN, NHS FOUNDATION TRUST",14,112,1,0,"*","*","*","*","*","*","*","*","*","*","*","*","*","*"]
["QNC","RJE","UNIVERSITY HOSPITALS OF NORTH MIDLANDS NHS TRUST",37,437,0.94594594594594594,5.4054054054054057E-2,29,6,0,0,2,0,37,0,0,0,0,0,0,0]
["QNQ","RDU","FRIMLEY HEALTH NHS FOUNDATION TRUST",91,0,0.98901098901098905,0,76,14,1,0,0,0,0,0,0,1,0,0,90,0]
["QNX","RXC","EAST SUSSEX HEALTHCARE NHS TRUST",42,182,0.97619047619047616,0,36,5,1,0,0,0,31,0,0,0,0,0,11,0]
["QNX","RYR","UNIVERSITY HOSPITALS SUSSEX NHS FOUNDATION TRUST",102,658,0.94117647058823528,1.9607843137254902E-2,87,9,4,1,1,0,102,0,0,0,0,0,0,0]
["QOC","RXW","THE SHREWSBURY AND TELFORD HOSPITAL NHS TRUST",17,0,1,0,16,1,0,0,0,0,0,0,0,15,0,0,2,0]
["QOP","RMC","BOLTON NHS FOUNDATION TRUST",167,376,0.89221556886227549,7.1856287425149698E-2,133,16,3,5,7,3,112,0,0,55,0,0,0,0]
["QOP","R0A","MANCHESTER UNIVERSITY NHS FOUNDATION TRUST",100,3132,0.94,0.05,69,25,1,2,3,0,0,82,0,0,0,0,18,0]
["QOP","RM3","NORTHERN CARE ALLIANCE NHS FOUNDATION TRUST",136,492,0.79411764705882348,0.19117647058823528,83,25,1,6,20,1,69,0,0,0,0,0,67,0]
["QOP","RWJ","STOCKPORT NHS FOUNDATION TRUST",6,216,1,0,6,0,0,0,0,0,0,0,0,6,0,0,0,0]
["QOP","RMP","TAMESIDE AND GLOSSOP INTEGRATED CARE NHS FOUNDATION TRUST",13,182,0.84615384615384615,7.6923076923076927E-2,10,1,1,1,0,0,0,10,0,3,0,0,0,0]
["QOP","RRF","WRIGHTINGTON, WIGAN AND LEIGH NHS FOUNDATION TRUST",19,197,1,0,15,4,0,0,0,0,0,0,0,17,0,0,2,0]
["QOQ","RCD","HARROGATE AND DISTRICT NHS FOUNDATION TRUST",2,2,"*","*","*","*","*","*","*","*","*","*","*","*","*","*","*","*"]
["QOQ","RWA","HULL UNIVERSITY TEACHING HOSPITALS NHS TRUST",12,326,1,0,"*","*","*","*","*","*","*","*","*","*","*","*","*","*"]
["QOQ","RJL","NORTHERN LINCOLNSHIRE AND GOOLE NHS FOUNDATION TRUST",23,259,0.95652173913043481,0,20,2,1,0,0,0,19,0,0,4,0,0,0,0]
["QOQ","RCB","YORK AND SCARBOROUGH TEACHING HOSPITALS NHS FOUNDATION TRUST",0,277,"NA","NA",0,0,0,0,0,0,0,0,0,0,0,0,0,0]
["QOX","RN3","GREAT WESTERN HOSPITALS NHS FOUNDATION TRUST",4,4,"*","*","*","*","*","*","*","*","*","*","*","*","*","*","*","*"]
["QOX","RD1","ROYAL UNITED HOSPITALS BATH NHS FOUNDATION TRUST",35,307,0.94285714285714284,2.8571428571428571E-2,26,7,1,1,0,0,35,0,0,0,0,0,0,0]
["QOX","RNZ","SALISBURY NHS FOUNDATION TRUST",30,111,0.93333333333333335,3.3333333333333333E-2,"*","*","*","*","*","*","*","*","*","*","*","*","*","*"]
["QPM","RNQ","KETTERING GENERAL HOSPITAL NHS FOUNDATION TRUST",6,230,0.66666666666666663,0.16666666666666666,3,1,1,0,1,0,0,0,0,0,0,0,6,0]
["QPM","RNS","NORTHAMPTON GENERAL HOSPITAL NHS TRUST",45,287,0.9555555555555556,4.4444444444444446E-2,41,2,0,0,2,0,8,0,0,36,0,0,1,0]
["QR1","RTE","GLOUCESTERSHIRE HOSPITALS NHS FOUNDATION TRUST",68,241,0.88235294117647056,5.8823529411764705E-2,44,16,3,2,2,1,66,2,0,0,0,0,0,0]
["QRL","RN5","HAMPSHIRE HOSPITALS NHS FOUNDATION TRUST",149,341,0.97986577181208057,6.7114093959731542E-3,135,11,1,1,0,1,0,0,0,145,0,0,4,0]
["QRL","R1F","ISLE OF WIGHT NHS TRUST",9,67,1,0,9,0,0,0,0,0,0,0,0,0,9,0,0,0]
["QRL","RHU","PORTSMOUTH HOSPITALS UNIVERSITY NATIONAL HEALTH SERVICE TRUST",36,383,0.97222222222222221,2.7777777777777776E-2,28,7,0,1,0,0,0,0,0,0,0,0,36,0]
["QRL","RHM","UNIVERSITY HOSPITAL SOUTHAMPTON NHS FOUNDATION TRUST",115,369,0.95652173913043481,2.6086956521739129E-2,94,16,2,1,2,0,0,0,0,0,0,0,115,0]
["QRV","RQM","CHELSEA AND WESTMINSTER HOSPITAL NHS FOUNDATION TRUST",70,117,0.95714285714285718,2.8571428571428571E-2,64,3,1,2,0,0,0,0,0,0,0,0,70,0]
["QRV","RYJ","IMPERIAL COLLEGE HEALTHCARE NHS TRUST",83,649,0.92771084337349397,6.0240963855421686E-2,69,8,1,1,4,0,0,35,0,4,0,0,44,0]
["QRV","R1K","LONDON NORTH WEST UNIVERSITY HEALTHCARE NHS TRUST",83,318,0.97590361445783136,0,61,20,2,0,0,0,0,0,0,83,0,0,0,0]
["QRV","RAS","THE HILLINGDON HOSPITALS NHS FOUNDATION TRUST",41,271,0.90243902439024393,7.3170731707317069E-2,31,6,1,1,2,0,0,0,0,13,0,0,28,0]
["QSL","RH5","SOMERSET NHS FOUNDATION TRUST",4,323,"*","*","*","*","*","*","*","*","*","*","*","*","*","*","*","*"]
["QT1","RX1","NOTTINGHAM UNIVERSITY HOSPITALS NHS TRUST",3,377,"*","*","*","*","*","*","*","*","*","*","*","*","*","*","*","*"]
["QT1","RK5","SHERWOOD FOREST HOSPITALS NHS FOUNDATION TRUST",34,234,0.91176470588235292,8.8235294117647065E-2,"*","*","*","*","*","*","*","*","*","*","*","*","*","*"]
["QT6","REF","ROYAL CORNWALL HOSPITALS NHS TRUST",14,283,1,0,"*","*","*","*","*","*","*","*","*","*","*","*","*","*"]
["QU9","RXQ","BUCKINGHAMSHIRE HEALTHCARE NHS TRUST",23,256,0.78260869565217395,0.13043478260869565,14,4,1,2,1,1,22,0,0,0,0,0,1,0]
["QU9","RTH","OXFORD UNIVERSITY HOSPITALS NHS FOUNDATION TRUST",29,399,0.51724137931034486,0.41379310344827586,14,1,2,5,7,0,0,0,0,0,0,0,29,0]
["QU9","RHW","ROYAL BERKSHIRE NHS FOUNDATION TRUST",6,312,1,0,6,0,0,0,0,0,0,0,0,6,0,0,0,0]
["QUA","RNA","THE DUDLEY GROUP NHS FOUNDATION TRUST",45,288,0.91111111111111109,0,38,3,1,0,0,3,0,0,0,44,0,0,1,0]
["QUA","RL4","THE ROYAL WOLVERHAMPTON NHS TRUST",42,361,0.95238095238095233,2.3809523809523808E-2,36,4,1,0,1,0,42,0,0,0,0,0,0,0]
["QUA","RBK","WALSALL HEALTHCARE NHS TRUST",52,267,0.90384615384615385,5.7692307692307696E-2,45,2,2,1,2,0,26,26,0,0,0,0,0,0]
["QUE","RGT","CAMBRIDGE UNIVERSITY HOSPITALS NHS FOUNDATION TRUST",35,388,0.8,0.11428571428571428,23,5,1,3,1,2,0,27,0,3,0,0,5,0]
["QUE","RGN","NORTH WEST ANGLIA NHS FOUNDATION TRUST",19,410,0.94736842105263153,5.2631578947368418E-2,18,0,0,0,1,0,0,0,0,16,0,0,3,0]
["QUY","RVJ","NORTH BRISTOL NHS TRUST",86,384,0.91860465116279066,6.9767441860465115E-2,69,10,1,1,5,0,85,0,0,0,0,0,1,0]
["QUY","RA7","UNIVERSITY HOSPITALS BRISTOL AND WESTON NHS FOUNDATION TRUST",61,325,0.95081967213114749,1.6393442622950821E-2,52,6,1,1,0,1,0,0,0,61,0,0,0,0]
["QVV","RBD","DORSET COUNTY HOSPITAL NHS FOUNDATION TRUST",11,85,0.90909090909090906,9.0909090909090912E-2,8,2,0,0,1,0,0,0,0,11,0,0,0,0]
["QVV","R0D","UNIVERSITY HOSPITALS DORSET NHS FOUNDATION TRUST",13,265,1,0,12,1,0,0,0,0,0,11,0,0,0,0,2,0]
["QWE","RJ6","CROYDON HEALTH SERVICES NHS TRUST",13,241,0.76923076923076927,0.23076923076923078,"*","*","*","*","*","*","*","*","*","*","*","*","*","*"]
["QWE","RVR","EPSOM AND ST HELIER UNIVERSITY HOSPITALS NHS TRUST",2,312,"*","*","*","*","*","*","*","*","*","*","*","*","*","*","*","*"]
["QWE","RAX","KINGSTON AND RICHMOND NHS FOUNDATION TRUST",35,340,1,0,34,1,0,0,0,0,0,23,0,0,0,0,12,0]
["QWE","RJ7","ST GEORGE'S UNIVERSITY HOSPITALS NHS FOUNDATION TRUST",19,77,0.89473684210526316,0.10526315789473684,16,1,0,0,2,0,0,12,0,0,6,0,1,0]
["QWO","RCF","AIREDALE NHS FOUNDATION TRUST",24,118,1,0,23,1,0,0,0,0,24,0,0,0,0,0,0,0]
["QWO","RAE","BRADFORD TEACHING HOSPITALS NHS FOUNDATION TRUST",76,69,1,0,72,4,0,0,0,0,0,0,0,0,0,0,6,70]
["QWO","RWY","CALDERDALE AND HUDDERSFIELD NHS FOUNDATION TRUST",9,271,1,0,8,1,0,0,0,0,0,0,0,0,0,0,9,0]
["QWO","RR8","LEEDS TEACHING HOSPITALS NHS TRUST",170,562,0.95294117647058818,3.5294117647058823E-2,149,13,2,3,3,0,145,17,0,3,0,0,5,0]
["QWO","RXF","MID YORKSHIRE TEACHING NHS TRUST",57,404,0.92982456140350878,7.0175438596491224E-2,49,4,0,2,2,0,19,0,0,36,0,0,2,0]
["QWU","RLT","GEORGE ELIOT HOSPITAL NHS TRUST",19,232,0.89473684210526316,5.2631578947368418E-2,17,0,1,1,0,0,0,19,0,0,0,0,0,0]
["QWU","RJC","SOUTH WARWICKSHIRE UNIVERSITY NHS FOUNDATION TRUST",0,264,"NA","NA",0,0,0,0,0,0,0,0,0,0,0,0,0,0]
["QWU","RKB","UNIVERSITY HOSPITALS COVENTRY AND WARWICKSHIRE NHS TRUST",58,435,0.89655172413793105,5.1724137931034482E-2,50,2,3,0,3,0,53,1,0,0,0,0,4,0]
["QXU","RTK","ASHFORD AND ST PETER'S HOSPITALS NHS FOUNDATION TRUST",125,216,0.79200000000000004,9.6000000000000002E-2,80,19,7,2,10,7,0,125,0,0,0,0,0,0]
["QXU","RA2","ROYAL SURREY COUNTY HOSPITAL NHS FOUNDATION TRUST",45,260,1,0,43,2,0,0,0,0,43,0,0,0,2,0,0,0]
["QXU","RTP","SURREY AND SUSSEX HEALTHCARE NHS TRUST",5,5,0.8,0.2,3,1,0,0,1,0,1,0,0,1,0,0,2,1]
["QYG","RJR","COUNTESS OF CHESTER HOSPITAL NHS FOUNDATION TRUST",29,128,0.93103448275862066,6.8965517241379309E-2,22,5,0,1,1,0,23,0,0,0,6,0,0,0]
["QYG","RJN","EAST CHESHIRE NHS TRUST",14,87,0.8571428571428571,0.14285714285714285,9,3,0,0,2,0,14,0,0,0,0,0,0,0]
["QYG","REP","LIVERPOOL WOMEN'S NHS FOUNDATION TRUST",63,519,0.92063492063492058,1.5873015873015872E-2,51,7,3,1,0,1,62,0,0,0,0,0,0,1]
["QYG","RBN","MERSEY AND WEST LANCASHIRE TEACHING HOSPITALS NHS TRUST",51,374,0.88235294117647056,9.8039215686274508E-2,35,10,1,4,1,0,48,0,0,2,0,0,1,0]
["QYG","RBT","MID CHESHIRE HOSPITALS NHS FOUNDATION TRUST",40,232,0.97499999999999998,2.5000000000000001E-2,35,4,0,0,1,0,36,0,0,0,4,0,0,0]
["QYG","RWW","WARRINGTON AND HALTON TEACHING HOSPITALS NHS FOUNDATION TRUST",1,1,"*","*","*","*","*","*","*","*","*","*","*","*","*","*","*","*"]
["QYG","RBL","WIRRAL UNIVERSITY TEACHING HOSPITAL NHS FOUNDATION TRUST",10,202,1,0,"*","*","*","*","*","*","*","*","*","*","*","*","*","*"]

{"sheet":"Sites Q2","index":7,"n_rows":220,"n_cols":14,"rows_kept":220,"cut":false,"hidden":false,"merged":[[8,6,9,6],[8,7,9,7],[8,8,8,13],[8,0,9,0],[8,1,9,1],[8,2,9,2],[8,3,9,3],[8,4,9,4],[8,5,9,5]]}
[]
[]
[]
[]
[]
[null,"   Sort data by:           "]
[]
[]
["ICB Code","Trust Code","Trust Name","Site Code","Site Name","Total Responses","Percentage Positive","Percentage Negative","Breakdown of Responses"]
[null,null,null,null,null,null,null,null,"Very Good","Good","Neither Good nor Poor","Poor","Very Poor","Don't Know"]
[null,null,null,null,"England (including Independent Sector providers)",4894,0.92521454842664486,4.495300367797303E-2,3866,662,113,85,135,33]
[null,null,null,null,"England (excluding Independent Sector providers)",4894,0.92521454842664486,4.495300367797303E-2,3866,662,113,85,135,33]
[null,null,null,null,"Selection (excluding suppressed data)",{"$f":"SUBTOTAL(9,F14:F299)","v":4894},{"$f":"IFERROR((I13+J13)/SUM(I13:N13), \"-\")","v":0.92666511951728936},{"$f":"IFERROR((L13+M13)/SUM(I13:N13), \"-\")","v":4.3165467625899283E-2},{"$f":"SUBTOTAL(9,I14:I299)","v":3400},593,99,74,112,31]
["QE1","RXL","BLACKPOOL TEACHING HOSPITALS NHS FOUNDATION TRUST","RXL01","Blackpool Victoria Hospital",20,0.95,0.05,17,2,0,1,0,0]
["QE1","RXR","EAST LANCASHIRE HOSPITALS NHS TRUST","RXR20","Royal Blackburn Hospital",75,0.8666666666666667,5.3333333333333337E-2,58,7,5,0,4,1]
["QE1","RXN","LANCASHIRE TEACHING HOSPITALS NHS FOUNDATION TRUST","RXN01","Chorley and South Ribble Hospital",0,"NA","NA",0,0,0,0,0,0]
["QE1","RXN","LANCASHIRE TEACHING HOSPITALS NHS FOUNDATION TRUST","RXN02","Royal Preston Hospital",13,0.92307692307692313,0,9,3,1,0,0,0]
["QE1","RTX","UNIVERSITY HOSPITALS OF MORECAMBE BAY NHS FOUNDATION TRUST","RTXBU","Furness General Hospital",19,1,0,17,2,0,0,0,0]
["QE1","RTX","UNIVERSITY HOSPITALS OF MORECAMBE BAY NHS FOUNDATION TRUST","RTX02","Royal Lancaster Infirmary",11,1,0,9,2,0,0,0,0]
["QE1","RTX","UNIVERSITY HOSPITALS OF MORECAMBE BAY NHS FOUNDATION TRUST","RTXBW","Westmorland General Hospital",0,"NA","NA",0,0,0,0,0,0]
["QF7","RFF","BARNSLEY HOSPITAL NHS FOUNDATION TRUST","RFFAA","Barnsley Hospital NHS Foundation Trust HQ",19,1,0,19,0,0,0,0,0]
["QF7","RP5","DONCASTER AND BASSETLAW TEACHING HOSPITALS NHS FOUNDATION TRUST","RP5BA","Bassetlaw Hospital",6,0.66666666666666663,0.16666666666666666,4,0,1,1,0,0]
["QF7","RP5","DONCASTER AND BASSETLAW TEACHING HOSPITALS NHS FOUNDATION TRUST","RP5DR","Doncaster Royal Infirmary",12,0.83333333333333337,8.3333333333333329E-2,7,3,1,0,1,0]
["QF7","RP5","DONCASTER AND BASSETLAW TEACHING HOSPITALS NHS FOUNDATION TRUST","RP5XXX","Non-hospital site",0,"NA","NA",0,0,0,0,0,0]
["QF7","RHQ","SHEFFIELD TEACHING HOSPITALS NHS FOUNDATION TRUST","RHQHH","Royal Hallamshire Hospital",39,0.92307692307692313,2.564102564102564E-2,29,7,2,0,1,0]
["QF7","RFR","THE ROTHERHAM NHS FOUNDATION TRUST","RFRPA","Rotherham District General Hospital",5,1,0,5,0,0,0,0,0]
["QGH","RWP","WORCESTERSHIRE ACUTE HOSPITALS NHS TRUST","RWP50","Worcestershire Royal Hospital",97,0.98969072164948457,0,90,6,1,0,0,0]
["QGH","RLQ","WYE VALLEY NHS TRUST","RLQ01","Hereford County Hospital",34,0.94117647058823528,0,28,4,2,0,0,0]
["QH8","RAJ","MID AND SOUTH ESSEX NHS FOUNDATION TRUST","RAJ12","BASILDON HOSPITAL",56,0.9107142857142857,5.3571428571428568E-2,44,7,2,0,3,0]
["QH8","RAJ","MID AND SOUTH ESSEX NHS FOUNDATION TRUST","RAJ32","MID ESSEX HOSPITAL",59,0.81355932203389836,0.13559322033898305,41,7,3,2,6,0]
["QH8","RAJ","MID AND SOUTH ESSEX NHS FOUNDATION TRUST","RAJ01","Southend Hospital",67,0.94029850746268662,4.4776119402985072E-2,54,9,0,1,2,1]
["QHG","RC9","BEDFORDSHIRE HOSPITALS NHS FOUNDATION TRUST","RC979","BEDFORD HOSPITAL SOUTH WING",8,1,0,8,0,0,0,0,0]
["QHG","RC9","BEDFORDSHIRE HOSPITALS NHS FOUNDATION TRUST","RC971","Luton and Dunstable Hospital",29,1,0,22,7,0,0,0,0]
["QHG","RD8","MILTON KEYNES UNIVERSITY HOSPITAL NHS FOUNDATION TRUST","RD816","Milton Keynes Hospital",32,0.9375,3.125E-2,25,5,1,0,1,0]
["QHL","RQ3","BIRMINGHAM WOMEN'S AND CHILDREN'S NHS FOUNDATION TRUST","RQ370","Birmingham Women's Hospital",16,0.8125,6.25E-2,11,2,2,1,0,0]
["QHL","RXK","SANDWELL AND WEST BIRMINGHAM HOSPITALS NHS TRUST","RXK02","City Hospital",1,"*","*","*","*","*","*","*","*"]
["QHL","RXK","SANDWELL AND WEST BIRMINGHAM HOSPITALS NHS TRUST","I3W1A","MIDLAND METROPOLITAN UNIVERSITY HOSPITAL ",37,0.78378378378378377,0.1891891891891892,"*","*","*","*","*","*"]
["QHL","RRK","UNIVERSITY HOSPITALS BIRMINGHAM NHS FOUNDATION TRUST","RRK98","Good Hope Hospital",33,0.84848484848484851,9.0909090909090912E-2,24,4,2,2,1,0]
["QHL","RRK","UNIVERSITY HOSPITALS BIRMINGHAM NHS FOUNDATION TRUST","RRK97","Heartlands Hospital",43,0.69767441860465118,0.20930232558139536,21,9,2,5,4,2]
["QHL","RRK","UNIVERSITY HOSPITALS BIRMINGHAM NHS FOUNDATION TRUST","RRK99","Solihull Hospital",0,"NA","NA",0,0,0,0,0,0]
["QHM","RXP","COUNTY DURHAM AND DARLINGTON NHS FOUNDATION TRUST","RXPDA","Darlington Memorial Hospital",66,0.98484848484848486,0,55,10,1,0,0,0]
["QHM","RXP","COUNTY DURHAM AND DARLINGTON NHS FOUNDATION TRUST","RXPCP","University Hospital Of North Durham",10,0.9,0.1,5,4,0,1,0,0]
["QHM","RR7","GATESHEAD HEALTH NHS FOUNDATION TRUST","RR7EN","Queen Elizabeth Hospital",13,1,0,13,0,0,0,0,0]
["QHM","RNN","NORTH CUMBRIA INTEGRATED CARE NHS FOUNDATION TRUST","RNN62","Cumberland Infirmary",8,1,0,6,2,0,0,0,0]
["QHM","RNN","NORTH CUMBRIA INTEGRATED CARE NHS FOUNDATION TRUST","RNNBX","West Cumberland Hospital",9,1,0,9,0,0,0,0,0]
["QHM","RVW","NORTH TEES AND HARTLEPOOL NHS FOUNDATION TRUST","RVWAE","University Hospital Of North Tees",1,"*","*","*","*","*","*","*","*"]
["QHM","RTF","NORTHUMBRIA HEALTHCARE NHS FOUNDATION TRUST","RTFDJ","Alnwick Infirmary",0,"NA","NA",0,0,0,0,0,0]
["QHM","RTF","NORTHUMBRIA HEALTHCARE NHS FOUNDATION TRUST","RTFDH","Berwick Infirmary",0,"NA","NA",0,0,0,0,0,0]
["QHM","RTF","NORTHUMBRIA HEALTHCARE NHS FOUNDATION TRUST","RTFDR","Hexham General Hospital",0,"NA","NA",0,0,0,0,0,0]
["QHM","RTF","NORTHUMBRIA HEALTHCARE NHS FOUNDATION TRUST","RTFXXX","Non-hospital site",0,"NA","NA",0,0,0,0,0,0]
["QHM","RTF","NORTHUMBRIA HEALTHCARE NHS FOUNDATION TRUST","RTF86","The Northumbria",30,1,0,27,3,0,0,0,0]
["QHM","RTR","SOUTH TEES HOSPITALS NHS FOUNDATION TRUST","RTR45","Friarage Hospital Site",0,"NA","NA",0,0,0,0,0,0]
["QHM","RTR","SOUTH TEES HOSPITALS NHS FOUNDATION TRUST","RTRAT","The James Cook University Hospital",37,0.91891891891891897,2.7027027027027029E-2,30,4,2,1,0,0]
["QHM","R0B","SOUTH TYNESIDE AND SUNDERLAND NHS FOUNDATION TRUST","R0B0Q","South Tyneside District Hospital",2,"*","*","*","*","*","*","*","*"]
["QHM","R0B","SOUTH TYNESIDE AND SUNDERLAND NHS FOUNDATION TRUST","R0B01","Sunderland Royal Hospital",1,"*","*","*","*","*","*","*","*"]
["QHM","RTD","THE NEWCASTLE UPON TYNE HOSPITALS NHS FOUNDATION TRUST","RTD02","The Royal Victoria Infirmary",59,0.77966101694915257,8.4745762711864403E-2,35,11,8,3,2,0]
["QJ2","RFS","CHESTERFIELD ROYAL HOSPITAL NHS FOUNDATION TRUST","RFSDA","Chesterfield Royal Hospital",68,0.97058823529411764,1.4705882352941176E-2,59,7,1,1,0,0]
["QJ2","RTG","UNIVERSITY HOSPITALS OF DERBY AND BURTON NHS FOUNDATION TRUST","RTG02","Queens Hospital, Burton Upon Trent",17,1,0,14,3,0,0,0,0]
["QJ2","RTG","UNIVERSITY HOSPITALS OF DERBY AND BURTON NHS FOUNDATION TRUST","RTGFG","Royal Derby Hospital",33,0.93939393939393945,6.0606060606060608E-2,23,8,0,0,2,0]
["QJG","RDE","EAST SUFFOLK AND NORTH ESSEX NHS FOUNDATION TRUST","RDEE2","Clacton and District Hospital",0,"NA","NA",0,0,0,0,0,0]
["QJG","RDE","EAST SUFFOLK AND NORTH ESSEX NHS FOUNDATION TRUST","RDEE4","Colchester General Hospital",2,"*","*","*","*","*","*","*","*"]
["QJG","RDE","EAST SUFFOLK AND NORTH ESSEX NHS FOUNDATION TRUST","RDE03","Ipswich Hospital",7,1,0,"*","*","*","*","*","*"]
["QJG","RDE","EAST SUFFOLK AND NORTH ESSEX NHS FOUNDATION TRUST","RDEXXX","Non-hospital site",0,"NA","NA",0,0,0,0,0,0]
["QJG","RGR","WEST SUFFOLK NHS FOUNDATION TRUST","RGR50","West Suffolk Hospital",6,1,0,6,0,0,0,0,0]
["QJK","RH8","ROYAL DEVON UNIVERSITY HEALTHCARE NHS FOUNDATION TRUST","RH8XXX","Non-hospital site",0,"NA","NA",0,0,0,0,0,0]
["QJK","RH8","ROYAL DEVON UNIVERSITY HEALTHCARE NHS FOUNDATION TRUST","RH880","North Devon District Hospital",3,"*","*","*","*","*","*","*","*"]
["QJK","RH8","ROYAL DEVON UNIVERSITY HEALTHCARE NHS FOUNDATION TRUST","RH801","Royal Devon and Exeter Hospital (Wonford)",3,"*","*","*","*","*","*","*","*"]
["QJK","RH8","ROYAL DEVON UNIVERSITY HEALTHCARE NHS FOUNDATION TRUST","RH853","Tiverton and District Hospital",0,"NA","NA",0,0,0,0,0,0]
["QJK","RA9","TORBAY AND SOUTH DEVON NHS FOUNDATION TRUST","RA901","Torbay Hospital",0,"NA","NA",0,0,0,0,0,0]
["QJK","RK9","UNIVERSITY HOSPITALS PLYMOUTH NHS TRUST","RK950","Derriford Hospital",13,1,0,"*","*","*","*","*","*"]
["QJK","RK9","UNIVERSITY HOSPITALS PLYMOUTH NHS TRUST","RK9XXX","Non-hospital site",2,"*","*","*","*","*","*","*","*"]
["QJM","RWD","UNITED LINCOLNSHIRE TEACHING HOSPITALS NHS TRUST","RWDLP","Grantham and District Hospital",0,"NA","NA",0,0,0,0,0,0]
["QJM","RWD","UNITED LINCOLNSHIRE TEACHING HOSPITALS NHS TRUST","RWDDA","Lincoln County Hospital",0,"NA","NA",0,0,0,0,0,0]
["QJM","RWD","UNITED LINCOLNSHIRE TEACHING HOSPITALS NHS TRUST","RWDLA","Pilgrim Hospital",0,"NA","NA",0,0,0,0,0,0]
["QK1","RWE","UNIVERSITY HOSPITALS OF LEICESTER NHS TRUST","RWEAK","Leicester General Hospital",32,0.9375,0,25,5,2,0,0,0]
["QK1","RWE","UNIVERSITY HOSPITALS OF LEICESTER NHS TRUST","RWEAA","Leicester Royal Infirmary",107,0.94392523364485981,1.8691588785046728E-2,75,26,4,2,0,0]
["QK1","RWE","UNIVERSITY HOSPITALS OF LEICESTER NHS TRUST","RWEXXX","Non-hospital site",10,0.9,0,9,0,0,0,0,1]
["QK1","RWE","UNIVERSITY HOSPITALS OF LEICESTER NHS TRUST","RWE10","St Mary's Hospital",0,"NA","NA",0,0,0,0,0,0]
["QKK","RJ1","GUY'S AND ST THOMAS' NHS FOUNDATION TRUST","RJ1XXX","Non-hospital site",0,"NA","NA",0,0,0,0,0,0]
["QKK","RJ1","GUY'S AND ST THOMAS' NHS FOUNDATION TRUST","RJ122","St Thomas' Hospital",112,0.9464285714285714,8.9285714285714281E-3,72,34,5,0,1,0]
["QKK","RJZ","KING'S COLLEGE HOSPITAL NHS FOUNDATION TRUST","RJZ01","King's College Hospital (Denmark Hill)",0,"NA","NA",0,0,0,0,0,0]
["QKK","RJZ","KING'S COLLEGE HOSPITAL NHS FOUNDATION TRUST","RJZ30","Princess Royal University Hospital",98,0.97959183673469385,1.020408163265306E-2,79,17,1,0,1,0]
["QKK","RJ2","LEWISHAM AND GREENWICH NHS TRUST","RJ231","Queen Elizabeth Hospital",46,0.93478260869565222,2.1739130434782608E-2,31,12,2,1,0,0]
["QKK","RJ2","LEWISHAM AND GREENWICH NHS TRUST","RJ224","University Hospital Lewisham",26,1,0,13,13,0,0,0,0]
["QKS","RN7","DARTFORD AND GRAVESHAM NHS TRUST","RN707","Darent Valley Hospital",23,1,0,23,0,0,0,0,0]
["QKS","RVV","EAST KENT HOSPITALS UNIVERSITY NHS FOUNDATION TRUST","RVV09","Queen Elizabeth The Queen Mother Hospital",20,1,0,18,2,0,0,0,0]
["QKS","RVV","EAST KENT HOSPITALS UNIVERSITY NHS FOUNDATION TRUST","RVV01","William Harvey Hospital (Ashford)",25,0.92,0.08,14,9,0,2,0,0]
["QKS","RWF","MAIDSTONE AND TUNBRIDGE WELLS NHS TRUST","RWF08","Crowborough Birthing Centre",6,1,0,4,2,0,0,0,0]
["QKS","RWF","MAIDSTONE AND TUNBRIDGE WELLS NHS TRUST","RWF03","Maidstone District General Hospital",20,1,0,18,2,0,0,0,0]
["QKS","RWF","MAIDSTONE AND TUNBRIDGE WELLS NHS TRUST","RWFXXX","Non-hospital site",3,"*","*","*","*","*","*","*","*"]
["QKS","RWF","MAIDSTONE AND TUNBRIDGE WELLS NHS TRUST","RWFTW","The Tunbridge Wells Hospital",4,"*","*","*","*","*","*","*","*"]
["QKS","RPA","MEDWAY NHS FOUNDATION TRUST","RPA02","Medway Maritime Hospital",46,0.95652173913043481,0,39,5,2,0,0,0]
["QM7","RWH","EAST AND NORTH HERTFORDSHIRE NHS TRUST","RWH01","Lister Hospital",14,1,0,"*","*","*","*","*","*"]
["QM7","RWH","EAST AND NORTH HERTFORDSHIRE NHS TRUST","RWHXXX","Non-hospital site",0,"NA","NA",0,0,0,0,0,0]
["QM7","RQW","THE PRINCESS ALEXANDRA HOSPITAL NHS TRUST","RQWG0","Princess Alexandra Hospital",1,"*","*","*","*","*","*","*","*"]
["QM7","RWG","WEST HERTFORDSHIRE TEACHING HOSPITALS NHS TRUST","RWG02","Watford General Hospital",21,0.90476190476190477,9.5238095238095233E-2,16,3,0,0,2,0]
["QMF","RF4","BARKING, HAVERING AND REDBRIDGE UNIVERSITY HOSPITALS NHS TRUST","RF4QH","Queen's Hospital",51,0.92156862745098034,0,40,7,0,0,0,4]
["QMF","R1H","BARTS HEALTH NHS TRUST","R1HNH","Newham General Hospital",32,0.96875,3.125E-2,23,8,0,0,1,0]
["QMF","R1H","BARTS HEALTH NHS TRUST","R1H12","The Royal London Hospital",10,0.8,0,5,3,0,0,0,2]
["QMF","R1H","BARTS HEALTH NHS TRUST","R1HKH","Whipps Cross University Hospital",19,0.94736842105263153,5.2631578947368418E-2,16,2,0,1,0,0]
["QMF","RQX","HOMERTON HEALTHCARE NHS FOUNDATION TRUST","RQXM1","Homerton University Hospital",7,0.8571428571428571,0,4,2,1,0,0,0]
["QMJ","RAL","ROYAL FREE LONDON NHS FOUNDATION TRUST","RAL26","Barnet Hospital",25,1,0,23,2,0,0,0,0]
["QMJ","RAL","ROYAL FREE LONDON NHS FOUNDATION TRUST","E3M3C","NORTH MIDDLESEX HOSPITAL DSU - ELECTIVE SURGICAL HUB",85,0.92941176470588238,4.7058823529411764E-2,62,17,2,3,1,0]
["QMJ","RAL","ROYAL FREE LONDON NHS FOUNDATION TRUST","RAL01","Royal Free Hospital",5,1,0,3,2,0,0,0,0]
["QMJ","RRV","UNIVERSITY COLLEGE LONDON HOSPITALS NHS FOUNDATION TRUST","RRV11","University College Hospital Elizabeth Garrett Anderson Wing",1,"*","*","*","*","*","*","*","*"]
["QMJ","RKE","WHITTINGTON HEALTH NHS TRUST","RKEXXX","Non-hospital site",0,"NA","NA",0,0,0,0,0,0]
["QMJ","RKE","WHITTINGTON HEALTH NHS TRUST","RKEQ4","The Whittington Hospital",4,"*","*","*","*","*","*","*","*"]
["QMM","RGP","JAMES PAGET UNIVERSITY HOSPITALS NHS FOUNDATION TRUST","RGP75","James Paget University Hospital",21,1,0,20,1,0,0,0,0]
["QMM","RM1","NORFOLK AND NORWICH UNIVERSITY HOSPITALS NHS FOUNDATION TRUST","RM102","Norfolk and Norwich University Hospital",2,"*","*","*","*","*","*","*","*"]
["QMM","RCX","THE QUEEN ELIZABETH HOSPITAL, KING'S LYNN, NHS FOUNDATION TRUST","RCXXXX","Non-hospital site",0,"NA","NA",0,0,0,0,0,0]
["QMM","RCX","THE QUEEN ELIZABETH HOSPITAL, KING'S LYNN, NHS FOUNDATION TRUST","RCX70","The Queen Elizabeth Hospital",14,1,0,"*","*","*","*","*","*"]
["QNC","RJE","UNIVERSITY HOSPITALS OF NORTH MIDLANDS NHS TRUST","RJE01","Royal Stoke University Hospital",37,0.94594594594594594,5.4054054054054057E-2,29,6,0,0,2,0]
["QNQ","RDU","FRIMLEY HEALTH NHS FOUNDATION TRUST","RDU01","Frimley Park Hospital",5,1,0,5,0,0,0,0,0]
["QNQ","RDU","FRIMLEY HEALTH NHS FOUNDATION TRUST","RDU50","Wexham Park Hospital",86,0.98837209302325579,0,71,14,1,0,0,0]
["QNX","RXC","EAST SUSSEX HEALTHCARE NHS TRUST","RXC01","Conquest Hospital",41,0.97560975609756095,0,"*","*","*","*","*","*"]
["QNX","RXC","EAST SUSSEX HEALTHCARE NHS TRUST","RXC02","Eastbourne District General Hospital",0,"NA","NA",0,0,0,0,0,0]
["QNX","RXC","EAST SUSSEX HEALTHCARE NHS TRUST","RXCXXX","Non-hospital site",1,"*","*","*","*","*","*","*","*"]
["QNX","RYR","UNIVERSITY HOSPITALS SUSSEX NHS FOUNDATION TRUST","N6J7V","Princess Royal Hospital",28,0.9285714285714286,0,24,2,2,0,0,0]
["QNX","RYR","UNIVERSITY HOSPITALS SUSSEX NHS FOUNDATION TRUST","E0A3H","Royal Sussex County Hospital",17,0.94117647058823528,0,14,2,1,0,0,0]
["QNX","RYR","UNIVERSITY HOSPITALS SUSSEX NHS FOUNDATION TRUST","RYR16","St Richard's Hospital",32,0.96875,3.125E-2,28,3,0,1,0,0]
["QNX","RYR","UNIVERSITY HOSPITALS SUSSEX NHS FOUNDATION TRUST","RYR18","Worthing Hospital",25,0.92,0.04,21,2,1,0,1,0]
["QOC","RXW","THE SHREWSBURY AND TELFORD HOSPITAL NHS TRUST","RXWAT","The Princess Royal Hospital",17,1,0,16,1,0,0,0,0]
["QOP","RMC","BOLTON NHS FOUNDATION TRUST","RMC01","Royal Bolton Hospital",167,0.89221556886227549,7.1856287425149698E-2,133,16,3,5,7,3]
["QOP","R0A","MANCHESTER UNIVERSITY NHS FOUNDATION TRUST","R0A05","St Mary's Hospital",100,0.94,0.05,69,25,1,2,3,0]
["QOP","RM3","NORTHERN CARE ALLIANCE NHS FOUNDATION TRUST","RM317","Royal Oldham Hospital",136,0.79411764705882348,0.19117647058823528,83,25,1,6,20,1]
["QOP","RWJ","STOCKPORT NHS FOUNDATION TRUST","RWJXXX","Non-hospital site",0,"NA","NA",0,0,0,0,0,0]
["QOP","RWJ","STOCKPORT NHS FOUNDATION TRUST","RWJ09","Stepping Hill Hospital",6,1,0,6,0,0,0,0,0]
["QOP","RMP","TAMESIDE AND GLOSSOP INTEGRATED CARE NHS FOUNDATION TRUST","RMP01","Tameside General Hospital",13,0.84615384615384615,7.6923076923076927E-2,10,1,1,1,0,0]
["QOP","RRF","WRIGHTINGTON, WIGAN AND LEIGH NHS FOUNDATION TRUST","RRF02","Royal Albert Edward Infirmary",19,1,0,15,4,0,0,0,0]
["QOQ","RCD","HARROGATE AND DISTRICT NHS FOUNDATION TRUST","RCD01","Harrogate District Hospital",2,"*","*","*","*","*","*","*","*"]
["QOQ","RWA","HULL UNIVERSITY TEACHING HOSPITALS NHS TRUST","RWA01","Hull Royal Infirmary",12,1,0,"*","*","*","*","*","*"]
["QOQ","RJL","NORTHERN LINCOLNSHIRE AND GOOLE NHS FOUNDATION TRUST","RJL30","Diana, Princess Of Wales Hospital",14,1,0,12,2,0,0,0,0]
["QOQ","RJL","NORTHERN LINCOLNSHIRE AND GOOLE NHS FOUNDATION TRUST","RJL32","Scunthorpe General Hospital",9,0.88888888888888884,0,8,0,1,0,0,0]
["QOQ","RCB","YORK AND SCARBOROUGH TEACHING HOSPITALS NHS FOUNDATION TRUST","RCBCA","Scarborough General Hospital",0,"NA","NA",0,0,0,0,0,0]
["QOQ","RCB","YORK AND SCARBOROUGH TEACHING HOSPITALS NHS FOUNDATION TRUST","RCB55","York Hospital",0,"NA","NA",0,0,0,0,0,0]
["QOX","RN3","GREAT WESTERN HOSPITALS NHS FOUNDATION TRUST","RN3XXX","Non-hospital site",0,"NA","NA",0,0,0,0,0,0]
["QOX","RN3","GREAT WESTERN HOSPITALS NHS FOUNDATION TRUST","RN325","The Great Western Hospital",4,"*","*","*","*","*","*","*","*"]
["QOX","RD1","ROYAL UNITED HOSPITALS BATH NHS FOUNDATION TRUST","RD121","Frome Community Hospital ",1,"*","*","*","*","*","*","*","*"]
["QOX","RD1","ROYAL UNITED HOSPITALS BATH NHS FOUNDATION TRUST","RD1XXX","Non Hospital Site",1,"*","*","*","*","*","*","*","*"]
["QOX","RD1","ROYAL UNITED HOSPITALS BATH NHS FOUNDATION TRUST","RD130","Princess Anne Wing RUH ",33,0.93939393939393945,3.0303030303030304E-2,26,5,1,1,0,0]
["QOX","RNZ","SALISBURY NHS FOUNDATION TRUST","RNZXXX","Non-hospital site",1,"*","*","*","*","*","*","*","*"]
["QOX","RNZ","SALISBURY NHS FOUNDATION TRUST","RNZ02","Salisbury District Hospital",29,0.93103448275862066,3.4482758620689655E-2,"*","*","*","*","*","*"]
["QPM","RNQ","KETTERING GENERAL HOSPITAL NHS FOUNDATION TRUST","RNQ51","Kettering General Hospital",6,0.66666666666666663,0.16666666666666666,3,1,1,0,1,0]
["QPM","RNS","NORTHAMPTON GENERAL HOSPITAL NHS TRUST","RNS01","Northampton General Hospital (Acute)",45,0.9555555555555556,4.4444444444444446E-2,41,2,0,0,2,0]
["QR1","RTE","GLOUCESTERSHIRE HOSPITALS NHS FOUNDATION TRUST","RTE03","Gloucestershire Royal Hospital",66,0.87878787878787878,6.0606060606060608E-2,"*","*","*","*","*","*"]
["QR1","RTE","GLOUCESTERSHIRE HOSPITALS NHS FOUNDATION TRUST","RTEXXX","Non-hospital site",2,"*","*","*","*","*","*","*","*"]
["QRL","RN5","HAMPSHIRE HOSPITALS NHS FOUNDATION TRUST","RN542","Andover War Memorial Hospital",0,"NA","NA",0,0,0,0,0,0]
["QRL","RN5","HAMPSHIRE HOSPITALS NHS FOUNDATION TRUST","RN506","Basingstoke and North Hampshire Hospital",37,0.97297297297297303,0,34,2,1,0,0,0]
["QRL","RN5","HAMPSHIRE HOSPITALS NHS FOUNDATION TRUST","RN541","Royal Hampshire County Hospital",112,0.9821428571428571,8.9285714285714281E-3,101,9,0,1,0,1]
["QRL","R1F","ISLE OF WIGHT NHS TRUST","R1F01","St Mary's Hospital",9,1,0,9,0,0,0,0,0]
["QRL","RHU","PORTSMOUTH HOSPITALS UNIVERSITY NATIONAL HEALTH SERVICE TRUST","RHU03","Queen Alexandra Hospital",36,0.97222222222222221,2.7777777777777776E-2,28,7,0,1,0,0]
["QRL","RHM","UNIVERSITY HOSPITAL SOUTHAMPTON NHS FOUNDATION TRUST","RHM12","Princess Anne Hospital",115,0.95652173913043481,2.6086956521739129E-2,94,16,2,1,2,0]
["QRV","RQM","CHELSEA AND WESTMINSTER HOSPITAL NHS FOUNDATION TRUST","RQM01","Chelsea and Westminster Hospital",47,0.97872340425531912,0,43,3,1,0,0,0]
["QRV","RQM","CHELSEA AND WESTMINSTER HOSPITAL NHS FOUNDATION TRUST","RQM91","West Middlesex University Hospital",23,0.91304347826086951,8.6956521739130432E-2,21,0,0,2,0,0]
["QRV","RYJ","IMPERIAL COLLEGE HEALTHCARE NHS TRUST","RYJ04","Queen Charlotte's Hospital",53,0.90566037735849059,9.4339622641509441E-2,41,7,0,1,4,0]
["QRV","RYJ","IMPERIAL COLLEGE HEALTHCARE NHS TRUST","RYJ01","St Mary's Hospital (HQ)",30,0.96666666666666667,0,28,1,1,0,0,0]
["QRV","R1K","LONDON NORTH WEST UNIVERSITY HEALTHCARE NHS TRUST","R1K01","Northwick Park Hospital",83,0.97590361445783136,0,61,20,2,0,0,0]
["QRV","RAS","THE HILLINGDON HOSPITALS NHS FOUNDATION TRUST","RAS01","Hillingdon Hospital",41,0.90243902439024393,7.3170731707317069E-2,31,6,1,1,2,0]
["QSL","RH5","SOMERSET NHS FOUNDATION TRUST","RH5K6","Bridgwater Hospital",0,"NA","NA",0,0,0,0,0,0]
["QSL","RH5","SOMERSET NHS FOUNDATION TRUST","RH5A8","MUSGROVE PARK HOSPITAL",1,"*","*","*","*","*","*","*","*"]
["QSL","RH5","SOMERSET NHS FOUNDATION TRUST","RH5XXXX","Non-hospital site home/in-transit births",1,"*","*","*","*","*","*","*","*"]
["QSL","RH5","SOMERSET NHS FOUNDATION TRUST","RH5O4","Yeovil District Hospital",2,"*","*","*","*","*","*","*","*"]
["QT1","RX1","NOTTINGHAM UNIVERSITY HOSPITALS NHS TRUST","RX1XXX","Non-hospital site",0,"NA","NA",0,0,0,0,0,0]
["QT1","RX1","NOTTINGHAM UNIVERSITY HOSPITALS NHS TRUST","RX1CC","Nottingham University Hospitals NHS Trust - City Campus",2,"*","*","*","*","*","*","*","*"]
["QT1","RX1","NOTTINGHAM UNIVERSITY HOSPITALS NHS TRUST","RX1RA","Nottingham University Hospitals NHS Trust - Queen's Medical Centre Campus",1,"*","*","*","*","*","*","*","*"]
["QT1","RK5","SHERWOOD FOREST HOSPITALS NHS FOUNDATION TRUST","RK5BC","King's Mill Hospital",34,0.91176470588235292,8.8235294117647065E-2,"*","*","*","*","*","*"]
["QT1","RK5","SHERWOOD FOREST HOSPITALS NHS FOUNDATION TRUST","RK5XXX","Non-hospital site",0,"NA","NA",0,0,0,0,0,0]
["QT6","REF","ROYAL CORNWALL HOSPITALS NHS TRUST","REFXXX","Non-hospital site",0,"NA","NA",0,0,0,0,0,0]
["QT6","REF","ROYAL CORNWALL HOSPITALS NHS TRUST","REF12","Royal Cornwall Hospital (Treliske)",14,1,0,"*","*","*","*","*","*"]
["QU9","RXQ","BUCKINGHAMSHIRE HEALTHCARE NHS TRUST","RXQ02","Stoke Mandeville Hospital",23,0.78260869565217395,0.13043478260869565,14,4,1,2,1,1]
["QU9","RTH","OXFORD UNIVERSITY HOSPITALS NHS FOUNDATION TRUST","RTH19","Chipping Norton Community Hospital",1,"*","*","*","*","*","*","*","*"]
["QU9","RTH","OXFORD UNIVERSITY HOSPITALS NHS FOUNDATION TRUST","RTH05","Horton General Hospital",1,"*","*","*","*","*","*","*","*"]
["QU9","RTH","OXFORD UNIVERSITY HOSPITALS NHS FOUNDATION TRUST","RTH08","John Radcliffe Hospital",27,0.48148148148148145,0.44444444444444442,12,1,2,5,7,0]
["QU9","RTH","OXFORD UNIVERSITY HOSPITALS NHS FOUNDATION TRUST","RTH16","Wallingford Community Hospital",0,"NA","NA",0,0,0,0,0,0]
["QU9","RTH","OXFORD UNIVERSITY HOSPITALS NHS FOUNDATION TRUST","RTH21","Wantage Community Hospital",0,"NA","NA",0,0,0,0,0,0]
["QU9","RHW","ROYAL BERKSHIRE NHS FOUNDATION TRUST","RHW01","Royal Berkshire Hospital",6,1,0,6,0,0,0,0,0]
["QUA","RNA","THE DUDLEY GROUP NHS FOUNDATION TRUST","RNA01","Russells Hall Hospital",45,0.91111111111111109,0,38,3,1,0,0,3]
["QUA","RL4","THE ROYAL WOLVERHAMPTON NHS TRUST","RL403","New Cross Hospital",42,0.95238095238095233,2.3809523809523808E-2,36,4,1,0,1,0]
["QUA","RBK","WALSALL HEALTHCARE NHS TRUST","RBK02","Manor Hospital",52,0.90384615384615385,5.7692307692307696E-2,45,2,2,1,2,0]
["QUE","RGT","CAMBRIDGE UNIVERSITY HOSPITALS NHS FOUNDATION TRUST","RGT32","Rosie Hospital",35,0.8,0.11428571428571428,23,5,1,3,1,2]
["QUE","RGN","NORTH WEST ANGLIA NHS FOUNDATION TRUST","RGN90","Hinchingbrooke Hospital",14,1,0,14,0,0,0,0,0]
["QUE","RGN","NORTH WEST ANGLIA NHS FOUNDATION TRUST","RGN80","Peterborough City Hospital",5,0.8,0.2,4,0,0,0,1,0]
["QUY","RVJ","NORTH BRISTOL NHS TRUST","RVJXXX","Non-hospital site",1,"*","*","*","*","*","*","*","*"]
["QUY","RVJ","NORTH BRISTOL NHS TRUST","RVJ01","Southmead Hospital",85,0.91764705882352937,7.0588235294117646E-2,"*","*","*","*","*","*"]
["QUY","RA7","UNIVERSITY HOSPITALS BRISTOL AND WESTON NHS FOUNDATION TRUST","RA707","ST MICHAEL'S HOSPITAL",61,0.95081967213114749,1.6393442622950821E-2,52,6,1,1,0,1]
["QVV","RBD","DORSET COUNTY HOSPITAL NHS FOUNDATION TRUST","RBD01","Dorset County Hospital",11,0.90909090909090906,9.0909090909090912E-2,8,2,0,0,1,0]
["QVV","R0D","UNIVERSITY HOSPITALS DORSET NHS FOUNDATION TRUST","R0D01","Poole Hospital",13,1,0,12,1,0,0,0,0]
["QVV","R0D","UNIVERSITY HOSPITALS DORSET NHS FOUNDATION TRUST","R0D02","Royal Bournemouth Hospital",0,"NA","NA",0,0,0,0,0,0]
["QWE","RJ6","CROYDON HEALTH SERVICES NHS TRUST","RJ611","Croydon University Hospital",13,0.76923076923076927,0.23076923076923078,"*","*","*","*","*","*"]
["QWE","RVR","EPSOM AND ST HELIER UNIVERSITY HOSPITALS NHS TRUST","RVR50","Epsom Hospital",1,"*","*","*","*","*","*","*","*"]
["QWE","RVR","EPSOM AND ST HELIER UNIVERSITY HOSPITALS NHS TRUST","RVRXXX","Non-hospital site",0,"NA","NA",0,0,0,0,0,0]
["QWE","RVR","EPSOM AND ST HELIER UNIVERSITY HOSPITALS NHS TRUST","RVR05","St Helier Hospital",1,"*","*","*","*","*","*","*","*"]
["QWE","RAX","KINGSTON AND RICHMOND NHS FOUNDATION TRUST","RAX01","Kingston Hospital",35,1,0,34,1,0,0,0,0]
["QWE","RJ7","ST GEORGE'S UNIVERSITY HOSPITALS NHS FOUNDATION TRUST","RJ701","St George's Hospital (Tooting)",19,0.89473684210526316,0.10526315789473684,16,1,0,0,2,0]
["QWO","RCF","AIREDALE NHS FOUNDATION TRUST","RCF22","Airedale General Hospital",24,1,0,23,1,0,0,0,0]
["QWO","RAE","BRADFORD TEACHING HOSPITALS NHS FOUNDATION TRUST","RAE01","Bradford Royal Infirmary",76,1,0,72,4,0,0,0,0]
["QWO","RWY","CALDERDALE AND HUDDERSFIELD NHS FOUNDATION TRUST","RWY02","Calderdale Royal Hospital",9,1,0,8,1,0,0,0,0]
["QWO","RR8","LEEDS TEACHING HOSPITALS NHS TRUST","RR801","Leeds General Infirmary",82,0.91463414634146345,6.097560975609756E-2,"*","*","*","*","*","*"]
["QWO","RR8","LEEDS TEACHING HOSPITALS NHS TRUST","RR8XXX","Non-hospital site",1,"*","*","*","*","*","*","*","*"]
["QWO","RR8","LEEDS TEACHING HOSPITALS NHS TRUST","RR813","St James's University Hospital",87,0.9885057471264368,1.1494252873563218E-2,78,8,0,0,1,0]
["QWO","RXF","MID YORKSHIRE TEACHING NHS TRUST","RXF10","Dewsbury and District Hospital",7,0.8571428571428571,0.14285714285714285,5,1,0,0,1,0]
["QWO","RXF","MID YORKSHIRE TEACHING NHS TRUST","RXFXXX","Non-hospital site",5,1,0,5,0,0,0,0,0]
["QWO","RXF","MID YORKSHIRE TEACHING NHS TRUST","RXF05","Pinderfields General Hospital",45,0.93333333333333335,6.6666666666666666E-2,39,3,0,2,1,0]
["QWO","RXF","MID YORKSHIRE TEACHING NHS TRUST","RXF03","Pontefract General Infirmary",0,"NA","NA",0,0,0,0,0,0]
["QWU","RLT","GEORGE ELIOT HOSPITAL NHS TRUST","RLT01","George Eliot Hospital - Acute Services",19,0.89473684210526316,5.2631578947368418E-2,17,0,1,1,0,0]
["QWU","RJC","SOUTH WARWICKSHIRE UNIVERSITY NHS FOUNDATION TRUST","RJC02","Warwick Hospital",0,"NA","NA",0,0,0,0,0,0]
["QWU","RKB","UNIVERSITY HOSPITALS COVENTRY AND WARWICKSHIRE NHS TRUST","RKB03","Hospital Of St Cross",0,"NA","NA",0,0,0,0,0,0]
["QWU","RKB","UNIVERSITY HOSPITALS COVENTRY AND WARWICKSHIRE NHS TRUST","RKBXXX","Non-hospital site",1,"*","*","*","*","*","*","*","*"]
["QWU","RKB","UNIVERSITY HOSPITALS COVENTRY AND WARWICKSHIRE NHS TRUST","RKB01","University Hospital (Coventry)",57,0.89473684210526316,5.2631578947368418E-2,"*","*","*","*","*","*"]
["QXU","RTK","ASHFORD AND ST PETER'S HOSPITALS NHS FOUNDATION TRUST","RTK01","St Peter's Hospital",125,0.79200000000000004,9.6000000000000002E-2,80,19,7,2,10,7]
["QXU","RA2","ROYAL SURREY COUNTY HOSPITAL NHS FOUNDATION TRUST","RA201","Royal Surrey County Hospital",45,1,0,43,2,0,0,0,0]
["QXU","RTP","SURREY AND SUSSEX HEALTHCARE NHS TRUST","RTP04","East Surrey Hospital",5,0.8,0.2,3,1,0,0,1,0]
["QYG","RJR","COUNTESS OF CHESTER HOSPITAL NHS FOUNDATION TRUST","RJR05","Countess Of Chester Hospital",29,0.93103448275862066,6.8965517241379309E-2,22,5,0,1,1,0]
["QYG","RJN","EAST CHESHIRE NHS TRUST","RJN71","Macclesfield District General Hospital",14,0.8571428571428571,0.14285714285714285,9,3,0,0,2,0]
["QYG","REP","LIVERPOOL WOMEN'S NHS FOUNDATION TRUST","REP01","Liverpool Womens Hospital",63,0.92063492063492058,1.5873015873015872E-2,51,7,3,1,0,1]
["QYG","RBN","MERSEY AND WEST LANCASHIRE TEACHING HOSPITALS NHS TRUST","RBN52","Ormskirk and District General Hospital",17,0.88235294117647056,0.11764705882352941,13,2,0,2,0,0]
["QYG","RBN","MERSEY AND WEST LANCASHIRE TEACHING HOSPITALS NHS TRUST","RBN01","Whiston Hospital",34,0.88235294117647056,8.8235294117647065E-2,22,8,1,2,1,0]
["QYG","RBT","MID CHESHIRE HOSPITALS NHS FOUNDATION TRUST","RBT20","Leighton Hospital",40,0.97499999999999998,2.5000000000000001E-2,35,4,0,0,1,0]
["QYG","RWW","WARRINGTON AND HALTON TEACHING HOSPITALS NHS FOUNDATION TRUST","RWWWH","Warrington Hospital",1,"*","*","*","*","*","*","*","*"]
["QYG","RBL","WIRRAL UNIVERSITY TEACHING HOSPITAL NHS FOUNDATION TRUST","RBL14","Arrowe Park Hospital",10,1,0,"*","*","*","*","*","*"]

{"sheet":"ICB Q3","index":8,"n_rows":55,"n_cols":11,"rows_kept":55,"cut":false,"hidden":false,"merged":[[8,0,9,0],[8,1,9,1],[8,2,9,2],[8,3,9,3],[8,4,9,4],[8,5,8,10]]}
[]
[]
[]
[]
[]
[null,"   Sort data by:           "]
[]
[]
["ICB Code","ICB Name","Total Responses","Percentage Positive","Percentage Negative","Breakdown of Responses"]
[null,null,null,null,null,"Very Good","Good","Neither Good nor Poor","Poor","Very Poor","Don't Know"]
[null,"England (including Independent Sector providers)",5415,0.92169898430286246,3.9889196675900275E-2,3907,1084,177,106,110,31]
[null,"England (excluding Independent Sector providers)",5415,0.92169898430286246,3.9889196675900275E-2,3907,1084,177,106,110,31]
[null,"Selection (excluding suppressed data)",{"$f":"SUBTOTAL(9,C14:C55)","v":5415},{"$f":"IFERROR((F13+G13)/SUM(F13:K13), \"-\")","v":0.92171016102165459},{"$f":"IFERROR((I13+J13)/SUM(F13:K13), \"-\")","v":3.9792707754950953E-2},{"$f":"SUBTOTAL(9,F14:F55)","v":3900},1080,177,105,110,31]
["QE1","LANCASHIRE AND SOUTH CUMBRIA ICB",249,0.83132530120481929,8.4337349397590355E-2,159,48,20,9,12,1]
["QF7","SOUTH YORKSHIRE ICB",73,0.87671232876712324,2.7397260273972601E-2,51,13,7,1,1,0]
["QGH","HEREFORDSHIRE AND WORCESTERSHIRE ICB",56,0.9107142857142857,3.5714285714285712E-2,36,15,3,1,1,0]
["QH8","MID AND SOUTH ESSEX ICB",64,0.8125,0.109375,38,14,4,5,2,1]
["QHG","BEDFORDSHIRE, LUTON AND MILTON KEYNES ICB",181,0.93370165745856348,3.8674033149171269E-2,126,43,5,4,3,0]
["QHL","BIRMINGHAM AND SOLIHULL ICB",175,0.92571428571428571,3.4285714285714287E-2,123,39,6,1,5,1]
["QHM","NORTH EAST AND NORTH CUMBRIA ICB",238,0.95378151260504207,4.2016806722689074E-3,179,48,10,1,0,0]
["QJ2","DERBY AND DERBYSHIRE ICB",91,0.93406593406593408,4.3956043956043959E-2,71,14,2,3,1,0]
["QJG","SUFFOLK AND NORTH EAST ESSEX ICB",9,0.88888888888888884,0,7,1,1,0,0,0]
["QJK","DEVON ICB",35,1,0,28,7,0,0,0,0]
["QJM","LINCOLNSHIRE ICB",0,"NA","NA",0,0,0,0,0,0]
["QK1","LEICESTER, LEICESTERSHIRE AND RUTLAND ICB",118,0.84745762711864403,3.3898305084745763E-2,61,39,14,3,1,0]
["QKK","SOUTH EAST LONDON ICB",167,0.88622754491017963,2.9940119760479042E-2,92,56,13,5,0,1]
["QKS","KENT AND MEDWAY ICB",240,0.96250000000000002,1.6666666666666666E-2,194,37,5,3,1,0]
["QM7","HERTFORDSHIRE AND WEST ESSEX ICB",98,0.98979591836734693,0,79,18,1,0,0,0]
["QMF","NORTH EAST LONDON ICB",196,0.8928571428571429,7.6530612244897961E-2,135,40,6,4,11,0]
["QMJ","NORTH CENTRAL LONDON ICB",307,0.9315960912052117,2.2801302931596091E-2,177,109,12,2,5,2]
["QMM","NORFOLK AND WAVENEY ICB",17,0.94117647058823528,5.8823529411764705E-2,14,2,0,0,1,0]
["QNC","STAFFORDSHIRE AND STOKE-ON-TRENT ICB",25,1,0,19,6,0,0,0,0]
["QNQ","FRIMLEY ICB",56,0.9821428571428571,0,47,8,1,0,0,0]
["QNX","SUSSEX ICB",91,0.92307692307692313,4.3956043956043959E-2,67,17,2,0,4,1]
["QOC","SHROPSHIRE, TELFORD AND WREKIN ICB",5,1,0,"*","*","*","*","*","*"]
["QOP","GREATER MANCHESTER ICB",371,0.93800539083557954,3.7735849056603772E-2,281,67,4,6,8,5]
["QOQ","HUMBER AND NORTH YORKSHIRE ICB",176,0.98295454545454541,5.681818181818182E-3,161,12,1,1,0,1]
["QOX","BATH AND NORTH EAST SOMERSET, SWINDON AND WILTSHIRE ICB",132,0.9242424242424242,3.787878787878788E-2,106,16,5,5,0,0]
["QPM","NORTHAMPTONSHIRE ICB",170,0.97058823529411764,1.1764705882352941E-2,153,12,3,0,2,0]
["QR1","GLOUCESTERSHIRE ICB",63,0.66666666666666663,0.19047619047619047,19,23,9,5,7,0]
["QRL","HAMPSHIRE AND ISLE OF WIGHT ICB",379,0.94986807387862793,2.1108179419525065E-2,271,89,10,5,3,1]
["QRV","NORTH WEST LONDON ICB",368,0.94021739130434778,4.0760869565217392E-2,271,75,6,6,9,1]
["QSL","SOMERSET ICB",4,"*","*","*","*","*","*","*","*"]
["QT1","NOTTINGHAM AND NOTTINGHAMSHIRE ICB",43,0.86046511627906974,0.11627906976744186,30,7,1,4,1,0]
["QT6","CORNWALL AND THE ISLES OF SCILLY ICB",3,"*","*","*","*","*","*","*","*"]
["QU9","BUCKINGHAMSHIRE, OXFORDSHIRE AND BERKSHIRE WEST ICB",118,0.88983050847457623,6.7796610169491525E-2,74,31,5,3,5,0]
["QUA","BLACK COUNTRY ICB",142,0.90140845070422537,3.5211267605633804E-2,105,23,3,2,3,6]
["QUE","CAMBRIDGESHIRE AND PETERBOROUGH ICB",185,0.94054054054054059,1.0810810810810811E-2,150,24,4,2,0,5]
["QUY","BRISTOL, NORTH SOMERSET AND SOUTH GLOUCESTERSHIRE ICB",120,0.94166666666666665,0.05,92,21,1,2,4,0]
["QVV","DORSET ICB",21,0.61904761904761907,0.19047619047619047,9,4,3,2,2,1]
["QWE","SOUTH WEST LONDON ICB",97,0.92783505154639179,4.1237113402061855E-2,75,15,3,2,2,0]
["QWO","WEST YORKSHIRE ICB",241,0.92531120331950212,4.9792531120331947E-2,176,47,4,8,4,2]
["QWU","COVENTRY AND WARWICKSHIRE ICB",31,0.80645161290322576,0.19354838709677419,18,7,0,0,6,0]
["QXU","SURREY HEARTLANDS ICB",29,0.89655172413793105,0.10344827586206896,23,3,0,3,0,0]
["QYG","CHESHIRE AND MERSEYSIDE ICB",231,0.92207792207792205,5.627705627705628E-2,183,30,3,7,6,2]

{"sheet":"Trusts Q3","index":9,"n_rows":127,"n_cols":20,"rows_kept":127,"cut":false,"hidden":false,"merged":[[8,6,8,11],[8,12,8,19],[8,0,9,0],[8,1,9,1],[8,2,9,2],[8,3,9,3],[8,4,9,4],[8,5,9,5]]}
[]
[]
[]
[]
[]
[null,"   Sort data by:           "]
[]
[]
["ICB Code","Trust Code","Trust Name","Total Responses","Percentage Positive","Percentage Negative","Breakdown of Responses",null,null,null,null,null,"Mode of Collection"]
[null,null,null,null,null,null,"Very Good","Good","Neither Good nor Poor","Poor","Very Poor","Don't Know","Mode SMS","Mode Electronic Discharge","Mode Electronic Home","Mode Paper Discharge","Mode Paper Home","Mode Telephone","Mode Online","Mode Other"]
[null,null,"England (including Independent Sector providers)",5415,0.92169898430286246,3.9889196675900275E-2,3907,1084,177,106,110,31,1166,1128,60,1948,153,0,959,1]
[null,null,"England (excluding Independent Sector providers)",5415,0.92169898430286246,3.9889196675900275E-2,3907,1084,177,106,110,31,1166,1128,60,1948,153,0,959,1]
[null,null,"Selection (excluding suppressed data)",{"$f":"SUBTOTAL(9,D14:D299)","v":5415},{"$f":"IFERROR((G13+H13)/SUM(G13:L13), \"-\")","v":0.92076714451762887},{"$f":"IFERROR((J13+K13)/SUM(G13:L13), \"-\")","v":4.0100736148779542E-2},{"$f":"SUBTOTAL(9,G14:G299)","v":3723},1030,171,104,103,31,1152,1098,0,1815,153,0,943,{"$f":"SUBTOTAL(9,T14:T299)","v":1}]
["QE1","RXN","LANCASHIRE TEACHING HOSPITALS NHS FOUNDATION TRUST",14,0.8571428571428571,0,6,6,2,0,0,0,14,0,0,0,0,0,0,0]
["QE1","RTX","UNIVERSITY HOSPITALS OF MORECAMBE BAY NHS FOUNDATION TRUST",38,0.97368421052631582,2.6315789473684209E-2,30,7,0,0,1,0,34,0,0,0,0,0,4,0]
["QE1","RXR","EAST LANCASHIRE HOSPITALS NHS TRUST",72,0.77777777777777779,0.125,43,13,6,3,6,1,52,0,0,20,0,0,0,0]
["QE1","RXL","BLACKPOOL TEACHING HOSPITALS NHS FOUNDATION TRUST",125,0.81599999999999995,8.7999999999999995E-2,80,22,12,6,5,0,27,0,0,95,0,0,3,0]
["QF7","RFR","THE ROTHERHAM NHS FOUNDATION TRUST",1,"*","*","*","*","*","*","*","*","*","*","*","*","*","*","*","*"]
["QF7","RP5","DONCASTER AND BASSETLAW TEACHING HOSPITALS NHS FOUNDATION TRUST",3,"*","*","*","*","*","*","*","*","*","*","*","*","*","*","*","*"]
["QF7","RFF","BARNSLEY HOSPITAL NHS FOUNDATION TRUST",15,0.93333333333333335,0,12,2,1,0,0,0,3,11,0,0,0,0,1,0]
["QF7","RHQ","SHEFFIELD TEACHING HOSPITALS NHS FOUNDATION TRUST",54,0.87037037037037035,3.7037037037037035E-2,37,10,5,1,1,0,18,0,0,34,0,0,2,0]
["QGH","RLQ","WYE VALLEY NHS TRUST",12,0.83333333333333337,8.3333333333333329E-2,8,2,1,0,1,0,12,0,0,0,0,0,0,0]
["QGH","RWP","WORCESTERSHIRE ACUTE HOSPITALS NHS TRUST",44,0.93181818181818177,2.2727272727272728E-2,28,13,2,1,0,0,0,44,0,0,0,0,0,0]
["QH8","RAJ","MID AND SOUTH ESSEX NHS FOUNDATION TRUST",64,0.8125,0.109375,38,14,4,5,2,1,52,0,0,0,0,0,12,0]
["QHG","RD8","MILTON KEYNES UNIVERSITY HOSPITAL NHS FOUNDATION TRUST",34,0.82352941176470584,0.11764705882352941,22,6,2,2,2,0,6,0,0,18,0,0,10,0]
["QHG","RC9","BEDFORDSHIRE HOSPITALS NHS FOUNDATION TRUST",147,0.95918367346938771,2.0408163265306121E-2,104,37,3,2,1,0,0,147,0,0,0,0,0,0]
["QHL","RXK","SANDWELL AND WEST BIRMINGHAM HOSPITALS NHS TRUST",0,"NA","NA",0,0,0,0,0,0,0,0,0,0,0,0,0,0]
["QHL","RRK","UNIVERSITY HOSPITALS BIRMINGHAM NHS FOUNDATION TRUST",32,0.96875,3.125E-2,22,9,0,0,1,0,0,32,0,0,0,0,0,0]
["QHL","RQ3","BIRMINGHAM WOMEN'S AND CHILDREN'S NHS FOUNDATION TRUST",143,0.91608391608391604,3.4965034965034968E-2,101,30,6,1,4,1,0,0,0,0,0,0,143,0]
["QHM","RTF","NORTHUMBRIA HEALTHCARE NHS FOUNDATION TRUST",0,"NA","NA",0,0,0,0,0,0,0,0,0,0,0,0,0,0]
["QHM","R0B","SOUTH TYNESIDE AND SUNDERLAND NHS FOUNDATION TRUST",1,"*","*","*","*","*","*","*","*","*","*","*","*","*","*","*","*"]
["QHM","RVW","NORTH TEES AND HARTLEPOOL NHS FOUNDATION TRUST",1,"*","*","*","*","*","*","*","*","*","*","*","*","*","*","*","*"]
["QHM","RR7","GATESHEAD HEALTH NHS FOUNDATION TRUST",13,1,0,13,0,0,0,0,0,13,0,0,0,0,0,0,0]
["QHM","RNN","NORTH CUMBRIA INTEGRATED CARE NHS FOUNDATION TRUST",17,1,0,15,2,0,0,0,0,0,0,0,16,0,0,0,1]
["QHM","RTR","SOUTH TEES HOSPITALS NHS FOUNDATION TRUST",17,0.94117647058823528,5.8823529411764705E-2,12,4,0,1,0,0,16,1,0,0,0,0,0,0]
["QHM","RTD","THE NEWCASTLE UPON TYNE HOSPITALS NHS FOUNDATION TRUST",59,0.84745762711864403,0,29,21,9,0,0,0,59,0,0,0,0,0,0,0]
["QHM","RXP","COUNTY DURHAM AND DARLINGTON NHS FOUNDATION TRUST",130,0.99230769230769234,0,108,21,1,0,0,0,0,0,0,130,0,0,0,0]
["QJ2","RTG","UNIVERSITY HOSPITALS OF DERBY AND BURTON NHS FOUNDATION TRUST",32,0.875,9.375E-2,19,9,1,2,1,0,27,0,0,5,0,0,0,0]
["QJ2","RFS","CHESTERFIELD ROYAL HOSPITAL NHS FOUNDATION TRUST",59,0.96610169491525422,1.6949152542372881E-2,52,5,1,1,0,0,27,0,0,32,0,0,0,0]
["QJG","RDE","EAST SUFFOLK AND NORTH ESSEX NHS FOUNDATION TRUST",4,"*","*","*","*","*","*","*","*","*","*","*","*","*","*","*","*"]
["QJG","RGR","WEST SUFFOLK NHS FOUNDATION TRUST",5,1,0,"*","*","*","*","*","*","*","*","*","*","*","*","*","*"]
["QJK","RA9","TORBAY AND SOUTH DEVON NHS FOUNDATION TRUST",1,"*","*","*","*","*","*","*","*","*","*","*","*","*","*","*","*"]
["QJK","RK9","UNIVERSITY HOSPITALS PLYMOUTH NHS TRUST",8,1,0,"*","*","*","*","*","*","*","*","*","*","*","*","*","*"]
["QJK","RH8","ROYAL DEVON UNIVERSITY HEALTHCARE NHS FOUNDATION TRUST",26,1,0,24,2,0,0,0,0,0,0,0,26,0,0,0,0]
["QJM","RWD","UNITED LINCOLNSHIRE TEACHING HOSPITALS NHS TRUST",0,"NA","NA",0,0,0,0,0,0,0,0,0,0,0,0,0,0]
["QK1","RWE","UNIVERSITY HOSPITALS OF LEICESTER NHS TRUST",118,0.84745762711864403,3.3898305084745763E-2,61,39,14,3,1,0,0,118,0,0,0,0,0,0]
["QKK","RJ2","LEWISHAM AND GREENWICH NHS TRUST",63,0.88888888888888884,1.5873015873015872E-2,35,21,5,1,0,1,0,0,0,8,0,0,55,0]
["QKK","RJ1","GUY'S AND ST THOMAS' NHS FOUNDATION TRUST",104,0.88461538461538458,3.8461538461538464E-2,57,35,8,4,0,0,0,0,0,101,0,0,3,0]
["QKS","RVV","EAST KENT HOSPITALS UNIVERSITY NHS FOUNDATION TRUST",28,0.9285714285714286,3.5714285714285712E-2,26,0,1,1,0,0,28,0,0,0,0,0,0,0]
["QKS","RPA","MEDWAY NHS FOUNDATION TRUST",48,0.9375,4.1666666666666664E-2,37,8,1,1,1,0,0,0,0,0,0,0,48,0]
["QKS","RN7","DARTFORD AND GRAVESHAM NHS TRUST",73,1,0,57,16,0,0,0,0,0,60,0,0,0,0,13,0]
["QKS","RWF","MAIDSTONE AND TUNBRIDGE WELLS NHS TRUST",91,0.95604395604395609,1.098901098901099E-2,74,13,3,1,0,0,84,0,0,0,0,0,7,0]
["QM7","RWG","WEST HERTFORDSHIRE TEACHING HOSPITALS NHS TRUST",0,"NA","NA",0,0,0,0,0,0,0,0,0,0,0,0,0,0]
["QM7","RQW","THE PRINCESS ALEXANDRA HOSPITAL NHS TRUST",1,"*","*","*","*","*","*","*","*","*","*","*","*","*","*","*","*"]
["QM7","RWH","EAST AND NORTH HERTFORDSHIRE NHS TRUST",97,0.98969072164948457,0,"*","*","*","*","*","*","*","*","*","*","*","*","*","*"]
["QMF","RQX","HOMERTON HEALTHCARE NHS FOUNDATION TRUST",2,"*","*","*","*","*","*","*","*","*","*","*","*","*","*","*","*"]
["QMF","RF4","BARKING, HAVERING AND REDBRIDGE UNIVERSITY HOSPITALS NHS TRUST",95,0.90526315789473688,7.3684210526315783E-2,"*","*","*","*","*","*","*","*","*","*","*","*","*","*"]
["QMF","R1H","BARTS HEALTH NHS TRUST",99,0.88888888888888884,8.0808080808080815E-2,72,16,3,3,5,0,0,0,0,83,0,0,16,0]
["QMJ","RRV","UNIVERSITY COLLEGE LONDON HOSPITALS NHS FOUNDATION TRUST",0,"NA","NA",0,0,0,0,0,0,0,0,0,0,0,0,0,0]
["QMJ","RKE","WHITTINGTON HEALTH NHS TRUST",52,0.94230769230769229,1.9230769230769232E-2,13,36,2,0,1,0,0,0,0,6,0,0,46,0]
["QMJ","RAL","ROYAL FREE LONDON NHS FOUNDATION TRUST",255,0.92941176470588238,2.3529411764705882E-2,164,73,10,2,4,2,17,172,0,0,0,0,66,0]
["QMM","RM1","NORFOLK AND NORWICH UNIVERSITY HOSPITALS NHS FOUNDATION TRUST",1,"*","*","*","*","*","*","*","*","*","*","*","*","*","*","*","*"]
["QMM","RGP","JAMES PAGET UNIVERSITY HOSPITALS NHS FOUNDATION TRUST",7,0.8571428571428571,0.14285714285714285,"*","*","*","*","*","*","*","*","*","*","*","*","*","*"]
["QMM","RCX","THE QUEEN ELIZABETH HOSPITAL, KING'S LYNN, NHS FOUNDATION TRUST",9,1,0,7,2,0,0,0,0,0,0,0,9,0,0,0,0]
["QNC","RJE","UNIVERSITY HOSPITALS OF NORTH MIDLANDS NHS TRUST",25,1,0,19,6,0,0,0,0,16,0,0,8,0,0,1,0]
["QNQ","RDU","FRIMLEY HEALTH NHS FOUNDATION TRUST",56,0.9821428571428571,0,47,8,1,0,0,0,0,0,0,0,0,0,56,0]
["QNX","RXC","EAST SUSSEX HEALTHCARE NHS TRUST",0,"NA","NA",0,0,0,0,0,0,0,0,0,0,0,0,0,0]
["QNX","RYR","UNIVERSITY HOSPITALS SUSSEX NHS FOUNDATION TRUST",91,0.92307692307692313,4.3956043956043959E-2,67,17,2,0,4,1,91,0,0,0,0,0,0,0]
["QOC","RXW","THE SHREWSBURY AND TELFORD HOSPITAL NHS TRUST",5,1,0,"*","*","*","*","*","*","*","*","*","*","*","*","*","*"]
["QOP","RRF","WRIGHTINGTON, WIGAN AND LEIGH NHS FOUNDATION TRUST",18,0.88888888888888884,0.1111111111111111,13,3,0,0,2,0,0,0,0,18,0,0,0,0]
["QOP","RMP","TAMESIDE AND GLOSSOP INTEGRATED CARE NHS FOUNDATION TRUST",33,0.90909090909090906,6.0606060606060608E-2,27,3,1,1,1,0,0,12,0,21,0,0,0,0]
["QOP","RMC","BOLTON NHS FOUNDATION TRUST",34,0.91176470588235292,8.8235294117647065E-2,26,5,0,0,3,0,16,2,0,16,0,0,0,0]
["QOP","RWJ","STOCKPORT NHS FOUNDATION TRUST",41,0.87804878048780488,7.3170731707317069E-2,31,5,0,3,0,2,0,0,0,41,0,0,0,0]
["QOP","R0A","MANCHESTER UNIVERSITY NHS FOUNDATION TRUST",245,0.95918367346938771,1.6326530612244899E-2,184,51,3,2,2,3,0,173,0,62,0,0,10,0]
["QOQ","RCD","HARROGATE AND DISTRICT NHS FOUNDATION TRUST",1,"*","*","*","*","*","*","*","*","*","*","*","*","*","*","*","*"]
["QOQ","RJL","NORTHERN LINCOLNSHIRE AND GOOLE NHS FOUNDATION TRUST",13,1,0,"*","*","*","*","*","*","*","*","*","*","*","*","*","*"]
["QOQ","RWA","HULL UNIVERSITY TEACHING HOSPITALS NHS TRUST",77,0.96103896103896103,1.2987012987012988E-2,68,6,1,1,0,1,43,0,0,34,0,0,0,0]
["QOQ","RCB","YORK AND SCARBOROUGH TEACHING HOSPITALS NHS FOUNDATION TRUST",85,1,0,80,5,0,0,0,0,0,0,0,85,0,0,0,0]
["QOX","RNZ","SALISBURY NHS FOUNDATION TRUST",7,1,0,4,3,0,0,0,0,7,0,0,0,0,0,0,0]
["QOX","RD1","ROYAL UNITED HOSPITALS BATH NHS FOUNDATION TRUST",57,0.96491228070175439,3.5087719298245612E-2,48,7,0,2,0,0,26,0,0,31,0,0,0,0]
["QOX","RN3","GREAT WESTERN HOSPITALS NHS FOUNDATION TRUST",68,0.88235294117647056,4.4117647058823532E-2,54,6,5,3,0,0,0,66,0,0,0,0,2,0]
["QPM","RNQ","KETTERING GENERAL HOSPITAL NHS FOUNDATION TRUST",76,0.98684210526315785,0,67,8,1,0,0,0,0,0,0,0,61,0,15,0]
["QPM","RNS","NORTHAMPTON GENERAL HOSPITAL NHS TRUST",94,0.95744680851063835,2.1276595744680851E-2,86,4,2,0,2,0,6,0,0,87,0,0,1,0]
["QR1","RTE","GLOUCESTERSHIRE HOSPITALS NHS FOUNDATION TRUST",63,0.66666666666666663,0.19047619047619047,19,23,9,5,7,0,61,2,0,0,0,0,0,0]
["QRL","R1F","ISLE OF WIGHT NHS TRUST",11,1,0,11,0,0,0,0,0,0,0,0,0,11,0,0,0]
["QRL","RHU","PORTSMOUTH HOSPITALS UNIVERSITY NATIONAL HEALTH SERVICE TRUST",83,0.93975903614457834,3.614457831325301E-2,59,19,1,1,2,1,0,0,0,0,0,0,83,0]
["QRL","RHM","UNIVERSITY HOSPITAL SOUTHAMPTON NHS FOUNDATION TRUST",110,0.90909090909090906,2.7272727272727271E-2,63,37,7,2,1,0,0,0,0,0,0,0,110,0]
["QRL","RN5","HAMPSHIRE HOSPITALS NHS FOUNDATION TRUST",175,0.97714285714285709,1.1428571428571429E-2,138,33,2,2,0,0,0,0,0,169,0,0,6,0]
["QRV","RYJ","IMPERIAL COLLEGE HEALTHCARE NHS TRUST",52,0.86538461538461542,5.7692307692307696E-2,31,14,4,0,3,0,0,27,0,4,0,0,21,0]
["QRV","RQM","CHELSEA AND WESTMINSTER HOSPITAL NHS FOUNDATION TRUST",53,0.90566037735849059,5.6603773584905662E-2,38,10,2,0,3,0,0,0,0,0,0,0,53,0]
["QRV","RAS","THE HILLINGDON HOSPITALS NHS FOUNDATION TRUST",131,0.94656488549618323,4.5801526717557252E-2,100,24,0,3,3,1,0,0,0,106,0,0,25,0]
["QRV","R1K","LONDON NORTH WEST UNIVERSITY HEALTHCARE NHS TRUST",132,0.97727272727272729,2.2727272727272728E-2,102,27,0,3,0,0,0,0,0,132,0,0,0,0]
["QSL","RH5","SOMERSET NHS FOUNDATION TRUST",4,"*","*","*","*","*","*","*","*","*","*","*","*","*","*","*","*"]
["QT1","RK5","SHERWOOD FOREST HOSPITALS NHS FOUNDATION TRUST",5,0.8,0.2,3,1,0,1,0,0,0,0,0,0,0,0,5,0]
["QT1","RX1","NOTTINGHAM UNIVERSITY HOSPITALS NHS TRUST",38,0.86842105263157898,0.10526315789473684,27,6,1,3,1,0,0,19,0,16,0,0,3,0]
["QT6","REF","ROYAL CORNWALL HOSPITALS NHS TRUST",3,"*","*","*","*","*","*","*","*","*","*","*","*","*","*","*","*"]
["QU9","RTH","OXFORD UNIVERSITY HOSPITALS NHS FOUNDATION TRUST",13,0.23076923076923078,0.61538461538461542,2,1,2,3,5,0,0,0,0,0,0,0,13,0]
["QU9","RXQ","BUCKINGHAMSHIRE HEALTHCARE NHS TRUST",30,0.96666666666666667,0,19,10,1,0,0,0,24,0,0,0,0,0,6,0]
["QU9","RHW","ROYAL BERKSHIRE NHS FOUNDATION TRUST",75,0.97333333333333338,0,53,20,2,0,0,0,0,0,0,0,75,0,0,0]
["QUA","RL4","THE ROYAL WOLVERHAMPTON NHS TRUST",31,0.93548387096774188,6.4516129032258063E-2,24,5,0,1,1,0,31,0,0,0,0,0,0,0]
["QUA","RNA","THE DUDLEY GROUP NHS FOUNDATION TRUST",45,0.8666666666666667,0,32,7,2,0,0,4,0,0,0,44,0,0,1,0]
["QUA","RBK","WALSALL HEALTHCARE NHS TRUST",66,0.90909090909090906,4.5454545454545456E-2,49,11,1,1,2,2,12,54,0,0,0,0,0,0]
["QUE","RGT","CAMBRIDGE UNIVERSITY HOSPITALS NHS FOUNDATION TRUST",28,0.8928571428571429,7.1428571428571425E-2,19,6,1,2,0,0,0,22,0,3,0,0,3,0]
["QUE","RGN","NORTH WEST ANGLIA NHS FOUNDATION TRUST",157,0.94904458598726116,0,131,18,3,0,0,5,0,0,0,155,0,0,2,0]
["QUY","RA7","UNIVERSITY HOSPITALS BRISTOL AND WESTON NHS FOUNDATION TRUST",59,0.94915254237288138,3.3898305084745763E-2,46,10,1,1,1,0,1,0,0,58,0,0,0,0]
["QUY","RVJ","NORTH BRISTOL NHS TRUST",61,0.93442622950819676,6.5573770491803282E-2,46,11,0,1,3,0,61,0,0,0,0,0,0,0]
["QVV","RBD","DORSET COUNTY HOSPITAL NHS FOUNDATION TRUST",5,1,0,3,2,0,0,0,0,0,0,0,5,0,0,0,0]
["QVV","R0D","UNIVERSITY HOSPITALS DORSET NHS FOUNDATION TRUST",16,0.5,0.25,6,2,3,2,2,1,0,14,0,0,0,0,2,0]
["QWE","RVR","EPSOM AND ST HELIER UNIVERSITY HOSPITALS NHS TRUST",0,"NA","NA",0,0,0,0,0,0,0,0,0,0,0,0,0,0]
["QWE","RJ7","ST GEORGE'S UNIVERSITY HOSPITALS NHS FOUNDATION TRUST",30,0.83333333333333337,0.1,22,3,2,1,2,0,0,29,0,0,0,0,1,0]
["QWE","RAX","KINGSTON AND RICHMOND NHS FOUNDATION TRUST",67,0.97014925373134331,1.4925373134328358E-2,53,12,1,1,0,0,0,63,0,0,0,0,4,0]
["QWO","RAE","BRADFORD TEACHING HOSPITALS NHS FOUNDATION TRUST",6,0.33333333333333331,0.33333333333333331,2,0,2,2,0,0,0,0,0,0,0,0,6,0]
["QWO","RXF","MID YORKSHIRE TEACHING NHS TRUST",42,0.95238095238095233,2.3809523809523808E-2,26,14,0,0,1,1,2,0,0,39,0,0,1,0]
["QWO","RWY","CALDERDALE AND HUDDERSFIELD NHS FOUNDATION TRUST",77,1,0,62,15,0,0,0,0,0,0,0,0,0,0,77,0]
["QWO","RR8","LEEDS TEACHING HOSPITALS NHS TRUST",116,0.89655172413793105,7.7586206896551727E-2,86,18,2,6,3,1,109,4,0,3,0,0,0,0]
["QWU","RJC","SOUTH WARWICKSHIRE UNIVERSITY NHS FOUNDATION TRUST",0,"NA","NA",0,0,0,0,0,0,0,0,0,0,0,0,0,0]
["QWU","RLT","GEORGE ELIOT HOSPITAL NHS TRUST",0,"NA","NA",0,0,0,0,0,0,0,0,0,0,0,0,0,0]
["QWU","RKB","UNIVERSITY HOSPITALS COVENTRY AND WARWICKSHIRE NHS TRUST",31,0.80645161290322576,0.19354838709677419,18,7,0,0,6,0,10,15,0,0,0,0,6,0]
["QXU","RTK","ASHFORD AND ST PETER'S HOSPITALS NHS FOUNDATION TRUST",0,"NA","NA",0,0,0,0,0,0,0,0,0,0,0,0,0,0]
["QXU","RA2","ROYAL SURREY COUNTY HOSPITAL NHS FOUNDATION TRUST",6,1,0,6,0,0,0,0,0,0,0,0,6,0,0,0,0]
["QXU","RTP","SURREY AND SUSSEX HEALTHCARE NHS TRUST",23,0.86956521739130432,0.13043478260869565,17,3,0,3,0,0,22,0,0,0,0,0,1,0]
["QYG","RJN","EAST CHESHIRE NHS TRUST",10,1,0,9,1,0,0,0,0,10,0,0,0,0,0,0,0]
["QYG","RBN","MERSEY AND WEST LANCASHIRE TEACHING HOSPITALS NHS TRUST",21,0.80952380952380953,0.14285714285714285,12,5,1,1,2,0,21,0,0,0,0,0,0,0]
["QYG","REP","LIVERPOOL WOMEN'S NHS FOUNDATION TRUST",41,0.90243902439024393,2.4390243902439025E-2,28,9,2,0,1,1,41,0,0,0,0,0,0,0]
["QYG","RBL","WIRRAL UNIVERSITY TEACHING HOSPITAL NHS FOUNDATION TRUST",47,0.97872340425531912,2.1276595744680851E-2,42,4,0,1,0,0,0,11,0,36,0,0,0,0]
["QYG","RBT","MID CHESHIRE HOSPITALS NHS FOUNDATION TRUST",48,0.95833333333333337,4.1666666666666664E-2,41,5,0,0,2,0,42,0,0,0,6,0,0,0]
["QYG","RJR","COUNTESS OF CHESTER HOSPITAL NHS FOUNDATION TRUST",64,0.890625,9.375E-2,51,6,0,5,1,1,11,0,0,53,0,0,0,0]

{"sheet":"Sites Q3","index":10,"n_rows":179,"n_cols":14,"rows_kept":179,"cut":false,"hidden":false,"merged":[[8,6,9,6],[8,7,9,7],[8,8,8,13],[8,0,9,0],[8,1,9,1],[8,2,9,2],[8,3,9,3],[8,4,9,4],[8,5,9,5]]}
[]
[]
[]
[]
[]
[null,"   Sort data by:           "]
[]
[]
["ICB Code","Trust Code","Trust Name","Site Code","Site Name","Total Responses","Percentage Positive","Percentage Negative","Breakdown of Responses"]
[null,null,null,null,null,null,null,null,"Very Good","Good","Neither Good nor Poor","Poor","Very Poor","Don't Know"]
[null,null,null,null,"England (including Independent Sector providers)",5415,0.92169898430286246,3.9889196675900275E-2,3907,1084,177,106,110,31]
[null,null,null,null,"England (excluding Independent Sector providers)",5415,0.92169898430286246,3.9889196675900275E-2,3907,1084,177,106,110,31]
[null,null,null,null,"Selection (excluding suppressed data)",{"$f":"SUBTOTAL(9,F14:F298)","v":5415},{"$f":"IFERROR((I13+J13)/SUM(I13:N13), \"-\")","v":0.92094230385306453},{"$f":"IFERROR((L13+M13)/SUM(I13:N13), \"-\")","v":3.9928129367139152E-2},{"$f":"SUBTOTAL(9,I14:I298)","v":3607},1006,165,98,102,31]
["QE1","RXL","BLACKPOOL TEACHING HOSPITALS NHS FOUNDATION TRUST","RXL01","Blackpool Victoria Hospital",125,0.81599999999999995,8.7999999999999995E-2,80,22,12,6,5,0]
["QE1","RXR","EAST LANCASHIRE HOSPITALS NHS TRUST","RXR20","Royal Blackburn Hospital",72,0.77777777777777779,0.125,43,13,6,3,6,1]
["QE1","RXN","LANCASHIRE TEACHING HOSPITALS NHS FOUNDATION TRUST","RXN01","Chorley and South Ribble Hospital",0,"NA","NA",0,0,0,0,0,0]
["QE1","RXN","LANCASHIRE TEACHING HOSPITALS NHS FOUNDATION TRUST","RXN02","Royal Preston Hospital",14,0.8571428571428571,0,6,6,2,0,0,0]
["QE1","RTX","UNIVERSITY HOSPITALS OF MORECAMBE BAY NHS FOUNDATION TRUST","RTXBU","Furness General Hospital",7,1,0,6,1,0,0,0,0]
["QE1","RTX","UNIVERSITY HOSPITALS OF MORECAMBE BAY NHS FOUNDATION TRUST","RTX02","Royal Lancaster Infirmary",31,0.967741935483871,3.2258064516129031E-2,24,6,0,0,1,0]
["QE1","RTX","UNIVERSITY HOSPITALS OF MORECAMBE BAY NHS FOUNDATION TRUST","RTXBW","Westmorland General Hospital",0,"NA","NA",0,0,0,0,0,0]
["QF7","RFF","BARNSLEY HOSPITAL NHS FOUNDATION TRUST","RFFAA","Barnsley Hospital NHS Foundation Trust HQ",15,0.93333333333333335,0,12,2,1,0,0,0]
["QF7","RP5","DONCASTER AND BASSETLAW TEACHING HOSPITALS NHS FOUNDATION TRUST","RP5BA","Bassetlaw Hospital",1,"*","*","*","*","*","*","*","*"]
["QF7","RP5","DONCASTER AND BASSETLAW TEACHING HOSPITALS NHS FOUNDATION TRUST","RP5DR","Doncaster Royal Infirmary",2,"*","*","*","*","*","*","*","*"]
["QF7","RHQ","SHEFFIELD TEACHING HOSPITALS NHS FOUNDATION TRUST","RHQHH","Royal Hallamshire Hospital",54,0.87037037037037035,3.7037037037037035E-2,37,10,5,1,1,0]
["QF7","RFR","THE ROTHERHAM NHS FOUNDATION TRUST","RFRPA","Rotherham District General Hospital",1,"*","*","*","*","*","*","*","*"]
["QGH","RWP","WORCESTERSHIRE ACUTE HOSPITALS NHS TRUST","RWP50","Worcestershire Royal Hospital",44,0.93181818181818177,2.2727272727272728E-2,28,13,2,1,0,0]
["QGH","RLQ","WYE VALLEY NHS TRUST","RLQ01","Hereford County Hospital",12,0.83333333333333337,8.3333333333333329E-2,8,2,1,0,1,0]
["QH8","RAJ","MID AND SOUTH ESSEX NHS FOUNDATION TRUST","RAJ12","BASILDON HOSPITAL",19,0.73684210526315785,0.15789473684210525,9,5,2,2,1,0]
["QH8","RAJ","MID AND SOUTH ESSEX NHS FOUNDATION TRUST","RAJ32","MID ESSEX HOSPITAL",13,0.69230769230769229,0.23076923076923078,5,4,0,3,0,1]
["QH8","RAJ","MID AND SOUTH ESSEX NHS FOUNDATION TRUST","RAJ01","Southend Hospital",32,0.90625,3.125E-2,24,5,2,0,1,0]
["QHG","RC9","BEDFORDSHIRE HOSPITALS NHS FOUNDATION TRUST","RC979","BEDFORD HOSPITAL SOUTH WING",32,0.96875,3.125E-2,21,10,0,0,1,0]
["QHG","RC9","BEDFORDSHIRE HOSPITALS NHS FOUNDATION TRUST","RC971","Luton and Dunstable Hospital",115,0.95652173913043481,1.7391304347826087E-2,83,27,3,2,0,0]
["QHG","RD8","MILTON KEYNES UNIVERSITY HOSPITAL NHS FOUNDATION TRUST","RD816","Milton Keynes Hospital",34,0.82352941176470584,0.11764705882352941,22,6,2,2,2,0]
["QHL","RQ3","BIRMINGHAM WOMEN'S AND CHILDREN'S NHS FOUNDATION TRUST","RQ370","Birmingham Women's Hospital",143,0.91608391608391604,3.4965034965034968E-2,101,30,6,1,4,1]
["QHL","RXK","SANDWELL AND WEST BIRMINGHAM HOSPITALS NHS TRUST","RXKTC","Birmingham Treatment Centre",0,"NA","NA",0,0,0,0,0,0]
["QHL","RRK","UNIVERSITY HOSPITALS BIRMINGHAM NHS FOUNDATION TRUST","RRK98","Good Hope Hospital",9,1,0,8,1,0,0,0,0]
["QHL","RRK","UNIVERSITY HOSPITALS BIRMINGHAM NHS FOUNDATION TRUST","RRK97","Heartlands Hospital",23,0.95652173913043481,4.3478260869565216E-2,14,8,0,0,1,0]
["QHL","RRK","UNIVERSITY HOSPITALS BIRMINGHAM NHS FOUNDATION TRUST","RRK99","Solihull Hospital",0,"NA","NA",0,0,0,0,0,0]
["QHM","RXP","COUNTY DURHAM AND DARLINGTON NHS FOUNDATION TRUST","RXPDA","Darlington Memorial Hospital",98,0.98979591836734693,0,81,16,1,0,0,0]
["QHM","RXP","COUNTY DURHAM AND DARLINGTON NHS FOUNDATION TRUST","RXPCP","University Hospital Of North Durham",32,1,0,27,5,0,0,0,0]
["QHM","RR7","GATESHEAD HEALTH NHS FOUNDATION TRUST","RR7EN","Queen Elizabeth Hospital",13,1,0,13,0,0,0,0,0]
["QHM","RNN","NORTH CUMBRIA INTEGRATED CARE NHS FOUNDATION TRUST","RNN62","Cumberland Infirmary",8,1,0,6,2,0,0,0,0]
["QHM","RNN","NORTH CUMBRIA INTEGRATED CARE NHS FOUNDATION TRUST","RNNBX","West Cumberland Hospital",9,1,0,9,0,0,0,0,0]
["QHM","RVW","NORTH TEES AND HARTLEPOOL NHS FOUNDATION TRUST","RVWAE","University Hospital Of North Tees",1,"*","*","*","*","*","*","*","*"]
["QHM","RTF","NORTHUMBRIA HEALTHCARE NHS FOUNDATION TRUST","RTFDJ","Alnwick Infirmary",0,"NA","NA",0,0,0,0,0,0]
["QHM","RTF","NORTHUMBRIA HEALTHCARE NHS FOUNDATION TRUST","RTFDH","Berwick Infirmary",0,"NA","NA",0,0,0,0,0,0]
["QHM","RTF","NORTHUMBRIA HEALTHCARE NHS FOUNDATION TRUST","RTFDR","Hexham General Hospital",0,"NA","NA",0,0,0,0,0,0]
["QHM","RTF","NORTHUMBRIA HEALTHCARE NHS FOUNDATION TRUST","RTFXXX","Non-hospital site",0,"NA","NA",0,0,0,0,0,0]
["QHM","RTF","NORTHUMBRIA HEALTHCARE NHS FOUNDATION TRUST","RTF86","The Northumbria",0,"NA","NA",0,0,0,0,0,0]
["QHM","RTR","SOUTH TEES HOSPITALS NHS FOUNDATION TRUST","RTR45","Friarage Hospital Site",0,"NA","NA",0,0,0,0,0,0]
["QHM","RTR","SOUTH TEES HOSPITALS NHS FOUNDATION TRUST","RTRAT","The James Cook University Hospital",17,0.94117647058823528,5.8823529411764705E-2,12,4,0,1,0,0]
["QHM","R0B","SOUTH TYNESIDE AND SUNDERLAND NHS FOUNDATION TRUST","R0B01","Sunderland Royal Hospital",1,"*","*","*","*","*","*","*","*"]
["QHM","RTD","THE NEWCASTLE UPON TYNE HOSPITALS NHS FOUNDATION TRUST","RTD02","The Royal Victoria Infirmary",59,0.84745762711864403,0,29,21,9,0,0,0]
["QJ2","RFS","CHESTERFIELD ROYAL HOSPITAL NHS FOUNDATION TRUST","RFSDA","Chesterfield Royal Hospital",59,0.96610169491525422,1.6949152542372881E-2,52,5,1,1,0,0]
["QJ2","RTG","UNIVERSITY HOSPITALS OF DERBY AND BURTON NHS FOUNDATION TRUST","RTG02","Queens Hospital, Burton Upon Trent",14,0.8571428571428571,0.14285714285714285,8,4,0,1,1,0]
["QJ2","RTG","UNIVERSITY HOSPITALS OF DERBY AND BURTON NHS FOUNDATION TRUST","RTGFG","Royal Derby Hospital",18,0.88888888888888884,5.5555555555555552E-2,11,5,1,1,0,0]
["QJG","RDE","EAST SUFFOLK AND NORTH ESSEX NHS FOUNDATION TRUST","RDEE4","Colchester General Hospital",2,"*","*","*","*","*","*","*","*"]
["QJG","RDE","EAST SUFFOLK AND NORTH ESSEX NHS FOUNDATION TRUST","RDE03","Ipswich Hospital",2,"*","*","*","*","*","*","*","*"]
["QJG","RGR","WEST SUFFOLK NHS FOUNDATION TRUST","RGR50","West Suffolk Hospital",5,1,0,"*","*","*","*","*","*"]
["QJK","RH8","ROYAL DEVON UNIVERSITY HEALTHCARE NHS FOUNDATION TRUST","RH880","North Devon District Hospital",26,1,0,24,2,0,0,0,0]
["QJK","RH8","ROYAL DEVON UNIVERSITY HEALTHCARE NHS FOUNDATION TRUST","RH801","Royal Devon and Exeter Hospital (Wonford)",0,"NA","NA",0,0,0,0,0,0]
["QJK","RA9","TORBAY AND SOUTH DEVON NHS FOUNDATION TRUST","RA901","Torbay Hospital",1,"*","*","*","*","*","*","*","*"]
["QJK","RK9","UNIVERSITY HOSPITALS PLYMOUTH NHS TRUST","RK950","Derriford Hospital",8,1,0,"*","*","*","*","*","*"]
["QJM","RWD","UNITED LINCOLNSHIRE TEACHING HOSPITALS NHS TRUST","RWDLP","Grantham and District Hospital",0,"NA","NA",0,0,0,0,0,0]
["QJM","RWD","UNITED LINCOLNSHIRE TEACHING HOSPITALS NHS TRUST","RWDDA","Lincoln County Hospital",0,"NA","NA",0,0,0,0,0,0]
["QJM","RWD","UNITED LINCOLNSHIRE TEACHING HOSPITALS NHS TRUST","RWDLA","Pilgrim Hospital",0,"NA","NA",0,0,0,0,0,0]
["QK1","RWE","UNIVERSITY HOSPITALS OF LEICESTER NHS TRUST","RWEAK","Leicester General Hospital",22,0.81818181818181823,9.0909090909090912E-2,"*","*","*","*","*","*"]
["QK1","RWE","UNIVERSITY HOSPITALS OF LEICESTER NHS TRUST","RWEAA","Leicester Royal Infirmary",94,0.85106382978723405,2.1276595744680851E-2,46,34,12,1,1,0]
["QK1","RWE","UNIVERSITY HOSPITALS OF LEICESTER NHS TRUST","RWE10","St Mary's Hospital",2,"*","*","*","*","*","*","*","*"]
["QKK","RJ1","GUY'S AND ST THOMAS' NHS FOUNDATION TRUST","RJ122","St Thomas' Hospital",104,0.88461538461538458,3.8461538461538464E-2,57,35,8,4,0,0]
["QKK","RJ2","LEWISHAM AND GREENWICH NHS TRUST","RJ231","Queen Elizabeth Hospital",42,0.90476190476190477,2.3809523809523808E-2,25,13,2,1,0,1]
["QKK","RJ2","LEWISHAM AND GREENWICH NHS TRUST","RJ224","University Hospital Lewisham",21,0.8571428571428571,0,10,8,3,0,0,0]
["QKS","RN7","DARTFORD AND GRAVESHAM NHS TRUST","RN707","Darent Valley Hospital",73,1,0,57,16,0,0,0,0]
["QKS","RVV","EAST KENT HOSPITALS UNIVERSITY NHS FOUNDATION TRUST","RVV09","Queen Elizabeth The Queen Mother Hospital",14,0.9285714285714286,0,13,0,1,0,0,0]
["QKS","RVV","EAST KENT HOSPITALS UNIVERSITY NHS FOUNDATION TRUST","RVV01","William Harvey Hospital (Ashford)",14,0.9285714285714286,7.1428571428571425E-2,13,0,0,1,0,0]
["QKS","RWF","MAIDSTONE AND TUNBRIDGE WELLS NHS TRUST","RWF08","Crowborough Birthing Centre",1,"*","*","*","*","*","*","*","*"]
["QKS","RWF","MAIDSTONE AND TUNBRIDGE WELLS NHS TRUST","RWFTW","The Tunbridge Wells Hospital",90,0.9555555555555556,1.1111111111111112E-2,"*","*","*","*","*","*"]
["QKS","RPA","MEDWAY NHS FOUNDATION TRUST","RPA02","Medway Maritime Hospital",48,0.9375,4.1666666666666664E-2,37,8,1,1,1,0]
["QM7","RWH","EAST AND NORTH HERTFORDSHIRE NHS TRUST","RWH01","Lister Hospital",97,0.98969072164948457,0,"*","*","*","*","*","*"]
["QM7","RQW","THE PRINCESS ALEXANDRA HOSPITAL NHS TRUST","RQWG0","Princess Alexandra Hospital",1,"*","*","*","*","*","*","*","*"]
["QM7","RWG","WEST HERTFORDSHIRE TEACHING HOSPITALS NHS TRUST","RWG02","Watford General Hospital",0,"NA","NA",0,0,0,0,0,0]
["QMF","RF4","BARKING, HAVERING AND REDBRIDGE UNIVERSITY HOSPITALS NHS TRUST","RF4QH","Queen's Hospital",95,0.90526315789473688,7.3684210526315783E-2,"*","*","*","*","*","*"]
["QMF","R1H","BARTS HEALTH NHS TRUST","R1HNH","Newham General Hospital",48,0.9375,6.25E-2,39,6,0,0,3,0]
["QMF","R1H","BARTS HEALTH NHS TRUST","R1H12","The Royal London Hospital",36,0.77777777777777779,0.1388888888888889,23,5,3,3,2,0]
["QMF","R1H","BARTS HEALTH NHS TRUST","R1HKH","Whipps Cross University Hospital",15,1,0,10,5,0,0,0,0]
["QMF","RQX","HOMERTON HEALTHCARE NHS FOUNDATION TRUST","RQXM1","Homerton University Hospital",2,"*","*","*","*","*","*","*","*"]
["QMJ","RAL","ROYAL FREE LONDON NHS FOUNDATION TRUST","RAL26","Barnet Hospital",126,0.93650793650793651,1.5873015873015872E-2,97,21,6,0,2,0]
["QMJ","RAL","ROYAL FREE LONDON NHS FOUNDATION TRUST","E3M3C","NORTH MIDDLESEX HOSPITAL DSU - ELECTIVE SURGICAL HUB",83,0.87951807228915657,4.8192771084337352E-2,60,13,4,2,2,2]
["QMJ","RAL","ROYAL FREE LONDON NHS FOUNDATION TRUST","RAL01","Royal Free Hospital",46,1,0,7,39,0,0,0,0]
["QMJ","RRV","UNIVERSITY COLLEGE LONDON HOSPITALS NHS FOUNDATION TRUST","RRV11","University College Hospital Elizabeth Garrett Anderson Wing",0,"NA","NA",0,0,0,0,0,0]
["QMJ","RKE","WHITTINGTON HEALTH NHS TRUST","RKEXXX","Non-hospital site",0,"NA","NA",0,0,0,0,0,0]
["QMJ","RKE","WHITTINGTON HEALTH NHS TRUST","RKEQ4","The Whittington Hospital",52,0.94230769230769229,1.9230769230769232E-2,13,36,2,0,1,0]
["QMM","RGP","JAMES PAGET UNIVERSITY HOSPITALS NHS FOUNDATION TRUST","RGP75","James Paget University Hospital",7,0.8571428571428571,0.14285714285714285,"*","*","*","*","*","*"]
["QMM","RM1","NORFOLK AND NORWICH UNIVERSITY HOSPITALS NHS FOUNDATION TRUST","RM102","Norfolk and Norwich University Hospital",1,"*","*","*","*","*","*","*","*"]
["QMM","RCX","THE QUEEN ELIZABETH HOSPITAL, KING'S LYNN, NHS FOUNDATION TRUST","RCX70","The Queen Elizabeth Hospital",9,1,0,7,2,0,0,0,0]
["QNC","RJE","UNIVERSITY HOSPITALS OF NORTH MIDLANDS NHS TRUST","RJE01","Royal Stoke University Hospital",25,1,0,19,6,0,0,0,0]
["QNQ","RDU","FRIMLEY HEALTH NHS FOUNDATION TRUST","RDU01","Frimley Park Hospital",29,1,0,26,3,0,0,0,0]
["QNQ","RDU","FRIMLEY HEALTH NHS FOUNDATION TRUST","RDU50","Wexham Park Hospital",27,0.96296296296296291,0,21,5,1,0,0,0]
["QNX","RXC","EAST SUSSEX HEALTHCARE NHS TRUST","RXC01","Conquest Hospital",0,"NA","NA",0,0,0,0,0,0]
["QNX","RXC","EAST SUSSEX HEALTHCARE NHS TRUST","RXC02","Eastbourne District General Hospital",0,"NA","NA",0,0,0,0,0,0]
["QNX","RYR","UNIVERSITY HOSPITALS SUSSEX NHS FOUNDATION TRUST","N6J7V","Princess Royal Hospital",23,1,0,21,2,0,0,0,0]
["QNX","RYR","UNIVERSITY HOSPITALS SUSSEX NHS FOUNDATION TRUST","E0A3H","Royal Sussex County Hospital",29,0.86206896551724133,0.13793103448275862,17,8,0,0,4,0]
["QNX","RYR","UNIVERSITY HOSPITALS SUSSEX NHS FOUNDATION TRUST","RYR16","St Richard's Hospital",19,0.89473684210526316,0,14,3,2,0,0,0]
["QNX","RYR","UNIVERSITY HOSPITALS SUSSEX NHS FOUNDATION TRUST","RYR18","Worthing Hospital",20,0.95,0,15,4,0,0,0,1]
["QOC","RXW","THE SHREWSBURY AND TELFORD HOSPITAL NHS TRUST","RXWMB","Bridgnorth Hospital (Maternity)",5,1,0,"*","*","*","*","*","*"]
["QOP","RMC","BOLTON NHS FOUNDATION TRUST","RMC01","Royal Bolton Hospital",34,0.91176470588235292,8.8235294117647065E-2,26,5,0,0,3,0]
["QOP","R0A","MANCHESTER UNIVERSITY NHS FOUNDATION TRUST","R0A05","St Mary's Hospital",245,0.95918367346938771,1.6326530612244899E-2,184,51,3,2,2,3]
["QOP","RWJ","STOCKPORT NHS FOUNDATION TRUST","RWJ09","Stepping Hill Hospital",41,0.87804878048780488,7.3170731707317069E-2,31,5,0,3,0,2]
["QOP","RMP","TAMESIDE AND GLOSSOP INTEGRATED CARE NHS FOUNDATION TRUST","RMP01","Tameside General Hospital",33,0.90909090909090906,6.0606060606060608E-2,27,3,1,1,1,0]
["QOP","RRF","WRIGHTINGTON, WIGAN AND LEIGH NHS FOUNDATION TRUST","RRF02","Royal Albert Edward Infirmary",18,0.88888888888888884,0.1111111111111111,13,3,0,0,2,0]
["QOQ","RCD","HARROGATE AND DISTRICT NHS FOUNDATION TRUST","RCD01","Harrogate District Hospital",1,"*","*","*","*","*","*","*","*"]
["QOQ","RWA","HULL UNIVERSITY TEACHING HOSPITALS NHS TRUST","RWA01","Hull Royal Infirmary",77,0.96103896103896103,1.2987012987012988E-2,68,6,1,1,0,1]
["QOQ","RJL","NORTHERN LINCOLNSHIRE AND GOOLE NHS FOUNDATION TRUST","RJL32","Scunthorpe General Hospital",13,1,0,"*","*","*","*","*","*"]
["QOQ","RCB","YORK AND SCARBOROUGH TEACHING HOSPITALS NHS FOUNDATION TRUST","RCB55","York Hospital",85,1,0,80,5,0,0,0,0]
["QOX","RN3","GREAT WESTERN HOSPITALS NHS FOUNDATION TRUST","RN325","The Great Western Hospital",68,0.88235294117647056,4.4117647058823532E-2,54,6,5,3,0,0]
["QOX","RD1","ROYAL UNITED HOSPITALS BATH NHS FOUNDATION TRUST","RD130","Princess Anne Wing RUH ",57,0.96491228070175439,3.5087719298245612E-2,48,7,0,2,0,0]
["QOX","RNZ","SALISBURY NHS FOUNDATION TRUST","RNZ02","Salisbury District Hospital",7,1,0,4,3,0,0,0,0]
["QPM","RNQ","KETTERING GENERAL HOSPITAL NHS FOUNDATION TRUST","RNQ51","Kettering General Hospital",76,0.98684210526315785,0,67,8,1,0,0,0]
["QPM","RNS","NORTHAMPTON GENERAL HOSPITAL NHS TRUST","RNS01","Northampton General Hospital (Acute)",94,0.95744680851063835,2.1276595744680851E-2,86,4,2,0,2,0]
["QR1","RTE","GLOUCESTERSHIRE HOSPITALS NHS FOUNDATION TRUST","RTE03","Gloucestershire Royal Hospital",63,0.66666666666666663,0.19047619047619047,19,23,9,5,7,0]
["QRL","RN5","HAMPSHIRE HOSPITALS NHS FOUNDATION TRUST","RN506","Basingstoke and North Hampshire Hospital",64,0.984375,0,51,12,1,0,0,0]
["QRL","RN5","HAMPSHIRE HOSPITALS NHS FOUNDATION TRUST","RN541","Royal Hampshire County Hospital",111,0.97297297297297303,1.8018018018018018E-2,87,21,1,2,0,0]
["QRL","R1F","ISLE OF WIGHT NHS TRUST","R1F01","St Mary's Hospital",11,1,0,11,0,0,0,0,0]
["QRL","RHU","PORTSMOUTH HOSPITALS UNIVERSITY NATIONAL HEALTH SERVICE TRUST","RHU03","Queen Alexandra Hospital",83,0.93975903614457834,3.614457831325301E-2,59,19,1,1,2,1]
["QRL","RHM","UNIVERSITY HOSPITAL SOUTHAMPTON NHS FOUNDATION TRUST","RHM12","Princess Anne Hospital",110,0.90909090909090906,2.7272727272727271E-2,63,37,7,2,1,0]
["QRV","RQM","CHELSEA AND WESTMINSTER HOSPITAL NHS FOUNDATION TRUST","RQM01","Chelsea and Westminster Hospital",25,0.88,0.12,19,3,0,0,3,0]
["QRV","RQM","CHELSEA AND WESTMINSTER HOSPITAL NHS FOUNDATION TRUST","RQM91","West Middlesex University Hospital",28,0.9285714285714286,0,19,7,2,0,0,0]
["QRV","RYJ","IMPERIAL COLLEGE HEALTHCARE NHS TRUST","RYJ04","Queen Charlotte's Hospital",47,0.87234042553191493,6.3829787234042548E-2,28,13,3,0,3,0]
["QRV","RYJ","IMPERIAL COLLEGE HEALTHCARE NHS TRUST","RYJ01","St Mary's Hospital (HQ)",5,0.8,0,3,1,1,0,0,0]
["QRV","R1K","LONDON NORTH WEST UNIVERSITY HEALTHCARE NHS TRUST","R1K01","Northwick Park Hospital",132,0.97727272727272729,2.2727272727272728E-2,102,27,0,3,0,0]
["QRV","RAS","THE HILLINGDON HOSPITALS NHS FOUNDATION TRUST","RAS01","Hillingdon Hospital",131,0.94656488549618323,4.5801526717557252E-2,100,24,0,3,3,1]
["QSL","RH5","SOMERSET NHS FOUNDATION TRUST","RH5K6","Bridgwater Hospital",0,"NA","NA",0,0,0,0,0,0]
["QSL","RH5","SOMERSET NHS FOUNDATION TRUST","RH5A8","MUSGROVE PARK HOSPITAL",0,"NA","NA",0,0,0,0,0,0]
["QSL","RH5","SOMERSET NHS FOUNDATION TRUST","RH5XXXX","Non-hospital site home/in-transit births",0,"NA","NA",0,0,0,0,0,0]
["QSL","RH5","SOMERSET NHS FOUNDATION TRUST","RH5O4","Yeovil District Hospital",4,"*","*","*","*","*","*","*","*"]
["QT1","RX1","NOTTINGHAM UNIVERSITY HOSPITALS NHS TRUST","RX1CC","Nottingham University Hospitals NHS Trust - City Campus",1,"*","*","*","*","*","*","*","*"]
["QT1","RX1","NOTTINGHAM UNIVERSITY HOSPITALS NHS TRUST","RX1RA","Nottingham University Hospitals NHS Trust - Queen's Medical Centre Campus",37,0.86486486486486491,0.10810810810810811,"*","*","*","*","*","*"]
["QT1","RK5","SHERWOOD FOREST HOSPITALS NHS FOUNDATION TRUST","RK5BC","King's Mill Hospital",5,0.8,0.2,3,1,0,1,0,0]
["QT6","REF","ROYAL CORNWALL HOSPITALS NHS TRUST","REF12","Royal Cornwall Hospital (Treliske)",3,"*","*","*","*","*","*","*","*"]
["QU9","RXQ","BUCKINGHAMSHIRE HEALTHCARE NHS TRUST","RXQ02","Stoke Mandeville Hospital",30,0.96666666666666667,0,19,10,1,0,0,0]
["QU9","RTH","OXFORD UNIVERSITY HOSPITALS NHS FOUNDATION TRUST","RTH19","Chipping Norton Community Hospital",0,"NA","NA",0,0,0,0,0,0]
["QU9","RTH","OXFORD UNIVERSITY HOSPITALS NHS FOUNDATION TRUST","RTH05","Horton General Hospital",0,"NA","NA",0,0,0,0,0,0]
["QU9","RTH","OXFORD UNIVERSITY HOSPITALS NHS FOUNDATION TRUST","RTH08","John Radcliffe Hospital",13,0.23076923076923078,0.61538461538461542,2,1,2,3,5,0]
["QU9","RTH","OXFORD UNIVERSITY HOSPITALS NHS FOUNDATION TRUST","RTH16","Wallingford Community Hospital",0,"NA","NA",0,0,0,0,0,0]
["QU9","RTH","OXFORD UNIVERSITY HOSPITALS NHS FOUNDATION TRUST","RTH21","Wantage Community Hospital",0,"NA","NA",0,0,0,0,0,0]
["QU9","RHW","ROYAL BERKSHIRE NHS FOUNDATION TRUST","RHW01","Royal Berkshire Hospital",75,0.97333333333333338,0,53,20,2,0,0,0]
["QUA","RNA","THE DUDLEY GROUP NHS FOUNDATION TRUST","RNA01","Russells Hall Hospital",45,0.8666666666666667,0,32,7,2,0,0,4]
["QUA","RL4","THE ROYAL WOLVERHAMPTON NHS TRUST","RL403","New Cross Hospital",31,0.93548387096774188,6.4516129032258063E-2,24,5,0,1,1,0]
["QUA","RBK","WALSALL HEALTHCARE NHS TRUST","RBK02","Manor Hospital",66,0.90909090909090906,4.5454545454545456E-2,49,11,1,1,2,2]
["QUE","RGT","CAMBRIDGE UNIVERSITY HOSPITALS NHS FOUNDATION TRUST","RGT32","Rosie Hospital",28,0.8928571428571429,7.1428571428571425E-2,19,6,1,2,0,0]
["QUE","RGN","NORTH WEST ANGLIA NHS FOUNDATION TRUST","RGN90","Hinchingbrooke Hospital",59,0.94915254237288138,0,47,9,3,0,0,0]
["QUE","RGN","NORTH WEST ANGLIA NHS FOUNDATION TRUST","RGN80","Peterborough City Hospital",98,0.94897959183673475,0,84,9,0,0,0,5]
["QUY","RVJ","NORTH BRISTOL NHS TRUST","RVJ01","Southmead Hospital",61,0.93442622950819676,6.5573770491803282E-2,46,11,0,1,3,0]
["QUY","RA7","UNIVERSITY HOSPITALS BRISTOL AND WESTON NHS FOUNDATION TRUST","RA707","ST MICHAEL'S HOSPITAL",59,0.94915254237288138,3.3898305084745763E-2,46,10,1,1,1,0]
["QVV","RBD","DORSET COUNTY HOSPITAL NHS FOUNDATION TRUST","RBD01","Dorset County Hospital",5,1,0,3,2,0,0,0,0]
["QVV","R0D","UNIVERSITY HOSPITALS DORSET NHS FOUNDATION TRUST","R0D01","Poole Hospital",16,0.5,0.25,6,2,3,2,2,1]
["QVV","R0D","UNIVERSITY HOSPITALS DORSET NHS FOUNDATION TRUST","R0D02","Royal Bournemouth Hospital",0,"NA","NA",0,0,0,0,0,0]
["QWE","RVR","EPSOM AND ST HELIER UNIVERSITY HOSPITALS NHS TRUST","RVR50","Epsom Hospital",0,"NA","NA",0,0,0,0,0,0]
["QWE","RVR","EPSOM AND ST HELIER UNIVERSITY HOSPITALS NHS TRUST","RVR05","St Helier Hospital",0,"NA","NA",0,0,0,0,0,0]
["QWE","RAX","KINGSTON AND RICHMOND NHS FOUNDATION TRUST","RAX01","Kingston Hospital",67,0.97014925373134331,1.4925373134328358E-2,53,12,1,1,0,0]
["QWE","RJ7","ST GEORGE'S UNIVERSITY HOSPITALS NHS FOUNDATION TRUST","RJ701","St George's Hospital (Tooting)",30,0.83333333333333337,0.1,22,3,2,1,2,0]
["QWO","RAE","BRADFORD TEACHING HOSPITALS NHS FOUNDATION TRUST","RAE01","Bradford Royal Infirmary",6,0.33333333333333331,0.33333333333333331,2,0,2,2,0,0]
["QWO","RWY","CALDERDALE AND HUDDERSFIELD NHS FOUNDATION TRUST","RWY02","Calderdale Royal Hospital",77,1,0,62,15,0,0,0,0]
["QWO","RR8","LEEDS TEACHING HOSPITALS NHS TRUST","RR801","Leeds General Infirmary",53,0.8867924528301887,9.4339622641509441E-2,41,6,1,4,1,0]
["QWO","RR8","LEEDS TEACHING HOSPITALS NHS TRUST","RR813","St James's University Hospital",63,0.90476190476190477,6.3492063492063489E-2,45,12,1,2,2,1]
["QWO","RXF","MID YORKSHIRE TEACHING NHS TRUST","RXF05","Pinderfields General Hospital",42,0.95238095238095233,2.3809523809523808E-2,26,14,0,0,1,1]
["QWU","RLT","GEORGE ELIOT HOSPITAL NHS TRUST","RLT01","George Eliot Hospital - Acute Services",0,"NA","NA",0,0,0,0,0,0]
["QWU","RJC","SOUTH WARWICKSHIRE UNIVERSITY NHS FOUNDATION TRUST","RJC02","Warwick Hospital",0,"NA","NA",0,0,0,0,0,0]
["QWU","RKB","UNIVERSITY HOSPITALS COVENTRY AND WARWICKSHIRE NHS TRUST","RKB01","University Hospital (Coventry)",31,0.80645161290322576,0.19354838709677419,18,7,0,0,6,0]
["QXU","RTK","ASHFORD AND ST PETER'S HOSPITALS NHS FOUNDATION TRUST","RTK02","Ashford Hospital",0,"NA","NA",0,0,0,0,0,0]
["QXU","RA2","ROYAL SURREY COUNTY HOSPITAL NHS FOUNDATION TRUST","RA201","Royal Surrey County Hospital",6,1,0,6,0,0,0,0,0]
["QXU","RTP","SURREY AND SUSSEX HEALTHCARE NHS TRUST","RTP04","East Surrey Hospital",23,0.86956521739130432,0.13043478260869565,17,3,0,3,0,0]
["QYG","RJR","COUNTESS OF CHESTER HOSPITAL NHS FOUNDATION TRUST","RJR05","Countess Of Chester Hospital",64,0.890625,9.375E-2,51,6,0,5,1,1]
["QYG","RJN","EAST CHESHIRE NHS TRUST","RJN71","Macclesfield District General Hospital",10,1,0,9,1,0,0,0,0]
["QYG","REP","LIVERPOOL WOMEN'S NHS FOUNDATION TRUST","REP01","Liverpool Womens Hospital",41,0.90243902439024393,2.4390243902439025E-2,28,9,2,0,1,1]
["QYG","RBN","MERSEY AND WEST LANCASHIRE TEACHING HOSPITALS NHS TRUST","RBN52","Ormskirk and District General Hospital",11,0.72727272727272729,0.18181818181818182,6,2,1,0,2,0]
["QYG","RBN","MERSEY AND WEST LANCASHIRE TEACHING HOSPITALS NHS TRUST","RBN01","Whiston Hospital",10,0.9,0.1,6,3,0,1,0,0]
["QYG","RBT","MID CHESHIRE HOSPITALS NHS FOUNDATION TRUST","RBT20","Leighton Hospital",48,0.95833333333333337,4.1666666666666664E-2,41,5,0,0,2,0]
["QYG","RBL","WIRRAL UNIVERSITY TEACHING HOSPITAL NHS FOUNDATION TRUST","RBL14","Arrowe Park Hospital",47,0.97872340425531912,2.1276595744680851E-2,42,4,0,1,0,0]

{"sheet":"ICB Q4","index":11,"n_rows":55,"n_cols":11,"rows_kept":55,"cut":false,"hidden":false,"merged":[[8,0,9,0],[8,1,9,1],[8,2,9,2],[8,3,9,3],[8,4,9,4],[8,5,8,10]]}
[]
[]
[]
[]
[]
[null,"   Sort data by:           "]
[]
[]
["ICB Code","ICB Name","Total Responses","Percentage Positive","Percentage Negative","Breakdown of Responses"]
[null,null,null,null,null,"Very Good","Good","Neither Good nor Poor","Poor","Very Poor","Don't Know"]
[null,"England (including Independent Sector providers)",1504,0.93351063829787229,3.3909574468085103E-2,1200,204,42,23,28,7]
[null,"England (excluding Independent Sector providers)",1504,0.93351063829787229,3.3909574468085103E-2,1200,204,42,23,28,7]
[null,"Selection (excluding suppressed data)",{"$f":"SUBTOTAL(9,C14:C55)","v":1504},{"$f":"IFERROR((F13+G13)/SUM(F13:K13), \"-\")","v":0.93377926421404678},{"$f":"IFERROR((I13+J13)/SUM(F13:K13), \"-\")","v":3.4113712374581939E-2},{"$f":"SUBTOTAL(9,F14:F55)","v":1194},202,41,23,28,7]
["QE1","LANCASHIRE AND SOUTH CUMBRIA ICB",82,0.82926829268292679,7.3170731707317069E-2,50,18,6,3,3,2]
["QF7","SOUTH YORKSHIRE ICB",26,0.84615384615384615,0.11538461538461539,17,5,1,2,1,0]
["QGH","HEREFORDSHIRE AND WORCESTERSHIRE ICB",5,1,0,"*","*","*","*","*","*"]
["QH8","MID AND SOUTH ESSEX ICB",0,"NA","NA",0,0,0,0,0,0]
["QHG","BEDFORDSHIRE, LUTON AND MILTON KEYNES ICB",53,1,0,45,8,0,0,0,0]
["QHL","BIRMINGHAM AND SOLIHULL ICB",27,0.96296296296296291,0,21,5,1,0,0,0]
["QHM","NORTH EAST AND NORTH CUMBRIA ICB",101,0.86138613861386137,8.9108910891089105E-2,62,25,5,6,3,0]
["QJ2","DERBY AND DERBYSHIRE ICB",0,"NA","NA",0,0,0,0,0,0]
["QJG","SUFFOLK AND NORTH EAST ESSEX ICB",35,0.82857142857142863,5.7142857142857141E-2,23,6,4,2,0,0]
["QJK","DEVON ICB",6,0.66666666666666663,0.33333333333333331,3,1,0,2,0,0]
["QJM","LINCOLNSHIRE ICB",0,"NA","NA",0,0,0,0,0,0]
["QK1","LEICESTER, LEICESTERSHIRE AND RUTLAND ICB",82,0.98780487804878048,0,74,7,1,0,0,0]
["QKK","SOUTH EAST LONDON ICB",6,1,0,5,1,0,0,0,0]
["QKS","KENT AND MEDWAY ICB",31,0.967741935483871,3.2258064516129031E-2,29,1,0,0,1,0]
["QM7","HERTFORDSHIRE AND WEST ESSEX ICB",47,0.95744680851063835,4.2553191489361701E-2,42,3,0,1,1,0]
["QMF","NORTH EAST LONDON ICB",27,0.96296296296296291,0,18,8,1,0,0,0]
["QMJ","NORTH CENTRAL LONDON ICB",25,0.96,0.04,24,0,0,1,0,0]
["QMM","NORFOLK AND WAVENEY ICB",13,1,0,12,1,0,0,0,0]
["QNC","STAFFORDSHIRE AND STOKE-ON-TRENT ICB",0,"NA","NA",0,0,0,0,0,0]
["QNQ","FRIMLEY ICB",20,1,0,19,1,0,0,0,0]
["QNX","SUSSEX ICB",19,0.89473684210526316,5.2631578947368418E-2,15,2,1,0,1,0]
["QOC","SHROPSHIRE, TELFORD AND WREKIN ICB",24,1,0,19,5,0,0,0,0]
["QOP","GREATER MANCHESTER ICB",102,0.96078431372549022,3.9215686274509803E-2,97,1,0,1,3,0]
["QOQ","HUMBER AND NORTH YORKSHIRE ICB",4,"*","*","*","*","*","*","*","*"]
["QOX","BATH AND NORTH EAST SOMERSET, SWINDON AND WILTSHIRE ICB",52,0.88461538461538458,5.7692307692307696E-2,42,4,3,0,3,0]
["QPM","NORTHAMPTONSHIRE ICB",98,0.96938775510204078,0,81,14,3,0,0,0]
["QR1","GLOUCESTERSHIRE ICB",0,"NA","NA",0,0,0,0,0,0]
["QRL","HAMPSHIRE AND ISLE OF WIGHT ICB",122,0.9098360655737705,1.6393442622950821E-2,78,33,5,0,2,4]
["QRV","NORTH WEST LONDON ICB",63,0.93650793650793651,1.5873015873015872E-2,53,6,3,1,0,0]
["QSL","SOMERSET ICB",0,"NA","NA",0,0,0,0,0,0]
["QT1","NOTTINGHAM AND NOTTINGHAMSHIRE ICB",14,0.9285714285714286,7.1428571428571425E-2,11,2,0,1,0,0]
["QT6","CORNWALL AND THE ISLES OF SCILLY ICB",0,"NA","NA",0,0,0,0,0,0]
["QU9","BUCKINGHAMSHIRE, OXFORDSHIRE AND BERKSHIRE WEST ICB",14,0.9285714285714286,0,12,1,1,0,0,0]
["QUA","BLACK COUNTRY ICB",65,0.92307692307692313,6.1538461538461542E-2,52,8,1,0,4,0]
["QUE","CAMBRIDGESHIRE AND PETERBOROUGH ICB",30,1,0,27,3,0,0,0,0]
["QUY","BRISTOL, NORTH SOMERSET AND SOUTH GLOUCESTERSHIRE ICB",75,1,0,68,7,0,0,0,0]
["QVV","DORSET ICB",6,0.83333333333333337,0,4,1,1,0,0,0]
["QWE","SOUTH WEST LONDON ICB",20,1,0,18,2,0,0,0,0]
["QWO","WEST YORKSHIRE ICB",72,0.94444444444444442,4.1666666666666664E-2,62,6,1,1,2,0]
["QWU","COVENTRY AND WARWICKSHIRE ICB",34,0.8529411764705882,5.8823529411764705E-2,23,6,3,1,1,0]
["QXU","SURREY HEARTLANDS ICB",38,0.97368421052631582,0,35,2,0,0,0,1]
["QYG","CHESHIRE AND MERSEYSIDE ICB",66,0.93939393939393945,6.0606060606060608E-2,53,9,0,1,3,0]

{"sheet":"Trusts Q4","index":12,"n_rows":132,"n_cols":20,"rows_kept":132,"cut":false,"hidden":false,"merged":[[8,6,8,11],[8,12,8,19],[8,0,9,0],[8,1,9,1],[8,2,9,2],[8,3,9,3],[8,4,9,4],[8,5,9,5]]}
[]
[]
[]
[]
[]
[null,"   Sort data by:           "]
[]
[]
["ICB Code","Trust Code","Trust Name","Total Responses","Percentage Positive","Percentage Negative","Breakdown of Responses",null,null,null,null,null,"Mode of Collection"]
[null,null,null,null,null,null,"Very Good","Good","Neither Good nor Poor","Poor","Very Poor","Don't Know","Mode SMS","Mode Electronic Discharge","Mode Electronic Home","Mode Paper Discharge","Mode Paper Home","Mode Telephone","Mode Online","Mode Other"]
[null,null,"England (including Independent Sector providers)",1504,0.93351063829787229,3.3909574468085103E-2,1200,204,42,23,28,7,593,60,26,294,150,0,381,0]
[null,null,"England (excluding Independent Sector providers)",1504,0.93351063829787229,3.3909574468085103E-2,1200,204,42,23,28,7,593,60,26,294,150,0,381,0]
[null,null,"Selection (excluding suppressed data)",{"$f":"SUBTOTAL(9,D14:D299)","v":1504},{"$f":"IFERROR((G13+H13)/SUM(G13:L13), \"-\")","v":0.93410572049239682},{"$f":"IFERROR((J13+K13)/SUM(G13:L13), \"-\")","v":3.403330919623461E-2},{"$f":"SUBTOTAL(9,G14:G299)","v":1100},190,38,22,25,6,548,56,26,284,148,0,319,{"$f":"SUBTOTAL(9,T14:T299)","v":0}]
["QE1","RTX","UNIVERSITY HOSPITALS OF MORECAMBE BAY NHS FOUNDATION TRUST",1,"*","*","*","*","*","*","*","*","*","*","*","*","*","*","*","*"]
["QE1","RXL","BLACKPOOL TEACHING HOSPITALS NHS FOUNDATION TRUST",17,0.76470588235294112,0.11764705882352941,"*","*","*","*","*","*","*","*","*","*","*","*","*","*"]
["QE1","RXN","LANCASHIRE TEACHING HOSPITALS NHS FOUNDATION TRUST",17,0.88235294117647056,0.11764705882352941,9,6,0,0,2,0,17,0,0,0,0,0,0,0]
["QE1","RXR","EAST LANCASHIRE HOSPITALS NHS TRUST",47,0.82978723404255317,4.2553191489361701E-2,31,8,5,2,0,1,46,0,0,1,0,0,0,0]
["QF7","RP5","DONCASTER AND BASSETLAW TEACHING HOSPITALS NHS FOUNDATION TRUST",0,"NA","NA",0,0,0,0,0,0,0,0,0,0,0,0,0,0]
["QF7","RFR","THE ROTHERHAM NHS FOUNDATION TRUST",1,"*","*","*","*","*","*","*","*","*","*","*","*","*","*","*","*"]
["QF7","RFF","BARNSLEY HOSPITAL NHS FOUNDATION TRUST",4,"*","*","*","*","*","*","*","*","*","*","*","*","*","*","*","*"]
["QF7","RHQ","SHEFFIELD TEACHING HOSPITALS NHS FOUNDATION TRUST",21,0.80952380952380953,0.14285714285714285,12,5,1,2,1,0,18,0,0,3,0,0,0,0]
["QGH","RLQ","WYE VALLEY NHS TRUST",0,"NA","NA",0,0,0,0,0,0,0,0,0,0,0,0,0,0]
["QGH","RWP","WORCESTERSHIRE ACUTE HOSPITALS NHS TRUST",5,1,0,"*","*","*","*","*","*","*","*","*","*","*","*","*","*"]
["QH8","RAJ","MID AND SOUTH ESSEX NHS FOUNDATION TRUST",0,"NA","NA",0,0,0,0,0,0,0,0,0,0,0,0,0,0]
["QHG","RC9","BEDFORDSHIRE HOSPITALS NHS FOUNDATION TRUST",11,1,0,10,1,0,0,0,0,0,6,0,0,0,0,5,0]
["QHG","RD8","MILTON KEYNES UNIVERSITY HOSPITAL NHS FOUNDATION TRUST",42,1,0,35,7,0,0,0,0,35,0,0,0,0,0,7,0]
["QHL","RXK","SANDWELL AND WEST BIRMINGHAM HOSPITALS NHS TRUST",0,"NA","NA",0,0,0,0,0,0,0,0,0,0,0,0,0,0]
["QHL","RRK","UNIVERSITY HOSPITALS BIRMINGHAM NHS FOUNDATION TRUST",2,"*","*","*","*","*","*","*","*","*","*","*","*","*","*","*","*"]
["QHL","RQ3","BIRMINGHAM WOMEN'S AND CHILDREN'S NHS FOUNDATION TRUST",25,0.96,0,"*","*","*","*","*","*","*","*","*","*","*","*","*","*"]
["QHM","RXP","COUNTY DURHAM AND DARLINGTON NHS FOUNDATION TRUST",0,"NA","NA",0,0,0,0,0,0,0,0,0,0,0,0,0,0]
["QHM","R0B","SOUTH TYNESIDE AND SUNDERLAND NHS FOUNDATION TRUST",1,"*","*","*","*","*","*","*","*","*","*","*","*","*","*","*","*"]
["QHM","RNN","NORTH CUMBRIA INTEGRATED CARE NHS FOUNDATION TRUST",1,"*","*","*","*","*","*","*","*","*","*","*","*","*","*","*","*"]
["QHM","RR7","GATESHEAD HEALTH NHS FOUNDATION TRUST",1,"*","*","*","*","*","*","*","*","*","*","*","*","*","*","*","*"]
["QHM","RTF","NORTHUMBRIA HEALTHCARE NHS FOUNDATION TRUST",9,0.77777777777777779,0.22222222222222221,4,3,0,1,1,0,9,0,0,0,0,0,0,0]
["QHM","RVW","NORTH TEES AND HARTLEPOOL NHS FOUNDATION TRUST",12,1,0,11,1,0,0,0,0,0,0,0,12,0,0,0,0]
["QHM","RTR","SOUTH TEES HOSPITALS NHS FOUNDATION TRUST",18,0.94444444444444442,5.5555555555555552E-2,10,7,0,1,0,0,18,0,0,0,0,0,0,0]
["QHM","RTD","THE NEWCASTLE UPON TYNE HOSPITALS NHS FOUNDATION TRUST",59,0.81355932203389836,0.10169491525423729,34,14,5,4,2,0,59,0,0,0,0,0,0,0]
["QJ2","RFS","CHESTERFIELD ROYAL HOSPITAL NHS FOUNDATION TRUST",0,"NA","NA",0,0,0,0,0,0,0,0,0,0,0,0,0,0]
["QJ2","RTG","UNIVERSITY HOSPITALS OF DERBY AND BURTON NHS FOUNDATION TRUST",0,"NA","NA",0,0,0,0,0,0,0,0,0,0,0,0,0,0]
["QJG","RDE","EAST SUFFOLK AND NORTH ESSEX NHS FOUNDATION TRUST",14,1,0,13,1,0,0,0,0,0,0,0,0,0,0,14,0]
["QJG","RGR","WEST SUFFOLK NHS FOUNDATION TRUST",21,0.7142857142857143,9.5238095238095233E-2,10,5,4,2,0,0,0,0,0,0,0,0,21,0]
["QJK","RA9","TORBAY AND SOUTH DEVON NHS FOUNDATION TRUST",0,"NA","NA",0,0,0,0,0,0,0,0,0,0,0,0,0,0]
["QJK","RH8","ROYAL DEVON UNIVERSITY HEALTHCARE NHS FOUNDATION TRUST",0,"NA","NA",0,0,0,0,0,0,0,0,0,0,0,0,0,0]
["QJK","RK9","UNIVERSITY HOSPITALS PLYMOUTH NHS TRUST",6,0.66666666666666663,0.33333333333333331,3,1,0,2,0,0,0,0,0,1,0,0,5,0]
["QJM","RWD","UNITED LINCOLNSHIRE TEACHING HOSPITALS NHS TRUST",0,"NA","NA",0,0,0,0,0,0,0,0,0,0,0,0,0,0]
["QK1","RWE","UNIVERSITY HOSPITALS OF LEICESTER NHS TRUST",82,0.98780487804878048,0,74,7,1,0,0,0,33,1,0,48,0,0,0,0]
["QKK","RJZ","KING'S COLLEGE HOSPITAL NHS FOUNDATION TRUST",0,"NA","NA",0,0,0,0,0,0,0,0,0,0,0,0,0,0]
["QKK","RJ1","GUY'S AND ST THOMAS' NHS FOUNDATION TRUST",2,"*","*","*","*","*","*","*","*","*","*","*","*","*","*","*","*"]
["QKK","RJ2","LEWISHAM AND GREENWICH NHS TRUST",4,"*","*","*","*","*","*","*","*","*","*","*","*","*","*","*","*"]
["QKS","RVV","EAST KENT HOSPITALS UNIVERSITY NHS FOUNDATION TRUST",0,"NA","NA",0,0,0,0,0,0,0,0,0,0,0,0,0,0]
["QKS","RWF","MAIDSTONE AND TUNBRIDGE WELLS NHS TRUST",3,"*","*","*","*","*","*","*","*","*","*","*","*","*","*","*","*"]
["QKS","RN7","DARTFORD AND GRAVESHAM NHS TRUST",9,1,0,"*","*","*","*","*","*","*","*","*","*","*","*","*","*"]
["QKS","RPA","MEDWAY NHS FOUNDATION TRUST",19,0.94736842105263153,5.2631578947368418E-2,17,1,0,0,1,0,0,0,0,0,0,0,19,0]
["QM7","RQW","THE PRINCESS ALEXANDRA HOSPITAL NHS TRUST",0,"NA","NA",0,0,0,0,0,0,0,0,0,0,0,0,0,0]
["QM7","RWG","WEST HERTFORDSHIRE TEACHING HOSPITALS NHS TRUST",0,"NA","NA",0,0,0,0,0,0,0,0,0,0,0,0,0,0]
["QM7","RWH","EAST AND NORTH HERTFORDSHIRE NHS TRUST",47,0.95744680851063835,4.2553191489361701E-2,42,3,0,1,1,0,2,13,26,0,0,0,6,0]
["QMF","RQX","HOMERTON HEALTHCARE NHS FOUNDATION TRUST",5,0.8,0,3,1,1,0,0,0,5,0,0,0,0,0,0,0]
["QMF","R1H","BARTS HEALTH NHS TRUST",10,1,0,5,5,0,0,0,0,0,0,0,0,0,0,10,0]
["QMF","RF4","BARKING, HAVERING AND REDBRIDGE UNIVERSITY HOSPITALS NHS TRUST",12,1,0,10,2,0,0,0,0,0,0,0,12,0,0,0,0]
["QMJ","RRV","UNIVERSITY COLLEGE LONDON HOSPITALS NHS FOUNDATION TRUST",0,"NA","NA",0,0,0,0,0,0,0,0,0,0,0,0,0,0]
["QMJ","RKE","WHITTINGTON HEALTH NHS TRUST",7,0.8571428571428571,0.14285714285714285,6,0,0,1,0,0,0,0,0,6,0,0,1,0]
["QMJ","RAL","ROYAL FREE LONDON NHS FOUNDATION TRUST",18,1,0,18,0,0,0,0,0,0,18,0,0,0,0,0,0]
["QMM","RGP","JAMES PAGET UNIVERSITY HOSPITALS NHS FOUNDATION TRUST",0,"NA","NA",0,0,0,0,0,0,0,0,0,0,0,0,0,0]
["QMM","RM1","NORFOLK AND NORWICH UNIVERSITY HOSPITALS NHS FOUNDATION TRUST",0,"NA","NA",0,0,0,0,0,0,0,0,0,0,0,0,0,0]
["QMM","RCX","THE QUEEN ELIZABETH HOSPITAL, KING'S LYNN, NHS FOUNDATION TRUST",13,1,0,12,1,0,0,0,0,0,0,0,13,0,0,0,0]
["QNC","RJE","UNIVERSITY HOSPITALS OF NORTH MIDLANDS NHS TRUST",0,"NA","NA",0,0,0,0,0,0,0,0,0,0,0,0,0,0]
["QNQ","RDU","FRIMLEY HEALTH NHS FOUNDATION TRUST",20,1,0,19,1,0,0,0,0,0,0,0,9,0,0,11,0]
["QNX","RXC","EAST SUSSEX HEALTHCARE NHS TRUST",0,"NA","NA",0,0,0,0,0,0,0,0,0,0,0,0,0,0]
["QNX","RYR","UNIVERSITY HOSPITALS SUSSEX NHS FOUNDATION TRUST",19,0.89473684210526316,5.2631578947368418E-2,15,2,1,0,1,0,19,0,0,0,0,0,0,0]
["QOC","RXW","THE SHREWSBURY AND TELFORD HOSPITAL NHS TRUST",24,1,0,19,5,0,0,0,0,0,0,0,0,24,0,0,0]
["QOP","RM3","NORTHERN CARE ALLIANCE NHS FOUNDATION TRUST",0,"NA","NA",0,0,0,0,0,0,0,0,0,0,0,0,0,0]
["QOP","RMP","TAMESIDE AND GLOSSOP INTEGRATED CARE NHS FOUNDATION TRUST",0,"NA","NA",0,0,0,0,0,0,0,0,0,0,0,0,0,0]
["QOP","RWJ","STOCKPORT NHS FOUNDATION TRUST",1,"*","*","*","*","*","*","*","*","*","*","*","*","*","*","*","*"]
["QOP","R0A","MANCHESTER UNIVERSITY NHS FOUNDATION TRUST",6,1,0,"*","*","*","*","*","*","*","*","*","*","*","*","*","*"]
["QOP","RRF","WRIGHTINGTON, WIGAN AND LEIGH NHS FOUNDATION TRUST",8,1,0,8,0,0,0,0,0,0,0,0,8,0,0,0,0]
["QOP","RMC","BOLTON NHS FOUNDATION TRUST",87,0.95402298850574707,4.5977011494252873E-2,82,1,0,1,3,0,44,0,0,43,0,0,0,0]
["QOQ","RCB","YORK AND SCARBOROUGH TEACHING HOSPITALS NHS FOUNDATION TRUST",0,"NA","NA",0,0,0,0,0,0,0,0,0,0,0,0,0,0]
["QOQ","RCD","HARROGATE AND DISTRICT NHS FOUNDATION TRUST",0,"NA","NA",0,0,0,0,0,0,0,0,0,0,0,0,0,0]
["QOQ","RWA","HULL UNIVERSITY TEACHING HOSPITALS NHS TRUST",0,"NA","NA",0,0,0,0,0,0,0,0,0,0,0,0,0,0]
["QOQ","RJL","NORTHERN LINCOLNSHIRE AND GOOLE NHS FOUNDATION TRUST",4,"*","*","*","*","*","*","*","*","*","*","*","*","*","*","*","*"]
["QOX","RNZ","SALISBURY NHS FOUNDATION TRUST",3,"*","*","*","*","*","*","*","*","*","*","*","*","*","*","*","*"]
["QOX","RD1","ROYAL UNITED HOSPITALS BATH NHS FOUNDATION TRUST",20,0.85,0.1,"*","*","*","*","*","*","*","*","*","*","*","*","*","*"]
["QOX","RN3","GREAT WESTERN HOSPITALS NHS FOUNDATION TRUST",29,0.89655172413793105,3.4482758620689655E-2,23,3,2,0,1,0,27,1,0,0,0,0,1,0]
["QPM","RNS","NORTHAMPTON GENERAL HOSPITAL NHS TRUST",9,1,0,8,1,0,0,0,0,0,0,0,4,0,0,5,0]
["QPM","RNQ","KETTERING GENERAL HOSPITAL NHS FOUNDATION TRUST",89,0.9662921348314607,0,73,13,3,0,0,0,0,0,0,0,83,0,6,0]
["QR1","RTE","GLOUCESTERSHIRE HOSPITALS NHS FOUNDATION TRUST",0,"NA","NA",0,0,0,0,0,0,0,0,0,0,0,0,0,0]
["QRL","R1F","ISLE OF WIGHT NHS TRUST",0,"NA","NA",0,0,0,0,0,0,0,0,0,0,0,0,0,0]
["QRL","RHU","PORTSMOUTH HOSPITALS UNIVERSITY NATIONAL HEALTH SERVICE TRUST",0,"NA","NA",0,0,0,0,0,0,0,0,0,0,0,0,0,0]
["QRL","RN5","HAMPSHIRE HOSPITALS NHS FOUNDATION TRUST",17,1,0,17,0,0,0,0,0,0,0,0,7,0,0,10,0]
["QRL","RHM","UNIVERSITY HOSPITAL SOUTHAMPTON NHS FOUNDATION TRUST",105,0.89523809523809528,1.9047619047619049E-2,61,33,5,0,2,4,0,0,0,0,0,0,105,0]
["QRV","R1K","LONDON NORTH WEST UNIVERSITY HEALTHCARE NHS TRUST",0,"NA","NA",0,0,0,0,0,0,0,0,0,0,0,0,0,0]
["QRV","RAS","THE HILLINGDON HOSPITALS NHS FOUNDATION TRUST",0,"NA","NA",0,0,0,0,0,0,0,0,0,0,0,0,0,0]
["QRV","RQM","CHELSEA AND WESTMINSTER HOSPITAL NHS FOUNDATION TRUST",7,1,0,7,0,0,0,0,0,0,0,0,0,0,0,7,0]
["QRV","RYJ","IMPERIAL COLLEGE HEALTHCARE NHS TRUST",56,0.9285714285714286,1.7857142857142856E-2,46,6,3,1,0,0,0,0,0,0,3,0,53,0]
["QSL","RH5","SOMERSET NHS FOUNDATION TRUST",0,"NA","NA",0,0,0,0,0,0,0,0,0,0,0,0,0,0]
["QT1","RK5","SHERWOOD FOREST HOSPITALS NHS FOUNDATION TRUST",6,0.83333333333333337,0.16666666666666666,4,1,0,1,0,0,0,0,0,0,0,0,6,0]
["QT1","RX1","NOTTINGHAM UNIVERSITY HOSPITALS NHS TRUST",8,1,0,7,1,0,0,0,0,0,0,0,7,0,0,1,0]
["QT6","REF","ROYAL CORNWALL HOSPITALS NHS TRUST",0,"NA","NA",0,0,0,0,0,0,0,0,0,0,0,0,0,0]
["QU9","RHW","ROYAL BERKSHIRE NHS FOUNDATION TRUST",1,"*","*","*","*","*","*","*","*","*","*","*","*","*","*","*","*"]
["QU9","RTH","OXFORD UNIVERSITY HOSPITALS NHS FOUNDATION TRUST",2,"*","*","*","*","*","*","*","*","*","*","*","*","*","*","*","*"]
["QU9","RXQ","BUCKINGHAMSHIRE HEALTHCARE NHS TRUST",11,0.90909090909090906,0,9,1,1,0,0,0,11,0,0,0,0,0,0,0]
["QUA","RNA","THE DUDLEY GROUP NHS FOUNDATION TRUST",0,"NA","NA",0,0,0,0,0,0,0,0,0,0,0,0,0,0]
["QUA","RBK","WALSALL HEALTHCARE NHS TRUST",23,0.86956521739130432,0.13043478260869565,16,4,0,0,3,0,7,16,0,0,0,0,0,0]
["QUA","RL4","THE ROYAL WOLVERHAMPTON NHS TRUST",42,0.95238095238095233,2.3809523809523808E-2,36,4,1,0,1,0,42,0,0,0,0,0,0,0]
["QUE","RGT","CAMBRIDGE UNIVERSITY HOSPITALS NHS FOUNDATION TRUST",0,"NA","NA",0,0,0,0,0,0,0,0,0,0,0,0,0,0]
["QUE","RGN","NORTH WEST ANGLIA NHS FOUNDATION TRUST",30,1,0,27,3,0,0,0,0,0,0,0,29,0,0,1,0]
["QUY","RA7","UNIVERSITY HOSPITALS BRISTOL AND WESTON NHS FOUNDATION TRUST",27,1,0,26,1,0,0,0,0,0,0,0,27,0,0,0,0]
["QUY","RVJ","NORTH BRISTOL NHS TRUST",48,1,0,42,6,0,0,0,0,48,0,0,0,0,0,0,0]
["QVV","R0D","UNIVERSITY HOSPITALS DORSET NHS FOUNDATION TRUST",0,"NA","NA",0,0,0,0,0,0,0,0,0,0,0,0,0,0]
["QVV","RBD","DORSET COUNTY HOSPITAL NHS FOUNDATION TRUST",6,0.83333333333333337,0,4,1,1,0,0,0,0,0,0,6,0,0,0,0]
["QWE","RJ6","CROYDON HEALTH SERVICES NHS TRUST",0,"NA","NA",0,0,0,0,0,0,0,0,0,0,0,0,0,0]
["QWE","RJ7","ST GEORGE'S UNIVERSITY HOSPITALS NHS FOUNDATION TRUST",0,"NA","NA",0,0,0,0,0,0,0,0,0,0,0,0,0,0]
["QWE","RVR","EPSOM AND ST HELIER UNIVERSITY HOSPITALS NHS TRUST",0,"NA","NA",0,0,0,0,0,0,0,0,0,0,0,0,0,0]
["QWE","RAX","KINGSTON AND RICHMOND NHS FOUNDATION TRUST",20,1,0,18,2,0,0,0,0,0,0,0,0,0,0,20,0]
["QWO","RAE","BRADFORD TEACHING HOSPITALS NHS FOUNDATION TRUST",0,"NA","NA",0,0,0,0,0,0,0,0,0,0,0,0,0,0]
["QWO","RCF","AIREDALE NHS FOUNDATION TRUST",0,"NA","NA",0,0,0,0,0,0,0,0,0,0,0,0,0,0]
["QWO","RWY","CALDERDALE AND HUDDERSFIELD NHS FOUNDATION TRUST",5,0.8,0.2,3,1,0,0,1,0,0,0,0,0,0,0,5,0]
["QWO","RR8","LEEDS TEACHING HOSPITALS NHS TRUST",28,0.8928571428571429,7.1428571428571425E-2,24,1,1,1,1,0,28,0,0,0,0,0,0,0]
["QWO","RXF","MID YORKSHIRE TEACHING NHS TRUST",39,1,0,35,4,0,0,0,0,1,0,0,38,0,0,0,0]
["QWU","RJC","SOUTH WARWICKSHIRE UNIVERSITY NHS FOUNDATION TRUST",0,"NA","NA",0,0,0,0,0,0,0,0,0,0,0,0,0,0]
["QWU","RLT","GEORGE ELIOT HOSPITAL NHS TRUST",0,"NA","NA",0,0,0,0,0,0,0,0,0,0,0,0,0,0]
["QWU","RKB","UNIVERSITY HOSPITALS COVENTRY AND WARWICKSHIRE NHS TRUST",34,0.8529411764705882,5.8823529411764705E-2,23,6,3,1,1,0,33,1,0,0,0,0,0,0]
["QXU","RTK","ASHFORD AND ST PETER'S HOSPITALS NHS FOUNDATION TRUST",0,"NA","NA",0,0,0,0,0,0,0,0,0,0,0,0,0,0]
["QXU","RTP","SURREY AND SUSSEX HEALTHCARE NHS TRUST",0,"NA","NA",0,0,0,0,0,0,0,0,0,0,0,0,0,0]
["QXU","RA2","ROYAL SURREY COUNTY HOSPITAL NHS FOUNDATION TRUST",38,0.97368421052631582,0,35,2,0,0,0,1,0,0,0,0,38,0,0,0]
["QYG","RBT","MID CHESHIRE HOSPITALS NHS FOUNDATION TRUST",0,"NA","NA",0,0,0,0,0,0,0,0,0,0,0,0,0,0]
["QYG","RWW","WARRINGTON AND HALTON TEACHING HOSPITALS NHS FOUNDATION TRUST",0,"NA","NA",0,0,0,0,0,0,0,0,0,0,0,0,0,0]
["QYG","RBN","MERSEY AND WEST LANCASHIRE TEACHING HOSPITALS NHS TRUST",4,"*","*","*","*","*","*","*","*","*","*","*","*","*","*","*","*"]
["QYG","RJR","COUNTESS OF CHESTER HOSPITAL NHS FOUNDATION TRUST",6,1,0,"*","*","*","*","*","*","*","*","*","*","*","*","*","*"]
["QYG","RBL","WIRRAL UNIVERSITY TEACHING HOSPITAL NHS FOUNDATION TRUST",10,1,0,10,0,0,0,0,0,0,0,0,10,0,0,0,0]
["QYG","RJN","EAST CHESHIRE NHS TRUST",14,0.8571428571428571,0.14285714285714285,9,3,0,0,2,0,14,0,0,0,0,0,0,0]
["QYG","REP","LIVERPOOL WOMEN'S NHS FOUNDATION TRUST",32,0.9375,6.25E-2,25,5,0,1,1,0,32,0,0,0,0,0,0,0]

{"sheet":"BSQ1","index":13,"n_rows":191,"n_cols":33,"rows_kept":191,"cut":false,"hidden":true,"merged":[]}
[null,"Sort","ICB","ICB","Trusts","Trusts","Sites","Sites",null,"Sort ranges:","Sort range…","Sort range…","Sort range…","Reference Region List:","Code…","Name…","Linked Region List:","Code…","Name…","Reference Lists:","Code…","Code…","Name…","Code…","Name…","Trusts Linked Lists:","Code…","Name…","Site Linked Lists:","Code…","Name…","Code…","Name…"]
["ICB",1,1,1,"-","-","-","-",null,null,"ICB Code","ICB Code","ICB Code",null,"QE1","LANCASHIRE AND SOUTH CUMBRIA ICB",null,"QE1","LANCASHIRE AND SOUTH CUMBRIA ICB",null,"QE1","RXL","BLACKPOOL TEACHING HOSPITALS NHS FOUNDATION TRUST","RXL01","Blackpool Victoria Hospital",null,"R0A","ASHFORD AND ST PETER'S HOSPITALS NHS FOUNDATION TRUST",null,"R0A","ASHFORD AND ST PETER'S HOSPITALS NHS FOUNDATION TRUST","E3M3C","Alexandra Hospital"]
["Trusts",1,1,1,1,1,"-","-",null,null,"ICB Name","Trust Code","Trust Code",null,"QF7","SOUTH YORKSHIRE ICB",null,"QF7","SOUTH YORKSHIRE ICB",null,"QE1","RXR","EAST LANCASHIRE HOSPITALS NHS TRUST","RXR20","Royal Blackburn Hospital",null,"R0B","BARKING, HAVERING AND REDBRIDGE UNIVERSITY HOSPITALS NHS TRUST",null,"R0B","BARKING, HAVERING AND REDBRIDGE UNIVERSITY HOSPITALS NHS TRUST","R0A05","Andover War Memorial Hospital"]
["Sites",1,1,1,1,1,1,1,null,null,"Total Responses","Trust Name","Trust Name",null,"QGH","HEREFORDSHIRE AND WORCESTERSHIRE ICB",null,"QGH","HEREFORDSHIRE AND WORCESTERSHIRE ICB",null,"QE1","RXN","LANCASHIRE TEACHING HOSPITALS NHS FOUNDATION TRUST","RXN01","Chorley and South Ribble Hospital",null,"R0D","BARNSLEY HOSPITAL NHS FOUNDATION TRUST",null,"R0D","BARNSLEY HOSPITAL NHS FOUNDATION TRUST","R0B01","Arrowe Park Hospital"]
[null,null,null,null,null,null,null,null,null,null,"Percentage Positive","Total Responses","Site Code",null,"QH8","MID AND SOUTH ESSEX ICB",null,"QH8","MID AND SOUTH ESSEX ICB",null,"QE1","RXN","LANCASHIRE TEACHING HOSPITALS NHS FOUNDATION TRUST","RXN02","Royal Preston Hospital",null,"R1F","BARTS HEALTH NHS TRUST",null,"R1F","BARTS HEALTH NHS TRUST","R0B0Q","Ashford Hospital"]
[null,null,null,null,null,null,null,null,null,null,"Percentage Negative","Percentage Positive","Site Name",null,"QHG","BEDFORDSHIRE, LUTON AND MILTON KEYNES ICB",null,"QHG","BEDFORDSHIRE, LUTON AND MILTON KEYNES ICB",null,"QE1","RTX","UNIVERSITY HOSPITALS OF MORECAMBE BAY NHS FOUNDATION TRUST","RTXBU","Furness General Hospital",null,"R1H","BEDFORDSHIRE HOSPITALS NHS FOUNDATION TRUST",null,"R1H","BEDFORDSHIRE HOSPITALS NHS FOUNDATION TRUST","R0BXXX","Barnet Hospital"]
[null,null,null,null,null,null,null,null,null,null,"Very Good","Percentage Negative","Total Responses",null,"QHL","BIRMINGHAM AND SOLIHULL ICB",null,"QHL","BIRMINGHAM AND SOLIHULL ICB",null,"QE1","RTX","UNIVERSITY HOSPITALS OF MORECAMBE BAY NHS FOUNDATION TRUST","RTX02","Royal Lancaster Infirmary",null,"R1K","BIRMINGHAM WOMEN'S AND CHILDREN'S NHS FOUNDATION TRUST",null,"R1K","BIRMINGHAM WOMEN'S AND CHILDREN'S NHS FOUNDATION TRUST","R0D01","Barnsley Hospital NHS Foundation Trust HQ"]
[null,null,null,null,null,null,null,null,null,null,"Good","Very Good","Percentage Positive",null,"QHM","NORTH EAST AND NORTH CUMBRIA ICB",null,"QHM","NORTH EAST AND NORTH CUMBRIA ICB",null,"QE1","RTX","UNIVERSITY HOSPITALS OF MORECAMBE BAY NHS FOUNDATION TRUST","RTXBW","Westmorland General Hospital",null,"RA2","BLACKPOOL TEACHING HOSPITALS NHS FOUNDATION TRUST",null,"RA2","BLACKPOOL TEACHING HOSPITALS NHS FOUNDATION TRUST","R0D02","BASILDON HOSPITAL"]
[null,null,null,null,null,null,null,null,null,null,"Neither Good nor Poor","Good","Percentage Negative",null,"QJ2","DERBY AND DERBYSHIRE ICB",null,"QJ2","DERBY AND DERBYSHIRE ICB",null,"QF7","RFF","BARNSLEY HOSPITAL NHS FOUNDATION TRUST","RFFAA","Barnsley Hospital NHS Foundation Trust HQ",null,"RA7","BOLTON NHS FOUNDATION TRUST",null,"RA7","BOLTON NHS FOUNDATION TRUST","R1F01","Basingstoke and North Hampshire Hospital"]
[null,null,null,null,null,null,null,null,null,null,"Poor","Neither Good nor Poor","Very Good",null,"QJG","SUFFOLK AND NORTH EAST ESSEX ICB",null,"QJG","SUFFOLK AND NORTH EAST ESSEX ICB",null,"QF7","RP5","DONCASTER AND BASSETLAW TEACHING HOSPITALS NHS FOUNDATION TRUST","RP5BA","Bassetlaw Hospital",null,"RA9","BRADFORD TEACHING HOSPITALS NHS FOUNDATION TRUST",null,"RA9","BRADFORD TEACHING HOSPITALS NHS FOUNDATION TRUST","R1H12","Bassetlaw Hospital"]
[null,null,null,null,null,null,null,null,null,null,"Very Poor","Poor","Good",null,"QJK","DEVON ICB",null,"QJK","DEVON ICB",null,"QF7","RP5","DONCASTER AND BASSETLAW TEACHING HOSPITALS NHS FOUNDATION TRUST","RP5DR","Doncaster Royal Infirmary",null,"RAE","BUCKINGHAMSHIRE HEALTHCARE NHS TRUST",null,"RAE","BUCKINGHAMSHIRE HEALTHCARE NHS TRUST","R1HKH","BEDFORD HOSPITAL SOUTH WING"]
[null,null,null,null,null,null,null,null,null,null,"Don't Know","Very Poor","Neither Good nor Poor",null,"QJM","LINCOLNSHIRE ICB",null,"QJM","LINCOLNSHIRE ICB",null,"QF7","RP5","DONCASTER AND BASSETLAW TEACHING HOSPITALS NHS FOUNDATION TRUST","RP5XXX","Non-hospital site",null,"RAJ","CALDERDALE AND HUDDERSFIELD NHS FOUNDATION TRUST",null,"RAJ","CALDERDALE AND HUDDERSFIELD NHS FOUNDATION TRUST","R1HNH","Birmingham Women's Hospital"]
[null,null,null,null,null,null,null,null,null,null,null,"Don't Know","Poor",null,"QK1","LEICESTER, LEICESTERSHIRE AND RUTLAND ICB",null,"QK1","LEICESTER, LEICESTERSHIRE AND RUTLAND ICB",null,"QF7","RHQ","SHEFFIELD TEACHING HOSPITALS NHS FOUNDATION TRUST","RHQHH","Royal Hallamshire Hospital",null,"RAL","CAMBRIDGE UNIVERSITY HOSPITALS NHS FOUNDATION TRUST",null,"RAL","CAMBRIDGE UNIVERSITY HOSPITALS NHS FOUNDATION TRUST","R1K01","Blackpool Victoria Hospital"]
[null,null,null,null,null,null,null,null,null,null,null,"Mode SMS","Very Poor",null,"QKK","SOUTH EAST LONDON ICB",null,"QKK","SOUTH EAST LONDON ICB",null,"QF7","RFR","THE ROTHERHAM NHS FOUNDATION TRUST","RFRPA","Rotherham District General Hospital",null,"RAS","CHELSEA AND WESTMINSTER HOSPITAL NHS FOUNDATION TRUST",null,"RAS","CHELSEA AND WESTMINSTER HOSPITAL NHS FOUNDATION TRUST","RA201","Bradford Royal Infirmary"]
[null,null,null,null,null,null,null,null,null,null,null,"Mode Electronic Discharge","Don't Know",null,"QKS","KENT AND MEDWAY ICB",null,"QKS","KENT AND MEDWAY ICB",null,"QGH","RWP","WORCESTERSHIRE ACUTE HOSPITALS NHS TRUST","RWP01","Alexandra Hospital",null,"RAX","CHESTERFIELD ROYAL HOSPITAL NHS FOUNDATION TRUST",null,"RAX","CHESTERFIELD ROYAL HOSPITAL NHS FOUNDATION TRUST","RA707","Bridgwater Hospital"]
[null,null,null,null,null,null,null,null,null,null,null,"Mode Electronic Home",null,null,"QM7","HERTFORDSHIRE AND WEST ESSEX ICB",null,"QM7","HERTFORDSHIRE AND WEST ESSEX ICB",null,"QGH","RWP","WORCESTERSHIRE ACUTE HOSPITALS NHS TRUST","RWP31","Kidderminster Hospital",null,"RBD","COUNTESS OF CHESTER HOSPITAL NHS FOUNDATION TRUST",null,"RBD","COUNTESS OF CHESTER HOSPITAL NHS FOUNDATION TRUST","RA901","Buckland Hospital"]
[null,null,null,null,null,null,null,null,null,null,null,"Mode Paper Discharge",null,null,"QMF","NORTH EAST LONDON ICB",null,"QMF","NORTH EAST LONDON ICB",null,"QGH","RWP","WORCESTERSHIRE ACUTE HOSPITALS NHS TRUST","RWP50","Worcestershire Royal Hospital",null,"RBK","COUNTY DURHAM AND DARLINGTON NHS FOUNDATION TRUST",null,"RBK","COUNTY DURHAM AND DARLINGTON NHS FOUNDATION TRUST","RAE01","Calderdale Royal Hospital"]
[null,null,null,null,null,null,null,null,null,null,null,"Mode Paper Home",null,null,"QMJ","NORTH CENTRAL LONDON ICB",null,"QMJ","NORTH CENTRAL LONDON ICB",null,"QGH","RLQ","WYE VALLEY NHS TRUST","RLQ01","Hereford County Hospital",null,"RBL","DARTFORD AND GRAVESHAM NHS TRUST",null,"RBL","DARTFORD AND GRAVESHAM NHS TRUST","RAJ01","Chase Farm Hospital "]
[null,null,null,null,null,null,null,null,null,null,null,"Mode Telephone",null,null,"QMM","NORFOLK AND WAVENEY ICB",null,"QMM","NORFOLK AND WAVENEY ICB",null,"QH8","RAJ","MID AND SOUTH ESSEX NHS FOUNDATION TRUST","RAJ12","BASILDON HOSPITAL",null,"RBN","DONCASTER AND BASSETLAW TEACHING HOSPITALS NHS FOUNDATION TRUST",null,"RBN","DONCASTER AND BASSETLAW TEACHING HOSPITALS NHS FOUNDATION TRUST","RAJ12","Chelsea and Westminster Hospital"]
[null,null,null,null,null,null,null,null,null,null,null,"Mode Online",null,null,"QNC","STAFFORDSHIRE AND STOKE-ON-TRENT ICB",null,"QNC","STAFFORDSHIRE AND STOKE-ON-TRENT ICB",null,"QH8","RAJ","MID AND SOUTH ESSEX NHS FOUNDATION TRUST","RAJ32","MID ESSEX HOSPITAL",null,"RBT","DORSET COUNTY HOSPITAL NHS FOUNDATION TRUST",null,"RBT","DORSET COUNTY HOSPITAL NHS FOUNDATION TRUST","RAJ32","Chesterfield Royal Hospital"]
[null,null,null,null,null,null,null,null,null,null,null,"Mode Other",null,null,"QNQ","FRIMLEY ICB",null,"QNQ","FRIMLEY ICB",null,"QH8","RAJ","MID AND SOUTH ESSEX NHS FOUNDATION TRUST","RAJ01","Southend Hospital",null,"RC9","EAST AND NORTH HERTFORDSHIRE NHS TRUST",null,"RC9","EAST AND NORTH HERTFORDSHIRE NHS TRUST","RAL01","Chippenham Community Hospital "]
[null,null,null,null,null,null,null,null,null,null,null,null,null,null,"QNX","SUSSEX ICB",null,"QNX","SUSSEX ICB",null,"QHG","RC9","BEDFORDSHIRE HOSPITALS NHS FOUNDATION TRUST","RC979","BEDFORD HOSPITAL SOUTH WING",null,"RCD","EAST CHESHIRE NHS TRUST",null,"RCD","EAST CHESHIRE NHS TRUST","RAL22","Chorley and South Ribble Hospital"]
[null,null,null,null,null,null,null,null,null,null,null,null,null,null,"QOC","SHROPSHIRE, TELFORD AND WREKIN ICB",null,"QOC","SHROPSHIRE, TELFORD AND WREKIN ICB",null,"QHG","RC9","BEDFORDSHIRE HOSPITALS NHS FOUNDATION TRUST","RC971","Luton and Dunstable Hospital",null,"RCX","EAST KENT HOSPITALS UNIVERSITY NHS FOUNDATION TRUST",null,"RCX","EAST KENT HOSPITALS UNIVERSITY NHS FOUNDATION TRUST","RAL26","City Hospital"]
[null,null,null,null,null,null,null,null,null,null,null,null,null,null,"QOP","GREATER MANCHESTER ICB",null,"QOP","GREATER MANCHESTER ICB",null,"QHG","RD8","MILTON KEYNES UNIVERSITY HOSPITAL NHS FOUNDATION TRUST","RD816","Milton Keynes Hospital",null,"RD1","EAST LANCASHIRE HOSPITALS NHS TRUST",null,"RD1","EAST LANCASHIRE HOSPITALS NHS TRUST","RALC7","Colchester General Hospital"]
[null,null,null,null,null,null,null,null,null,null,null,null,null,null,"QOQ","HUMBER AND NORTH YORKSHIRE ICB",null,"QOQ","HUMBER AND NORTH YORKSHIRE ICB",null,"QHL","RQ3","BIRMINGHAM WOMEN'S AND CHILDREN'S NHS FOUNDATION TRUST","RQ370","Birmingham Women's Hospital",null,"RD8","EAST SUFFOLK AND NORTH ESSEX NHS FOUNDATION TRUST",null,"RD8","EAST SUFFOLK AND NORTH ESSEX NHS FOUNDATION TRUST","RAS01","Countess Of Chester Hospital"]
[null,null,null,null,null,null,null,null,null,null,null,null,null,null,"QOX","BATH AND NORTH EAST SOMERSET, SWINDON AND WILTSHIRE ICB",null,"QOX","BATH AND NORTH EAST SOMERSET, SWINDON AND WILTSHIRE ICB",null,"QHL","RXK","SANDWELL AND WEST BIRMINGHAM HOSPITALS NHS TRUST","RXK02","City Hospital",null,"RDE","EPSOM AND ST HELIER UNIVERSITY HOSPITALS NHS TRUST",null,"RDE","EPSOM AND ST HELIER UNIVERSITY HOSPITALS NHS TRUST","RAX01","Cumberland Infirmary"]
[null,null,null,null,null,null,null,null,null,null,null,null,null,null,"QPM","NORTHAMPTONSHIRE ICB",null,"QPM","NORTHAMPTONSHIRE ICB",null,"QHL","RXK","SANDWELL AND WEST BIRMINGHAM HOSPITALS NHS TRUST","RXK01","Sandwell General Hospital",null,"RDU","FRIMLEY HEALTH NHS FOUNDATION TRUST",null,"RDU","FRIMLEY HEALTH NHS FOUNDATION TRUST","RBD01","Darent Valley Hospital"]
[null,null,null,null,null,null,null,null,null,null,null,null,null,null,"QR1","GLOUCESTERSHIRE ICB",null,"QR1","GLOUCESTERSHIRE ICB",null,"QHL","RRK","UNIVERSITY HOSPITALS BIRMINGHAM NHS FOUNDATION TRUST","RRK98","Good Hope Hospital",null,"REF","GATESHEAD HEALTH NHS FOUNDATION TRUST",null,"REF","GATESHEAD HEALTH NHS FOUNDATION TRUST","RBK02","Dewsbury and District Hospital"]
[null,null,null,null,null,null,null,null,null,null,null,null,null,null,"QRL","HAMPSHIRE AND ISLE OF WIGHT ICB",null,"QRL","HAMPSHIRE AND ISLE OF WIGHT ICB",null,"QHL","RRK","UNIVERSITY HOSPITALS BIRMINGHAM NHS FOUNDATION TRUST","RRK97","Heartlands Hospital",null,"REP","GEORGE ELIOT HOSPITAL NHS TRUST",null,"REP","GEORGE ELIOT HOSPITAL NHS TRUST","RBL14","Diana, Princess Of Wales Hospital"]
[null,null,null,null,null,null,null,null,null,null,null,null,null,null,"QRV","NORTH WEST LONDON ICB",null,"QRV","NORTH WEST LONDON ICB",null,"QHL","RRK","UNIVERSITY HOSPITALS BIRMINGHAM NHS FOUNDATION TRUST","RRK99","Solihull Hospital",null,"RF4","GREAT WESTERN HOSPITALS NHS FOUNDATION TRUST",null,"RF4","GREAT WESTERN HOSPITALS NHS FOUNDATION TRUST","RBN01","Doncaster Royal Infirmary"]
[null,null,null,null,null,null,null,null,null,null,null,null,null,null,"QSL","SOMERSET ICB",null,"QSL","SOMERSET ICB",null,"QHM","RXP","COUNTY DURHAM AND DARLINGTON NHS FOUNDATION TRUST","RXPCP","University Hospital Of North Durham",null,"RFF","GUY'S AND ST THOMAS' NHS FOUNDATION TRUST",null,"RFF","GUY'S AND ST THOMAS' NHS FOUNDATION TRUST","RBN52","Dorset County Hospital"]
[null,null,null,null,null,null,null,null,null,null,null,null,null,null,"QT1","NOTTINGHAM AND NOTTINGHAMSHIRE ICB",null,"QT1","NOTTINGHAM AND NOTTINGHAMSHIRE ICB",null,"QHM","RR7","GATESHEAD HEALTH NHS FOUNDATION TRUST","RR7EN","Queen Elizabeth Hospital",null,"RFR","HAMPSHIRE HOSPITALS NHS FOUNDATION TRUST",null,"RFR","HAMPSHIRE HOSPITALS NHS FOUNDATION TRUST","RBT20","East Surrey Hospital"]
[null,null,null,null,null,null,null,null,null,null,null,null,null,null,"QT6","CORNWALL AND THE ISLES OF SCILLY ICB",null,"QT6","CORNWALL AND THE ISLES OF SCILLY ICB",null,"QHM","RNN","NORTH CUMBRIA INTEGRATED CARE NHS FOUNDATION TRUST","RNN62","Cumberland Infirmary",null,"RFS","HARROGATE AND DISTRICT NHS FOUNDATION TRUST",null,"RFS","HARROGATE AND DISTRICT NHS FOUNDATION TRUST","RC971","Epsom Hospital"]
[null,null,null,null,null,null,null,null,null,null,null,null,null,null,"QU9","BUCKINGHAMSHIRE, OXFORDSHIRE AND BERKSHIRE WEST ICB",null,"QU9","BUCKINGHAMSHIRE, OXFORDSHIRE AND BERKSHIRE WEST ICB",null,"QHM","RVW","NORTH TEES AND HARTLEPOOL NHS FOUNDATION TRUST","RVWXXX","Non-hospital site",null,"RGN","HOMERTON HEALTHCARE NHS FOUNDATION TRUST",null,"RGN","HOMERTON HEALTHCARE NHS FOUNDATION TRUST","RC979","Finchley Memorial Hospital"]
[null,null,null,null,null,null,null,null,null,null,null,null,null,null,"QUA","BLACK COUNTRY ICB",null,"QUA","BLACK COUNTRY ICB",null,"QHM","RVW","NORTH TEES AND HARTLEPOOL NHS FOUNDATION TRUST","RVWAE","University Hospital Of North Tees",null,"RGP","HULL UNIVERSITY TEACHING HOSPITALS NHS TRUST",null,"RGP","HULL UNIVERSITY TEACHING HOSPITALS NHS TRUST","RCD01","Friarage Hospital Site"]
[null,null,null,null,null,null,null,null,null,null,null,null,null,null,"QUE","CAMBRIDGESHIRE AND PETERBOROUGH ICB",null,"QUE","CAMBRIDGESHIRE AND PETERBOROUGH ICB",null,"QHM","RTF","NORTHUMBRIA HEALTHCARE NHS FOUNDATION TRUST","RTFXXX","Non-hospital site",null,"RGR","IMPERIAL COLLEGE HEALTHCARE NHS TRUST",null,"RGR","IMPERIAL COLLEGE HEALTHCARE NHS TRUST","RCX66","Frimley Park Hospital"]
[null,null,null,null,null,null,null,null,null,null,null,null,null,null,"QUY","BRISTOL, NORTH SOMERSET AND SOUTH GLOUCESTERSHIRE ICB",null,"QUY","BRISTOL, NORTH SOMERSET AND SOUTH GLOUCESTERSHIRE ICB",null,"QHM","RTR","SOUTH TEES HOSPITALS NHS FOUNDATION TRUST","RTR45","Friarage Hospital Site",null,"RGT","ISLE OF WIGHT NHS TRUST",null,"RGT","ISLE OF WIGHT NHS TRUST","RCX70","Frome Community Hospital "]
[null,null,null,null,null,null,null,null,null,null,null,null,null,null,"QVV","DORSET ICB",null,"QVV","DORSET ICB",null,"QHM","RTR","SOUTH TEES HOSPITALS NHS FOUNDATION TRUST","RTRAT","The James Cook University Hospital",null,"RH5","JAMES PAGET UNIVERSITY HOSPITALS NHS FOUNDATION TRUST",null,"RH5","JAMES PAGET UNIVERSITY HOSPITALS NHS FOUNDATION TRUST","RCXXXX","Furness General Hospital"]
[null,null,null,null,null,null,null,null,null,null,null,null,null,null,"QWE","SOUTH WEST LONDON ICB",null,"QWE","SOUTH WEST LONDON ICB",null,"QHM","R0B","SOUTH TYNESIDE AND SUNDERLAND NHS FOUNDATION TRUST","R0BXXX","Non-hospital site",null,"RH8","KETTERING GENERAL HOSPITAL NHS FOUNDATION TRUST",null,"RH8","KETTERING GENERAL HOSPITAL NHS FOUNDATION TRUST","RD102","George Eliot Hospital - Acute Services"]
[null,null,null,null,null,null,null,null,null,null,null,null,null,null,"QWO","WEST YORKSHIRE ICB",null,"QWO","WEST YORKSHIRE ICB",null,"QHM","R0B","SOUTH TYNESIDE AND SUNDERLAND NHS FOUNDATION TRUST","R0B0Q","South Tyneside District Hospital",null,"RHM","KINGSTON AND RICHMOND NHS FOUNDATION TRUST",null,"RHM","KINGSTON AND RICHMOND NHS FOUNDATION TRUST","RD108","Good Hope Hospital"]
[null,null,null,null,null,null,null,null,null,null,null,null,null,null,"QWU","COVENTRY AND WARWICKSHIRE ICB",null,"QWU","COVENTRY AND WARWICKSHIRE ICB",null,"QHM","R0B","SOUTH TYNESIDE AND SUNDERLAND NHS FOUNDATION TRUST","R0B01","Sunderland Royal Hospital",null,"RHQ","LANCASHIRE TEACHING HOSPITALS NHS FOUNDATION TRUST",null,"RHQ","LANCASHIRE TEACHING HOSPITALS NHS FOUNDATION TRUST","RD121","Goole and District Hospital (Acute)"]
[null,null,null,null,null,null,null,null,null,null,null,null,null,null,"QXU","SURREY HEARTLANDS ICB",null,"QXU","SURREY HEARTLANDS ICB",null,"QHM","RTD","THE NEWCASTLE UPON TYNE HOSPITALS NHS FOUNDATION TRUST","RTD02","The Royal Victoria Infirmary",null,"RHU","LEEDS TEACHING HOSPITALS NHS TRUST",null,"RHU","LEEDS TEACHING HOSPITALS NHS TRUST","RD129","Grantham and District Hospital"]
[null,null,null,null,null,null,null,null,null,null,null,null,null,null,"QYG","CHESHIRE AND MERSEYSIDE ICB",null,"QYG","CHESHIRE AND MERSEYSIDE ICB",null,"QJ2","RFS","CHESTERFIELD ROYAL HOSPITAL NHS FOUNDATION TRUST","RFSDA","Chesterfield Royal Hospital",null,"RHW","LEWISHAM AND GREENWICH NHS TRUST",null,"RHW","LEWISHAM AND GREENWICH NHS TRUST","RD816","Harrogate District Hospital"]
[null,null,null,null,null,null,null,null,null,null,null,null,null,null,null,null,null,null,null,null,"QJ2","RTG","UNIVERSITY HOSPITALS OF DERBY AND BURTON NHS FOUNDATION TRUST","RTG02","Queens Hospital, Burton Upon Trent",null,"RJ1","LIVERPOOL WOMEN'S NHS FOUNDATION TRUST",null,"RJ1","LIVERPOOL WOMEN'S NHS FOUNDATION TRUST","RDE03","Heartlands Hospital"]
[null,null,null,null,null,null,null,null,null,null,null,null,null,null,null,null,null,null,null,null,"QJ2","RTG","UNIVERSITY HOSPITALS OF DERBY AND BURTON NHS FOUNDATION TRUST","RTGFG","Royal Derby Hospital",null,"RJ2","LONDON NORTH WEST UNIVERSITY HEALTHCARE NHS TRUST",null,"RJ2","LONDON NORTH WEST UNIVERSITY HEALTHCARE NHS TRUST","RDEE4","Hereford County Hospital"]
[null,null,null,null,null,null,null,null,null,null,null,null,null,null,null,null,null,null,null,null,"QJG","RDE","EAST SUFFOLK AND NORTH ESSEX NHS FOUNDATION TRUST","RDEE4","Colchester General Hospital",null,"RJ7","MAIDSTONE AND TUNBRIDGE WELLS NHS TRUST",null,"RJ7","MAIDSTONE AND TUNBRIDGE WELLS NHS TRUST","RDU01","Hertford County Hospital"]
[null,null,null,null,null,null,null,null,null,null,null,null,null,null,null,null,null,null,null,null,"QJG","RDE","EAST SUFFOLK AND NORTH ESSEX NHS FOUNDATION TRUST","RDE03","Ipswich Hospital",null,"RJC","MANCHESTER UNIVERSITY NHS FOUNDATION TRUST",null,"RJC","MANCHESTER UNIVERSITY NHS FOUNDATION TRUST","REF12","Hillingdon Hospital"]
[null,null,null,null,null,null,null,null,null,null,null,null,null,null,null,null,null,null,null,null,"QJG","RGR","WEST SUFFOLK NHS FOUNDATION TRUST","RGR50","West Suffolk Hospital",null,"RJE","MEDWAY NHS FOUNDATION TRUST",null,"RJE","MEDWAY NHS FOUNDATION TRUST","REFXXX","Hinchingbrooke Hospital"]
[null,null,null,null,null,null,null,null,null,null,null,null,null,null,null,null,null,null,null,null,"QJK","RH8","ROYAL DEVON UNIVERSITY HEALTHCARE NHS FOUNDATION TRUST","RH880","North Devon District Hospital",null,"RJL","MERSEY AND WEST LANCASHIRE TEACHING HOSPITALS NHS TRUST",null,"RJL","MERSEY AND WEST LANCASHIRE TEACHING HOSPITALS NHS TRUST","REP01","Homerton University Hospital"]
[null,null,null,null,null,null,null,null,null,null,null,null,null,null,null,null,null,null,null,null,"QJK","RH8","ROYAL DEVON UNIVERSITY HEALTHCARE NHS FOUNDATION TRUST","RH801","Royal Devon and Exeter Hospital (Wonford)",null,"RJN","MID AND SOUTH ESSEX NHS FOUNDATION TRUST",null,"RJN","MID AND SOUTH ESSEX NHS FOUNDATION TRUST","RF4XXX","Hospital Of St Cross"]
[null,null,null,null,null,null,null,null,null,null,null,null,null,null,null,null,null,null,null,null,"QJK","RA9","TORBAY AND SOUTH DEVON NHS FOUNDATION TRUST","RA901","Torbay Hospital",null,"RJR","MID CHESHIRE HOSPITALS NHS FOUNDATION TRUST",null,"RJR","MID CHESHIRE HOSPITALS NHS FOUNDATION TRUST","RFFAA","Huddersfield Royal Infirmary"]
[null,null,null,null,null,null,null,null,null,null,null,null,null,null,null,null,null,null,null,null,"QJK","RK9","UNIVERSITY HOSPITALS PLYMOUTH NHS TRUST","RK9XXX","Non-hospital site",null,"RK5","MID YORKSHIRE TEACHING NHS TRUST",null,"RK5","MID YORKSHIRE TEACHING NHS TRUST","RFRPA","Hull Royal Infirmary"]
[null,null,null,null,null,null,null,null,null,null,null,null,null,null,null,null,null,null,null,null,"QJM","RWD","UNITED LINCOLNSHIRE TEACHING HOSPITALS NHS TRUST","RWDLP","Grantham and District Hospital",null,"RK9","MILTON KEYNES UNIVERSITY HOSPITAL NHS FOUNDATION TRUST",null,"RK9","MILTON KEYNES UNIVERSITY HOSPITAL NHS FOUNDATION TRUST","RFSDA","Ipswich Hospital"]
[null,null,null,null,null,null,null,null,null,null,null,null,null,null,null,null,null,null,null,null,"QJM","RWD","UNITED LINCOLNSHIRE TEACHING HOSPITALS NHS TRUST","RWDDA","Lincoln County Hospital",null,"RKB","NORFOLK AND NORWICH UNIVERSITY HOSPITALS NHS FOUNDATION TRUST",null,"RKB","NORFOLK AND NORWICH UNIVERSITY HOSPITALS NHS FOUNDATION TRUST","RGN80","James Paget University Hospital"]
[null,null,null,null,null,null,null,null,null,null,null,null,null,null,null,null,null,null,null,null,"QJM","RWD","UNITED LINCOLNSHIRE TEACHING HOSPITALS NHS TRUST","RWDLA","Pilgrim Hospital",null,"RKE","NORTH BRISTOL NHS TRUST",null,"RKE","NORTH BRISTOL NHS TRUST","RGN90","John Radcliffe Hospital"]
[null,null,null,null,null,null,null,null,null,null,null,null,null,null,null,null,null,null,null,null,"QK1","RWE","UNIVERSITY HOSPITALS OF LEICESTER NHS TRUST","RWEAK","Leicester General Hospital",null,"RL4","NORTH CUMBRIA INTEGRATED CARE NHS FOUNDATION TRUST",null,"RL4","NORTH CUMBRIA INTEGRATED CARE NHS FOUNDATION TRUST","RGP75","Kent and Canterbury Hospital"]
[null,null,null,null,null,null,null,null,null,null,null,null,null,null,null,null,null,null,null,null,"QK1","RWE","UNIVERSITY HOSPITALS OF LEICESTER NHS TRUST","RWEAA","Leicester Royal Infirmary",null,"RLQ","NORTH TEES AND HARTLEPOOL NHS FOUNDATION TRUST",null,"RLQ","NORTH TEES AND HARTLEPOOL NHS FOUNDATION TRUST","RGR50","Kettering General Hospital"]
[null,null,null,null,null,null,null,null,null,null,null,null,null,null,null,null,null,null,null,null,"QK1","RWE","UNIVERSITY HOSPITALS OF LEICESTER NHS TRUST","RWEXXX","Non-hospital site",null,"RLT","NORTH WEST ANGLIA NHS FOUNDATION TRUST",null,"RLT","NORTH WEST ANGLIA NHS FOUNDATION TRUST","RGT32","Kidderminster Hospital"]
[null,null,null,null,null,null,null,null,null,null,null,null,null,null,null,null,null,null,null,null,"QK1","RWE","UNIVERSITY HOSPITALS OF LEICESTER NHS TRUST","RWE10","St Mary's Hospital",null,"RM1","NORTHAMPTON GENERAL HOSPITAL NHS TRUST",null,"RM1","NORTHAMPTON GENERAL HOSPITAL NHS TRUST","RH5A8","King's Mill Hospital"]
[null,null,null,null,null,null,null,null,null,null,null,null,null,null,null,null,null,null,null,null,"QKK","RJ1","GUY'S AND ST THOMAS' NHS FOUNDATION TRUST","RJ122","St Thomas' Hospital",null,"RMC","NORTHERN LINCOLNSHIRE AND GOOLE NHS FOUNDATION TRUST",null,"RMC","NORTHERN LINCOLNSHIRE AND GOOLE NHS FOUNDATION TRUST","RH5K6","Kingston Hospital"]
[null,null,null,null,null,null,null,null,null,null,null,null,null,null,null,null,null,null,null,null,"QKK","RJ2","LEWISHAM AND GREENWICH NHS TRUST","RJ2XXX","Non-hospital site",null,"RMP","NORTHUMBRIA HEALTHCARE NHS FOUNDATION TRUST",null,"RMP","NORTHUMBRIA HEALTHCARE NHS FOUNDATION TRUST","RH5O4","Leeds General Infirmary"]
[null,null,null,null,null,null,null,null,null,null,null,null,null,null,null,null,null,null,null,null,"QKK","RJ2","LEWISHAM AND GREENWICH NHS TRUST","RJ231","Queen Elizabeth Hospital",null,"RN3","NOTTINGHAM UNIVERSITY HOSPITALS NHS TRUST",null,"RN3","NOTTINGHAM UNIVERSITY HOSPITALS NHS TRUST","RH5XXXX","Leicester General Hospital"]
[null,null,null,null,null,null,null,null,null,null,null,null,null,null,null,null,null,null,null,null,"QKK","RJ2","LEWISHAM AND GREENWICH NHS TRUST","RJ224","University Hospital Lewisham",null,"RN5","OXFORD UNIVERSITY HOSPITALS NHS FOUNDATION TRUST",null,"RN5","OXFORD UNIVERSITY HOSPITALS NHS FOUNDATION TRUST","RH801","Leicester Royal Infirmary"]
[null,null,null,null,null,null,null,null,null,null,null,null,null,null,null,null,null,null,null,null,"QKS","RN7","DARTFORD AND GRAVESHAM NHS TRUST","RN707","Darent Valley Hospital",null,"RN7","PORTSMOUTH HOSPITALS UNIVERSITY NATIONAL HEALTH SERVICE TRUST",null,"RN7","PORTSMOUTH HOSPITALS UNIVERSITY NATIONAL HEALTH SERVICE TRUST","RH880","Leighton Hospital"]
[null,null,null,null,null,null,null,null,null,null,null,null,null,null,null,null,null,null,null,null,"QKS","RVV","EAST KENT HOSPITALS UNIVERSITY NHS FOUNDATION TRUST","RVV02","Buckland Hospital",null,"RNA","ROYAL BERKSHIRE NHS FOUNDATION TRUST",null,"RNA","ROYAL BERKSHIRE NHS FOUNDATION TRUST","RHM12","Lincoln County Hospital"]
[null,null,null,null,null,null,null,null,null,null,null,null,null,null,null,null,null,null,null,null,"QKS","RVV","EAST KENT HOSPITALS UNIVERSITY NHS FOUNDATION TRUST","RVVKC","Kent and Canterbury Hospital",null,"RNN","ROYAL CORNWALL HOSPITALS NHS TRUST",null,"RNN","ROYAL CORNWALL HOSPITALS NHS TRUST","RHQHH","Lister Hospital"]
[null,null,null,null,null,null,null,null,null,null,null,null,null,null,null,null,null,null,null,null,"QKS","RVV","EAST KENT HOSPITALS UNIVERSITY NHS FOUNDATION TRUST","RVVXXX","Non-hospital site",null,"RNQ","ROYAL DEVON UNIVERSITY HEALTHCARE NHS FOUNDATION TRUST",null,"RNQ","ROYAL DEVON UNIVERSITY HEALTHCARE NHS FOUNDATION TRUST","RHU03","Liverpool Womens Hospital"]
[null,null,null,null,null,null,null,null,null,null,null,null,null,null,null,null,null,null,null,null,"QKS","RVV","EAST KENT HOSPITALS UNIVERSITY NHS FOUNDATION TRUST","RVV09","Queen Elizabeth The Queen Mother Hospital",null,"RNS","ROYAL FREE LONDON NHS FOUNDATION TRUST",null,"RNS","ROYAL FREE LONDON NHS FOUNDATION TRUST","RHW01","Luton and Dunstable Hospital"]
[null,null,null,null,null,null,null,null,null,null,null,null,null,null,null,null,null,null,null,null,"QKS","RVV","EAST KENT HOSPITALS UNIVERSITY NHS FOUNDATION TRUST","RVV01","William Harvey Hospital (Ashford)",null,"RNZ","ROYAL SURREY COUNTY HOSPITAL NHS FOUNDATION TRUST",null,"RNZ","ROYAL SURREY COUNTY HOSPITAL NHS FOUNDATION TRUST","RJ122","Macclesfield District General Hospital"]
[null,null,null,null,null,null,null,null,null,null,null,null,null,null,null,null,null,null,null,null,"QKS","RWF","MAIDSTONE AND TUNBRIDGE WELLS NHS TRUST","RWF03","Maidstone District General Hospital",null,"RP5","ROYAL UNITED HOSPITALS BATH NHS FOUNDATION TRUST",null,"RP5","ROYAL UNITED HOSPITALS BATH NHS FOUNDATION TRUST","RJ224","Maidstone District General Hospital"]
[null,null,null,null,null,null,null,null,null,null,null,null,null,null,null,null,null,null,null,null,"QKS","RWF","MAIDSTONE AND TUNBRIDGE WELLS NHS TRUST","RWFXXX","Non-hospital site",null,"RPA","SALISBURY NHS FOUNDATION TRUST",null,"RPA","SALISBURY NHS FOUNDATION TRUST","RJ231","Manor Hospital"]
[null,null,null,null,null,null,null,null,null,null,null,null,null,null,null,null,null,null,null,null,"QKS","RWF","MAIDSTONE AND TUNBRIDGE WELLS NHS TRUST","RWFTW","The Tunbridge Wells Hospital",null,"RQ3","SANDWELL AND WEST BIRMINGHAM HOSPITALS NHS TRUST",null,"RQ3","SANDWELL AND WEST BIRMINGHAM HOSPITALS NHS TRUST","RJ2XXX","Medway Maritime Hospital"]
[null,null,null,null,null,null,null,null,null,null,null,null,null,null,null,null,null,null,null,null,"QKS","RPA","MEDWAY NHS FOUNDATION TRUST","RPA02","Medway Maritime Hospital",null,"RQM","SHEFFIELD TEACHING HOSPITALS NHS FOUNDATION TRUST",null,"RQM","SHEFFIELD TEACHING HOSPITALS NHS FOUNDATION TRUST","RJ701","MID ESSEX HOSPITAL"]
[null,null,null,null,null,null,null,null,null,null,null,null,null,null,null,null,null,null,null,null,"QM7","RWH","EAST AND NORTH HERTFORDSHIRE NHS TRUST","RWH23","Hertford County Hospital",null,"RQW","SHERWOOD FOREST HOSPITALS NHS FOUNDATION TRUST",null,"RQW","SHERWOOD FOREST HOSPITALS NHS FOUNDATION TRUST","RJC02","Milton Keynes Hospital"]
[null,null,null,null,null,null,null,null,null,null,null,null,null,null,null,null,null,null,null,null,"QM7","RWH","EAST AND NORTH HERTFORDSHIRE NHS TRUST","RWH01","Lister Hospital",null,"RQX","SOMERSET NHS FOUNDATION TRUST",null,"RQX","SOMERSET NHS FOUNDATION TRUST","RJCXXX","MUSGROVE PARK HOSPITAL"]
[null,null,null,null,null,null,null,null,null,null,null,null,null,null,null,null,null,null,null,null,"QM7","RWH","EAST AND NORTH HERTFORDSHIRE NHS TRUST","RWHXXX","Non-hospital site",null,"RR7","SOUTH TEES HOSPITALS NHS FOUNDATION TRUST",null,"RR7","SOUTH TEES HOSPITALS NHS FOUNDATION TRUST","RJE01","New Cross Hospital"]
[null,null,null,null,null,null,null,null,null,null,null,null,null,null,null,null,null,null,null,null,"QM7","RWH","EAST AND NORTH HERTFORDSHIRE NHS TRUST","RWH20","Queen Elizabeth I I Hospital",null,"RR8","SOUTH TYNESIDE AND SUNDERLAND NHS FOUNDATION TRUST",null,"RR8","SOUTH TYNESIDE AND SUNDERLAND NHS FOUNDATION TRUST","RJEXXX","Newham General Hospital"]
[null,null,null,null,null,null,null,null,null,null,null,null,null,null,null,null,null,null,null,null,"QM7","RQW","THE PRINCESS ALEXANDRA HOSPITAL NHS TRUST","RQWG0","Princess Alexandra Hospital",null,"RRF","SOUTH WARWICKSHIRE UNIVERSITY NHS FOUNDATION TRUST",null,"RRF","SOUTH WARWICKSHIRE UNIVERSITY NHS FOUNDATION TRUST","RJL30","Non-hospital site"]
[null,null,null,null,null,null,null,null,null,null,null,null,null,null,null,null,null,null,null,null,"QM7","RWG","WEST HERTFORDSHIRE TEACHING HOSPITALS NHS TRUST","RWG02","Watford General Hospital",null,"RRK","ST GEORGE'S UNIVERSITY HOSPITALS NHS FOUNDATION TRUST",null,"RRK","ST GEORGE'S UNIVERSITY HOSPITALS NHS FOUNDATION TRUST","RJL31","Non-hospital site"]
[null,null,null,null,null,null,null,null,null,null,null,null,null,null,null,null,null,null,null,null,"QMF","RF4","BARKING, HAVERING AND REDBRIDGE UNIVERSITY HOSPITALS NHS TRUST","RF4XXX","Non-hospital site",null,"RRV","STOCKPORT NHS FOUNDATION TRUST",null,"RRV","STOCKPORT NHS FOUNDATION TRUST","RJL32","Non-hospital site"]
[null,null,null,null,null,null,null,null,null,null,null,null,null,null,null,null,null,null,null,null,"QMF","R1H","BARTS HEALTH NHS TRUST","R1HNH","Newham General Hospital",null,"RTD","SURREY AND SUSSEX HEALTHCARE NHS TRUST",null,"RTD","SURREY AND SUSSEX HEALTHCARE NHS TRUST","RJN71","Non-hospital site"]
[null,null,null,null,null,null,null,null,null,null,null,null,null,null,null,null,null,null,null,null,"QMF","R1H","BARTS HEALTH NHS TRUST","R1H12","The Royal London Hospital",null,"RTF","TAMESIDE AND GLOSSOP INTEGRATED CARE NHS FOUNDATION TRUST",null,"RTF","TAMESIDE AND GLOSSOP INTEGRATED CARE NHS FOUNDATION TRUST","RJR05","Non-hospital site"]
[null,null,null,null,null,null,null,null,null,null,null,null,null,null,null,null,null,null,null,null,"QMF","R1H","BARTS HEALTH NHS TRUST","R1HKH","Whipps Cross University Hospital",null,"RTG","THE DUDLEY GROUP NHS FOUNDATION TRUST",null,"RTG","THE DUDLEY GROUP NHS FOUNDATION TRUST","RK5BC","Non-hospital site"]
[null,null,null,null,null,null,null,null,null,null,null,null,null,null,null,null,null,null,null,null,"QMF","RQX","HOMERTON HEALTHCARE NHS FOUNDATION TRUST","RQXM1","Homerton University Hospital",null,"RTH","THE HILLINGDON HOSPITALS NHS FOUNDATION TRUST",null,"RTH","THE HILLINGDON HOSPITALS NHS FOUNDATION TRUST","RK9XXX","Non-hospital site"]
[null,null,null,null,null,null,null,null,null,null,null,null,null,null,null,null,null,null,null,null,"QMJ","RAL","ROYAL FREE LONDON NHS FOUNDATION TRUST","RAL26","Barnet Hospital",null,"RTK","THE NEWCASTLE UPON TYNE HOSPITALS NHS FOUNDATION TRUST",null,"RTK","THE NEWCASTLE UPON TYNE HOSPITALS NHS FOUNDATION TRUST","RKB01","Non-hospital site"]
[null,null,null,null,null,null,null,null,null,null,null,null,null,null,null,null,null,null,null,null,"QMJ","RAL","ROYAL FREE LONDON NHS FOUNDATION TRUST","RALC7","Chase Farm Hospital ",null,"RTP","THE PRINCESS ALEXANDRA HOSPITAL NHS TRUST",null,"RTP","THE PRINCESS ALEXANDRA HOSPITAL NHS TRUST","RKB03","Non-hospital site"]
[null,null,null,null,null,null,null,null,null,null,null,null,null,null,null,null,null,null,null,null,"QMJ","RAL","ROYAL FREE LONDON NHS FOUNDATION TRUST","RAL22","Finchley Memorial Hospital",null,"RTR","THE QUEEN ELIZABETH HOSPITAL, KING'S LYNN, NHS FOUNDATION TRUST",null,"RTR","THE QUEEN ELIZABETH HOSPITAL, KING'S LYNN, NHS FOUNDATION TRUST","RKBXXX","Non-hospital site"]
[null,null,null,null,null,null,null,null,null,null,null,null,null,null,null,null,null,null,null,null,"QMJ","RAL","ROYAL FREE LONDON NHS FOUNDATION TRUST","E3M3C","NORTH MIDDLESEX HOSPITAL DSU - ELECTIVE SURGICAL HUB",null,"RTX","THE ROTHERHAM NHS FOUNDATION TRUST",null,"RTX","THE ROTHERHAM NHS FOUNDATION TRUST","RKEQ4","Non-hospital site"]
[null,null,null,null,null,null,null,null,null,null,null,null,null,null,null,null,null,null,null,null,"QMJ","RAL","ROYAL FREE LONDON NHS FOUNDATION TRUST","RAL01","Royal Free Hospital",null,"RVJ","THE ROYAL WOLVERHAMPTON NHS TRUST",null,"RVJ","THE ROYAL WOLVERHAMPTON NHS TRUST","RKEXXX","Non-hospital site"]
[null,null,null,null,null,null,null,null,null,null,null,null,null,null,null,null,null,null,null,null,"QMJ","RRV","UNIVERSITY COLLEGE LONDON HOSPITALS NHS FOUNDATION TRUST","RRV11","University College Hospital Elizabeth Garrett Anderson Wing",null,"RVR","THE SHREWSBURY AND TELFORD HOSPITAL NHS TRUST",null,"RVR","THE SHREWSBURY AND TELFORD HOSPITAL NHS TRUST","RL403","Non-hospital site"]
[null,null,null,null,null,null,null,null,null,null,null,null,null,null,null,null,null,null,null,null,"QMJ","RKE","WHITTINGTON HEALTH NHS TRUST","RKEXXX","Non-hospital site",null,"RVV","TORBAY AND SOUTH DEVON NHS FOUNDATION TRUST",null,"RVV","TORBAY AND SOUTH DEVON NHS FOUNDATION TRUST","RLQ01","Non-hospital site"]
[null,null,null,null,null,null,null,null,null,null,null,null,null,null,null,null,null,null,null,null,"QMJ","RKE","WHITTINGTON HEALTH NHS TRUST","RKEQ4","The Whittington Hospital",null,"RVW","UNITED LINCOLNSHIRE TEACHING HOSPITALS NHS TRUST",null,"RVW","UNITED LINCOLNSHIRE TEACHING HOSPITALS NHS TRUST","RLT01","Non-hospital site"]
[null,null,null,null,null,null,null,null,null,null,null,null,null,null,null,null,null,null,null,null,"QMM","RGP","JAMES PAGET UNIVERSITY HOSPITALS NHS FOUNDATION TRUST","RGP75","James Paget University Hospital",null,"RWA","UNIVERSITY COLLEGE LONDON HOSPITALS NHS FOUNDATION TRUST",null,"RWA","UNIVERSITY COLLEGE LONDON HOSPITALS NHS FOUNDATION TRUST","RM102","Non-hospital site"]
[null,null,null,null,null,null,null,null,null,null,null,null,null,null,null,null,null,null,null,null,"QMM","RM1","NORFOLK AND NORWICH UNIVERSITY HOSPITALS NHS FOUNDATION TRUST","RM102","Norfolk and Norwich University Hospital",null,"RWD","UNIVERSITY HOSPITAL SOUTHAMPTON NHS FOUNDATION TRUST",null,"RWD","UNIVERSITY HOSPITAL SOUTHAMPTON NHS FOUNDATION TRUST","RMC01","Non-hospital site"]
[null,null,null,null,null,null,null,null,null,null,null,null,null,null,null,null,null,null,null,null,"QMM","RCX","THE QUEEN ELIZABETH HOSPITAL, KING'S LYNN, NHS FOUNDATION TRUST","RCXXXX","Non-hospital site",null,"RWE","UNIVERSITY HOSPITALS BIRMINGHAM NHS FOUNDATION TRUST",null,"RWE","UNIVERSITY HOSPITALS BIRMINGHAM NHS FOUNDATION TRUST","RMP01","Non-hospital site"]
[null,null,null,null,null,null,null,null,null,null,null,null,null,null,null,null,null,null,null,null,"QMM","RCX","THE QUEEN ELIZABETH HOSPITAL, KING'S LYNN, NHS FOUNDATION TRUST","RCX66","North Cambridgeshire Hospital",null,"RWF","UNIVERSITY HOSPITALS BRISTOL AND WESTON NHS FOUNDATION TRUST",null,"RWF","UNIVERSITY HOSPITALS BRISTOL AND WESTON NHS FOUNDATION TRUST","RN325","Non-hospital site"]
[null,null,null,null,null,null,null,null,null,null,null,null,null,null,null,null,null,null,null,null,"QMM","RCX","THE QUEEN ELIZABETH HOSPITAL, KING'S LYNN, NHS FOUNDATION TRUST","RCX70","The Queen Elizabeth Hospital",null,"RWG","UNIVERSITY HOSPITALS COVENTRY AND WARWICKSHIRE NHS TRUST",null,"RWG","UNIVERSITY HOSPITALS COVENTRY AND WARWICKSHIRE NHS TRUST","RN506","Non-hospital site"]
[null,null,null,null,null,null,null,null,null,null,null,null,null,null,null,null,null,null,null,null,"QNC","RJE","UNIVERSITY HOSPITALS OF NORTH MIDLANDS NHS TRUST","RJEXXX","Non-hospital site",null,"RWH","UNIVERSITY HOSPITALS DORSET NHS FOUNDATION TRUST",null,"RWH","UNIVERSITY HOSPITALS DORSET NHS FOUNDATION TRUST","RN541","Non-hospital site"]
[null,null,null,null,null,null,null,null,null,null,null,null,null,null,null,null,null,null,null,null,"QNC","RJE","UNIVERSITY HOSPITALS OF NORTH MIDLANDS NHS TRUST","RJE01","Royal Stoke University Hospital",null,"RWJ","UNIVERSITY HOSPITALS OF DERBY AND BURTON NHS FOUNDATION TRUST",null,"RWJ","UNIVERSITY HOSPITALS OF DERBY AND BURTON NHS FOUNDATION TRUST","RN542","Non-hospital site"]
[null,null,null,null,null,null,null,null,null,null,null,null,null,null,null,null,null,null,null,null,"QNQ","RDU","FRIMLEY HEALTH NHS FOUNDATION TRUST","RDU01","Frimley Park Hospital",null,"RWP","UNIVERSITY HOSPITALS OF LEICESTER NHS TRUST",null,"RWP","UNIVERSITY HOSPITALS OF LEICESTER NHS TRUST","RN5XXX","Non-hospital site home/in-transit births"]
[null,null,null,null,null,null,null,null,null,null,null,null,null,null,null,null,null,null,null,null,"QOC","RXW","THE SHREWSBURY AND TELFORD HOSPITAL NHS TRUST","RXWAS","Royal Shrewsbury Hospital",null,"RWW","UNIVERSITY HOSPITALS OF MORECAMBE BAY NHS FOUNDATION TRUST",null,"RWW","UNIVERSITY HOSPITALS OF MORECAMBE BAY NHS FOUNDATION TRUST","RN707","Norfolk and Norwich University Hospital"]
[null,null,null,null,null,null,null,null,null,null,null,null,null,null,null,null,null,null,null,null,"QOC","RXW","THE SHREWSBURY AND TELFORD HOSPITAL NHS TRUST","RXWAT","The Princess Royal Hospital",null,"RWY","UNIVERSITY HOSPITALS OF NORTH MIDLANDS NHS TRUST",null,"RWY","UNIVERSITY HOSPITALS OF NORTH MIDLANDS NHS TRUST","RNA01","North Cambridgeshire Hospital"]
[null,null,null,null,null,null,null,null,null,null,null,null,null,null,null,null,null,null,null,null,"QOP","RMC","BOLTON NHS FOUNDATION TRUST","RMC01","Royal Bolton Hospital",null,"RX1","UNIVERSITY HOSPITALS PLYMOUTH NHS TRUST",null,"RX1","UNIVERSITY HOSPITALS PLYMOUTH NHS TRUST","RNN62","North Devon District Hospital"]
[null,null,null,null,null,null,null,null,null,null,null,null,null,null,null,null,null,null,null,null,"QOP","R0A","MANCHESTER UNIVERSITY NHS FOUNDATION TRUST","R0A05","St Mary's Hospital",null,"RXF","WALSALL HEALTHCARE NHS TRUST",null,"RXF","WALSALL HEALTHCARE NHS TRUST","RNQ51","NORTH MIDDLESEX HOSPITAL DSU - ELECTIVE SURGICAL HUB"]
[null,null,null,null,null,null,null,null,null,null,null,null,null,null,null,null,null,null,null,null,"QOP","RWJ","STOCKPORT NHS FOUNDATION TRUST","RWJ09","Stepping Hill Hospital",null,"RXK","WARRINGTON AND HALTON TEACHING HOSPITALS NHS FOUNDATION TRUST",null,"RXK","WARRINGTON AND HALTON TEACHING HOSPITALS NHS FOUNDATION TRUST","RNS01","Northampton General Hospital (Acute)"]
[null,null,null,null,null,null,null,null,null,null,null,null,null,null,null,null,null,null,null,null,"QOP","RMP","TAMESIDE AND GLOSSOP INTEGRATED CARE NHS FOUNDATION TRUST","RMP01","Tameside General Hospital",null,"RXL","WEST HERTFORDSHIRE TEACHING HOSPITALS NHS TRUST",null,"RXL","WEST HERTFORDSHIRE TEACHING HOSPITALS NHS TRUST","RNZ02","Northwick Park Hospital"]
[null,null,null,null,null,null,null,null,null,null,null,null,null,null,null,null,null,null,null,null,"QOP","RRF","WRIGHTINGTON, WIGAN AND LEIGH NHS FOUNDATION TRUST","RRF02","Royal Albert Edward Infirmary",null,"RXN","WEST SUFFOLK NHS FOUNDATION TRUST",null,"RXN","WEST SUFFOLK NHS FOUNDATION TRUST","RP5BA","Nottingham University Hospitals NHS Trust - City Campus"]
[null,null,null,null,null,null,null,null,null,null,null,null,null,null,null,null,null,null,null,null,"QOP","RRF","WRIGHTINGTON, WIGAN AND LEIGH NHS FOUNDATION TRUST","RRF54","Thomas Linacre Outpatient Centre",null,"RXP","WHITTINGTON HEALTH NHS TRUST",null,"RXP","WHITTINGTON HEALTH NHS TRUST","RP5DR","Nottingham University Hospitals NHS Trust - Queen's Medical Centre Campus"]
[null,null,null,null,null,null,null,null,null,null,null,null,null,null,null,null,null,null,null,null,"QOQ","RCD","HARROGATE AND DISTRICT NHS FOUNDATION TRUST","RCD01","Harrogate District Hospital",null,"RXQ","WIRRAL UNIVERSITY TEACHING HOSPITAL NHS FOUNDATION TRUST",null,"RXQ","WIRRAL UNIVERSITY TEACHING HOSPITAL NHS FOUNDATION TRUST","RP5XXX","Ormskirk and District General Hospital"]
[null,null,null,null,null,null,null,null,null,null,null,null,null,null,null,null,null,null,null,null,"QOQ","RWA","HULL UNIVERSITY TEACHING HOSPITALS NHS TRUST","RWA01","Hull Royal Infirmary",null,"RXR","WORCESTERSHIRE ACUTE HOSPITALS NHS TRUST",null,"RXR","WORCESTERSHIRE ACUTE HOSPITALS NHS TRUST","RPA02","Paulton Memorial Hospital "]
[null,null,null,null,null,null,null,null,null,null,null,null,null,null,null,null,null,null,null,null,"QOQ","RJL","NORTHERN LINCOLNSHIRE AND GOOLE NHS FOUNDATION TRUST","RJL30","Diana, Princess Of Wales Hospital",null,"RXW","WRIGHTINGTON, WIGAN AND LEIGH NHS FOUNDATION TRUST",null,"RXW","WRIGHTINGTON, WIGAN AND LEIGH NHS FOUNDATION TRUST","RQ370","Peterborough City Hospital"]
[null,null,null,null,null,null,null,null,null,null,null,null,null,null,null,null,null,null,null,null,"QOQ","RJL","NORTHERN LINCOLNSHIRE AND GOOLE NHS FOUNDATION TRUST","RJL31","Goole and District Hospital (Acute)",null,"RYJ","WYE VALLEY NHS TRUST",null,"RYJ","WYE VALLEY NHS TRUST","RQM01","Pilgrim Hospital"]
[null,null,null,null,null,null,null,null,null,null,null,null,null,null,null,null,null,null,null,null,"QOQ","RJL","NORTHERN LINCOLNSHIRE AND GOOLE NHS FOUNDATION TRUST","RJL32","Scunthorpe General Hospital",null,null,null,null,null,null,"RQM91","Pinderfields General Hospital"]
[null,null,null,null,null,null,null,null,null,null,null,null,null,null,null,null,null,null,null,null,"QOX","RN3","GREAT WESTERN HOSPITALS NHS FOUNDATION TRUST","RN325","The Great Western Hospital",null,null,null,null,null,null,"RQWG0","Pontefract General Infirmary"]
[null,null,null,null,null,null,null,null,null,null,null,null,null,null,null,null,null,null,null,null,"QOX","RD1","ROYAL UNITED HOSPITALS BATH NHS FOUNDATION TRUST","RD102","Chippenham Community Hospital ",null,null,null,null,null,null,"RQXM1","Poole Hospital"]
[null,null,null,null,null,null,null,null,null,null,null,null,null,null,null,null,null,null,null,null,"QOX","RD1","ROYAL UNITED HOSPITALS BATH NHS FOUNDATION TRUST","RD121","Frome Community Hospital ",null,null,null,null,null,null,"RR7EN","Princess Alexandra Hospital"]
[null,null,null,null,null,null,null,null,null,null,null,null,null,null,null,null,null,null,null,null,"QOX","RD1","ROYAL UNITED HOSPITALS BATH NHS FOUNDATION TRUST","RD129","Paulton Memorial Hospital ",null,null,null,null,null,null,"RR801","Princess Anne Hospital"]
[null,null,null,null,null,null,null,null,null,null,null,null,null,null,null,null,null,null,null,null,"QOX","RD1","ROYAL UNITED HOSPITALS BATH NHS FOUNDATION TRUST","RD108","Trowbridge Community Hospital ",null,null,null,null,null,null,"RR813","Queen Alexandra Hospital"]
[null,null,null,null,null,null,null,null,null,null,null,null,null,null,null,null,null,null,null,null,"QOX","RNZ","SALISBURY NHS FOUNDATION TRUST","RNZ02","Salisbury District Hospital",null,null,null,null,null,null,"RR8XXX","Queen Charlotte's Hospital"]
[null,null,null,null,null,null,null,null,null,null,null,null,null,null,null,null,null,null,null,null,"QPM","RNQ","KETTERING GENERAL HOSPITAL NHS FOUNDATION TRUST","RNQ51","Kettering General Hospital",null,null,null,null,null,null,"RRF02","Queen Elizabeth Hospital"]
[null,null,null,null,null,null,null,null,null,null,null,null,null,null,null,null,null,null,null,null,"QPM","RNS","NORTHAMPTON GENERAL HOSPITAL NHS TRUST","RNS01","Northampton General Hospital (Acute)",null,null,null,null,null,null,"RRF54","Queen Elizabeth Hospital"]
[null,null,null,null,null,null,null,null,null,null,null,null,null,null,null,null,null,null,null,null,"QRL","RN5","HAMPSHIRE HOSPITALS NHS FOUNDATION TRUST","RN542","Andover War Memorial Hospital",null,null,null,null,null,null,"RRK97","Queen Elizabeth I I Hospital"]
[null,null,null,null,null,null,null,null,null,null,null,null,null,null,null,null,null,null,null,null,"QRL","RN5","HAMPSHIRE HOSPITALS NHS FOUNDATION TRUST","RN506","Basingstoke and North Hampshire Hospital",null,null,null,null,null,null,"RRK98","Queen Elizabeth The Queen Mother Hospital"]
[null,null,null,null,null,null,null,null,null,null,null,null,null,null,null,null,null,null,null,null,"QRL","RN5","HAMPSHIRE HOSPITALS NHS FOUNDATION TRUST","RN5XXX","Non-hospital site",null,null,null,null,null,null,"RRK99","Queens Hospital, Burton Upon Trent"]
[null,null,null,null,null,null,null,null,null,null,null,null,null,null,null,null,null,null,null,null,"QRL","RN5","HAMPSHIRE HOSPITALS NHS FOUNDATION TRUST","RN541","Royal Hampshire County Hospital",null,null,null,null,null,null,"RRV11","Rosie Hospital"]
[null,null,null,null,null,null,null,null,null,null,null,null,null,null,null,null,null,null,null,null,"QRL","R1F","ISLE OF WIGHT NHS TRUST","R1F01","St Mary's Hospital",null,null,null,null,null,null,"RTD02","Rotherham District General Hospital"]
[null,null,null,null,null,null,null,null,null,null,null,null,null,null,null,null,null,null,null,null,"QRL","RHU","PORTSMOUTH HOSPITALS UNIVERSITY NATIONAL HEALTH SERVICE TRUST","RHU03","Queen Alexandra Hospital",null,null,null,null,null,null,"RTFXXX","Royal Albert Edward Infirmary"]
[null,null,null,null,null,null,null,null,null,null,null,null,null,null,null,null,null,null,null,null,"QRL","RHM","UNIVERSITY HOSPITAL SOUTHAMPTON NHS FOUNDATION TRUST","RHM12","Princess Anne Hospital",null,null,null,null,null,null,"RTG02","Royal Berkshire Hospital"]
[null,null,null,null,null,null,null,null,null,null,null,null,null,null,null,null,null,null,null,null,"QRV","RQM","CHELSEA AND WESTMINSTER HOSPITAL NHS FOUNDATION TRUST","RQM01","Chelsea and Westminster Hospital",null,null,null,null,null,null,"RTGFG","Royal Blackburn Hospital"]
[null,null,null,null,null,null,null,null,null,null,null,null,null,null,null,null,null,null,null,null,"QRV","RQM","CHELSEA AND WESTMINSTER HOSPITAL NHS FOUNDATION TRUST","RQM91","West Middlesex University Hospital",null,null,null,null,null,null,"RTH08","Royal Bolton Hospital"]
[null,null,null,null,null,null,null,null,null,null,null,null,null,null,null,null,null,null,null,null,"QRV","RYJ","IMPERIAL COLLEGE HEALTHCARE NHS TRUST","RYJ04","Queen Charlotte's Hospital",null,null,null,null,null,null,"RTK02","Royal Bournemouth Hospital"]
[null,null,null,null,null,null,null,null,null,null,null,null,null,null,null,null,null,null,null,null,"QRV","RYJ","IMPERIAL COLLEGE HEALTHCARE NHS TRUST","RYJ01","St Mary's Hospital (HQ)",null,null,null,null,null,null,"RTP04","Royal Cornwall Hospital (Treliske)"]
[null,null,null,null,null,null,null,null,null,null,null,null,null,null,null,null,null,null,null,null,"QRV","R1K","LONDON NORTH WEST UNIVERSITY HEALTHCARE NHS TRUST","R1K01","Northwick Park Hospital",null,null,null,null,null,null,"RTR45","Royal Derby Hospital"]
[null,null,null,null,null,null,null,null,null,null,null,null,null,null,null,null,null,null,null,null,"QRV","RAS","THE HILLINGDON HOSPITALS NHS FOUNDATION TRUST","RAS01","Hillingdon Hospital",null,null,null,null,null,null,"RTRAT","Royal Devon and Exeter Hospital (Wonford)"]
[null,null,null,null,null,null,null,null,null,null,null,null,null,null,null,null,null,null,null,null,"QSL","RH5","SOMERSET NHS FOUNDATION TRUST","RH5K6","Bridgwater Hospital",null,null,null,null,null,null,"RTX02","Royal Free Hospital"]
[null,null,null,null,null,null,null,null,null,null,null,null,null,null,null,null,null,null,null,null,"QSL","RH5","SOMERSET NHS FOUNDATION TRUST","RH5A8","MUSGROVE PARK HOSPITAL",null,null,null,null,null,null,"RTXBU","Royal Hallamshire Hospital"]
[null,null,null,null,null,null,null,null,null,null,null,null,null,null,null,null,null,null,null,null,"QSL","RH5","SOMERSET NHS FOUNDATION TRUST","RH5XXXX","Non-hospital site home/in-transit births",null,null,null,null,null,null,"RTXBW","Royal Hampshire County Hospital"]
[null,null,null,null,null,null,null,null,null,null,null,null,null,null,null,null,null,null,null,null,"QSL","RH5","SOMERSET NHS FOUNDATION TRUST","RH5O4","Yeovil District Hospital",null,null,null,null,null,null,"RVJ01","Royal Lancaster Infirmary"]
[null,null,null,null,null,null,null,null,null,null,null,null,null,null,null,null,null,null,null,null,"QT1","RX1","NOTTINGHAM UNIVERSITY HOSPITALS NHS TRUST","RX1XXX","Non-hospital site",null,null,null,null,null,null,"RVR05","Royal Preston Hospital"]
[null,null,null,null,null,null,null,null,null,null,null,null,null,null,null,null,null,null,null,null,"QT1","RX1","NOTTINGHAM UNIVERSITY HOSPITALS NHS TRUST","RX1CC","Nottingham University Hospitals NHS Trust - City Campus",null,null,null,null,null,null,"RVR50","Royal Shrewsbury Hospital"]
[null,null,null,null,null,null,null,null,null,null,null,null,null,null,null,null,null,null,null,null,"QT1","RX1","NOTTINGHAM UNIVERSITY HOSPITALS NHS TRUST","RX1RA","Nottingham University Hospitals NHS Trust - Queen's Medical Centre Campus",null,null,null,null,null,null,"RVRXXX","Royal Stoke University Hospital"]
[null,null,null,null,null,null,null,null,null,null,null,null,null,null,null,null,null,null,null,null,"QT1","RK5","SHERWOOD FOREST HOSPITALS NHS FOUNDATION TRUST","RK5BC","King's Mill Hospital",null,null,null,null,null,null,"RVV01","Royal Surrey County Hospital"]
[null,null,null,null,null,null,null,null,null,null,null,null,null,null,null,null,null,null,null,null,"QT6","REF","ROYAL CORNWALL HOSPITALS NHS TRUST","REFXXX","Non-hospital site",null,null,null,null,null,null,"RVV02","Russells Hall Hospital"]
[null,null,null,null,null,null,null,null,null,null,null,null,null,null,null,null,null,null,null,null,"QT6","REF","ROYAL CORNWALL HOSPITALS NHS TRUST","REF12","Royal Cornwall Hospital (Treliske)",null,null,null,null,null,null,"RVV09","Salisbury District Hospital"]
[null,null,null,null,null,null,null,null,null,null,null,null,null,null,null,null,null,null,null,null,"QU9","RXQ","BUCKINGHAMSHIRE HEALTHCARE NHS TRUST","RXQ02","Stoke Mandeville Hospital",null,null,null,null,null,null,"RVVKC","Sandwell General Hospital"]
[null,null,null,null,null,null,null,null,null,null,null,null,null,null,null,null,null,null,null,null,"QU9","RXQ","BUCKINGHAMSHIRE HEALTHCARE NHS TRUST","RXQ50","Wycombe Hospital",null,null,null,null,null,null,"RVVXXX","Scunthorpe General Hospital"]
[null,null,null,null,null,null,null,null,null,null,null,null,null,null,null,null,null,null,null,null,"QU9","RTH","OXFORD UNIVERSITY HOSPITALS NHS FOUNDATION TRUST","RTH08","John Radcliffe Hospital",null,null,null,null,null,null,"RVWAE","Solihull Hospital"]
[null,null,null,null,null,null,null,null,null,null,null,null,null,null,null,null,null,null,null,null,"QU9","RHW","ROYAL BERKSHIRE NHS FOUNDATION TRUST","RHW01","Royal Berkshire Hospital",null,null,null,null,null,null,"RVWXXX","South Tyneside District Hospital"]
[null,null,null,null,null,null,null,null,null,null,null,null,null,null,null,null,null,null,null,null,"QUA","RNA","THE DUDLEY GROUP NHS FOUNDATION TRUST","RNA01","Russells Hall Hospital",null,null,null,null,null,null,"RWA01","Southend Hospital"]
[null,null,null,null,null,null,null,null,null,null,null,null,null,null,null,null,null,null,null,null,"QUA","RL4","THE ROYAL WOLVERHAMPTON NHS TRUST","RL403","New Cross Hospital",null,null,null,null,null,null,"RWDDA","Southmead Hospital"]
[null,null,null,null,null,null,null,null,null,null,null,null,null,null,null,null,null,null,null,null,"QUA","RBK","WALSALL HEALTHCARE NHS TRUST","RBK02","Manor Hospital",null,null,null,null,null,null,"RWDLA","St George's Hospital (Tooting)"]
[null,null,null,null,null,null,null,null,null,null,null,null,null,null,null,null,null,null,null,null,"QUE","RGT","CAMBRIDGE UNIVERSITY HOSPITALS NHS FOUNDATION TRUST","RGT32","Rosie Hospital",null,null,null,null,null,null,"RWDLP","St Helier Hospital"]
[null,null,null,null,null,null,null,null,null,null,null,null,null,null,null,null,null,null,null,null,"QUE","RGN","NORTH WEST ANGLIA NHS FOUNDATION TRUST","RGN90","Hinchingbrooke Hospital",null,null,null,null,null,null,"RWE10","St James's University Hospital"]
[null,null,null,null,null,null,null,null,null,null,null,null,null,null,null,null,null,null,null,null,"QUE","RGN","NORTH WEST ANGLIA NHS FOUNDATION TRUST","RGN80","Peterborough City Hospital",null,null,null,null,null,null,"RWEAA","St Mary's Hospital"]
[null,null,null,null,null,null,null,null,null,null,null,null,null,null,null,null,null,null,null,null,"QUY","RVJ","NORTH BRISTOL NHS TRUST","RVJ01","Southmead Hospital",null,null,null,null,null,null,"RWEAK","St Mary's Hospital"]
[null,null,null,null,null,null,null,null,null,null,null,null,null,null,null,null,null,null,null,null,"QUY","RA7","UNIVERSITY HOSPITALS BRISTOL AND WESTON NHS FOUNDATION TRUST","RA707","ST MICHAEL'S HOSPITAL",null,null,null,null,null,null,"RWEXXX","St Mary's Hospital"]
[null,null,null,null,null,null,null,null,null,null,null,null,null,null,null,null,null,null,null,null,"QVV","RBD","DORSET COUNTY HOSPITAL NHS FOUNDATION TRUST","RBD01","Dorset County Hospital",null,null,null,null,null,null,"RWF03","St Mary's Hospital (HQ)"]
[null,null,null,null,null,null,null,null,null,null,null,null,null,null,null,null,null,null,null,null,"QVV","R0D","UNIVERSITY HOSPITALS DORSET NHS FOUNDATION TRUST","R0D01","Poole Hospital",null,null,null,null,null,null,"RWFTW","ST MICHAEL'S HOSPITAL"]
[null,null,null,null,null,null,null,null,null,null,null,null,null,null,null,null,null,null,null,null,"QVV","R0D","UNIVERSITY HOSPITALS DORSET NHS FOUNDATION TRUST","R0D02","Royal Bournemouth Hospital",null,null,null,null,null,null,"RWFXXX","St Thomas' Hospital"]
[null,null,null,null,null,null,null,null,null,null,null,null,null,null,null,null,null,null,null,null,"QWE","RVR","EPSOM AND ST HELIER UNIVERSITY HOSPITALS NHS TRUST","RVR50","Epsom Hospital",null,null,null,null,null,null,"RWG02","Stepping Hill Hospital"]
[null,null,null,null,null,null,null,null,null,null,null,null,null,null,null,null,null,null,null,null,"QWE","RVR","EPSOM AND ST HELIER UNIVERSITY HOSPITALS NHS TRUST","RVRXXX","Non-hospital site",null,null,null,null,null,null,"RWH01","Stoke Mandeville Hospital"]
[null,null,null,null,null,null,null,null,null,null,null,null,null,null,null,null,null,null,null,null,"QWE","RVR","EPSOM AND ST HELIER UNIVERSITY HOSPITALS NHS TRUST","RVR05","St Helier Hospital",null,null,null,null,null,null,"RWH20","Sunderland Royal Hospital"]
[null,null,null,null,null,null,null,null,null,null,null,null,null,null,null,null,null,null,null,null,"QWE","RAX","KINGSTON AND RICHMOND NHS FOUNDATION TRUST","RAX01","Kingston Hospital",null,null,null,null,null,null,"RWH23","Tameside General Hospital"]
[null,null,null,null,null,null,null,null,null,null,null,null,null,null,null,null,null,null,null,null,"QWE","RJ7","ST GEORGE'S UNIVERSITY HOSPITALS NHS FOUNDATION TRUST","RJ701","St George's Hospital (Tooting)",null,null,null,null,null,null,"RWHXXX","The Great Western Hospital"]
[null,null,null,null,null,null,null,null,null,null,null,null,null,null,null,null,null,null,null,null,"QWO","RAE","BRADFORD TEACHING HOSPITALS NHS FOUNDATION TRUST","RAE01","Bradford Royal Infirmary",null,null,null,null,null,null,"RWJ09","The James Cook University Hospital"]
[null,null,null,null,null,null,null,null,null,null,null,null,null,null,null,null,null,null,null,null,"QWO","RWY","CALDERDALE AND HUDDERSFIELD NHS FOUNDATION TRUST","RWY02","Calderdale Royal Hospital",null,null,null,null,null,null,"RWP01","The Princess Royal Hospital"]
[null,null,null,null,null,null,null,null,null,null,null,null,null,null,null,null,null,null,null,null,"QWO","RWY","CALDERDALE AND HUDDERSFIELD NHS FOUNDATION TRUST","RWY01","Huddersfield Royal Infirmary",null,null,null,null,null,null,"RWP31","The Queen Elizabeth Hospital"]
[null,null,null,null,null,null,null,null,null,null,null,null,null,null,null,null,null,null,null,null,"QWO","RWY","CALDERDALE AND HUDDERSFIELD NHS FOUNDATION TRUST","RWYXXX","Non-hospital site",null,null,null,null,null,null,"RWP50","The Royal London Hospital"]
[null,null,null,null,null,null,null,null,null,null,null,null,null,null,null,null,null,null,null,null,"QWO","RR8","LEEDS TEACHING HOSPITALS NHS TRUST","RR801","Leeds General Infirmary",null,null,null,null,null,null,"RWWWH","The Royal Victoria Infirmary"]
[null,null,null,null,null,null,null,null,null,null,null,null,null,null,null,null,null,null,null,null,"QWO","RR8","LEEDS TEACHING HOSPITALS NHS TRUST","RR8XXX","Non-hospital site",null,null,null,null,null,null,"RWY01","The Tunbridge Wells Hospital"]
[null,null,null,null,null,null,null,null,null,null,null,null,null,null,null,null,null,null,null,null,"QWO","RR8","LEEDS TEACHING HOSPITALS NHS TRUST","RR813","St James's University Hospital",null,null,null,null,null,null,"RWY02","The Whittington Hospital"]
[null,null,null,null,null,null,null,null,null,null,null,null,null,null,null,null,null,null,null,null,"QWO","RXF","MID YORKSHIRE TEACHING NHS TRUST","RXF10","Dewsbury and District Hospital",null,null,null,null,null,null,"RWYXXX","Thomas Linacre Outpatient Centre"]
[null,null,null,null,null,null,null,null,null,null,null,null,null,null,null,null,null,null,null,null,"QWO","RXF","MID YORKSHIRE TEACHING NHS TRUST","RXF05","Pinderfields General Hospital",null,null,null,null,null,null,"RX1CC","Torbay Hospital"]
[null,null,null,null,null,null,null,null,null,null,null,null,null,null,null,null,null,null,null,null,"QWO","RXF","MID YORKSHIRE TEACHING NHS TRUST","RXF03","Pontefract General Infirmary",null,null,null,null,null,null,"RX1RA","Trowbridge Community Hospital "]
[null,null,null,null,null,null,null,null,null,null,null,null,null,null,null,null,null,null,null,null,"QWU","RLT","GEORGE ELIOT HOSPITAL NHS TRUST","RLT01","George Eliot Hospital - Acute Services",null,null,null,null,null,null,"RX1XXX","University College Hospital Elizabeth Garrett Anderson Wing"]
[null,null,null,null,null,null,null,null,null,null,null,null,null,null,null,null,null,null,null,null,"QWU","RJC","SOUTH WARWICKSHIRE UNIVERSITY NHS FOUNDATION TRUST","RJCXXX","Non-hospital site",null,null,null,null,null,null,"RXF03","University Hospital (Coventry)"]
[null,null,null,null,null,null,null,null,null,null,null,null,null,null,null,null,null,null,null,null,"QWU","RJC","SOUTH WARWICKSHIRE UNIVERSITY NHS FOUNDATION TRUST","RJC02","Warwick Hospital",null,null,null,null,null,null,"RXF05","University Hospital Lewisham"]
[null,null,null,null,null,null,null,null,null,null,null,null,null,null,null,null,null,null,null,null,"QWU","RKB","UNIVERSITY HOSPITALS COVENTRY AND WARWICKSHIRE NHS TRUST","RKB03","Hospital Of St Cross",null,null,null,null,null,null,"RXF10","University Hospital Of North Durham"]
[null,null,null,null,null,null,null,null,null,null,null,null,null,null,null,null,null,null,null,null,"QWU","RKB","UNIVERSITY HOSPITALS COVENTRY AND WARWICKSHIRE NHS TRUST","RKBXXX","Non-hospital site",null,null,null,null,null,null,"RXK01","University Hospital Of North Tees"]
[null,null,null,null,null,null,null,null,null,null,null,null,null,null,null,null,null,null,null,null,"QWU","RKB","UNIVERSITY HOSPITALS COVENTRY AND WARWICKSHIRE NHS TRUST","RKB01","University Hospital (Coventry)",null,null,null,null,null,null,"RXK02","Warrington Hospital"]
[null,null,null,null,null,null,null,null,null,null,null,null,null,null,null,null,null,null,null,null,"QXU","RTK","ASHFORD AND ST PETER'S HOSPITALS NHS FOUNDATION TRUST","RTK02","Ashford Hospital",null,null,null,null,null,null,"RXL01","Warwick Hospital"]
[null,null,null,null,null,null,null,null,null,null,null,null,null,null,null,null,null,null,null,null,"QXU","RA2","ROYAL SURREY COUNTY HOSPITAL NHS FOUNDATION TRUST","RA201","Royal Surrey County Hospital",null,null,null,null,null,null,"RXN01","Watford General Hospital"]
[null,null,null,null,null,null,null,null,null,null,null,null,null,null,null,null,null,null,null,null,"QXU","RTP","SURREY AND SUSSEX HEALTHCARE NHS TRUST","RTP04","East Surrey Hospital",null,null,null,null,null,null,"RXN02","West Middlesex University Hospital"]
[null,null,null,null,null,null,null,null,null,null,null,null,null,null,null,null,null,null,null,null,"QYG","RJR","COUNTESS OF CHESTER HOSPITAL NHS FOUNDATION TRUST","RJR05","Countess Of Chester Hospital",null,null,null,null,null,null,"RXPCP","West Suffolk Hospital"]
[null,null,null,null,null,null,null,null,null,null,null,null,null,null,null,null,null,null,null,null,"QYG","RJN","EAST CHESHIRE NHS TRUST","RJN71","Macclesfield District General Hospital",null,null,null,null,null,null,"RXQ02","Westmorland General Hospital"]
[null,null,null,null,null,null,null,null,null,null,null,null,null,null,null,null,null,null,null,null,"QYG","REP","LIVERPOOL WOMEN'S NHS FOUNDATION TRUST","REP01","Liverpool Womens Hospital",null,null,null,null,null,null,"RXQ50","Whipps Cross University Hospital"]
[null,null,null,null,null,null,null,null,null,null,null,null,null,null,null,null,null,null,null,null,"QYG","RBN","MERSEY AND WEST LANCASHIRE TEACHING HOSPITALS NHS TRUST","RBN52","Ormskirk and District General Hospital",null,null,null,null,null,null,"RXR20","Whiston Hospital"]
[null,null,null,null,null,null,null,null,null,null,null,null,null,null,null,null,null,null,null,null,"QYG","RBN","MERSEY AND WEST LANCASHIRE TEACHING HOSPITALS NHS TRUST","RBN01","Whiston Hospital",null,null,null,null,null,null,"RXWAS","William Harvey Hospital (Ashford)"]
[null,null,null,null,null,null,null,null,null,null,null,null,null,null,null,null,null,null,null,null,"QYG","RBT","MID CHESHIRE HOSPITALS NHS FOUNDATION TRUST","RBT20","Leighton Hospital",null,null,null,null,null,null,"RXWAT","Worcestershire Royal Hospital"]
[null,null,null,null,null,null,null,null,null,null,null,null,null,null,null,null,null,null,null,null,"QYG","RWW","WARRINGTON AND HALTON TEACHING HOSPITALS NHS FOUNDATION TRUST","RWWWH","Warrington Hospital",null,null,null,null,null,null,"RYJ01","Wycombe Hospital"]
[null,null,null,null,null,null,null,null,null,null,null,null,null,null,null,null,null,null,null,null,"QYG","RBL","WIRRAL UNIVERSITY TEACHING HOSPITAL NHS FOUNDATION TRUST","RBL14","Arrowe Park Hospital",null,null,null,null,null,null,"RYJ04","Yeovil District Hospital"]

{"sheet":"BSQ2","index":14,"n_rows":208,"n_cols":33,"rows_kept":208,"cut":false,"hidden":true,"merged":[]}
[null,"Sort","ICB","ICB","Trusts","Trusts","Sites","Sites",null,"Sort ranges:","Sort range…","Sort range…","Sort range…","Reference Region List:","Code…","Name…","Linked Region List:","Code…","Name…","Reference Lists:","Code…","Code…","Name…","Code…","Name…","Trusts Linked Lists:","Code…","Name…","Site Linked Lists:","Code…","Name…","Code…","Name…"]
["ICB",1,1,1,"-","-","-","-",null,null,"ICB Code","ICB Code","ICB Code",null,"QE1","LANCASHIRE AND SOUTH CUMBRIA ICB",null,"QE1","LANCASHIRE AND SOUTH CUMBRIA ICB",null,"QE1","RXL","BLACKPOOL TEACHING HOSPITALS NHS FOUNDATION TRUST","RXL01","Blackpool Victoria Hospital",null,"R0A","AIREDALE NHS FOUNDATION TRUST",null,"R0A","AIREDALE NHS FOUNDATION TRUST","E0A3H","Airedale General Hospital"]
["Trusts",1,1,1,1,1,"-","-",null,null,"ICB Name","Trust Code","Trust Code",null,"QF7","SOUTH YORKSHIRE ICB",null,"QF7","SOUTH YORKSHIRE ICB",null,"QE1","RXR","EAST LANCASHIRE HOSPITALS NHS TRUST","RXR20","Royal Blackburn Hospital",null,"R0B","ASHFORD AND ST PETER'S HOSPITALS NHS FOUNDATION TRUST",null,"R0B","ASHFORD AND ST PETER'S HOSPITALS NHS FOUNDATION TRUST","E3M3C","Alnwick Infirmary"]
["Sites",1,1,1,1,1,1,1,null,null,"Total Responses","Trust Name","Trust Name",null,"QGH","HEREFORDSHIRE AND WORCESTERSHIRE ICB",null,"QGH","HEREFORDSHIRE AND WORCESTERSHIRE ICB",null,"QE1","RXN","LANCASHIRE TEACHING HOSPITALS NHS FOUNDATION TRUST","RXN01","Chorley and South Ribble Hospital",null,"R0D","BARKING, HAVERING AND REDBRIDGE UNIVERSITY HOSPITALS NHS TRUST",null,"R0D","BARKING, HAVERING AND REDBRIDGE UNIVERSITY HOSPITALS NHS TRUST","I3W1A","Andover War Memorial Hospital"]
[null,null,null,null,null,null,null,null,null,null,"Total Eligible","Total Responses","Site Code",null,"QH8","MID AND SOUTH ESSEX ICB",null,"QH8","MID AND SOUTH ESSEX ICB",null,"QE1","RXN","LANCASHIRE TEACHING HOSPITALS NHS FOUNDATION TRUST","RXN02","Royal Preston Hospital",null,"R1F","BARNSLEY HOSPITAL NHS FOUNDATION TRUST",null,"R1F","BARNSLEY HOSPITAL NHS FOUNDATION TRUST","N6J7V","Arrowe Park Hospital"]
[null,null,null,null,null,null,null,null,null,null,"Percentage Positive","Total Eligible","Site Name",null,"QHG","BEDFORDSHIRE, LUTON AND MILTON KEYNES ICB",null,"QHG","BEDFORDSHIRE, LUTON AND MILTON KEYNES ICB",null,"QE1","RTX","UNIVERSITY HOSPITALS OF MORECAMBE BAY NHS FOUNDATION TRUST","RTXBU","Furness General Hospital",null,"R1H","BARTS HEALTH NHS TRUST",null,"R1H","BARTS HEALTH NHS TRUST","R0A05","Barnet Hospital"]
[null,null,null,null,null,null,null,null,null,null,"Percentage Negative","Percentage Positive","Total Responses",null,"QHL","BIRMINGHAM AND SOLIHULL ICB",null,"QHL","BIRMINGHAM AND SOLIHULL ICB",null,"QE1","RTX","UNIVERSITY HOSPITALS OF MORECAMBE BAY NHS FOUNDATION TRUST","RTX02","Royal Lancaster Infirmary",null,"R1K","BEDFORDSHIRE HOSPITALS NHS FOUNDATION TRUST",null,"R1K","BEDFORDSHIRE HOSPITALS NHS FOUNDATION TRUST","R0B01","Barnsley Hospital NHS Foundation Trust HQ"]
[null,null,null,null,null,null,null,null,null,null,"Very Good","Percentage Negative","Percentage Positive",null,"QHM","NORTH EAST AND NORTH CUMBRIA ICB",null,"QHM","NORTH EAST AND NORTH CUMBRIA ICB",null,"QE1","RTX","UNIVERSITY HOSPITALS OF MORECAMBE BAY NHS FOUNDATION TRUST","RTXBW","Westmorland General Hospital",null,"RA2","BIRMINGHAM WOMEN'S AND CHILDREN'S NHS FOUNDATION TRUST",null,"RA2","BIRMINGHAM WOMEN'S AND CHILDREN'S NHS FOUNDATION TRUST","R0B0Q","BASILDON HOSPITAL"]
[null,null,null,null,null,null,null,null,null,null,"Good","Very Good","Percentage Negative",null,"QJ2","DERBY AND DERBYSHIRE ICB",null,"QJ2","DERBY AND DERBYSHIRE ICB",null,"QF7","RFF","BARNSLEY HOSPITAL NHS FOUNDATION TRUST","RFFAA","Barnsley Hospital NHS Foundation Trust HQ",null,"RA7","BLACKPOOL TEACHING HOSPITALS NHS FOUNDATION TRUST",null,"RA7","BLACKPOOL TEACHING HOSPITALS NHS FOUNDATION TRUST","R0D01","Basingstoke and North Hampshire Hospital"]
[null,null,null,null,null,null,null,null,null,null,"Neither Good nor Poor","Good","Very Good",null,"QJG","SUFFOLK AND NORTH EAST ESSEX ICB",null,"QJG","SUFFOLK AND NORTH EAST ESSEX ICB",null,"QF7","RP5","DONCASTER AND BASSETLAW TEACHING HOSPITALS NHS FOUNDATION TRUST","RP5BA","Bassetlaw Hospital",null,"RA9","BOLTON NHS FOUNDATION TRUST",null,"RA9","BOLTON NHS FOUNDATION TRUST","R0D02","Bassetlaw Hospital"]
[null,null,null,null,null,null,null,null,null,null,"Poor","Neither Good nor Poor","Good",null,"QJK","DEVON ICB",null,"QJK","DEVON ICB",null,"QF7","RP5","DONCASTER AND BASSETLAW TEACHING HOSPITALS NHS FOUNDATION TRUST","RP5DR","Doncaster Royal Infirmary",null,"RAE","BRADFORD TEACHING HOSPITALS NHS FOUNDATION TRUST",null,"RAE","BRADFORD TEACHING HOSPITALS NHS FOUNDATION TRUST","R1F01","BEDFORD HOSPITAL SOUTH WING"]
[null,null,null,null,null,null,null,null,null,null,"Very Poor","Poor","Neither Good nor Poor",null,"QJM","LINCOLNSHIRE ICB",null,"QJM","LINCOLNSHIRE ICB",null,"QF7","RP5","DONCASTER AND BASSETLAW TEACHING HOSPITALS NHS FOUNDATION TRUST","RP5XXX","Non-hospital site",null,"RAJ","BUCKINGHAMSHIRE HEALTHCARE NHS TRUST",null,"RAJ","BUCKINGHAMSHIRE HEALTHCARE NHS TRUST","R1H12","Berwick Infirmary"]
[null,null,null,null,null,null,null,null,null,null,"Don't Know","Very Poor","Poor",null,"QK1","LEICESTER, LEICESTERSHIRE AND RUTLAND ICB",null,"QK1","LEICESTER, LEICESTERSHIRE AND RUTLAND ICB",null,"QF7","RHQ","SHEFFIELD TEACHING HOSPITALS NHS FOUNDATION TRUST","RHQHH","Royal Hallamshire Hospital",null,"RAL","CALDERDALE AND HUDDERSFIELD NHS FOUNDATION TRUST",null,"RAL","CALDERDALE AND HUDDERSFIELD NHS FOUNDATION TRUST","R1HKH","Birmingham Women's Hospital"]
[null,null,null,null,null,null,null,null,null,null,null,"Don't Know","Very Poor",null,"QKK","SOUTH EAST LONDON ICB",null,"QKK","SOUTH EAST LONDON ICB",null,"QF7","RFR","THE ROTHERHAM NHS FOUNDATION TRUST","RFRPA","Rotherham District General Hospital",null,"RAS","CAMBRIDGE UNIVERSITY HOSPITALS NHS FOUNDATION TRUST",null,"RAS","CAMBRIDGE UNIVERSITY HOSPITALS NHS FOUNDATION TRUST","R1HNH","Blackpool Victoria Hospital"]
[null,null,null,null,null,null,null,null,null,null,null,"Mode SMS","Don't Know",null,"QKS","KENT AND MEDWAY ICB",null,"QKS","KENT AND MEDWAY ICB",null,"QGH","RWP","WORCESTERSHIRE ACUTE HOSPITALS NHS TRUST","RWP50","Worcestershire Royal Hospital",null,"RAX","CHELSEA AND WESTMINSTER HOSPITAL NHS FOUNDATION TRUST",null,"RAX","CHELSEA AND WESTMINSTER HOSPITAL NHS FOUNDATION TRUST","R1K01","Bradford Royal Infirmary"]
[null,null,null,null,null,null,null,null,null,null,null,"Mode Electronic Discharge",null,null,"QM7","HERTFORDSHIRE AND WEST ESSEX ICB",null,"QM7","HERTFORDSHIRE AND WEST ESSEX ICB",null,"QGH","RLQ","WYE VALLEY NHS TRUST","RLQ01","Hereford County Hospital",null,"RBD","CHESTERFIELD ROYAL HOSPITAL NHS FOUNDATION TRUST",null,"RBD","CHESTERFIELD ROYAL HOSPITAL NHS FOUNDATION TRUST","RA201","Bridgwater Hospital"]
[null,null,null,null,null,null,null,null,null,null,null,"Mode Electronic Home",null,null,"QMF","NORTH EAST LONDON ICB",null,"QMF","NORTH EAST LONDON ICB",null,"QH8","RAJ","MID AND SOUTH ESSEX NHS FOUNDATION TRUST","RAJ12","BASILDON HOSPITAL",null,"RBK","COUNTESS OF CHESTER HOSPITAL NHS FOUNDATION TRUST",null,"RBK","COUNTESS OF CHESTER HOSPITAL NHS FOUNDATION TRUST","RA707","Calderdale Royal Hospital"]
[null,null,null,null,null,null,null,null,null,null,null,"Mode Paper Discharge",null,null,"QMJ","NORTH CENTRAL LONDON ICB",null,"QMJ","NORTH CENTRAL LONDON ICB",null,"QH8","RAJ","MID AND SOUTH ESSEX NHS FOUNDATION TRUST","RAJ32","MID ESSEX HOSPITAL",null,"RBL","COUNTY DURHAM AND DARLINGTON NHS FOUNDATION TRUST",null,"RBL","COUNTY DURHAM AND DARLINGTON NHS FOUNDATION TRUST","RA901","Chelsea and Westminster Hospital"]
[null,null,null,null,null,null,null,null,null,null,null,"Mode Paper Home",null,null,"QMM","NORFOLK AND WAVENEY ICB",null,"QMM","NORFOLK AND WAVENEY ICB",null,"QH8","RAJ","MID AND SOUTH ESSEX NHS FOUNDATION TRUST","RAJ01","Southend Hospital",null,"RBN","CROYDON HEALTH SERVICES NHS TRUST",null,"RBN","CROYDON HEALTH SERVICES NHS TRUST","RAE01","Chesterfield Royal Hospital"]
[null,null,null,null,null,null,null,null,null,null,null,"Mode Telephone",null,null,"QNC","STAFFORDSHIRE AND STOKE-ON-TRENT ICB",null,"QNC","STAFFORDSHIRE AND STOKE-ON-TRENT ICB",null,"QHG","RC9","BEDFORDSHIRE HOSPITALS NHS FOUNDATION TRUST","RC979","BEDFORD HOSPITAL SOUTH WING",null,"RBT","DARTFORD AND GRAVESHAM NHS TRUST",null,"RBT","DARTFORD AND GRAVESHAM NHS TRUST","RAJ01","Chipping Norton Community Hospital"]
[null,null,null,null,null,null,null,null,null,null,null,"Mode Online",null,null,"QNQ","FRIMLEY ICB",null,"QNQ","FRIMLEY ICB",null,"QHG","RC9","BEDFORDSHIRE HOSPITALS NHS FOUNDATION TRUST","RC971","Luton and Dunstable Hospital",null,"RC9","DONCASTER AND BASSETLAW TEACHING HOSPITALS NHS FOUNDATION TRUST",null,"RC9","DONCASTER AND BASSETLAW TEACHING HOSPITALS NHS FOUNDATION TRUST","RAJ12","Chorley and South Ribble Hospital"]
[null,null,null,null,null,null,null,null,null,null,null,"Mode Other",null,null,"QNX","SUSSEX ICB",null,"QNX","SUSSEX ICB",null,"QHG","RD8","MILTON KEYNES UNIVERSITY HOSPITAL NHS FOUNDATION TRUST","RD816","Milton Keynes Hospital",null,"RCB","DORSET COUNTY HOSPITAL NHS FOUNDATION TRUST",null,"RCB","DORSET COUNTY HOSPITAL NHS FOUNDATION TRUST","RAJ32","City Hospital"]
[null,null,null,null,null,null,null,null,null,null,null,null,null,null,"QOC","SHROPSHIRE, TELFORD AND WREKIN ICB",null,"QOC","SHROPSHIRE, TELFORD AND WREKIN ICB",null,"QHL","RQ3","BIRMINGHAM WOMEN'S AND CHILDREN'S NHS FOUNDATION TRUST","RQ370","Birmingham Women's Hospital",null,"RCD","EAST AND NORTH HERTFORDSHIRE NHS TRUST",null,"RCD","EAST AND NORTH HERTFORDSHIRE NHS TRUST","RAL01","Clacton and District Hospital"]
[null,null,null,null,null,null,null,null,null,null,null,null,null,null,"QOP","GREATER MANCHESTER ICB",null,"QOP","GREATER MANCHESTER ICB",null,"QHL","RXK","SANDWELL AND WEST BIRMINGHAM HOSPITALS NHS TRUST","RXK02","City Hospital",null,"RCF","EAST CHESHIRE NHS TRUST",null,"RCF","EAST CHESHIRE NHS TRUST","RAL26","Colchester General Hospital"]
[null,null,null,null,null,null,null,null,null,null,null,null,null,null,"QOQ","HUMBER AND NORTH YORKSHIRE ICB",null,"QOQ","HUMBER AND NORTH YORKSHIRE ICB",null,"QHL","RXK","SANDWELL AND WEST BIRMINGHAM HOSPITALS NHS TRUST","I3W1A","MIDLAND METROPOLITAN UNIVERSITY HOSPITAL ",null,"RCX","EAST KENT HOSPITALS UNIVERSITY NHS FOUNDATION TRUST",null,"RCX","EAST KENT HOSPITALS UNIVERSITY NHS FOUNDATION TRUST","RAS01","Conquest Hospital"]
[null,null,null,null,null,null,null,null,null,null,null,null,null,null,"QOX","BATH AND NORTH EAST SOMERSET, SWINDON AND WILTSHIRE ICB",null,"QOX","BATH AND NORTH EAST SOMERSET, SWINDON AND WILTSHIRE ICB",null,"QHL","RRK","UNIVERSITY HOSPITALS BIRMINGHAM NHS FOUNDATION TRUST","RRK98","Good Hope Hospital",null,"RD1","EAST LANCASHIRE HOSPITALS NHS TRUST",null,"RD1","EAST LANCASHIRE HOSPITALS NHS TRUST","RAX01","Countess Of Chester Hospital"]
[null,null,null,null,null,null,null,null,null,null,null,null,null,null,"QPM","NORTHAMPTONSHIRE ICB",null,"QPM","NORTHAMPTONSHIRE ICB",null,"QHL","RRK","UNIVERSITY HOSPITALS BIRMINGHAM NHS FOUNDATION TRUST","RRK97","Heartlands Hospital",null,"RD8","EAST SUFFOLK AND NORTH ESSEX NHS FOUNDATION TRUST",null,"RD8","EAST SUFFOLK AND NORTH ESSEX NHS FOUNDATION TRUST","RBD01","Crowborough Birthing Centre"]
[null,null,null,null,null,null,null,null,null,null,null,null,null,null,"QR1","GLOUCESTERSHIRE ICB",null,"QR1","GLOUCESTERSHIRE ICB",null,"QHL","RRK","UNIVERSITY HOSPITALS BIRMINGHAM NHS FOUNDATION TRUST","RRK99","Solihull Hospital",null,"RDE","EAST SUSSEX HEALTHCARE NHS TRUST",null,"RDE","EAST SUSSEX HEALTHCARE NHS TRUST","RBK02","Croydon University Hospital"]
[null,null,null,null,null,null,null,null,null,null,null,null,null,null,"QRL","HAMPSHIRE AND ISLE OF WIGHT ICB",null,"QRL","HAMPSHIRE AND ISLE OF WIGHT ICB",null,"QHM","RXP","COUNTY DURHAM AND DARLINGTON NHS FOUNDATION TRUST","RXPDA","Darlington Memorial Hospital",null,"RDU","EPSOM AND ST HELIER UNIVERSITY HOSPITALS NHS TRUST",null,"RDU","EPSOM AND ST HELIER UNIVERSITY HOSPITALS NHS TRUST","RBL14","Cumberland Infirmary"]
[null,null,null,null,null,null,null,null,null,null,null,null,null,null,"QRV","NORTH WEST LONDON ICB",null,"QRV","NORTH WEST LONDON ICB",null,"QHM","RXP","COUNTY DURHAM AND DARLINGTON NHS FOUNDATION TRUST","RXPCP","University Hospital Of North Durham",null,"REF","FRIMLEY HEALTH NHS FOUNDATION TRUST",null,"REF","FRIMLEY HEALTH NHS FOUNDATION TRUST","RBN01","Darent Valley Hospital"]
[null,null,null,null,null,null,null,null,null,null,null,null,null,null,"QSL","SOMERSET ICB",null,"QSL","SOMERSET ICB",null,"QHM","RR7","GATESHEAD HEALTH NHS FOUNDATION TRUST","RR7EN","Queen Elizabeth Hospital",null,"REP","GATESHEAD HEALTH NHS FOUNDATION TRUST",null,"REP","GATESHEAD HEALTH NHS FOUNDATION TRUST","RBN52","Darlington Memorial Hospital"]
[null,null,null,null,null,null,null,null,null,null,null,null,null,null,"QT1","NOTTINGHAM AND NOTTINGHAMSHIRE ICB",null,"QT1","NOTTINGHAM AND NOTTINGHAMSHIRE ICB",null,"QHM","RNN","NORTH CUMBRIA INTEGRATED CARE NHS FOUNDATION TRUST","RNN62","Cumberland Infirmary",null,"RF4","GEORGE ELIOT HOSPITAL NHS TRUST",null,"RF4","GEORGE ELIOT HOSPITAL NHS TRUST","RBT20","Derriford Hospital"]
[null,null,null,null,null,null,null,null,null,null,null,null,null,null,"QT6","CORNWALL AND THE ISLES OF SCILLY ICB",null,"QT6","CORNWALL AND THE ISLES OF SCILLY ICB",null,"QHM","RNN","NORTH CUMBRIA INTEGRATED CARE NHS FOUNDATION TRUST","RNNBX","West Cumberland Hospital",null,"RFF","GLOUCESTERSHIRE HOSPITALS NHS FOUNDATION TRUST",null,"RFF","GLOUCESTERSHIRE HOSPITALS NHS FOUNDATION TRUST","RC971","Dewsbury and District Hospital"]
[null,null,null,null,null,null,null,null,null,null,null,null,null,null,"QU9","BUCKINGHAMSHIRE, OXFORDSHIRE AND BERKSHIRE WEST ICB",null,"QU9","BUCKINGHAMSHIRE, OXFORDSHIRE AND BERKSHIRE WEST ICB",null,"QHM","RVW","NORTH TEES AND HARTLEPOOL NHS FOUNDATION TRUST","RVWAE","University Hospital Of North Tees",null,"RFR","GREAT WESTERN HOSPITALS NHS FOUNDATION TRUST",null,"RFR","GREAT WESTERN HOSPITALS NHS FOUNDATION TRUST","RC979","Diana, Princess Of Wales Hospital"]
[null,null,null,null,null,null,null,null,null,null,null,null,null,null,"QUA","BLACK COUNTRY ICB",null,"QUA","BLACK COUNTRY ICB",null,"QHM","RTF","NORTHUMBRIA HEALTHCARE NHS FOUNDATION TRUST","RTFDJ","Alnwick Infirmary",null,"RFS","GUY'S AND ST THOMAS' NHS FOUNDATION TRUST",null,"RFS","GUY'S AND ST THOMAS' NHS FOUNDATION TRUST","RCB55","Doncaster Royal Infirmary"]
[null,null,null,null,null,null,null,null,null,null,null,null,null,null,"QUE","CAMBRIDGESHIRE AND PETERBOROUGH ICB",null,"QUE","CAMBRIDGESHIRE AND PETERBOROUGH ICB",null,"QHM","RTF","NORTHUMBRIA HEALTHCARE NHS FOUNDATION TRUST","RTFDH","Berwick Infirmary",null,"RGN","HAMPSHIRE HOSPITALS NHS FOUNDATION TRUST",null,"RGN","HAMPSHIRE HOSPITALS NHS FOUNDATION TRUST","RCBCA","Dorset County Hospital"]
[null,null,null,null,null,null,null,null,null,null,null,null,null,null,"QUY","BRISTOL, NORTH SOMERSET AND SOUTH GLOUCESTERSHIRE ICB",null,"QUY","BRISTOL, NORTH SOMERSET AND SOUTH GLOUCESTERSHIRE ICB",null,"QHM","RTF","NORTHUMBRIA HEALTHCARE NHS FOUNDATION TRUST","RTFDR","Hexham General Hospital",null,"RGP","HARROGATE AND DISTRICT NHS FOUNDATION TRUST",null,"RGP","HARROGATE AND DISTRICT NHS FOUNDATION TRUST","RCD01","East Surrey Hospital"]
[null,null,null,null,null,null,null,null,null,null,null,null,null,null,"QVV","DORSET ICB",null,"QVV","DORSET ICB",null,"QHM","RTF","NORTHUMBRIA HEALTHCARE NHS FOUNDATION TRUST","RTFXXX","Non-hospital site",null,"RGR","HOMERTON HEALTHCARE NHS FOUNDATION TRUST",null,"RGR","HOMERTON HEALTHCARE NHS FOUNDATION TRUST","RCF22","Eastbourne District General Hospital"]
[null,null,null,null,null,null,null,null,null,null,null,null,null,null,"QWE","SOUTH WEST LONDON ICB",null,"QWE","SOUTH WEST LONDON ICB",null,"QHM","RTF","NORTHUMBRIA HEALTHCARE NHS FOUNDATION TRUST","RTF86","The Northumbria",null,"RGT","HULL UNIVERSITY TEACHING HOSPITALS NHS TRUST",null,"RGT","HULL UNIVERSITY TEACHING HOSPITALS NHS TRUST","RCX70","Epsom Hospital"]
[null,null,null,null,null,null,null,null,null,null,null,null,null,null,"QWO","WEST YORKSHIRE ICB",null,"QWO","WEST YORKSHIRE ICB",null,"QHM","RTR","SOUTH TEES HOSPITALS NHS FOUNDATION TRUST","RTR45","Friarage Hospital Site",null,"RH5","IMPERIAL COLLEGE HEALTHCARE NHS TRUST",null,"RH5","IMPERIAL COLLEGE HEALTHCARE NHS TRUST","RCXXXX","Friarage Hospital Site"]
[null,null,null,null,null,null,null,null,null,null,null,null,null,null,"QWU","COVENTRY AND WARWICKSHIRE ICB",null,"QWU","COVENTRY AND WARWICKSHIRE ICB",null,"QHM","RTR","SOUTH TEES HOSPITALS NHS FOUNDATION TRUST","RTRAT","The James Cook University Hospital",null,"RH8","ISLE OF WIGHT NHS TRUST",null,"RH8","ISLE OF WIGHT NHS TRUST","RD121","Frimley Park Hospital"]
[null,null,null,null,null,null,null,null,null,null,null,null,null,null,"QXU","SURREY HEARTLANDS ICB",null,"QXU","SURREY HEARTLANDS ICB",null,"QHM","R0B","SOUTH TYNESIDE AND SUNDERLAND NHS FOUNDATION TRUST","R0B0Q","South Tyneside District Hospital",null,"RHM","JAMES PAGET UNIVERSITY HOSPITALS NHS FOUNDATION TRUST",null,"RHM","JAMES PAGET UNIVERSITY HOSPITALS NHS FOUNDATION TRUST","RD130","Frome Community Hospital "]
[null,null,null,null,null,null,null,null,null,null,null,null,null,null,"QYG","CHESHIRE AND MERSEYSIDE ICB",null,"QYG","CHESHIRE AND MERSEYSIDE ICB",null,"QHM","R0B","SOUTH TYNESIDE AND SUNDERLAND NHS FOUNDATION TRUST","R0B01","Sunderland Royal Hospital",null,"RHQ","KETTERING GENERAL HOSPITAL NHS FOUNDATION TRUST",null,"RHQ","KETTERING GENERAL HOSPITAL NHS FOUNDATION TRUST","RD1XXX","Furness General Hospital"]
[null,null,null,null,null,null,null,null,null,null,null,null,null,null,null,null,null,null,null,null,"QHM","RTD","THE NEWCASTLE UPON TYNE HOSPITALS NHS FOUNDATION TRUST","RTD02","The Royal Victoria Infirmary",null,"RHU","KING'S COLLEGE HOSPITAL NHS FOUNDATION TRUST",null,"RHU","KING'S COLLEGE HOSPITAL NHS FOUNDATION TRUST","RD816","George Eliot Hospital - Acute Services"]
[null,null,null,null,null,null,null,null,null,null,null,null,null,null,null,null,null,null,null,null,"QJ2","RFS","CHESTERFIELD ROYAL HOSPITAL NHS FOUNDATION TRUST","RFSDA","Chesterfield Royal Hospital",null,"RHW","KINGSTON AND RICHMOND NHS FOUNDATION TRUST",null,"RHW","KINGSTON AND RICHMOND NHS FOUNDATION TRUST","RDE03","Gloucestershire Royal Hospital"]
[null,null,null,null,null,null,null,null,null,null,null,null,null,null,null,null,null,null,null,null,"QJ2","RTG","UNIVERSITY HOSPITALS OF DERBY AND BURTON NHS FOUNDATION TRUST","RTG02","Queens Hospital, Burton Upon Trent",null,"RJ1","LANCASHIRE TEACHING HOSPITALS NHS FOUNDATION TRUST",null,"RJ1","LANCASHIRE TEACHING HOSPITALS NHS FOUNDATION TRUST","RDEE2","Good Hope Hospital"]
[null,null,null,null,null,null,null,null,null,null,null,null,null,null,null,null,null,null,null,null,"QJ2","RTG","UNIVERSITY HOSPITALS OF DERBY AND BURTON NHS FOUNDATION TRUST","RTGFG","Royal Derby Hospital",null,"RJ2","LEEDS TEACHING HOSPITALS NHS TRUST",null,"RJ2","LEEDS TEACHING HOSPITALS NHS TRUST","RDEE4","Grantham and District Hospital"]
[null,null,null,null,null,null,null,null,null,null,null,null,null,null,null,null,null,null,null,null,"QJG","RDE","EAST SUFFOLK AND NORTH ESSEX NHS FOUNDATION TRUST","RDEE2","Clacton and District Hospital",null,"RJ6","LEWISHAM AND GREENWICH NHS TRUST",null,"RJ6","LEWISHAM AND GREENWICH NHS TRUST","RDEXXX","Harrogate District Hospital"]
[null,null,null,null,null,null,null,null,null,null,null,null,null,null,null,null,null,null,null,null,"QJG","RDE","EAST SUFFOLK AND NORTH ESSEX NHS FOUNDATION TRUST","RDEE4","Colchester General Hospital",null,"RJ7","LIVERPOOL WOMEN'S NHS FOUNDATION TRUST",null,"RJ7","LIVERPOOL WOMEN'S NHS FOUNDATION TRUST","RDU01","Heartlands Hospital"]
[null,null,null,null,null,null,null,null,null,null,null,null,null,null,null,null,null,null,null,null,"QJG","RDE","EAST SUFFOLK AND NORTH ESSEX NHS FOUNDATION TRUST","RDE03","Ipswich Hospital",null,"RJC","LONDON NORTH WEST UNIVERSITY HEALTHCARE NHS TRUST",null,"RJC","LONDON NORTH WEST UNIVERSITY HEALTHCARE NHS TRUST","RDU50","Hereford County Hospital"]
[null,null,null,null,null,null,null,null,null,null,null,null,null,null,null,null,null,null,null,null,"QJG","RDE","EAST SUFFOLK AND NORTH ESSEX NHS FOUNDATION TRUST","RDEXXX","Non-hospital site",null,"RJE","MAIDSTONE AND TUNBRIDGE WELLS NHS TRUST",null,"RJE","MAIDSTONE AND TUNBRIDGE WELLS NHS TRUST","REF12","Hexham General Hospital"]
[null,null,null,null,null,null,null,null,null,null,null,null,null,null,null,null,null,null,null,null,"QJG","RGR","WEST SUFFOLK NHS FOUNDATION TRUST","RGR50","West Suffolk Hospital",null,"RJL","MANCHESTER UNIVERSITY NHS FOUNDATION TRUST",null,"RJL","MANCHESTER UNIVERSITY NHS FOUNDATION TRUST","REFXXX","Hillingdon Hospital"]
[null,null,null,null,null,null,null,null,null,null,null,null,null,null,null,null,null,null,null,null,"QJK","RH8","ROYAL DEVON UNIVERSITY HEALTHCARE NHS FOUNDATION TRUST","RH8XXX","Non-hospital site",null,"RJN","MEDWAY NHS FOUNDATION TRUST",null,"RJN","MEDWAY NHS FOUNDATION TRUST","REP01","Hinchingbrooke Hospital"]
[null,null,null,null,null,null,null,null,null,null,null,null,null,null,null,null,null,null,null,null,"QJK","RH8","ROYAL DEVON UNIVERSITY HEALTHCARE NHS FOUNDATION TRUST","RH880","North Devon District Hospital",null,"RJR","MERSEY AND WEST LANCASHIRE TEACHING HOSPITALS NHS TRUST",null,"RJR","MERSEY AND WEST LANCASHIRE TEACHING HOSPITALS NHS TRUST","RF4QH","Homerton University Hospital"]
[null,null,null,null,null,null,null,null,null,null,null,null,null,null,null,null,null,null,null,null,"QJK","RH8","ROYAL DEVON UNIVERSITY HEALTHCARE NHS FOUNDATION TRUST","RH801","Royal Devon and Exeter Hospital (Wonford)",null,"RJZ","MID AND SOUTH ESSEX NHS FOUNDATION TRUST",null,"RJZ","MID AND SOUTH ESSEX NHS FOUNDATION TRUST","RFFAA","Horton General Hospital"]
[null,null,null,null,null,null,null,null,null,null,null,null,null,null,null,null,null,null,null,null,"QJK","RH8","ROYAL DEVON UNIVERSITY HEALTHCARE NHS FOUNDATION TRUST","RH853","Tiverton and District Hospital",null,"RK5","MID CHESHIRE HOSPITALS NHS FOUNDATION TRUST",null,"RK5","MID CHESHIRE HOSPITALS NHS FOUNDATION TRUST","RFRPA","Hospital Of St Cross"]
[null,null,null,null,null,null,null,null,null,null,null,null,null,null,null,null,null,null,null,null,"QJK","RA9","TORBAY AND SOUTH DEVON NHS FOUNDATION TRUST","RA901","Torbay Hospital",null,"RK9","MID YORKSHIRE TEACHING NHS TRUST",null,"RK9","MID YORKSHIRE TEACHING NHS TRUST","RFSDA","Hull Royal Infirmary"]
[null,null,null,null,null,null,null,null,null,null,null,null,null,null,null,null,null,null,null,null,"QJK","RK9","UNIVERSITY HOSPITALS PLYMOUTH NHS TRUST","RK950","Derriford Hospital",null,"RKB","MILTON KEYNES UNIVERSITY HOSPITAL NHS FOUNDATION TRUST",null,"RKB","MILTON KEYNES UNIVERSITY HOSPITAL NHS FOUNDATION TRUST","RGN80","Ipswich Hospital"]
[null,null,null,null,null,null,null,null,null,null,null,null,null,null,null,null,null,null,null,null,"QJK","RK9","UNIVERSITY HOSPITALS PLYMOUTH NHS TRUST","RK9XXX","Non-hospital site",null,"RKE","NORFOLK AND NORWICH UNIVERSITY HOSPITALS NHS FOUNDATION TRUST",null,"RKE","NORFOLK AND NORWICH UNIVERSITY HOSPITALS NHS FOUNDATION TRUST","RGN90","James Paget University Hospital"]
[null,null,null,null,null,null,null,null,null,null,null,null,null,null,null,null,null,null,null,null,"QJM","RWD","UNITED LINCOLNSHIRE TEACHING HOSPITALS NHS TRUST","RWDLP","Grantham and District Hospital",null,"RL4","NORTH BRISTOL NHS TRUST",null,"RL4","NORTH BRISTOL NHS TRUST","RGP75","John Radcliffe Hospital"]
[null,null,null,null,null,null,null,null,null,null,null,null,null,null,null,null,null,null,null,null,"QJM","RWD","UNITED LINCOLNSHIRE TEACHING HOSPITALS NHS TRUST","RWDDA","Lincoln County Hospital",null,"RLQ","NORTH CUMBRIA INTEGRATED CARE NHS FOUNDATION TRUST",null,"RLQ","NORTH CUMBRIA INTEGRATED CARE NHS FOUNDATION TRUST","RGR50","Kettering General Hospital"]
[null,null,null,null,null,null,null,null,null,null,null,null,null,null,null,null,null,null,null,null,"QJM","RWD","UNITED LINCOLNSHIRE TEACHING HOSPITALS NHS TRUST","RWDLA","Pilgrim Hospital",null,"RLT","NORTH TEES AND HARTLEPOOL NHS FOUNDATION TRUST",null,"RLT","NORTH TEES AND HARTLEPOOL NHS FOUNDATION TRUST","RGT32","King's College Hospital (Denmark Hill)"]
[null,null,null,null,null,null,null,null,null,null,null,null,null,null,null,null,null,null,null,null,"QK1","RWE","UNIVERSITY HOSPITALS OF LEICESTER NHS TRUST","RWEAK","Leicester General Hospital",null,"RM1","NORTH WEST ANGLIA NHS FOUNDATION TRUST",null,"RM1","NORTH WEST ANGLIA NHS FOUNDATION TRUST","RH5A8","King's Mill Hospital"]
[null,null,null,null,null,null,null,null,null,null,null,null,null,null,null,null,null,null,null,null,"QK1","RWE","UNIVERSITY HOSPITALS OF LEICESTER NHS TRUST","RWEAA","Leicester Royal Infirmary",null,"RM3","NORTHAMPTON GENERAL HOSPITAL NHS TRUST",null,"RM3","NORTHAMPTON GENERAL HOSPITAL NHS TRUST","RH5K6","Kingston Hospital"]
[null,null,null,null,null,null,null,null,null,null,null,null,null,null,null,null,null,null,null,null,"QK1","RWE","UNIVERSITY HOSPITALS OF LEICESTER NHS TRUST","RWEXXX","Non-hospital site",null,"RMC","NORTHERN CARE ALLIANCE NHS FOUNDATION TRUST",null,"RMC","NORTHERN CARE ALLIANCE NHS FOUNDATION TRUST","RH5O4","Leeds General Infirmary"]
[null,null,null,null,null,null,null,null,null,null,null,null,null,null,null,null,null,null,null,null,"QK1","RWE","UNIVERSITY HOSPITALS OF LEICESTER NHS TRUST","RWE10","St Mary's Hospital",null,"RMP","NORTHERN LINCOLNSHIRE AND GOOLE NHS FOUNDATION TRUST",null,"RMP","NORTHERN LINCOLNSHIRE AND GOOLE NHS FOUNDATION TRUST","RH5XXXX","Leicester General Hospital"]
[null,null,null,null,null,null,null,null,null,null,null,null,null,null,null,null,null,null,null,null,"QKK","RJ1","GUY'S AND ST THOMAS' NHS FOUNDATION TRUST","RJ1XXX","Non-hospital site",null,"RN3","NORTHUMBRIA HEALTHCARE NHS FOUNDATION TRUST",null,"RN3","NORTHUMBRIA HEALTHCARE NHS FOUNDATION TRUST","RH801","Leicester Royal Infirmary"]
[null,null,null,null,null,null,null,null,null,null,null,null,null,null,null,null,null,null,null,null,"QKK","RJ1","GUY'S AND ST THOMAS' NHS FOUNDATION TRUST","RJ122","St Thomas' Hospital",null,"RN5","NOTTINGHAM UNIVERSITY HOSPITALS NHS TRUST",null,"RN5","NOTTINGHAM UNIVERSITY HOSPITALS NHS TRUST","RH853","Leighton Hospital"]
[null,null,null,null,null,null,null,null,null,null,null,null,null,null,null,null,null,null,null,null,"QKK","RJZ","KING'S COLLEGE HOSPITAL NHS FOUNDATION TRUST","RJZ01","King's College Hospital (Denmark Hill)",null,"RN7","OXFORD UNIVERSITY HOSPITALS NHS FOUNDATION TRUST",null,"RN7","OXFORD UNIVERSITY HOSPITALS NHS FOUNDATION TRUST","RH880","Lincoln County Hospital"]
[null,null,null,null,null,null,null,null,null,null,null,null,null,null,null,null,null,null,null,null,"QKK","RJZ","KING'S COLLEGE HOSPITAL NHS FOUNDATION TRUST","RJZ30","Princess Royal University Hospital",null,"RNA","PORTSMOUTH HOSPITALS UNIVERSITY NATIONAL HEALTH SERVICE TRUST",null,"RNA","PORTSMOUTH HOSPITALS UNIVERSITY NATIONAL HEALTH SERVICE TRUST","RH8XXX","Lister Hospital"]
[null,null,null,null,null,null,null,null,null,null,null,null,null,null,null,null,null,null,null,null,"QKK","RJ2","LEWISHAM AND GREENWICH NHS TRUST","RJ231","Queen Elizabeth Hospital",null,"RNN","ROYAL BERKSHIRE NHS FOUNDATION TRUST",null,"RNN","ROYAL BERKSHIRE NHS FOUNDATION TRUST","RHM12","Liverpool Womens Hospital"]
[null,null,null,null,null,null,null,null,null,null,null,null,null,null,null,null,null,null,null,null,"QKK","RJ2","LEWISHAM AND GREENWICH NHS TRUST","RJ224","University Hospital Lewisham",null,"RNQ","ROYAL CORNWALL HOSPITALS NHS TRUST",null,"RNQ","ROYAL CORNWALL HOSPITALS NHS TRUST","RHQHH","Luton and Dunstable Hospital"]
[null,null,null,null,null,null,null,null,null,null,null,null,null,null,null,null,null,null,null,null,"QKS","RN7","DARTFORD AND GRAVESHAM NHS TRUST","RN707","Darent Valley Hospital",null,"RNS","ROYAL DEVON UNIVERSITY HEALTHCARE NHS FOUNDATION TRUST",null,"RNS","ROYAL DEVON UNIVERSITY HEALTHCARE NHS FOUNDATION TRUST","RHU03","Macclesfield District General Hospital"]
[null,null,null,null,null,null,null,null,null,null,null,null,null,null,null,null,null,null,null,null,"QKS","RVV","EAST KENT HOSPITALS UNIVERSITY NHS FOUNDATION TRUST","RVV09","Queen Elizabeth The Queen Mother Hospital",null,"RNZ","ROYAL FREE LONDON NHS FOUNDATION TRUST",null,"RNZ","ROYAL FREE LONDON NHS FOUNDATION TRUST","RHW01","Maidstone District General Hospital"]
[null,null,null,null,null,null,null,null,null,null,null,null,null,null,null,null,null,null,null,null,"QKS","RVV","EAST KENT HOSPITALS UNIVERSITY NHS FOUNDATION TRUST","RVV01","William Harvey Hospital (Ashford)",null,"RP5","ROYAL SURREY COUNTY HOSPITAL NHS FOUNDATION TRUST",null,"RP5","ROYAL SURREY COUNTY HOSPITAL NHS FOUNDATION TRUST","RJ122","Manor Hospital"]
[null,null,null,null,null,null,null,null,null,null,null,null,null,null,null,null,null,null,null,null,"QKS","RWF","MAIDSTONE AND TUNBRIDGE WELLS NHS TRUST","RWF08","Crowborough Birthing Centre",null,"RPA","ROYAL UNITED HOSPITALS BATH NHS FOUNDATION TRUST",null,"RPA","ROYAL UNITED HOSPITALS BATH NHS FOUNDATION TRUST","RJ1XXX","Medway Maritime Hospital"]
[null,null,null,null,null,null,null,null,null,null,null,null,null,null,null,null,null,null,null,null,"QKS","RWF","MAIDSTONE AND TUNBRIDGE WELLS NHS TRUST","RWF03","Maidstone District General Hospital",null,"RQ3","SALISBURY NHS FOUNDATION TRUST",null,"RQ3","SALISBURY NHS FOUNDATION TRUST","RJ224","MID ESSEX HOSPITAL"]
[null,null,null,null,null,null,null,null,null,null,null,null,null,null,null,null,null,null,null,null,"QKS","RWF","MAIDSTONE AND TUNBRIDGE WELLS NHS TRUST","RWFXXX","Non-hospital site",null,"RQM","SANDWELL AND WEST BIRMINGHAM HOSPITALS NHS TRUST",null,"RQM","SANDWELL AND WEST BIRMINGHAM HOSPITALS NHS TRUST","RJ231","MIDLAND METROPOLITAN UNIVERSITY HOSPITAL "]
[null,null,null,null,null,null,null,null,null,null,null,null,null,null,null,null,null,null,null,null,"QKS","RWF","MAIDSTONE AND TUNBRIDGE WELLS NHS TRUST","RWFTW","The Tunbridge Wells Hospital",null,"RQW","SHEFFIELD TEACHING HOSPITALS NHS FOUNDATION TRUST",null,"RQW","SHEFFIELD TEACHING HOSPITALS NHS FOUNDATION TRUST","RJ611","Milton Keynes Hospital"]
[null,null,null,null,null,null,null,null,null,null,null,null,null,null,null,null,null,null,null,null,"QKS","RPA","MEDWAY NHS FOUNDATION TRUST","RPA02","Medway Maritime Hospital",null,"RQX","SHERWOOD FOREST HOSPITALS NHS FOUNDATION TRUST",null,"RQX","SHERWOOD FOREST HOSPITALS NHS FOUNDATION TRUST","RJ701","MUSGROVE PARK HOSPITAL"]
[null,null,null,null,null,null,null,null,null,null,null,null,null,null,null,null,null,null,null,null,"QM7","RWH","EAST AND NORTH HERTFORDSHIRE NHS TRUST","RWH01","Lister Hospital",null,"RR7","SOMERSET NHS FOUNDATION TRUST",null,"RR7","SOMERSET NHS FOUNDATION TRUST","RJC02","New Cross Hospital"]
[null,null,null,null,null,null,null,null,null,null,null,null,null,null,null,null,null,null,null,null,"QM7","RWH","EAST AND NORTH HERTFORDSHIRE NHS TRUST","RWHXXX","Non-hospital site",null,"RR8","SOUTH TEES HOSPITALS NHS FOUNDATION TRUST",null,"RR8","SOUTH TEES HOSPITALS NHS FOUNDATION TRUST","RJE01","Newham General Hospital"]
[null,null,null,null,null,null,null,null,null,null,null,null,null,null,null,null,null,null,null,null,"QM7","RQW","THE PRINCESS ALEXANDRA HOSPITAL NHS TRUST","RQWG0","Princess Alexandra Hospital",null,"RRF","SOUTH TYNESIDE AND SUNDERLAND NHS FOUNDATION TRUST",null,"RRF","SOUTH TYNESIDE AND SUNDERLAND NHS FOUNDATION TRUST","RJL30","Non Hospital Site"]
[null,null,null,null,null,null,null,null,null,null,null,null,null,null,null,null,null,null,null,null,"QM7","RWG","WEST HERTFORDSHIRE TEACHING HOSPITALS NHS TRUST","RWG02","Watford General Hospital",null,"RRK","SOUTH WARWICKSHIRE UNIVERSITY NHS FOUNDATION TRUST",null,"RRK","SOUTH WARWICKSHIRE UNIVERSITY NHS FOUNDATION TRUST","RJL32","Non-hospital site"]
[null,null,null,null,null,null,null,null,null,null,null,null,null,null,null,null,null,null,null,null,"QMF","RF4","BARKING, HAVERING AND REDBRIDGE UNIVERSITY HOSPITALS NHS TRUST","RF4QH","Queen's Hospital",null,"RRV","ST GEORGE'S UNIVERSITY HOSPITALS NHS FOUNDATION TRUST",null,"RRV","ST GEORGE'S UNIVERSITY HOSPITALS NHS FOUNDATION TRUST","RJN71","Non-hospital site"]
[null,null,null,null,null,null,null,null,null,null,null,null,null,null,null,null,null,null,null,null,"QMF","R1H","BARTS HEALTH NHS TRUST","R1HNH","Newham General Hospital",null,"RTD","STOCKPORT NHS FOUNDATION TRUST",null,"RTD","STOCKPORT NHS FOUNDATION TRUST","RJR05","Non-hospital site"]
[null,null,null,null,null,null,null,null,null,null,null,null,null,null,null,null,null,null,null,null,"QMF","R1H","BARTS HEALTH NHS TRUST","R1H12","The Royal London Hospital",null,"RTE","SURREY AND SUSSEX HEALTHCARE NHS TRUST",null,"RTE","SURREY AND SUSSEX HEALTHCARE NHS TRUST","RJZ01","Non-hospital site"]
[null,null,null,null,null,null,null,null,null,null,null,null,null,null,null,null,null,null,null,null,"QMF","R1H","BARTS HEALTH NHS TRUST","R1HKH","Whipps Cross University Hospital",null,"RTF","TAMESIDE AND GLOSSOP INTEGRATED CARE NHS FOUNDATION TRUST",null,"RTF","TAMESIDE AND GLOSSOP INTEGRATED CARE NHS FOUNDATION TRUST","RJZ30","Non-hospital site"]
[null,null,null,null,null,null,null,null,null,null,null,null,null,null,null,null,null,null,null,null,"QMF","RQX","HOMERTON HEALTHCARE NHS FOUNDATION TRUST","RQXM1","Homerton University Hospital",null,"RTG","THE DUDLEY GROUP NHS FOUNDATION TRUST",null,"RTG","THE DUDLEY GROUP NHS FOUNDATION TRUST","RK5BC","Non-hospital site"]
[null,null,null,null,null,null,null,null,null,null,null,null,null,null,null,null,null,null,null,null,"QMJ","RAL","ROYAL FREE LONDON NHS FOUNDATION TRUST","RAL26","Barnet Hospital",null,"RTH","THE HILLINGDON HOSPITALS NHS FOUNDATION TRUST",null,"RTH","THE HILLINGDON HOSPITALS NHS FOUNDATION TRUST","RK5XXX","Non-hospital site"]
[null,null,null,null,null,null,null,null,null,null,null,null,null,null,null,null,null,null,null,null,"QMJ","RAL","ROYAL FREE LONDON NHS FOUNDATION TRUST","E3M3C","NORTH MIDDLESEX HOSPITAL DSU - ELECTIVE SURGICAL HUB",null,"RTK","THE NEWCASTLE UPON TYNE HOSPITALS NHS FOUNDATION TRUST",null,"RTK","THE NEWCASTLE UPON TYNE HOSPITALS NHS FOUNDATION TRUST","RK950","Non-hospital site"]
[null,null,null,null,null,null,null,null,null,null,null,null,null,null,null,null,null,null,null,null,"QMJ","RAL","ROYAL FREE LONDON NHS FOUNDATION TRUST","RAL01","Royal Free Hospital",null,"RTP","THE PRINCESS ALEXANDRA HOSPITAL NHS TRUST",null,"RTP","THE PRINCESS ALEXANDRA HOSPITAL NHS TRUST","RK9XXX","Non-hospital site"]
[null,null,null,null,null,null,null,null,null,null,null,null,null,null,null,null,null,null,null,null,"QMJ","RRV","UNIVERSITY COLLEGE LONDON HOSPITALS NHS FOUNDATION TRUST","RRV11","University College Hospital Elizabeth Garrett Anderson Wing",null,"RTR","THE QUEEN ELIZABETH HOSPITAL, KING'S LYNN, NHS FOUNDATION TRUST",null,"RTR","THE QUEEN ELIZABETH HOSPITAL, KING'S LYNN, NHS FOUNDATION TRUST","RKB01","Non-hospital site"]
[null,null,null,null,null,null,null,null,null,null,null,null,null,null,null,null,null,null,null,null,"QMJ","RKE","WHITTINGTON HEALTH NHS TRUST","RKEXXX","Non-hospital site",null,"RTX","THE ROTHERHAM NHS FOUNDATION TRUST",null,"RTX","THE ROTHERHAM NHS FOUNDATION TRUST","RKB03","Non-hospital site"]
[null,null,null,null,null,null,null,null,null,null,null,null,null,null,null,null,null,null,null,null,"QMJ","RKE","WHITTINGTON HEALTH NHS TRUST","RKEQ4","The Whittington Hospital",null,"RVJ","THE ROYAL WOLVERHAMPTON NHS TRUST",null,"RVJ","THE ROYAL WOLVERHAMPTON NHS TRUST","RKBXXX","Non-hospital site"]
[null,null,null,null,null,null,null,null,null,null,null,null,null,null,null,null,null,null,null,null,"QMM","RGP","JAMES PAGET UNIVERSITY HOSPITALS NHS FOUNDATION TRUST","RGP75","James Paget University Hospital",null,"RVR","THE SHREWSBURY AND TELFORD HOSPITAL NHS TRUST",null,"RVR","THE SHREWSBURY AND TELFORD HOSPITAL NHS TRUST","RKEQ4","Non-hospital site"]
[null,null,null,null,null,null,null,null,null,null,null,null,null,null,null,null,null,null,null,null,"QMM","RM1","NORFOLK AND NORWICH UNIVERSITY HOSPITALS NHS FOUNDATION TRUST","RM102","Norfolk and Norwich University Hospital",null,"RVV","TORBAY AND SOUTH DEVON NHS FOUNDATION TRUST",null,"RVV","TORBAY AND SOUTH DEVON NHS FOUNDATION TRUST","RKEXXX","Non-hospital site"]
[null,null,null,null,null,null,null,null,null,null,null,null,null,null,null,null,null,null,null,null,"QMM","RCX","THE QUEEN ELIZABETH HOSPITAL, KING'S LYNN, NHS FOUNDATION TRUST","RCXXXX","Non-hospital site",null,"RVW","UNITED LINCOLNSHIRE TEACHING HOSPITALS NHS TRUST",null,"RVW","UNITED LINCOLNSHIRE TEACHING HOSPITALS NHS TRUST","RL403","Non-hospital site"]
[null,null,null,null,null,null,null,null,null,null,null,null,null,null,null,null,null,null,null,null,"QMM","RCX","THE QUEEN ELIZABETH HOSPITAL, KING'S LYNN, NHS FOUNDATION TRUST","RCX70","The Queen Elizabeth Hospital",null,"RWA","UNIVERSITY COLLEGE LONDON HOSPITALS NHS FOUNDATION TRUST",null,"RWA","UNIVERSITY COLLEGE LONDON HOSPITALS NHS FOUNDATION TRUST","RLQ01","Non-hospital site"]
[null,null,null,null,null,null,null,null,null,null,null,null,null,null,null,null,null,null,null,null,"QNC","RJE","UNIVERSITY HOSPITALS OF NORTH MIDLANDS NHS TRUST","RJE01","Royal Stoke University Hospital",null,"RWD","UNIVERSITY HOSPITAL SOUTHAMPTON NHS FOUNDATION TRUST",null,"RWD","UNIVERSITY HOSPITAL SOUTHAMPTON NHS FOUNDATION TRUST","RLT01","Non-hospital site"]
[null,null,null,null,null,null,null,null,null,null,null,null,null,null,null,null,null,null,null,null,"QNQ","RDU","FRIMLEY HEALTH NHS FOUNDATION TRUST","RDU01","Frimley Park Hospital",null,"RWE","UNIVERSITY HOSPITALS BIRMINGHAM NHS FOUNDATION TRUST",null,"RWE","UNIVERSITY HOSPITALS BIRMINGHAM NHS FOUNDATION TRUST","RM102","Non-hospital site"]
[null,null,null,null,null,null,null,null,null,null,null,null,null,null,null,null,null,null,null,null,"QNQ","RDU","FRIMLEY HEALTH NHS FOUNDATION TRUST","RDU50","Wexham Park Hospital",null,"RWF","UNIVERSITY HOSPITALS BRISTOL AND WESTON NHS FOUNDATION TRUST",null,"RWF","UNIVERSITY HOSPITALS BRISTOL AND WESTON NHS FOUNDATION TRUST","RM317","Non-hospital site"]
[null,null,null,null,null,null,null,null,null,null,null,null,null,null,null,null,null,null,null,null,"QNX","RXC","EAST SUSSEX HEALTHCARE NHS TRUST","RXC01","Conquest Hospital",null,"RWG","UNIVERSITY HOSPITALS COVENTRY AND WARWICKSHIRE NHS TRUST",null,"RWG","UNIVERSITY HOSPITALS COVENTRY AND WARWICKSHIRE NHS TRUST","RMC01","Non-hospital site"]
[null,null,null,null,null,null,null,null,null,null,null,null,null,null,null,null,null,null,null,null,"QNX","RXC","EAST SUSSEX HEALTHCARE NHS TRUST","RXC02","Eastbourne District General Hospital",null,"RWH","UNIVERSITY HOSPITALS DORSET NHS FOUNDATION TRUST",null,"RWH","UNIVERSITY HOSPITALS DORSET NHS FOUNDATION TRUST","RMP01","Non-hospital site"]
[null,null,null,null,null,null,null,null,null,null,null,null,null,null,null,null,null,null,null,null,"QNX","RXC","EAST SUSSEX HEALTHCARE NHS TRUST","RXCXXX","Non-hospital site",null,"RWJ","UNIVERSITY HOSPITALS OF DERBY AND BURTON NHS FOUNDATION TRUST",null,"RWJ","UNIVERSITY HOSPITALS OF DERBY AND BURTON NHS FOUNDATION TRUST","RN325","Non-hospital site"]
[null,null,null,null,null,null,null,null,null,null,null,null,null,null,null,null,null,null,null,null,"QNX","RYR","UNIVERSITY HOSPITALS SUSSEX NHS FOUNDATION TRUST","N6J7V","Princess Royal Hospital",null,"RWP","UNIVERSITY HOSPITALS OF LEICESTER NHS TRUST",null,"RWP","UNIVERSITY HOSPITALS OF LEICESTER NHS TRUST","RN3XXX","Non-hospital site"]
[null,null,null,null,null,null,null,null,null,null,null,null,null,null,null,null,null,null,null,null,"QNX","RYR","UNIVERSITY HOSPITALS SUSSEX NHS FOUNDATION TRUST","E0A3H","Royal Sussex County Hospital",null,"RWW","UNIVERSITY HOSPITALS OF MORECAMBE BAY NHS FOUNDATION TRUST",null,"RWW","UNIVERSITY HOSPITALS OF MORECAMBE BAY NHS FOUNDATION TRUST","RN506","Non-hospital site"]
[null,null,null,null,null,null,null,null,null,null,null,null,null,null,null,null,null,null,null,null,"QNX","RYR","UNIVERSITY HOSPITALS SUSSEX NHS FOUNDATION TRUST","RYR16","St Richard's Hospital",null,"RWY","UNIVERSITY HOSPITALS OF NORTH MIDLANDS NHS TRUST",null,"RWY","UNIVERSITY HOSPITALS OF NORTH MIDLANDS NHS TRUST","RN541","Non-hospital site home/in-transit births"]
[null,null,null,null,null,null,null,null,null,null,null,null,null,null,null,null,null,null,null,null,"QNX","RYR","UNIVERSITY HOSPITALS SUSSEX NHS FOUNDATION TRUST","RYR18","Worthing Hospital",null,"RX1","UNIVERSITY HOSPITALS PLYMOUTH NHS TRUST",null,"RX1","UNIVERSITY HOSPITALS PLYMOUTH NHS TRUST","RN542","Norfolk and Norwich University Hospital"]
[null,null,null,null,null,null,null,null,null,null,null,null,null,null,null,null,null,null,null,null,"QOC","RXW","THE SHREWSBURY AND TELFORD HOSPITAL NHS TRUST","RXWAT","The Princess Royal Hospital",null,"RXC","UNIVERSITY HOSPITALS SUSSEX NHS FOUNDATION TRUST",null,"RXC","UNIVERSITY HOSPITALS SUSSEX NHS FOUNDATION TRUST","RN707","North Devon District Hospital"]
[null,null,null,null,null,null,null,null,null,null,null,null,null,null,null,null,null,null,null,null,"QOP","RMC","BOLTON NHS FOUNDATION TRUST","RMC01","Royal Bolton Hospital",null,"RXF","WALSALL HEALTHCARE NHS TRUST",null,"RXF","WALSALL HEALTHCARE NHS TRUST","RNA01","NORTH MIDDLESEX HOSPITAL DSU - ELECTIVE SURGICAL HUB"]
[null,null,null,null,null,null,null,null,null,null,null,null,null,null,null,null,null,null,null,null,"QOP","R0A","MANCHESTER UNIVERSITY NHS FOUNDATION TRUST","R0A05","St Mary's Hospital",null,"RXK","WARRINGTON AND HALTON TEACHING HOSPITALS NHS FOUNDATION TRUST",null,"RXK","WARRINGTON AND HALTON TEACHING HOSPITALS NHS FOUNDATION TRUST","RNN62","Northampton General Hospital (Acute)"]
[null,null,null,null,null,null,null,null,null,null,null,null,null,null,null,null,null,null,null,null,"QOP","RM3","NORTHERN CARE ALLIANCE NHS FOUNDATION TRUST","RM317","Royal Oldham Hospital",null,"RXL","WEST HERTFORDSHIRE TEACHING HOSPITALS NHS TRUST",null,"RXL","WEST HERTFORDSHIRE TEACHING HOSPITALS NHS TRUST","RNNBX","Northwick Park Hospital"]
[null,null,null,null,null,null,null,null,null,null,null,null,null,null,null,null,null,null,null,null,"QOP","RWJ","STOCKPORT NHS FOUNDATION TRUST","RWJXXX","Non-hospital site",null,"RXN","WEST SUFFOLK NHS FOUNDATION TRUST",null,"RXN","WEST SUFFOLK NHS FOUNDATION TRUST","RNQ51","Nottingham University Hospitals NHS Trust - City Campus"]
[null,null,null,null,null,null,null,null,null,null,null,null,null,null,null,null,null,null,null,null,"QOP","RWJ","STOCKPORT NHS FOUNDATION TRUST","RWJ09","Stepping Hill Hospital",null,"RXP","WHITTINGTON HEALTH NHS TRUST",null,"RXP","WHITTINGTON HEALTH NHS TRUST","RNS01","Nottingham University Hospitals NHS Trust - Queen's Medical Centre Campus"]
[null,null,null,null,null,null,null,null,null,null,null,null,null,null,null,null,null,null,null,null,"QOP","RMP","TAMESIDE AND GLOSSOP INTEGRATED CARE NHS FOUNDATION TRUST","RMP01","Tameside General Hospital",null,"RXQ","WIRRAL UNIVERSITY TEACHING HOSPITAL NHS FOUNDATION TRUST",null,"RXQ","WIRRAL UNIVERSITY TEACHING HOSPITAL NHS FOUNDATION TRUST","RNZ02","Ormskirk and District General Hospital"]
[null,null,null,null,null,null,null,null,null,null,null,null,null,null,null,null,null,null,null,null,"QOP","RRF","WRIGHTINGTON, WIGAN AND LEIGH NHS FOUNDATION TRUST","RRF02","Royal Albert Edward Infirmary",null,"RXR","WORCESTERSHIRE ACUTE HOSPITALS NHS TRUST",null,"RXR","WORCESTERSHIRE ACUTE HOSPITALS NHS TRUST","RNZXXX","Peterborough City Hospital"]
[null,null,null,null,null,null,null,null,null,null,null,null,null,null,null,null,null,null,null,null,"QOQ","RCD","HARROGATE AND DISTRICT NHS FOUNDATION TRUST","RCD01","Harrogate District Hospital",null,"RXW","WRIGHTINGTON, WIGAN AND LEIGH NHS FOUNDATION TRUST",null,"RXW","WRIGHTINGTON, WIGAN AND LEIGH NHS FOUNDATION TRUST","RP5BA","Pilgrim Hospital"]
[null,null,null,null,null,null,null,null,null,null,null,null,null,null,null,null,null,null,null,null,"QOQ","RWA","HULL UNIVERSITY TEACHING HOSPITALS NHS TRUST","RWA01","Hull Royal Infirmary",null,"RYJ","WYE VALLEY NHS TRUST",null,"RYJ","WYE VALLEY NHS TRUST","RP5DR","Pinderfields General Hospital"]
[null,null,null,null,null,null,null,null,null,null,null,null,null,null,null,null,null,null,null,null,"QOQ","RJL","NORTHERN LINCOLNSHIRE AND GOOLE NHS FOUNDATION TRUST","RJL30","Diana, Princess Of Wales Hospital",null,"RYR","YORK AND SCARBOROUGH TEACHING HOSPITALS NHS FOUNDATION TRUST",null,"RYR","YORK AND SCARBOROUGH TEACHING HOSPITALS NHS FOUNDATION TRUST","RP5XXX","Pontefract General Infirmary"]
[null,null,null,null,null,null,null,null,null,null,null,null,null,null,null,null,null,null,null,null,"QOQ","RJL","NORTHERN LINCOLNSHIRE AND GOOLE NHS FOUNDATION TRUST","RJL32","Scunthorpe General Hospital",null,null,null,null,null,null,"RPA02","Poole Hospital"]
[null,null,null,null,null,null,null,null,null,null,null,null,null,null,null,null,null,null,null,null,"QOQ","RCB","YORK AND SCARBOROUGH TEACHING HOSPITALS NHS FOUNDATION TRUST","RCBCA","Scarborough General Hospital",null,null,null,null,null,null,"RQ370","Princess Alexandra Hospital"]
[null,null,null,null,null,null,null,null,null,null,null,null,null,null,null,null,null,null,null,null,"QOQ","RCB","YORK AND SCARBOROUGH TEACHING HOSPITALS NHS FOUNDATION TRUST","RCB55","York Hospital",null,null,null,null,null,null,"RQM01","Princess Anne Hospital"]
[null,null,null,null,null,null,null,null,null,null,null,null,null,null,null,null,null,null,null,null,"QOX","RN3","GREAT WESTERN HOSPITALS NHS FOUNDATION TRUST","RN3XXX","Non-hospital site",null,null,null,null,null,null,"RQM91","Princess Anne Wing RUH "]
[null,null,null,null,null,null,null,null,null,null,null,null,null,null,null,null,null,null,null,null,"QOX","RN3","GREAT WESTERN HOSPITALS NHS FOUNDATION TRUST","RN325","The Great Western Hospital",null,null,null,null,null,null,"RQWG0","Princess Royal Hospital"]
[null,null,null,null,null,null,null,null,null,null,null,null,null,null,null,null,null,null,null,null,"QOX","RD1","ROYAL UNITED HOSPITALS BATH NHS FOUNDATION TRUST","RD121","Frome Community Hospital ",null,null,null,null,null,null,"RQXM1","Princess Royal University Hospital"]
[null,null,null,null,null,null,null,null,null,null,null,null,null,null,null,null,null,null,null,null,"QOX","RD1","ROYAL UNITED HOSPITALS BATH NHS FOUNDATION TRUST","RD1XXX","Non Hospital Site",null,null,null,null,null,null,"RR7EN","Queen Alexandra Hospital"]
[null,null,null,null,null,null,null,null,null,null,null,null,null,null,null,null,null,null,null,null,"QOX","RD1","ROYAL UNITED HOSPITALS BATH NHS FOUNDATION TRUST","RD130","Princess Anne Wing RUH ",null,null,null,null,null,null,"RR801","Queen Charlotte's Hospital"]
[null,null,null,null,null,null,null,null,null,null,null,null,null,null,null,null,null,null,null,null,"QOX","RNZ","SALISBURY NHS FOUNDATION TRUST","RNZXXX","Non-hospital site",null,null,null,null,null,null,"RR813","Queen Elizabeth Hospital"]
[null,null,null,null,null,null,null,null,null,null,null,null,null,null,null,null,null,null,null,null,"QOX","RNZ","SALISBURY NHS FOUNDATION TRUST","RNZ02","Salisbury District Hospital",null,null,null,null,null,null,"RR8XXX","Queen Elizabeth Hospital"]
[null,null,null,null,null,null,null,null,null,null,null,null,null,null,null,null,null,null,null,null,"QPM","RNQ","KETTERING GENERAL HOSPITAL NHS FOUNDATION TRUST","RNQ51","Kettering General Hospital",null,null,null,null,null,null,"RRF02","Queen Elizabeth The Queen Mother Hospital"]
[null,null,null,null,null,null,null,null,null,null,null,null,null,null,null,null,null,null,null,null,"QPM","RNS","NORTHAMPTON GENERAL HOSPITAL NHS TRUST","RNS01","Northampton General Hospital (Acute)",null,null,null,null,null,null,"RRK97","Queen's Hospital"]
[null,null,null,null,null,null,null,null,null,null,null,null,null,null,null,null,null,null,null,null,"QR1","RTE","GLOUCESTERSHIRE HOSPITALS NHS FOUNDATION TRUST","RTE03","Gloucestershire Royal Hospital",null,null,null,null,null,null,"RRK98","Queens Hospital, Burton Upon Trent"]
[null,null,null,null,null,null,null,null,null,null,null,null,null,null,null,null,null,null,null,null,"QR1","RTE","GLOUCESTERSHIRE HOSPITALS NHS FOUNDATION TRUST","RTEXXX","Non-hospital site",null,null,null,null,null,null,"RRK99","Rosie Hospital"]
[null,null,null,null,null,null,null,null,null,null,null,null,null,null,null,null,null,null,null,null,"QRL","RN5","HAMPSHIRE HOSPITALS NHS FOUNDATION TRUST","RN542","Andover War Memorial Hospital",null,null,null,null,null,null,"RRV11","Rotherham District General Hospital"]
[null,null,null,null,null,null,null,null,null,null,null,null,null,null,null,null,null,null,null,null,"QRL","RN5","HAMPSHIRE HOSPITALS NHS FOUNDATION TRUST","RN506","Basingstoke and North Hampshire Hospital",null,null,null,null,null,null,"RTD02","Royal Albert Edward Infirmary"]
[null,null,null,null,null,null,null,null,null,null,null,null,null,null,null,null,null,null,null,null,"QRL","RN5","HAMPSHIRE HOSPITALS NHS FOUNDATION TRUST","RN541","Royal Hampshire County Hospital",null,null,null,null,null,null,"RTE03","Royal Berkshire Hospital"]
[null,null,null,null,null,null,null,null,null,null,null,null,null,null,null,null,null,null,null,null,"QRL","R1F","ISLE OF WIGHT NHS TRUST","R1F01","St Mary's Hospital",null,null,null,null,null,null,"RTEXXX","Royal Blackburn Hospital"]
[null,null,null,null,null,null,null,null,null,null,null,null,null,null,null,null,null,null,null,null,"QRL","RHU","PORTSMOUTH HOSPITALS UNIVERSITY NATIONAL HEALTH SERVICE TRUST","RHU03","Queen Alexandra Hospital",null,null,null,null,null,null,"RTF86","Royal Bolton Hospital"]
[null,null,null,null,null,null,null,null,null,null,null,null,null,null,null,null,null,null,null,null,"QRL","RHM","UNIVERSITY HOSPITAL SOUTHAMPTON NHS FOUNDATION TRUST","RHM12","Princess Anne Hospital",null,null,null,null,null,null,"RTFDH","Royal Bournemouth Hospital"]
[null,null,null,null,null,null,null,null,null,null,null,null,null,null,null,null,null,null,null,null,"QRV","RQM","CHELSEA AND WESTMINSTER HOSPITAL NHS FOUNDATION TRUST","RQM01","Chelsea and Westminster Hospital",null,null,null,null,null,null,"RTFDJ","Royal Cornwall Hospital (Treliske)"]
[null,null,null,null,null,null,null,null,null,null,null,null,null,null,null,null,null,null,null,null,"QRV","RQM","CHELSEA AND WESTMINSTER HOSPITAL NHS FOUNDATION TRUST","RQM91","West Middlesex University Hospital",null,null,null,null,null,null,"RTFDR","Royal Derby Hospital"]
[null,null,null,null,null,null,null,null,null,null,null,null,null,null,null,null,null,null,null,null,"QRV","RYJ","IMPERIAL COLLEGE HEALTHCARE NHS TRUST","RYJ04","Queen Charlotte's Hospital",null,null,null,null,null,null,"RTFXXX","Royal Devon and Exeter Hospital (Wonford)"]
[null,null,null,null,null,null,null,null,null,null,null,null,null,null,null,null,null,null,null,null,"QRV","RYJ","IMPERIAL COLLEGE HEALTHCARE NHS TRUST","RYJ01","St Mary's Hospital (HQ)",null,null,null,null,null,null,"RTG02","Royal Free Hospital"]
[null,null,null,null,null,null,null,null,null,null,null,null,null,null,null,null,null,null,null,null,"QRV","R1K","LONDON NORTH WEST UNIVERSITY HEALTHCARE NHS TRUST","R1K01","Northwick Park Hospital",null,null,null,null,null,null,"RTGFG","Royal Hallamshire Hospital"]
[null,null,null,null,null,null,null,null,null,null,null,null,null,null,null,null,null,null,null,null,"QRV","RAS","THE HILLINGDON HOSPITALS NHS FOUNDATION TRUST","RAS01","Hillingdon Hospital",null,null,null,null,null,null,"RTH05","Royal Hampshire County Hospital"]
[null,null,null,null,null,null,null,null,null,null,null,null,null,null,null,null,null,null,null,null,"QSL","RH5","SOMERSET NHS FOUNDATION TRUST","RH5K6","Bridgwater Hospital",null,null,null,null,null,null,"RTH08","Royal Lancaster Infirmary"]
[null,null,null,null,null,null,null,null,null,null,null,null,null,null,null,null,null,null,null,null,"QSL","RH5","SOMERSET NHS FOUNDATION TRUST","RH5A8","MUSGROVE PARK HOSPITAL",null,null,null,null,null,null,"RTH16","Royal Oldham Hospital"]
[null,null,null,null,null,null,null,null,null,null,null,null,null,null,null,null,null,null,null,null,"QSL","RH5","SOMERSET NHS FOUNDATION TRUST","RH5XXXX","Non-hospital site home/in-transit births",null,null,null,null,null,null,"RTH19","Royal Preston Hospital"]
[null,null,null,null,null,null,null,null,null,null,null,null,null,null,null,null,null,null,null,null,"QSL","RH5","SOMERSET NHS FOUNDATION TRUST","RH5O4","Yeovil District Hospital",null,null,null,null,null,null,"RTH21","Royal Stoke University Hospital"]
[null,null,null,null,null,null,null,null,null,null,null,null,null,null,null,null,null,null,null,null,"QT1","RX1","NOTTINGHAM UNIVERSITY HOSPITALS NHS TRUST","RX1XXX","Non-hospital site",null,null,null,null,null,null,"RTK01","Royal Surrey County Hospital"]
[null,null,null,null,null,null,null,null,null,null,null,null,null,null,null,null,null,null,null,null,"QT1","RX1","NOTTINGHAM UNIVERSITY HOSPITALS NHS TRUST","RX1CC","Nottingham University Hospitals NHS Trust - City Campus",null,null,null,null,null,null,"RTP04","Royal Sussex County Hospital"]
[null,null,null,null,null,null,null,null,null,null,null,null,null,null,null,null,null,null,null,null,"QT1","RX1","NOTTINGHAM UNIVERSITY HOSPITALS NHS TRUST","RX1RA","Nottingham University Hospitals NHS Trust - Queen's Medical Centre Campus",null,null,null,null,null,null,"RTR45","Russells Hall Hospital"]
[null,null,null,null,null,null,null,null,null,null,null,null,null,null,null,null,null,null,null,null,"QT1","RK5","SHERWOOD FOREST HOSPITALS NHS FOUNDATION TRUST","RK5BC","King's Mill Hospital",null,null,null,null,null,null,"RTRAT","Salisbury District Hospital"]
[null,null,null,null,null,null,null,null,null,null,null,null,null,null,null,null,null,null,null,null,"QT1","RK5","SHERWOOD FOREST HOSPITALS NHS FOUNDATION TRUST","RK5XXX","Non-hospital site",null,null,null,null,null,null,"RTX02","Scarborough General Hospital"]
[null,null,null,null,null,null,null,null,null,null,null,null,null,null,null,null,null,null,null,null,"QT6","REF","ROYAL CORNWALL HOSPITALS NHS TRUST","REFXXX","Non-hospital site",null,null,null,null,null,null,"RTXBU","Scunthorpe General Hospital"]
[null,null,null,null,null,null,null,null,null,null,null,null,null,null,null,null,null,null,null,null,"QT6","REF","ROYAL CORNWALL HOSPITALS NHS TRUST","REF12","Royal Cornwall Hospital (Treliske)",null,null,null,null,null,null,"RTXBW","Solihull Hospital"]
[null,null,null,null,null,null,null,null,null,null,null,null,null,null,null,null,null,null,null,null,"QU9","RXQ","BUCKINGHAMSHIRE HEALTHCARE NHS TRUST","RXQ02","Stoke Mandeville Hospital",null,null,null,null,null,null,"RVJ01","South Tyneside District Hospital"]
[null,null,null,null,null,null,null,null,null,null,null,null,null,null,null,null,null,null,null,null,"QU9","RTH","OXFORD UNIVERSITY HOSPITALS NHS FOUNDATION TRUST","RTH19","Chipping Norton Community Hospital",null,null,null,null,null,null,"RVJXXX","Southend Hospital"]
[null,null,null,null,null,null,null,null,null,null,null,null,null,null,null,null,null,null,null,null,"QU9","RTH","OXFORD UNIVERSITY HOSPITALS NHS FOUNDATION TRUST","RTH05","Horton General Hospital",null,null,null,null,null,null,"RVR05","Southmead Hospital"]
[null,null,null,null,null,null,null,null,null,null,null,null,null,null,null,null,null,null,null,null,"QU9","RTH","OXFORD UNIVERSITY HOSPITALS NHS FOUNDATION TRUST","RTH08","John Radcliffe Hospital",null,null,null,null,null,null,"RVR50","St George's Hospital (Tooting)"]
[null,null,null,null,null,null,null,null,null,null,null,null,null,null,null,null,null,null,null,null,"QU9","RTH","OXFORD UNIVERSITY HOSPITALS NHS FOUNDATION TRUST","RTH16","Wallingford Community Hospital",null,null,null,null,null,null,"RVRXXX","St Helier Hospital"]
[null,null,null,null,null,null,null,null,null,null,null,null,null,null,null,null,null,null,null,null,"QU9","RTH","OXFORD UNIVERSITY HOSPITALS NHS FOUNDATION TRUST","RTH21","Wantage Community Hospital",null,null,null,null,null,null,"RVV01","St James's University Hospital"]
[null,null,null,null,null,null,null,null,null,null,null,null,null,null,null,null,null,null,null,null,"QU9","RHW","ROYAL BERKSHIRE NHS FOUNDATION TRUST","RHW01","Royal Berkshire Hospital",null,null,null,null,null,null,"RVV09","St Mary's Hospital"]
[null,null,null,null,null,null,null,null,null,null,null,null,null,null,null,null,null,null,null,null,"QUA","RNA","THE DUDLEY GROUP NHS FOUNDATION TRUST","RNA01","Russells Hall Hospital",null,null,null,null,null,null,"RVWAE","St Mary's Hospital"]
[null,null,null,null,null,null,null,null,null,null,null,null,null,null,null,null,null,null,null,null,"QUA","RL4","THE ROYAL WOLVERHAMPTON NHS TRUST","RL403","New Cross Hospital",null,null,null,null,null,null,"RWA01","St Mary's Hospital"]
[null,null,null,null,null,null,null,null,null,null,null,null,null,null,null,null,null,null,null,null,"QUA","RBK","WALSALL HEALTHCARE NHS TRUST","RBK02","Manor Hospital",null,null,null,null,null,null,"RWDDA","St Mary's Hospital (HQ)"]
[null,null,null,null,null,null,null,null,null,null,null,null,null,null,null,null,null,null,null,null,"QUE","RGT","CAMBRIDGE UNIVERSITY HOSPITALS NHS FOUNDATION TRUST","RGT32","Rosie Hospital",null,null,null,null,null,null,"RWDLA","ST MICHAEL'S HOSPITAL"]
[null,null,null,null,null,null,null,null,null,null,null,null,null,null,null,null,null,null,null,null,"QUE","RGN","NORTH WEST ANGLIA NHS FOUNDATION TRUST","RGN90","Hinchingbrooke Hospital",null,null,null,null,null,null,"RWDLP","St Peter's Hospital"]
[null,null,null,null,null,null,null,null,null,null,null,null,null,null,null,null,null,null,null,null,"QUE","RGN","NORTH WEST ANGLIA NHS FOUNDATION TRUST","RGN80","Peterborough City Hospital",null,null,null,null,null,null,"RWE10","St Richard's Hospital"]
[null,null,null,null,null,null,null,null,null,null,null,null,null,null,null,null,null,null,null,null,"QUY","RVJ","NORTH BRISTOL NHS TRUST","RVJXXX","Non-hospital site",null,null,null,null,null,null,"RWEAA","St Thomas' Hospital"]
[null,null,null,null,null,null,null,null,null,null,null,null,null,null,null,null,null,null,null,null,"QUY","RVJ","NORTH BRISTOL NHS TRUST","RVJ01","Southmead Hospital",null,null,null,null,null,null,"RWEAK","Stepping Hill Hospital"]
[null,null,null,null,null,null,null,null,null,null,null,null,null,null,null,null,null,null,null,null,"QUY","RA7","UNIVERSITY HOSPITALS BRISTOL AND WESTON NHS FOUNDATION TRUST","RA707","ST MICHAEL'S HOSPITAL",null,null,null,null,null,null,"RWEXXX","Stoke Mandeville Hospital"]
[null,null,null,null,null,null,null,null,null,null,null,null,null,null,null,null,null,null,null,null,"QVV","RBD","DORSET COUNTY HOSPITAL NHS FOUNDATION TRUST","RBD01","Dorset County Hospital",null,null,null,null,null,null,"RWF03","Sunderland Royal Hospital"]
[null,null,null,null,null,null,null,null,null,null,null,null,null,null,null,null,null,null,null,null,"QVV","R0D","UNIVERSITY HOSPITALS DORSET NHS FOUNDATION TRUST","R0D01","Poole Hospital",null,null,null,null,null,null,"RWF08","Tameside General Hospital"]
[null,null,null,null,null,null,null,null,null,null,null,null,null,null,null,null,null,null,null,null,"QVV","R0D","UNIVERSITY HOSPITALS DORSET NHS FOUNDATION TRUST","R0D02","Royal Bournemouth Hospital",null,null,null,null,null,null,"RWFTW","The Great Western Hospital"]
[null,null,null,null,null,null,null,null,null,null,null,null,null,null,null,null,null,null,null,null,"QWE","RJ6","CROYDON HEALTH SERVICES NHS TRUST","RJ611","Croydon University Hospital",null,null,null,null,null,null,"RWFXXX","The James Cook University Hospital"]
[null,null,null,null,null,null,null,null,null,null,null,null,null,null,null,null,null,null,null,null,"QWE","RVR","EPSOM AND ST HELIER UNIVERSITY HOSPITALS NHS TRUST","RVR50","Epsom Hospital",null,null,null,null,null,null,"RWG02","The Northumbria"]
[null,null,null,null,null,null,null,null,null,null,null,null,null,null,null,null,null,null,null,null,"QWE","RVR","EPSOM AND ST HELIER UNIVERSITY HOSPITALS NHS TRUST","RVRXXX","Non-hospital site",null,null,null,null,null,null,"RWH01","The Princess Royal Hospital"]
[null,null,null,null,null,null,null,null,null,null,null,null,null,null,null,null,null,null,null,null,"QWE","RVR","EPSOM AND ST HELIER UNIVERSITY HOSPITALS NHS TRUST","RVR05","St Helier Hospital",null,null,null,null,null,null,"RWHXXX","The Queen Elizabeth Hospital"]
[null,null,null,null,null,null,null,null,null,null,null,null,null,null,null,null,null,null,null,null,"QWE","RAX","KINGSTON AND RICHMOND NHS FOUNDATION TRUST","RAX01","Kingston Hospital",null,null,null,null,null,null,"RWJ09","The Royal London Hospital"]
[null,null,null,null,null,null,null,null,null,null,null,null,null,null,null,null,null,null,null,null,"QWE","RJ7","ST GEORGE'S UNIVERSITY HOSPITALS NHS FOUNDATION TRUST","RJ701","St George's Hospital (Tooting)",null,null,null,null,null,null,"RWJXXX","The Royal Victoria Infirmary"]
[null,null,null,null,null,null,null,null,null,null,null,null,null,null,null,null,null,null,null,null,"QWO","RCF","AIREDALE NHS FOUNDATION TRUST","RCF22","Airedale General Hospital",null,null,null,null,null,null,"RWP50","The Tunbridge Wells Hospital"]
[null,null,null,null,null,null,null,null,null,null,null,null,null,null,null,null,null,null,null,null,"QWO","RAE","BRADFORD TEACHING HOSPITALS NHS FOUNDATION TRUST","RAE01","Bradford Royal Infirmary",null,null,null,null,null,null,"RWWWH","The Whittington Hospital"]
[null,null,null,null,null,null,null,null,null,null,null,null,null,null,null,null,null,null,null,null,"QWO","RWY","CALDERDALE AND HUDDERSFIELD NHS FOUNDATION TRUST","RWY02","Calderdale Royal Hospital",null,null,null,null,null,null,"RWY02","Tiverton and District Hospital"]
[null,null,null,null,null,null,null,null,null,null,null,null,null,null,null,null,null,null,null,null,"QWO","RR8","LEEDS TEACHING HOSPITALS NHS TRUST","RR801","Leeds General Infirmary",null,null,null,null,null,null,"RX1CC","Torbay Hospital"]
[null,null,null,null,null,null,null,null,null,null,null,null,null,null,null,null,null,null,null,null,"QWO","RR8","LEEDS TEACHING HOSPITALS NHS TRUST","RR8XXX","Non-hospital site",null,null,null,null,null,null,"RX1RA","University College Hospital Elizabeth Garrett Anderson Wing"]
[null,null,null,null,null,null,null,null,null,null,null,null,null,null,null,null,null,null,null,null,"QWO","RR8","LEEDS TEACHING HOSPITALS NHS TRUST","RR813","St James's University Hospital",null,null,null,null,null,null,"RX1XXX","University Hospital (Coventry)"]
[null,null,null,null,null,null,null,null,null,null,null,null,null,null,null,null,null,null,null,null,"QWO","RXF","MID YORKSHIRE TEACHING NHS TRUST","RXF10","Dewsbury and District Hospital",null,null,null,null,null,null,"RXC01","University Hospital Lewisham"]
[null,null,null,null,null,null,null,null,null,null,null,null,null,null,null,null,null,null,null,null,"QWO","RXF","MID YORKSHIRE TEACHING NHS TRUST","RXFXXX","Non-hospital site",null,null,null,null,null,null,"RXC02","University Hospital Of North Durham"]
[null,null,null,null,null,null,null,null,null,null,null,null,null,null,null,null,null,null,null,null,"QWO","RXF","MID YORKSHIRE TEACHING NHS TRUST","RXF05","Pinderfields General Hospital",null,null,null,null,null,null,"RXCXXX","University Hospital Of North Tees"]
[null,null,null,null,null,null,null,null,null,null,null,null,null,null,null,null,null,null,null,null,"QWO","RXF","MID YORKSHIRE TEACHING NHS TRUST","RXF03","Pontefract General Infirmary",null,null,null,null,null,null,"RXF03","Wallingford Community Hospital"]
[null,null,null,null,null,null,null,null,null,null,null,null,null,null,null,null,null,null,null,null,"QWU","RLT","GEORGE ELIOT HOSPITAL NHS TRUST","RLT01","George Eliot Hospital - Acute Services",null,null,null,null,null,null,"RXF05","Wantage Community Hospital"]
[null,null,null,null,null,null,null,null,null,null,null,null,null,null,null,null,null,null,null,null,"QWU","RJC","SOUTH WARWICKSHIRE UNIVERSITY NHS FOUNDATION TRUST","RJC02","Warwick Hospital",null,null,null,null,null,null,"RXF10","Warrington Hospital"]
[null,null,null,null,null,null,null,null,null,null,null,null,null,null,null,null,null,null,null,null,"QWU","RKB","UNIVERSITY HOSPITALS COVENTRY AND WARWICKSHIRE NHS TRUST","RKB03","Hospital Of St Cross",null,null,null,null,null,null,"RXFXXX","Warwick Hospital"]
[null,null,null,null,null,null,null,null,null,null,null,null,null,null,null,null,null,null,null,null,"QWU","RKB","UNIVERSITY HOSPITALS COVENTRY AND WARWICKSHIRE NHS TRUST","RKBXXX","Non-hospital site",null,null,null,null,null,null,"RXK02","Watford General Hospital"]
[null,null,null,null,null,null,null,null,null,null,null,null,null,null,null,null,null,null,null,null,"QWU","RKB","UNIVERSITY HOSPITALS COVENTRY AND WARWICKSHIRE NHS TRUST","RKB01","University Hospital (Coventry)",null,null,null,null,null,null,"RXL01","West Cumberland Hospital"]
[null,null,null,null,null,null,null,null,null,null,null,null,null,null,null,null,null,null,null,null,"QXU","RTK","ASHFORD AND ST PETER'S HOSPITALS NHS FOUNDATION TRUST","RTK01","St Peter's Hospital",null,null,null,null,null,null,"RXN01","West Middlesex University Hospital"]
[null,null,null,null,null,null,null,null,null,null,null,null,null,null,null,null,null,null,null,null,"QXU","RA2","ROYAL SURREY COUNTY HOSPITAL NHS FOUNDATION TRUST","RA201","Royal Surrey County Hospital",null,null,null,null,null,null,"RXN02","West Suffolk Hospital"]
[null,null,null,null,null,null,null,null,null,null,null,null,null,null,null,null,null,null,null,null,"QXU","RTP","SURREY AND SUSSEX HEALTHCARE NHS TRUST","RTP04","East Surrey Hospital",null,null,null,null,null,null,"RXPCP","Westmorland General Hospital"]
[null,null,null,null,null,null,null,null,null,null,null,null,null,null,null,null,null,null,null,null,"QYG","RJR","COUNTESS OF CHESTER HOSPITAL NHS FOUNDATION TRUST","RJR05","Countess Of Chester Hospital",null,null,null,null,null,null,"RXPDA","Wexham Park Hospital"]
[null,null,null,null,null,null,null,null,null,null,null,null,null,null,null,null,null,null,null,null,"QYG","RJN","EAST CHESHIRE NHS TRUST","RJN71","Macclesfield District General Hospital",null,null,null,null,null,null,"RXQ02","Whipps Cross University Hospital"]
[null,null,null,null,null,null,null,null,null,null,null,null,null,null,null,null,null,null,null,null,"QYG","REP","LIVERPOOL WOMEN'S NHS FOUNDATION TRUST","REP01","Liverpool Womens Hospital",null,null,null,null,null,null,"RXR20","Whiston Hospital"]
[null,null,null,null,null,null,null,null,null,null,null,null,null,null,null,null,null,null,null,null,"QYG","RBN","MERSEY AND WEST LANCASHIRE TEACHING HOSPITALS NHS TRUST","RBN52","Ormskirk and District General Hospital",null,null,null,null,null,null,"RXWAT","William Harvey Hospital (Ashford)"]
[null,null,null,null,null,null,null,null,null,null,null,null,null,null,null,null,null,null,null,null,"QYG","RBN","MERSEY AND WEST LANCASHIRE TEACHING HOSPITALS NHS TRUST","RBN01","Whiston Hospital",null,null,null,null,null,null,"RYJ01","Worcestershire Royal Hospital"]
[null,null,null,null,null,null,null,null,null,null,null,null,null,null,null,null,null,null,null,null,"QYG","RBT","MID CHESHIRE HOSPITALS NHS FOUNDATION TRUST","RBT20","Leighton Hospital",null,null,null,null,null,null,"RYJ04","Worthing Hospital"]
[null,null,null,null,null,null,null,null,null,null,null,null,null,null,null,null,null,null,null,null,"QYG","RWW","WARRINGTON AND HALTON TEACHING HOSPITALS NHS FOUNDATION TRUST","RWWWH","Warrington Hospital",null,null,null,null,null,null,"RYR16","Yeovil District Hospital"]
[null,null,null,null,null,null,null,null,null,null,null,null,null,null,null,null,null,null,null,null,"QYG","RBL","WIRRAL UNIVERSITY TEACHING HOSPITAL NHS FOUNDATION TRUST","RBL14","Arrowe Park Hospital",null,null,null,null,null,null,"RYR18","York Hospital"]

{"sheet":"BSQ3","index":15,"n_rows":167,"n_cols":33,"rows_kept":167,"cut":false,"hidden":true,"merged":[]}
[null,"Sort","ICB","ICB","Trusts","Trusts","Sites","Sites",null,"Sort ranges:","Sort range…","Sort range…","Sort range…","Reference Region List:","Code…","Name…","Linked Region List:","Code…","Name…","Reference Lists:","Code…","Code…","Name…","Code…","Name…","Trusts Linked Lists:","Code…","Name…","Site Linked Lists:","Code…","Name…","Code…","Name…"]
["ICB",1,1,1,"-","-","-","-",null,null,"ICB Code","ICB Code","ICB Code",null,"QE1","LANCASHIRE AND SOUTH CUMBRIA ICB",null,"QE1","LANCASHIRE AND SOUTH CUMBRIA ICB",null,"QE1","RXL","BLACKPOOL TEACHING HOSPITALS NHS FOUNDATION TRUST","RXL01","Blackpool Victoria Hospital",null,"R0A","ASHFORD AND ST PETER'S HOSPITALS NHS FOUNDATION TRUST",null,"R0A","ASHFORD AND ST PETER'S HOSPITALS NHS FOUNDATION TRUST","E0A3H","Alnwick Infirmary"]
["Trusts",1,1,1,1,1,"-","-",null,null,"ICB Name","Trust Code","Trust Code",null,"QF7","SOUTH YORKSHIRE ICB",null,"QF7","SOUTH YORKSHIRE ICB",null,"QE1","RXR","EAST LANCASHIRE HOSPITALS NHS TRUST","RXR20","Royal Blackburn Hospital",null,"R0B","BARKING, HAVERING AND REDBRIDGE UNIVERSITY HOSPITALS NHS TRUST",null,"R0B","BARKING, HAVERING AND REDBRIDGE UNIVERSITY HOSPITALS NHS TRUST","E3M3C","Arrowe Park Hospital"]
["Sites",1,1,1,1,1,1,1,null,null,"Total Responses","Trust Name","Trust Name",null,"QGH","HEREFORDSHIRE AND WORCESTERSHIRE ICB",null,"QGH","HEREFORDSHIRE AND WORCESTERSHIRE ICB",null,"QE1","RXN","LANCASHIRE TEACHING HOSPITALS NHS FOUNDATION TRUST","RXN01","Chorley and South Ribble Hospital",null,"R0D","BARNSLEY HOSPITAL NHS FOUNDATION TRUST",null,"R0D","BARNSLEY HOSPITAL NHS FOUNDATION TRUST","N6J7V","Ashford Hospital"]
[null,null,null,null,null,null,null,null,null,null,"Percentage Positive","Total Responses","Site Code",null,"QH8","MID AND SOUTH ESSEX ICB",null,"QH8","MID AND SOUTH ESSEX ICB",null,"QE1","RXN","LANCASHIRE TEACHING HOSPITALS NHS FOUNDATION TRUST","RXN02","Royal Preston Hospital",null,"R1F","BARTS HEALTH NHS TRUST",null,"R1F","BARTS HEALTH NHS TRUST","R0A05","Barnet Hospital"]
[null,null,null,null,null,null,null,null,null,null,"Percentage Negative","Percentage Positive","Site Name",null,"QHG","BEDFORDSHIRE, LUTON AND MILTON KEYNES ICB",null,"QHG","BEDFORDSHIRE, LUTON AND MILTON KEYNES ICB",null,"QE1","RTX","UNIVERSITY HOSPITALS OF MORECAMBE BAY NHS FOUNDATION TRUST","RTXBU","Furness General Hospital",null,"R1H","BEDFORDSHIRE HOSPITALS NHS FOUNDATION TRUST",null,"R1H","BEDFORDSHIRE HOSPITALS NHS FOUNDATION TRUST","R0B01","Barnsley Hospital NHS Foundation Trust HQ"]
[null,null,null,null,null,null,null,null,null,null,"Very Good","Percentage Negative","Total Responses",null,"QHL","BIRMINGHAM AND SOLIHULL ICB",null,"QHL","BIRMINGHAM AND SOLIHULL ICB",null,"QE1","RTX","UNIVERSITY HOSPITALS OF MORECAMBE BAY NHS FOUNDATION TRUST","RTX02","Royal Lancaster Infirmary",null,"R1K","BIRMINGHAM WOMEN'S AND CHILDREN'S NHS FOUNDATION TRUST",null,"R1K","BIRMINGHAM WOMEN'S AND CHILDREN'S NHS FOUNDATION TRUST","R0D01","BASILDON HOSPITAL"]
[null,null,null,null,null,null,null,null,null,null,"Good","Very Good","Percentage Positive",null,"QHM","NORTH EAST AND NORTH CUMBRIA ICB",null,"QHM","NORTH EAST AND NORTH CUMBRIA ICB",null,"QE1","RTX","UNIVERSITY HOSPITALS OF MORECAMBE BAY NHS FOUNDATION TRUST","RTXBW","Westmorland General Hospital",null,"RA2","BLACKPOOL TEACHING HOSPITALS NHS FOUNDATION TRUST",null,"RA2","BLACKPOOL TEACHING HOSPITALS NHS FOUNDATION TRUST","R0D02","Basingstoke and North Hampshire Hospital"]
[null,null,null,null,null,null,null,null,null,null,"Neither Good nor Poor","Good","Percentage Negative",null,"QJ2","DERBY AND DERBYSHIRE ICB",null,"QJ2","DERBY AND DERBYSHIRE ICB",null,"QF7","RFF","BARNSLEY HOSPITAL NHS FOUNDATION TRUST","RFFAA","Barnsley Hospital NHS Foundation Trust HQ",null,"RA7","BOLTON NHS FOUNDATION TRUST",null,"RA7","BOLTON NHS FOUNDATION TRUST","R1F01","Bassetlaw Hospital"]
[null,null,null,null,null,null,null,null,null,null,"Poor","Neither Good nor Poor","Very Good",null,"QJG","SUFFOLK AND NORTH EAST ESSEX ICB",null,"QJG","SUFFOLK AND NORTH EAST ESSEX ICB",null,"QF7","RP5","DONCASTER AND BASSETLAW TEACHING HOSPITALS NHS FOUNDATION TRUST","RP5BA","Bassetlaw Hospital",null,"RA9","BRADFORD TEACHING HOSPITALS NHS FOUNDATION TRUST",null,"RA9","BRADFORD TEACHING HOSPITALS NHS FOUNDATION TRUST","R1H12","BEDFORD HOSPITAL SOUTH WING"]
[null,null,null,null,null,null,null,null,null,null,"Very Poor","Poor","Good",null,"QJK","DEVON ICB",null,"QJK","DEVON ICB",null,"QF7","RP5","DONCASTER AND BASSETLAW TEACHING HOSPITALS NHS FOUNDATION TRUST","RP5DR","Doncaster Royal Infirmary",null,"RAE","BUCKINGHAMSHIRE HEALTHCARE NHS TRUST",null,"RAE","BUCKINGHAMSHIRE HEALTHCARE NHS TRUST","R1HKH","Berwick Infirmary"]
[null,null,null,null,null,null,null,null,null,null,"Don't Know","Very Poor","Neither Good nor Poor",null,"QJM","LINCOLNSHIRE ICB",null,"QJM","LINCOLNSHIRE ICB",null,"QF7","RHQ","SHEFFIELD TEACHING HOSPITALS NHS FOUNDATION TRUST","RHQHH","Royal Hallamshire Hospital",null,"RAJ","CALDERDALE AND HUDDERSFIELD NHS FOUNDATION TRUST",null,"RAJ","CALDERDALE AND HUDDERSFIELD NHS FOUNDATION TRUST","R1HNH","Birmingham Treatment Centre"]
[null,null,null,null,null,null,null,null,null,null,null,"Don't Know","Poor",null,"QK1","LEICESTER, LEICESTERSHIRE AND RUTLAND ICB",null,"QK1","LEICESTER, LEICESTERSHIRE AND RUTLAND ICB",null,"QF7","RFR","THE ROTHERHAM NHS FOUNDATION TRUST","RFRPA","Rotherham District General Hospital",null,"RAL","CAMBRIDGE UNIVERSITY HOSPITALS NHS FOUNDATION TRUST",null,"RAL","CAMBRIDGE UNIVERSITY HOSPITALS NHS FOUNDATION TRUST","R1K01","Birmingham Women's Hospital"]
[null,null,null,null,null,null,null,null,null,null,null,"Mode SMS","Very Poor",null,"QKK","SOUTH EAST LONDON ICB",null,"QKK","SOUTH EAST LONDON ICB",null,"QGH","RWP","WORCESTERSHIRE ACUTE HOSPITALS NHS TRUST","RWP50","Worcestershire Royal Hospital",null,"RAS","CHELSEA AND WESTMINSTER HOSPITAL NHS FOUNDATION TRUST",null,"RAS","CHELSEA AND WESTMINSTER HOSPITAL NHS FOUNDATION TRUST","RA201","Blackpool Victoria Hospital"]
[null,null,null,null,null,null,null,null,null,null,null,"Mode Electronic Discharge","Don't Know",null,"QKS","KENT AND MEDWAY ICB",null,"QKS","KENT AND MEDWAY ICB",null,"QGH","RLQ","WYE VALLEY NHS TRUST","RLQ01","Hereford County Hospital",null,"RAX","CHESTERFIELD ROYAL HOSPITAL NHS FOUNDATION TRUST",null,"RAX","CHESTERFIELD ROYAL HOSPITAL NHS FOUNDATION TRUST","RA707","Bradford Royal Infirmary"]
[null,null,null,null,null,null,null,null,null,null,null,"Mode Electronic Home",null,null,"QM7","HERTFORDSHIRE AND WEST ESSEX ICB",null,"QM7","HERTFORDSHIRE AND WEST ESSEX ICB",null,"QH8","RAJ","MID AND SOUTH ESSEX NHS FOUNDATION TRUST","RAJ12","BASILDON HOSPITAL",null,"RBD","COUNTESS OF CHESTER HOSPITAL NHS FOUNDATION TRUST",null,"RBD","COUNTESS OF CHESTER HOSPITAL NHS FOUNDATION TRUST","RA901","Bridgnorth Hospital (Maternity)"]
[null,null,null,null,null,null,null,null,null,null,null,"Mode Paper Discharge",null,null,"QMF","NORTH EAST LONDON ICB",null,"QMF","NORTH EAST LONDON ICB",null,"QH8","RAJ","MID AND SOUTH ESSEX NHS FOUNDATION TRUST","RAJ32","MID ESSEX HOSPITAL",null,"RBK","COUNTY DURHAM AND DARLINGTON NHS FOUNDATION TRUST",null,"RBK","COUNTY DURHAM AND DARLINGTON NHS FOUNDATION TRUST","RAE01","Bridgwater Hospital"]
[null,null,null,null,null,null,null,null,null,null,null,"Mode Paper Home",null,null,"QMJ","NORTH CENTRAL LONDON ICB",null,"QMJ","NORTH CENTRAL LONDON ICB",null,"QH8","RAJ","MID AND SOUTH ESSEX NHS FOUNDATION TRUST","RAJ01","Southend Hospital",null,"RBL","DARTFORD AND GRAVESHAM NHS TRUST",null,"RBL","DARTFORD AND GRAVESHAM NHS TRUST","RAJ01","Calderdale Royal Hospital"]
[null,null,null,null,null,null,null,null,null,null,null,"Mode Telephone",null,null,"QMM","NORFOLK AND WAVENEY ICB",null,"QMM","NORFOLK AND WAVENEY ICB",null,"QHG","RC9","BEDFORDSHIRE HOSPITALS NHS FOUNDATION TRUST","RC979","BEDFORD HOSPITAL SOUTH WING",null,"RBN","DONCASTER AND BASSETLAW TEACHING HOSPITALS NHS FOUNDATION TRUST",null,"RBN","DONCASTER AND BASSETLAW TEACHING HOSPITALS NHS FOUNDATION TRUST","RAJ12","Chelsea and Westminster Hospital"]
[null,null,null,null,null,null,null,null,null,null,null,"Mode Online",null,null,"QNC","STAFFORDSHIRE AND STOKE-ON-TRENT ICB",null,"QNC","STAFFORDSHIRE AND STOKE-ON-TRENT ICB",null,"QHG","RC9","BEDFORDSHIRE HOSPITALS NHS FOUNDATION TRUST","RC971","Luton and Dunstable Hospital",null,"RBT","DORSET COUNTY HOSPITAL NHS FOUNDATION TRUST",null,"RBT","DORSET COUNTY HOSPITAL NHS FOUNDATION TRUST","RAJ32","Chesterfield Royal Hospital"]
[null,null,null,null,null,null,null,null,null,null,null,"Mode Other",null,null,"QNQ","FRIMLEY ICB",null,"QNQ","FRIMLEY ICB",null,"QHG","RD8","MILTON KEYNES UNIVERSITY HOSPITAL NHS FOUNDATION TRUST","RD816","Milton Keynes Hospital",null,"RC9","EAST AND NORTH HERTFORDSHIRE NHS TRUST",null,"RC9","EAST AND NORTH HERTFORDSHIRE NHS TRUST","RAL01","Chipping Norton Community Hospital"]
[null,null,null,null,null,null,null,null,null,null,null,null,null,null,"QNX","SUSSEX ICB",null,"QNX","SUSSEX ICB",null,"QHL","RQ3","BIRMINGHAM WOMEN'S AND CHILDREN'S NHS FOUNDATION TRUST","RQ370","Birmingham Women's Hospital",null,"RCB","EAST CHESHIRE NHS TRUST",null,"RCB","EAST CHESHIRE NHS TRUST","RAL26","Chorley and South Ribble Hospital"]
[null,null,null,null,null,null,null,null,null,null,null,null,null,null,"QOC","SHROPSHIRE, TELFORD AND WREKIN ICB",null,"QOC","SHROPSHIRE, TELFORD AND WREKIN ICB",null,"QHL","RXK","SANDWELL AND WEST BIRMINGHAM HOSPITALS NHS TRUST","RXKTC","Birmingham Treatment Centre",null,"RCD","EAST KENT HOSPITALS UNIVERSITY NHS FOUNDATION TRUST",null,"RCD","EAST KENT HOSPITALS UNIVERSITY NHS FOUNDATION TRUST","RAS01","Colchester General Hospital"]
[null,null,null,null,null,null,null,null,null,null,null,null,null,null,"QOP","GREATER MANCHESTER ICB",null,"QOP","GREATER MANCHESTER ICB",null,"QHL","RRK","UNIVERSITY HOSPITALS BIRMINGHAM NHS FOUNDATION TRUST","RRK98","Good Hope Hospital",null,"RCX","EAST LANCASHIRE HOSPITALS NHS TRUST",null,"RCX","EAST LANCASHIRE HOSPITALS NHS TRUST","RAX01","Conquest Hospital"]
[null,null,null,null,null,null,null,null,null,null,null,null,null,null,"QOQ","HUMBER AND NORTH YORKSHIRE ICB",null,"QOQ","HUMBER AND NORTH YORKSHIRE ICB",null,"QHL","RRK","UNIVERSITY HOSPITALS BIRMINGHAM NHS FOUNDATION TRUST","RRK97","Heartlands Hospital",null,"RD1","EAST SUFFOLK AND NORTH ESSEX NHS FOUNDATION TRUST",null,"RD1","EAST SUFFOLK AND NORTH ESSEX NHS FOUNDATION TRUST","RBD01","Countess Of Chester Hospital"]
[null,null,null,null,null,null,null,null,null,null,null,null,null,null,"QOX","BATH AND NORTH EAST SOMERSET, SWINDON AND WILTSHIRE ICB",null,"QOX","BATH AND NORTH EAST SOMERSET, SWINDON AND WILTSHIRE ICB",null,"QHL","RRK","UNIVERSITY HOSPITALS BIRMINGHAM NHS FOUNDATION TRUST","RRK99","Solihull Hospital",null,"RD8","EAST SUSSEX HEALTHCARE NHS TRUST",null,"RD8","EAST SUSSEX HEALTHCARE NHS TRUST","RBK02","Crowborough Birthing Centre"]
[null,null,null,null,null,null,null,null,null,null,null,null,null,null,"QPM","NORTHAMPTONSHIRE ICB",null,"QPM","NORTHAMPTONSHIRE ICB",null,"QHM","RXP","COUNTY DURHAM AND DARLINGTON NHS FOUNDATION TRUST","RXPDA","Darlington Memorial Hospital",null,"RDE","EPSOM AND ST HELIER UNIVERSITY HOSPITALS NHS TRUST",null,"RDE","EPSOM AND ST HELIER UNIVERSITY HOSPITALS NHS TRUST","RBL14","Cumberland Infirmary"]
[null,null,null,null,null,null,null,null,null,null,null,null,null,null,"QR1","GLOUCESTERSHIRE ICB",null,"QR1","GLOUCESTERSHIRE ICB",null,"QHM","RXP","COUNTY DURHAM AND DARLINGTON NHS FOUNDATION TRUST","RXPCP","University Hospital Of North Durham",null,"RDU","FRIMLEY HEALTH NHS FOUNDATION TRUST",null,"RDU","FRIMLEY HEALTH NHS FOUNDATION TRUST","RBN01","Darent Valley Hospital"]
[null,null,null,null,null,null,null,null,null,null,null,null,null,null,"QRL","HAMPSHIRE AND ISLE OF WIGHT ICB",null,"QRL","HAMPSHIRE AND ISLE OF WIGHT ICB",null,"QHM","RR7","GATESHEAD HEALTH NHS FOUNDATION TRUST","RR7EN","Queen Elizabeth Hospital",null,"REF","GATESHEAD HEALTH NHS FOUNDATION TRUST",null,"REF","GATESHEAD HEALTH NHS FOUNDATION TRUST","RBN52","Darlington Memorial Hospital"]
[null,null,null,null,null,null,null,null,null,null,null,null,null,null,"QRV","NORTH WEST LONDON ICB",null,"QRV","NORTH WEST LONDON ICB",null,"QHM","RNN","NORTH CUMBRIA INTEGRATED CARE NHS FOUNDATION TRUST","RNN62","Cumberland Infirmary",null,"REP","GEORGE ELIOT HOSPITAL NHS TRUST",null,"REP","GEORGE ELIOT HOSPITAL NHS TRUST","RBT20","Derriford Hospital"]
[null,null,null,null,null,null,null,null,null,null,null,null,null,null,"QSL","SOMERSET ICB",null,"QSL","SOMERSET ICB",null,"QHM","RNN","NORTH CUMBRIA INTEGRATED CARE NHS FOUNDATION TRUST","RNNBX","West Cumberland Hospital",null,"RF4","GLOUCESTERSHIRE HOSPITALS NHS FOUNDATION TRUST",null,"RF4","GLOUCESTERSHIRE HOSPITALS NHS FOUNDATION TRUST","RC971","Doncaster Royal Infirmary"]
[null,null,null,null,null,null,null,null,null,null,null,null,null,null,"QT1","NOTTINGHAM AND NOTTINGHAMSHIRE ICB",null,"QT1","NOTTINGHAM AND NOTTINGHAMSHIRE ICB",null,"QHM","RVW","NORTH TEES AND HARTLEPOOL NHS FOUNDATION TRUST","RVWAE","University Hospital Of North Tees",null,"RFF","GREAT WESTERN HOSPITALS NHS FOUNDATION TRUST",null,"RFF","GREAT WESTERN HOSPITALS NHS FOUNDATION TRUST","RC979","Dorset County Hospital"]
[null,null,null,null,null,null,null,null,null,null,null,null,null,null,"QT6","CORNWALL AND THE ISLES OF SCILLY ICB",null,"QT6","CORNWALL AND THE ISLES OF SCILLY ICB",null,"QHM","RTF","NORTHUMBRIA HEALTHCARE NHS FOUNDATION TRUST","RTFDJ","Alnwick Infirmary",null,"RFR","GUY'S AND ST THOMAS' NHS FOUNDATION TRUST",null,"RFR","GUY'S AND ST THOMAS' NHS FOUNDATION TRUST","RCB55","East Surrey Hospital"]
[null,null,null,null,null,null,null,null,null,null,null,null,null,null,"QU9","BUCKINGHAMSHIRE, OXFORDSHIRE AND BERKSHIRE WEST ICB",null,"QU9","BUCKINGHAMSHIRE, OXFORDSHIRE AND BERKSHIRE WEST ICB",null,"QHM","RTF","NORTHUMBRIA HEALTHCARE NHS FOUNDATION TRUST","RTFDH","Berwick Infirmary",null,"RFS","HAMPSHIRE HOSPITALS NHS FOUNDATION TRUST",null,"RFS","HAMPSHIRE HOSPITALS NHS FOUNDATION TRUST","RCD01","Eastbourne District General Hospital"]
[null,null,null,null,null,null,null,null,null,null,null,null,null,null,"QUA","BLACK COUNTRY ICB",null,"QUA","BLACK COUNTRY ICB",null,"QHM","RTF","NORTHUMBRIA HEALTHCARE NHS FOUNDATION TRUST","RTFDR","Hexham General Hospital",null,"RGN","HARROGATE AND DISTRICT NHS FOUNDATION TRUST",null,"RGN","HARROGATE AND DISTRICT NHS FOUNDATION TRUST","RCX70","Epsom Hospital"]
[null,null,null,null,null,null,null,null,null,null,null,null,null,null,"QUE","CAMBRIDGESHIRE AND PETERBOROUGH ICB",null,"QUE","CAMBRIDGESHIRE AND PETERBOROUGH ICB",null,"QHM","RTF","NORTHUMBRIA HEALTHCARE NHS FOUNDATION TRUST","RTFXXX","Non-hospital site",null,"RGP","HOMERTON HEALTHCARE NHS FOUNDATION TRUST",null,"RGP","HOMERTON HEALTHCARE NHS FOUNDATION TRUST","RD130","Friarage Hospital Site"]
[null,null,null,null,null,null,null,null,null,null,null,null,null,null,"QUY","BRISTOL, NORTH SOMERSET AND SOUTH GLOUCESTERSHIRE ICB",null,"QUY","BRISTOL, NORTH SOMERSET AND SOUTH GLOUCESTERSHIRE ICB",null,"QHM","RTF","NORTHUMBRIA HEALTHCARE NHS FOUNDATION TRUST","RTF86","The Northumbria",null,"RGR","HULL UNIVERSITY TEACHING HOSPITALS NHS TRUST",null,"RGR","HULL UNIVERSITY TEACHING HOSPITALS NHS TRUST","RD816","Frimley Park Hospital"]
[null,null,null,null,null,null,null,null,null,null,null,null,null,null,"QVV","DORSET ICB",null,"QVV","DORSET ICB",null,"QHM","RTR","SOUTH TEES HOSPITALS NHS FOUNDATION TRUST","RTR45","Friarage Hospital Site",null,"RGT","IMPERIAL COLLEGE HEALTHCARE NHS TRUST",null,"RGT","IMPERIAL COLLEGE HEALTHCARE NHS TRUST","RDE03","Furness General Hospital"]
[null,null,null,null,null,null,null,null,null,null,null,null,null,null,"QWE","SOUTH WEST LONDON ICB",null,"QWE","SOUTH WEST LONDON ICB",null,"QHM","RTR","SOUTH TEES HOSPITALS NHS FOUNDATION TRUST","RTRAT","The James Cook University Hospital",null,"RH5","ISLE OF WIGHT NHS TRUST",null,"RH5","ISLE OF WIGHT NHS TRUST","RDEE4","George Eliot Hospital - Acute Services"]
[null,null,null,null,null,null,null,null,null,null,null,null,null,null,"QWO","WEST YORKSHIRE ICB",null,"QWO","WEST YORKSHIRE ICB",null,"QHM","R0B","SOUTH TYNESIDE AND SUNDERLAND NHS FOUNDATION TRUST","R0B01","Sunderland Royal Hospital",null,"RH8","JAMES PAGET UNIVERSITY HOSPITALS NHS FOUNDATION TRUST",null,"RH8","JAMES PAGET UNIVERSITY HOSPITALS NHS FOUNDATION TRUST","RDU01","Gloucestershire Royal Hospital"]
[null,null,null,null,null,null,null,null,null,null,null,null,null,null,"QWU","COVENTRY AND WARWICKSHIRE ICB",null,"QWU","COVENTRY AND WARWICKSHIRE ICB",null,"QHM","RTD","THE NEWCASTLE UPON TYNE HOSPITALS NHS FOUNDATION TRUST","RTD02","The Royal Victoria Infirmary",null,"RHM","KETTERING GENERAL HOSPITAL NHS FOUNDATION TRUST",null,"RHM","KETTERING GENERAL HOSPITAL NHS FOUNDATION TRUST","RDU50","Good Hope Hospital"]
[null,null,null,null,null,null,null,null,null,null,null,null,null,null,"QXU","SURREY HEARTLANDS ICB",null,"QXU","SURREY HEARTLANDS ICB",null,"QJ2","RFS","CHESTERFIELD ROYAL HOSPITAL NHS FOUNDATION TRUST","RFSDA","Chesterfield Royal Hospital",null,"RHQ","KINGSTON AND RICHMOND NHS FOUNDATION TRUST",null,"RHQ","KINGSTON AND RICHMOND NHS FOUNDATION TRUST","REF12","Grantham and District Hospital"]
[null,null,null,null,null,null,null,null,null,null,null,null,null,null,"QYG","CHESHIRE AND MERSEYSIDE ICB",null,"QYG","CHESHIRE AND MERSEYSIDE ICB",null,"QJ2","RTG","UNIVERSITY HOSPITALS OF DERBY AND BURTON NHS FOUNDATION TRUST","RTG02","Queens Hospital, Burton Upon Trent",null,"RHU","LANCASHIRE TEACHING HOSPITALS NHS FOUNDATION TRUST",null,"RHU","LANCASHIRE TEACHING HOSPITALS NHS FOUNDATION TRUST","REP01","Harrogate District Hospital"]
[null,null,null,null,null,null,null,null,null,null,null,null,null,null,null,null,null,null,null,null,"QJ2","RTG","UNIVERSITY HOSPITALS OF DERBY AND BURTON NHS FOUNDATION TRUST","RTGFG","Royal Derby Hospital",null,"RHW","LEEDS TEACHING HOSPITALS NHS TRUST",null,"RHW","LEEDS TEACHING HOSPITALS NHS TRUST","RF4QH","Heartlands Hospital"]
[null,null,null,null,null,null,null,null,null,null,null,null,null,null,null,null,null,null,null,null,"QJG","RDE","EAST SUFFOLK AND NORTH ESSEX NHS FOUNDATION TRUST","RDEE4","Colchester General Hospital",null,"RJ1","LEWISHAM AND GREENWICH NHS TRUST",null,"RJ1","LEWISHAM AND GREENWICH NHS TRUST","RFFAA","Hereford County Hospital"]
[null,null,null,null,null,null,null,null,null,null,null,null,null,null,null,null,null,null,null,null,"QJG","RDE","EAST SUFFOLK AND NORTH ESSEX NHS FOUNDATION TRUST","RDE03","Ipswich Hospital",null,"RJ2","LIVERPOOL WOMEN'S NHS FOUNDATION TRUST",null,"RJ2","LIVERPOOL WOMEN'S NHS FOUNDATION TRUST","RFRPA","Hexham General Hospital"]
[null,null,null,null,null,null,null,null,null,null,null,null,null,null,null,null,null,null,null,null,"QJG","RGR","WEST SUFFOLK NHS FOUNDATION TRUST","RGR50","West Suffolk Hospital",null,"RJ7","LONDON NORTH WEST UNIVERSITY HEALTHCARE NHS TRUST",null,"RJ7","LONDON NORTH WEST UNIVERSITY HEALTHCARE NHS TRUST","RFSDA","Hillingdon Hospital"]
[null,null,null,null,null,null,null,null,null,null,null,null,null,null,null,null,null,null,null,null,"QJK","RH8","ROYAL DEVON UNIVERSITY HEALTHCARE NHS FOUNDATION TRUST","RH880","North Devon District Hospital",null,"RJC","MAIDSTONE AND TUNBRIDGE WELLS NHS TRUST",null,"RJC","MAIDSTONE AND TUNBRIDGE WELLS NHS TRUST","RGN80","Hinchingbrooke Hospital"]
[null,null,null,null,null,null,null,null,null,null,null,null,null,null,null,null,null,null,null,null,"QJK","RH8","ROYAL DEVON UNIVERSITY HEALTHCARE NHS FOUNDATION TRUST","RH801","Royal Devon and Exeter Hospital (Wonford)",null,"RJE","MANCHESTER UNIVERSITY NHS FOUNDATION TRUST",null,"RJE","MANCHESTER UNIVERSITY NHS FOUNDATION TRUST","RGN90","Homerton University Hospital"]
[null,null,null,null,null,null,null,null,null,null,null,null,null,null,null,null,null,null,null,null,"QJK","RA9","TORBAY AND SOUTH DEVON NHS FOUNDATION TRUST","RA901","Torbay Hospital",null,"RJL","MEDWAY NHS FOUNDATION TRUST",null,"RJL","MEDWAY NHS FOUNDATION TRUST","RGP75","Horton General Hospital"]
[null,null,null,null,null,null,null,null,null,null,null,null,null,null,null,null,null,null,null,null,"QJK","RK9","UNIVERSITY HOSPITALS PLYMOUTH NHS TRUST","RK950","Derriford Hospital",null,"RJN","MERSEY AND WEST LANCASHIRE TEACHING HOSPITALS NHS TRUST",null,"RJN","MERSEY AND WEST LANCASHIRE TEACHING HOSPITALS NHS TRUST","RGR50","Hull Royal Infirmary"]
[null,null,null,null,null,null,null,null,null,null,null,null,null,null,null,null,null,null,null,null,"QJM","RWD","UNITED LINCOLNSHIRE TEACHING HOSPITALS NHS TRUST","RWDLP","Grantham and District Hospital",null,"RJR","MID AND SOUTH ESSEX NHS FOUNDATION TRUST",null,"RJR","MID AND SOUTH ESSEX NHS FOUNDATION TRUST","RGT32","Ipswich Hospital"]
[null,null,null,null,null,null,null,null,null,null,null,null,null,null,null,null,null,null,null,null,"QJM","RWD","UNITED LINCOLNSHIRE TEACHING HOSPITALS NHS TRUST","RWDDA","Lincoln County Hospital",null,"RK5","MID CHESHIRE HOSPITALS NHS FOUNDATION TRUST",null,"RK5","MID CHESHIRE HOSPITALS NHS FOUNDATION TRUST","RH5A8","James Paget University Hospital"]
[null,null,null,null,null,null,null,null,null,null,null,null,null,null,null,null,null,null,null,null,"QJM","RWD","UNITED LINCOLNSHIRE TEACHING HOSPITALS NHS TRUST","RWDLA","Pilgrim Hospital",null,"RK9","MID YORKSHIRE TEACHING NHS TRUST",null,"RK9","MID YORKSHIRE TEACHING NHS TRUST","RH5K6","John Radcliffe Hospital"]
[null,null,null,null,null,null,null,null,null,null,null,null,null,null,null,null,null,null,null,null,"QK1","RWE","UNIVERSITY HOSPITALS OF LEICESTER NHS TRUST","RWEAK","Leicester General Hospital",null,"RKB","MILTON KEYNES UNIVERSITY HOSPITAL NHS FOUNDATION TRUST",null,"RKB","MILTON KEYNES UNIVERSITY HOSPITAL NHS FOUNDATION TRUST","RH5O4","Kettering General Hospital"]
[null,null,null,null,null,null,null,null,null,null,null,null,null,null,null,null,null,null,null,null,"QK1","RWE","UNIVERSITY HOSPITALS OF LEICESTER NHS TRUST","RWEAA","Leicester Royal Infirmary",null,"RKE","NORFOLK AND NORWICH UNIVERSITY HOSPITALS NHS FOUNDATION TRUST",null,"RKE","NORFOLK AND NORWICH UNIVERSITY HOSPITALS NHS FOUNDATION TRUST","RH5XXXX","King's Mill Hospital"]
[null,null,null,null,null,null,null,null,null,null,null,null,null,null,null,null,null,null,null,null,"QK1","RWE","UNIVERSITY HOSPITALS OF LEICESTER NHS TRUST","RWE10","St Mary's Hospital",null,"RL4","NORTH BRISTOL NHS TRUST",null,"RL4","NORTH BRISTOL NHS TRUST","RH801","Kingston Hospital"]
[null,null,null,null,null,null,null,null,null,null,null,null,null,null,null,null,null,null,null,null,"QKK","RJ1","GUY'S AND ST THOMAS' NHS FOUNDATION TRUST","RJ122","St Thomas' Hospital",null,"RLQ","NORTH CUMBRIA INTEGRATED CARE NHS FOUNDATION TRUST",null,"RLQ","NORTH CUMBRIA INTEGRATED CARE NHS FOUNDATION TRUST","RH880","Leeds General Infirmary"]
[null,null,null,null,null,null,null,null,null,null,null,null,null,null,null,null,null,null,null,null,"QKK","RJ2","LEWISHAM AND GREENWICH NHS TRUST","RJ231","Queen Elizabeth Hospital",null,"RLT","NORTH TEES AND HARTLEPOOL NHS FOUNDATION TRUST",null,"RLT","NORTH TEES AND HARTLEPOOL NHS FOUNDATION TRUST","RHM12","Leicester General Hospital"]
[null,null,null,null,null,null,null,null,null,null,null,null,null,null,null,null,null,null,null,null,"QKK","RJ2","LEWISHAM AND GREENWICH NHS TRUST","RJ224","University Hospital Lewisham",null,"RM1","NORTH WEST ANGLIA NHS FOUNDATION TRUST",null,"RM1","NORTH WEST ANGLIA NHS FOUNDATION TRUST","RHQHH","Leicester Royal Infirmary"]
[null,null,null,null,null,null,null,null,null,null,null,null,null,null,null,null,null,null,null,null,"QKS","RN7","DARTFORD AND GRAVESHAM NHS TRUST","RN707","Darent Valley Hospital",null,"RMC","NORTHAMPTON GENERAL HOSPITAL NHS TRUST",null,"RMC","NORTHAMPTON GENERAL HOSPITAL NHS TRUST","RHU03","Leighton Hospital"]
[null,null,null,null,null,null,null,null,null,null,null,null,null,null,null,null,null,null,null,null,"QKS","RVV","EAST KENT HOSPITALS UNIVERSITY NHS FOUNDATION TRUST","RVV09","Queen Elizabeth The Queen Mother Hospital",null,"RMP","NORTHERN LINCOLNSHIRE AND GOOLE NHS FOUNDATION TRUST",null,"RMP","NORTHERN LINCOLNSHIRE AND GOOLE NHS FOUNDATION TRUST","RHW01","Lincoln County Hospital"]
[null,null,null,null,null,null,null,null,null,null,null,null,null,null,null,null,null,null,null,null,"QKS","RVV","EAST KENT HOSPITALS UNIVERSITY NHS FOUNDATION TRUST","RVV01","William Harvey Hospital (Ashford)",null,"RN3","NORTHUMBRIA HEALTHCARE NHS FOUNDATION TRUST",null,"RN3","NORTHUMBRIA HEALTHCARE NHS FOUNDATION TRUST","RJ122","Lister Hospital"]
[null,null,null,null,null,null,null,null,null,null,null,null,null,null,null,null,null,null,null,null,"QKS","RWF","MAIDSTONE AND TUNBRIDGE WELLS NHS TRUST","RWF08","Crowborough Birthing Centre",null,"RN5","NOTTINGHAM UNIVERSITY HOSPITALS NHS TRUST",null,"RN5","NOTTINGHAM UNIVERSITY HOSPITALS NHS TRUST","RJ224","Liverpool Womens Hospital"]
[null,null,null,null,null,null,null,null,null,null,null,null,null,null,null,null,null,null,null,null,"QKS","RWF","MAIDSTONE AND TUNBRIDGE WELLS NHS TRUST","RWFTW","The Tunbridge Wells Hospital",null,"RN7","OXFORD UNIVERSITY HOSPITALS NHS FOUNDATION TRUST",null,"RN7","OXFORD UNIVERSITY HOSPITALS NHS FOUNDATION TRUST","RJ231","Luton and Dunstable Hospital"]
[null,null,null,null,null,null,null,null,null,null,null,null,null,null,null,null,null,null,null,null,"QKS","RPA","MEDWAY NHS FOUNDATION TRUST","RPA02","Medway Maritime Hospital",null,"RNA","PORTSMOUTH HOSPITALS UNIVERSITY NATIONAL HEALTH SERVICE TRUST",null,"RNA","PORTSMOUTH HOSPITALS UNIVERSITY NATIONAL HEALTH SERVICE TRUST","RJ701","Macclesfield District General Hospital"]
[null,null,null,null,null,null,null,null,null,null,null,null,null,null,null,null,null,null,null,null,"QM7","RWH","EAST AND NORTH HERTFORDSHIRE NHS TRUST","RWH01","Lister Hospital",null,"RNN","ROYAL BERKSHIRE NHS FOUNDATION TRUST",null,"RNN","ROYAL BERKSHIRE NHS FOUNDATION TRUST","RJC02","Manor Hospital"]
[null,null,null,null,null,null,null,null,null,null,null,null,null,null,null,null,null,null,null,null,"QM7","RQW","THE PRINCESS ALEXANDRA HOSPITAL NHS TRUST","RQWG0","Princess Alexandra Hospital",null,"RNQ","ROYAL CORNWALL HOSPITALS NHS TRUST",null,"RNQ","ROYAL CORNWALL HOSPITALS NHS TRUST","RJE01","Medway Maritime Hospital"]
[null,null,null,null,null,null,null,null,null,null,null,null,null,null,null,null,null,null,null,null,"QM7","RWG","WEST HERTFORDSHIRE TEACHING HOSPITALS NHS TRUST","RWG02","Watford General Hospital",null,"RNS","ROYAL DEVON UNIVERSITY HEALTHCARE NHS FOUNDATION TRUST",null,"RNS","ROYAL DEVON UNIVERSITY HEALTHCARE NHS FOUNDATION TRUST","RJL32","MID ESSEX HOSPITAL"]
[null,null,null,null,null,null,null,null,null,null,null,null,null,null,null,null,null,null,null,null,"QMF","RF4","BARKING, HAVERING AND REDBRIDGE UNIVERSITY HOSPITALS NHS TRUST","RF4QH","Queen's Hospital",null,"RNZ","ROYAL FREE LONDON NHS FOUNDATION TRUST",null,"RNZ","ROYAL FREE LONDON NHS FOUNDATION TRUST","RJN71","Milton Keynes Hospital"]
[null,null,null,null,null,null,null,null,null,null,null,null,null,null,null,null,null,null,null,null,"QMF","R1H","BARTS HEALTH NHS TRUST","R1HNH","Newham General Hospital",null,"RP5","ROYAL SURREY COUNTY HOSPITAL NHS FOUNDATION TRUST",null,"RP5","ROYAL SURREY COUNTY HOSPITAL NHS FOUNDATION TRUST","RJR05","MUSGROVE PARK HOSPITAL"]
[null,null,null,null,null,null,null,null,null,null,null,null,null,null,null,null,null,null,null,null,"QMF","R1H","BARTS HEALTH NHS TRUST","R1H12","The Royal London Hospital",null,"RPA","ROYAL UNITED HOSPITALS BATH NHS FOUNDATION TRUST",null,"RPA","ROYAL UNITED HOSPITALS BATH NHS FOUNDATION TRUST","RK5BC","New Cross Hospital"]
[null,null,null,null,null,null,null,null,null,null,null,null,null,null,null,null,null,null,null,null,"QMF","R1H","BARTS HEALTH NHS TRUST","R1HKH","Whipps Cross University Hospital",null,"RQ3","SALISBURY NHS FOUNDATION TRUST",null,"RQ3","SALISBURY NHS FOUNDATION TRUST","RK950","Newham General Hospital"]
[null,null,null,null,null,null,null,null,null,null,null,null,null,null,null,null,null,null,null,null,"QMF","RQX","HOMERTON HEALTHCARE NHS FOUNDATION TRUST","RQXM1","Homerton University Hospital",null,"RQM","SANDWELL AND WEST BIRMINGHAM HOSPITALS NHS TRUST",null,"RQM","SANDWELL AND WEST BIRMINGHAM HOSPITALS NHS TRUST","RKB01","Non-hospital site"]
[null,null,null,null,null,null,null,null,null,null,null,null,null,null,null,null,null,null,null,null,"QMJ","RAL","ROYAL FREE LONDON NHS FOUNDATION TRUST","RAL26","Barnet Hospital",null,"RQW","SHEFFIELD TEACHING HOSPITALS NHS FOUNDATION TRUST",null,"RQW","SHEFFIELD TEACHING HOSPITALS NHS FOUNDATION TRUST","RKEQ4","Non-hospital site"]
[null,null,null,null,null,null,null,null,null,null,null,null,null,null,null,null,null,null,null,null,"QMJ","RAL","ROYAL FREE LONDON NHS FOUNDATION TRUST","E3M3C","NORTH MIDDLESEX HOSPITAL DSU - ELECTIVE SURGICAL HUB",null,"RQX","SHERWOOD FOREST HOSPITALS NHS FOUNDATION TRUST",null,"RQX","SHERWOOD FOREST HOSPITALS NHS FOUNDATION TRUST","RKEXXX","Non-hospital site home/in-transit births"]
[null,null,null,null,null,null,null,null,null,null,null,null,null,null,null,null,null,null,null,null,"QMJ","RAL","ROYAL FREE LONDON NHS FOUNDATION TRUST","RAL01","Royal Free Hospital",null,"RR7","SOMERSET NHS FOUNDATION TRUST",null,"RR7","SOMERSET NHS FOUNDATION TRUST","RL403","Norfolk and Norwich University Hospital"]
[null,null,null,null,null,null,null,null,null,null,null,null,null,null,null,null,null,null,null,null,"QMJ","RRV","UNIVERSITY COLLEGE LONDON HOSPITALS NHS FOUNDATION TRUST","RRV11","University College Hospital Elizabeth Garrett Anderson Wing",null,"RR8","SOUTH TEES HOSPITALS NHS FOUNDATION TRUST",null,"RR8","SOUTH TEES HOSPITALS NHS FOUNDATION TRUST","RLQ01","North Devon District Hospital"]
[null,null,null,null,null,null,null,null,null,null,null,null,null,null,null,null,null,null,null,null,"QMJ","RKE","WHITTINGTON HEALTH NHS TRUST","RKEXXX","Non-hospital site",null,"RRF","SOUTH TYNESIDE AND SUNDERLAND NHS FOUNDATION TRUST",null,"RRF","SOUTH TYNESIDE AND SUNDERLAND NHS FOUNDATION TRUST","RLT01","NORTH MIDDLESEX HOSPITAL DSU - ELECTIVE SURGICAL HUB"]
[null,null,null,null,null,null,null,null,null,null,null,null,null,null,null,null,null,null,null,null,"QMJ","RKE","WHITTINGTON HEALTH NHS TRUST","RKEQ4","The Whittington Hospital",null,"RRK","SOUTH WARWICKSHIRE UNIVERSITY NHS FOUNDATION TRUST",null,"RRK","SOUTH WARWICKSHIRE UNIVERSITY NHS FOUNDATION TRUST","RM102","Northampton General Hospital (Acute)"]
[null,null,null,null,null,null,null,null,null,null,null,null,null,null,null,null,null,null,null,null,"QMM","RGP","JAMES PAGET UNIVERSITY HOSPITALS NHS FOUNDATION TRUST","RGP75","James Paget University Hospital",null,"RRV","ST GEORGE'S UNIVERSITY HOSPITALS NHS FOUNDATION TRUST",null,"RRV","ST GEORGE'S UNIVERSITY HOSPITALS NHS FOUNDATION TRUST","RMC01","Northwick Park Hospital"]
[null,null,null,null,null,null,null,null,null,null,null,null,null,null,null,null,null,null,null,null,"QMM","RM1","NORFOLK AND NORWICH UNIVERSITY HOSPITALS NHS FOUNDATION TRUST","RM102","Norfolk and Norwich University Hospital",null,"RTD","STOCKPORT NHS FOUNDATION TRUST",null,"RTD","STOCKPORT NHS FOUNDATION TRUST","RMP01","Nottingham University Hospitals NHS Trust - City Campus"]
[null,null,null,null,null,null,null,null,null,null,null,null,null,null,null,null,null,null,null,null,"QMM","RCX","THE QUEEN ELIZABETH HOSPITAL, KING'S LYNN, NHS FOUNDATION TRUST","RCX70","The Queen Elizabeth Hospital",null,"RTE","SURREY AND SUSSEX HEALTHCARE NHS TRUST",null,"RTE","SURREY AND SUSSEX HEALTHCARE NHS TRUST","RN325","Nottingham University Hospitals NHS Trust - Queen's Medical Centre Campus"]
[null,null,null,null,null,null,null,null,null,null,null,null,null,null,null,null,null,null,null,null,"QNC","RJE","UNIVERSITY HOSPITALS OF NORTH MIDLANDS NHS TRUST","RJE01","Royal Stoke University Hospital",null,"RTF","TAMESIDE AND GLOSSOP INTEGRATED CARE NHS FOUNDATION TRUST",null,"RTF","TAMESIDE AND GLOSSOP INTEGRATED CARE NHS FOUNDATION TRUST","RN506","Ormskirk and District General Hospital"]
[null,null,null,null,null,null,null,null,null,null,null,null,null,null,null,null,null,null,null,null,"QNQ","RDU","FRIMLEY HEALTH NHS FOUNDATION TRUST","RDU01","Frimley Park Hospital",null,"RTG","THE DUDLEY GROUP NHS FOUNDATION TRUST",null,"RTG","THE DUDLEY GROUP NHS FOUNDATION TRUST","RN541","Peterborough City Hospital"]
[null,null,null,null,null,null,null,null,null,null,null,null,null,null,null,null,null,null,null,null,"QNQ","RDU","FRIMLEY HEALTH NHS FOUNDATION TRUST","RDU50","Wexham Park Hospital",null,"RTH","THE HILLINGDON HOSPITALS NHS FOUNDATION TRUST",null,"RTH","THE HILLINGDON HOSPITALS NHS FOUNDATION TRUST","RN707","Pilgrim Hospital"]
[null,null,null,null,null,null,null,null,null,null,null,null,null,null,null,null,null,null,null,null,"QNX","RXC","EAST SUSSEX HEALTHCARE NHS TRUST","RXC01","Conquest Hospital",null,"RTK","THE NEWCASTLE UPON TYNE HOSPITALS NHS FOUNDATION TRUST",null,"RTK","THE NEWCASTLE UPON TYNE HOSPITALS NHS FOUNDATION TRUST","RNA01","Pinderfields General Hospital"]
[null,null,null,null,null,null,null,null,null,null,null,null,null,null,null,null,null,null,null,null,"QNX","RXC","EAST SUSSEX HEALTHCARE NHS TRUST","RXC02","Eastbourne District General Hospital",null,"RTP","THE PRINCESS ALEXANDRA HOSPITAL NHS TRUST",null,"RTP","THE PRINCESS ALEXANDRA HOSPITAL NHS TRUST","RNN62","Poole Hospital"]
[null,null,null,null,null,null,null,null,null,null,null,null,null,null,null,null,null,null,null,null,"QNX","RYR","UNIVERSITY HOSPITALS SUSSEX NHS FOUNDATION TRUST","N6J7V","Princess Royal Hospital",null,"RTR","THE QUEEN ELIZABETH HOSPITAL, KING'S LYNN, NHS FOUNDATION TRUST",null,"RTR","THE QUEEN ELIZABETH HOSPITAL, KING'S LYNN, NHS FOUNDATION TRUST","RNNBX","Princess Alexandra Hospital"]
[null,null,null,null,null,null,null,null,null,null,null,null,null,null,null,null,null,null,null,null,"QNX","RYR","UNIVERSITY HOSPITALS SUSSEX NHS FOUNDATION TRUST","E0A3H","Royal Sussex County Hospital",null,"RTX","THE ROTHERHAM NHS FOUNDATION TRUST",null,"RTX","THE ROTHERHAM NHS FOUNDATION TRUST","RNQ51","Princess Anne Hospital"]
[null,null,null,null,null,null,null,null,null,null,null,null,null,null,null,null,null,null,null,null,"QNX","RYR","UNIVERSITY HOSPITALS SUSSEX NHS FOUNDATION TRUST","RYR16","St Richard's Hospital",null,"RVJ","THE ROYAL WOLVERHAMPTON NHS TRUST",null,"RVJ","THE ROYAL WOLVERHAMPTON NHS TRUST","RNS01","Princess Anne Wing RUH "]
[null,null,null,null,null,null,null,null,null,null,null,null,null,null,null,null,null,null,null,null,"QNX","RYR","UNIVERSITY HOSPITALS SUSSEX NHS FOUNDATION TRUST","RYR18","Worthing Hospital",null,"RVR","THE SHREWSBURY AND TELFORD HOSPITAL NHS TRUST",null,"RVR","THE SHREWSBURY AND TELFORD HOSPITAL NHS TRUST","RNZ02","Princess Royal Hospital"]
[null,null,null,null,null,null,null,null,null,null,null,null,null,null,null,null,null,null,null,null,"QOC","RXW","THE SHREWSBURY AND TELFORD HOSPITAL NHS TRUST","RXWMB","Bridgnorth Hospital (Maternity)",null,"RVV","TORBAY AND SOUTH DEVON NHS FOUNDATION TRUST",null,"RVV","TORBAY AND SOUTH DEVON NHS FOUNDATION TRUST","RP5BA","Queen Alexandra Hospital"]
[null,null,null,null,null,null,null,null,null,null,null,null,null,null,null,null,null,null,null,null,"QOP","RMC","BOLTON NHS FOUNDATION TRUST","RMC01","Royal Bolton Hospital",null,"RVW","UNITED LINCOLNSHIRE TEACHING HOSPITALS NHS TRUST",null,"RVW","UNITED LINCOLNSHIRE TEACHING HOSPITALS NHS TRUST","RP5DR","Queen Charlotte's Hospital"]
[null,null,null,null,null,null,null,null,null,null,null,null,null,null,null,null,null,null,null,null,"QOP","R0A","MANCHESTER UNIVERSITY NHS FOUNDATION TRUST","R0A05","St Mary's Hospital",null,"RWA","UNIVERSITY COLLEGE LONDON HOSPITALS NHS FOUNDATION TRUST",null,"RWA","UNIVERSITY COLLEGE LONDON HOSPITALS NHS FOUNDATION TRUST","RPA02","Queen Elizabeth Hospital"]
[null,null,null,null,null,null,null,null,null,null,null,null,null,null,null,null,null,null,null,null,"QOP","RWJ","STOCKPORT NHS FOUNDATION TRUST","RWJ09","Stepping Hill Hospital",null,"RWD","UNIVERSITY HOSPITAL SOUTHAMPTON NHS FOUNDATION TRUST",null,"RWD","UNIVERSITY HOSPITAL SOUTHAMPTON NHS FOUNDATION TRUST","RQ370","Queen Elizabeth Hospital"]
[null,null,null,null,null,null,null,null,null,null,null,null,null,null,null,null,null,null,null,null,"QOP","RMP","TAMESIDE AND GLOSSOP INTEGRATED CARE NHS FOUNDATION TRUST","RMP01","Tameside General Hospital",null,"RWE","UNIVERSITY HOSPITALS BIRMINGHAM NHS FOUNDATION TRUST",null,"RWE","UNIVERSITY HOSPITALS BIRMINGHAM NHS FOUNDATION TRUST","RQM01","Queen Elizabeth The Queen Mother Hospital"]
[null,null,null,null,null,null,null,null,null,null,null,null,null,null,null,null,null,null,null,null,"QOP","RRF","WRIGHTINGTON, WIGAN AND LEIGH NHS FOUNDATION TRUST","RRF02","Royal Albert Edward Infirmary",null,"RWF","UNIVERSITY HOSPITALS BRISTOL AND WESTON NHS FOUNDATION TRUST",null,"RWF","UNIVERSITY HOSPITALS BRISTOL AND WESTON NHS FOUNDATION TRUST","RQM91","Queen's Hospital"]
[null,null,null,null,null,null,null,null,null,null,null,null,null,null,null,null,null,null,null,null,"QOQ","RCD","HARROGATE AND DISTRICT NHS FOUNDATION TRUST","RCD01","Harrogate District Hospital",null,"RWG","UNIVERSITY HOSPITALS COVENTRY AND WARWICKSHIRE NHS TRUST",null,"RWG","UNIVERSITY HOSPITALS COVENTRY AND WARWICKSHIRE NHS TRUST","RQWG0","Queens Hospital, Burton Upon Trent"]
[null,null,null,null,null,null,null,null,null,null,null,null,null,null,null,null,null,null,null,null,"QOQ","RWA","HULL UNIVERSITY TEACHING HOSPITALS NHS TRUST","RWA01","Hull Royal Infirmary",null,"RWH","UNIVERSITY HOSPITALS DORSET NHS FOUNDATION TRUST",null,"RWH","UNIVERSITY HOSPITALS DORSET NHS FOUNDATION TRUST","RQXM1","Rosie Hospital"]
[null,null,null,null,null,null,null,null,null,null,null,null,null,null,null,null,null,null,null,null,"QOQ","RJL","NORTHERN LINCOLNSHIRE AND GOOLE NHS FOUNDATION TRUST","RJL32","Scunthorpe General Hospital",null,"RWJ","UNIVERSITY HOSPITALS OF DERBY AND BURTON NHS FOUNDATION TRUST",null,"RWJ","UNIVERSITY HOSPITALS OF DERBY AND BURTON NHS FOUNDATION TRUST","RR7EN","Rotherham District General Hospital"]
[null,null,null,null,null,null,null,null,null,null,null,null,null,null,null,null,null,null,null,null,"QOQ","RCB","YORK AND SCARBOROUGH TEACHING HOSPITALS NHS FOUNDATION TRUST","RCB55","York Hospital",null,"RWP","UNIVERSITY HOSPITALS OF LEICESTER NHS TRUST",null,"RWP","UNIVERSITY HOSPITALS OF LEICESTER NHS TRUST","RR801","Royal Albert Edward Infirmary"]
[null,null,null,null,null,null,null,null,null,null,null,null,null,null,null,null,null,null,null,null,"QOX","RN3","GREAT WESTERN HOSPITALS NHS FOUNDATION TRUST","RN325","The Great Western Hospital",null,"RWY","UNIVERSITY HOSPITALS OF MORECAMBE BAY NHS FOUNDATION TRUST",null,"RWY","UNIVERSITY HOSPITALS OF MORECAMBE BAY NHS FOUNDATION TRUST","RR813","Royal Berkshire Hospital"]
[null,null,null,null,null,null,null,null,null,null,null,null,null,null,null,null,null,null,null,null,"QOX","RD1","ROYAL UNITED HOSPITALS BATH NHS FOUNDATION TRUST","RD130","Princess Anne Wing RUH ",null,"RX1","UNIVERSITY HOSPITALS OF NORTH MIDLANDS NHS TRUST",null,"RX1","UNIVERSITY HOSPITALS OF NORTH MIDLANDS NHS TRUST","RRF02","Royal Blackburn Hospital"]
[null,null,null,null,null,null,null,null,null,null,null,null,null,null,null,null,null,null,null,null,"QOX","RNZ","SALISBURY NHS FOUNDATION TRUST","RNZ02","Salisbury District Hospital",null,"RXC","UNIVERSITY HOSPITALS PLYMOUTH NHS TRUST",null,"RXC","UNIVERSITY HOSPITALS PLYMOUTH NHS TRUST","RRK97","Royal Bolton Hospital"]
[null,null,null,null,null,null,null,null,null,null,null,null,null,null,null,null,null,null,null,null,"QPM","RNQ","KETTERING GENERAL HOSPITAL NHS FOUNDATION TRUST","RNQ51","Kettering General Hospital",null,"RXF","UNIVERSITY HOSPITALS SUSSEX NHS FOUNDATION TRUST",null,"RXF","UNIVERSITY HOSPITALS SUSSEX NHS FOUNDATION TRUST","RRK98","Royal Bournemouth Hospital"]
[null,null,null,null,null,null,null,null,null,null,null,null,null,null,null,null,null,null,null,null,"QPM","RNS","NORTHAMPTON GENERAL HOSPITAL NHS TRUST","RNS01","Northampton General Hospital (Acute)",null,"RXK","WALSALL HEALTHCARE NHS TRUST",null,"RXK","WALSALL HEALTHCARE NHS TRUST","RRK99","Royal Cornwall Hospital (Treliske)"]
[null,null,null,null,null,null,null,null,null,null,null,null,null,null,null,null,null,null,null,null,"QR1","RTE","GLOUCESTERSHIRE HOSPITALS NHS FOUNDATION TRUST","RTE03","Gloucestershire Royal Hospital",null,"RXL","WEST HERTFORDSHIRE TEACHING HOSPITALS NHS TRUST",null,"RXL","WEST HERTFORDSHIRE TEACHING HOSPITALS NHS TRUST","RRV11","Royal Derby Hospital"]
[null,null,null,null,null,null,null,null,null,null,null,null,null,null,null,null,null,null,null,null,"QRL","RN5","HAMPSHIRE HOSPITALS NHS FOUNDATION TRUST","RN506","Basingstoke and North Hampshire Hospital",null,"RXN","WEST SUFFOLK NHS FOUNDATION TRUST",null,"RXN","WEST SUFFOLK NHS FOUNDATION TRUST","RTD02","Royal Devon and Exeter Hospital (Wonford)"]
[null,null,null,null,null,null,null,null,null,null,null,null,null,null,null,null,null,null,null,null,"QRL","RN5","HAMPSHIRE HOSPITALS NHS FOUNDATION TRUST","RN541","Royal Hampshire County Hospital",null,"RXP","WHITTINGTON HEALTH NHS TRUST",null,"RXP","WHITTINGTON HEALTH NHS TRUST","RTE03","Royal Free Hospital"]
[null,null,null,null,null,null,null,null,null,null,null,null,null,null,null,null,null,null,null,null,"QRL","R1F","ISLE OF WIGHT NHS TRUST","R1F01","St Mary's Hospital",null,"RXQ","WIRRAL UNIVERSITY TEACHING HOSPITAL NHS FOUNDATION TRUST",null,"RXQ","WIRRAL UNIVERSITY TEACHING HOSPITAL NHS FOUNDATION TRUST","RTF86","Royal Hallamshire Hospital"]
[null,null,null,null,null,null,null,null,null,null,null,null,null,null,null,null,null,null,null,null,"QRL","RHU","PORTSMOUTH HOSPITALS UNIVERSITY NATIONAL HEALTH SERVICE TRUST","RHU03","Queen Alexandra Hospital",null,"RXR","WORCESTERSHIRE ACUTE HOSPITALS NHS TRUST",null,"RXR","WORCESTERSHIRE ACUTE HOSPITALS NHS TRUST","RTFDH","Royal Hampshire County Hospital"]
[null,null,null,null,null,null,null,null,null,null,null,null,null,null,null,null,null,null,null,null,"QRL","RHM","UNIVERSITY HOSPITAL SOUTHAMPTON NHS FOUNDATION TRUST","RHM12","Princess Anne Hospital",null,"RXW","WRIGHTINGTON, WIGAN AND LEIGH NHS FOUNDATION TRUST",null,"RXW","WRIGHTINGTON, WIGAN AND LEIGH NHS FOUNDATION TRUST","RTFDJ","Royal Lancaster Infirmary"]
[null,null,null,null,null,null,null,null,null,null,null,null,null,null,null,null,null,null,null,null,"QRV","RQM","CHELSEA AND WESTMINSTER HOSPITAL NHS FOUNDATION TRUST","RQM01","Chelsea and Westminster Hospital",null,"RYJ","WYE VALLEY NHS TRUST",null,"RYJ","WYE VALLEY NHS TRUST","RTFDR","Royal Preston Hospital"]
[null,null,null,null,null,null,null,null,null,null,null,null,null,null,null,null,null,null,null,null,"QRV","RQM","CHELSEA AND WESTMINSTER HOSPITAL NHS FOUNDATION TRUST","RQM91","West Middlesex University Hospital",null,"RYR","YORK AND SCARBOROUGH TEACHING HOSPITALS NHS FOUNDATION TRUST",null,"RYR","YORK AND SCARBOROUGH TEACHING HOSPITALS NHS FOUNDATION TRUST","RTFXXX","Royal Stoke University Hospital"]
[null,null,null,null,null,null,null,null,null,null,null,null,null,null,null,null,null,null,null,null,"QRV","RYJ","IMPERIAL COLLEGE HEALTHCARE NHS TRUST","RYJ04","Queen Charlotte's Hospital",null,null,null,null,null,null,"RTG02","Royal Surrey County Hospital"]
[null,null,null,null,null,null,null,null,null,null,null,null,null,null,null,null,null,null,null,null,"QRV","RYJ","IMPERIAL COLLEGE HEALTHCARE NHS TRUST","RYJ01","St Mary's Hospital (HQ)",null,null,null,null,null,null,"RTGFG","Royal Sussex County Hospital"]
[null,null,null,null,null,null,null,null,null,null,null,null,null,null,null,null,null,null,null,null,"QRV","R1K","LONDON NORTH WEST UNIVERSITY HEALTHCARE NHS TRUST","R1K01","Northwick Park Hospital",null,null,null,null,null,null,"RTH05","Russells Hall Hospital"]
[null,null,null,null,null,null,null,null,null,null,null,null,null,null,null,null,null,null,null,null,"QRV","RAS","THE HILLINGDON HOSPITALS NHS FOUNDATION TRUST","RAS01","Hillingdon Hospital",null,null,null,null,null,null,"RTH08","Salisbury District Hospital"]
[null,null,null,null,null,null,null,null,null,null,null,null,null,null,null,null,null,null,null,null,"QSL","RH5","SOMERSET NHS FOUNDATION TRUST","RH5K6","Bridgwater Hospital",null,null,null,null,null,null,"RTH16","Scunthorpe General Hospital"]
[null,null,null,null,null,null,null,null,null,null,null,null,null,null,null,null,null,null,null,null,"QSL","RH5","SOMERSET NHS FOUNDATION TRUST","RH5A8","MUSGROVE PARK HOSPITAL",null,null,null,null,null,null,"RTH19","Solihull Hospital"]
[null,null,null,null,null,null,null,null,null,null,null,null,null,null,null,null,null,null,null,null,"QSL","RH5","SOMERSET NHS FOUNDATION TRUST","RH5XXXX","Non-hospital site home/in-transit births",null,null,null,null,null,null,"RTH21","Southend Hospital"]
[null,null,null,null,null,null,null,null,null,null,null,null,null,null,null,null,null,null,null,null,"QSL","RH5","SOMERSET NHS FOUNDATION TRUST","RH5O4","Yeovil District Hospital",null,null,null,null,null,null,"RTK02","Southmead Hospital"]
[null,null,null,null,null,null,null,null,null,null,null,null,null,null,null,null,null,null,null,null,"QT1","RX1","NOTTINGHAM UNIVERSITY HOSPITALS NHS TRUST","RX1CC","Nottingham University Hospitals NHS Trust - City Campus",null,null,null,null,null,null,"RTP04","St George's Hospital (Tooting)"]
[null,null,null,null,null,null,null,null,null,null,null,null,null,null,null,null,null,null,null,null,"QT1","RX1","NOTTINGHAM UNIVERSITY HOSPITALS NHS TRUST","RX1RA","Nottingham University Hospitals NHS Trust - Queen's Medical Centre Campus",null,null,null,null,null,null,"RTR45","St Helier Hospital"]
[null,null,null,null,null,null,null,null,null,null,null,null,null,null,null,null,null,null,null,null,"QT1","RK5","SHERWOOD FOREST HOSPITALS NHS FOUNDATION TRUST","RK5BC","King's Mill Hospital",null,null,null,null,null,null,"RTRAT","St James's University Hospital"]
[null,null,null,null,null,null,null,null,null,null,null,null,null,null,null,null,null,null,null,null,"QT6","REF","ROYAL CORNWALL HOSPITALS NHS TRUST","REF12","Royal Cornwall Hospital (Treliske)",null,null,null,null,null,null,"RTX02","St Mary's Hospital"]
[null,null,null,null,null,null,null,null,null,null,null,null,null,null,null,null,null,null,null,null,"QU9","RXQ","BUCKINGHAMSHIRE HEALTHCARE NHS TRUST","RXQ02","Stoke Mandeville Hospital",null,null,null,null,null,null,"RTXBU","St Mary's Hospital"]
[null,null,null,null,null,null,null,null,null,null,null,null,null,null,null,null,null,null,null,null,"QU9","RTH","OXFORD UNIVERSITY HOSPITALS NHS FOUNDATION TRUST","RTH19","Chipping Norton Community Hospital",null,null,null,null,null,null,"RTXBW","St Mary's Hospital"]
[null,null,null,null,null,null,null,null,null,null,null,null,null,null,null,null,null,null,null,null,"QU9","RTH","OXFORD UNIVERSITY HOSPITALS NHS FOUNDATION TRUST","RTH05","Horton General Hospital",null,null,null,null,null,null,"RVJ01","St Mary's Hospital (HQ)"]
[null,null,null,null,null,null,null,null,null,null,null,null,null,null,null,null,null,null,null,null,"QU9","RTH","OXFORD UNIVERSITY HOSPITALS NHS FOUNDATION TRUST","RTH08","John Radcliffe Hospital",null,null,null,null,null,null,"RVR05","ST MICHAEL'S HOSPITAL"]
[null,null,null,null,null,null,null,null,null,null,null,null,null,null,null,null,null,null,null,null,"QU9","RTH","OXFORD UNIVERSITY HOSPITALS NHS FOUNDATION TRUST","RTH16","Wallingford Community Hospital",null,null,null,null,null,null,"RVR50","St Richard's Hospital"]
[null,null,null,null,null,null,null,null,null,null,null,null,null,null,null,null,null,null,null,null,"QU9","RTH","OXFORD UNIVERSITY HOSPITALS NHS FOUNDATION TRUST","RTH21","Wantage Community Hospital",null,null,null,null,null,null,"RVV01","St Thomas' Hospital"]
[null,null,null,null,null,null,null,null,null,null,null,null,null,null,null,null,null,null,null,null,"QU9","RHW","ROYAL BERKSHIRE NHS FOUNDATION TRUST","RHW01","Royal Berkshire Hospital",null,null,null,null,null,null,"RVV09","Stepping Hill Hospital"]
[null,null,null,null,null,null,null,null,null,null,null,null,null,null,null,null,null,null,null,null,"QUA","RNA","THE DUDLEY GROUP NHS FOUNDATION TRUST","RNA01","Russells Hall Hospital",null,null,null,null,null,null,"RVWAE","Stoke Mandeville Hospital"]
[null,null,null,null,null,null,null,null,null,null,null,null,null,null,null,null,null,null,null,null,"QUA","RL4","THE ROYAL WOLVERHAMPTON NHS TRUST","RL403","New Cross Hospital",null,null,null,null,null,null,"RWA01","Sunderland Royal Hospital"]
[null,null,null,null,null,null,null,null,null,null,null,null,null,null,null,null,null,null,null,null,"QUA","RBK","WALSALL HEALTHCARE NHS TRUST","RBK02","Manor Hospital",null,null,null,null,null,null,"RWDDA","Tameside General Hospital"]
[null,null,null,null,null,null,null,null,null,null,null,null,null,null,null,null,null,null,null,null,"QUE","RGT","CAMBRIDGE UNIVERSITY HOSPITALS NHS FOUNDATION TRUST","RGT32","Rosie Hospital",null,null,null,null,null,null,"RWDLA","The Great Western Hospital"]
[null,null,null,null,null,null,null,null,null,null,null,null,null,null,null,null,null,null,null,null,"QUE","RGN","NORTH WEST ANGLIA NHS FOUNDATION TRUST","RGN90","Hinchingbrooke Hospital",null,null,null,null,null,null,"RWDLP","The James Cook University Hospital"]
[null,null,null,null,null,null,null,null,null,null,null,null,null,null,null,null,null,null,null,null,"QUE","RGN","NORTH WEST ANGLIA NHS FOUNDATION TRUST","RGN80","Peterborough City Hospital",null,null,null,null,null,null,"RWE10","The Northumbria"]
[null,null,null,null,null,null,null,null,null,null,null,null,null,null,null,null,null,null,null,null,"QUY","RVJ","NORTH BRISTOL NHS TRUST","RVJ01","Southmead Hospital",null,null,null,null,null,null,"RWEAA","The Queen Elizabeth Hospital"]
[null,null,null,null,null,null,null,null,null,null,null,null,null,null,null,null,null,null,null,null,"QUY","RA7","UNIVERSITY HOSPITALS BRISTOL AND WESTON NHS FOUNDATION TRUST","RA707","ST MICHAEL'S HOSPITAL",null,null,null,null,null,null,"RWEAK","The Royal London Hospital"]
[null,null,null,null,null,null,null,null,null,null,null,null,null,null,null,null,null,null,null,null,"QVV","RBD","DORSET COUNTY HOSPITAL NHS FOUNDATION TRUST","RBD01","Dorset County Hospital",null,null,null,null,null,null,"RWF08","The Royal Victoria Infirmary"]
[null,null,null,null,null,null,null,null,null,null,null,null,null,null,null,null,null,null,null,null,"QVV","R0D","UNIVERSITY HOSPITALS DORSET NHS FOUNDATION TRUST","R0D01","Poole Hospital",null,null,null,null,null,null,"RWFTW","The Tunbridge Wells Hospital"]
[null,null,null,null,null,null,null,null,null,null,null,null,null,null,null,null,null,null,null,null,"QVV","R0D","UNIVERSITY HOSPITALS DORSET NHS FOUNDATION TRUST","R0D02","Royal Bournemouth Hospital",null,null,null,null,null,null,"RWG02","The Whittington Hospital"]
[null,null,null,null,null,null,null,null,null,null,null,null,null,null,null,null,null,null,null,null,"QWE","RVR","EPSOM AND ST HELIER UNIVERSITY HOSPITALS NHS TRUST","RVR50","Epsom Hospital",null,null,null,null,null,null,"RWH01","Torbay Hospital"]
[null,null,null,null,null,null,null,null,null,null,null,null,null,null,null,null,null,null,null,null,"QWE","RVR","EPSOM AND ST HELIER UNIVERSITY HOSPITALS NHS TRUST","RVR05","St Helier Hospital",null,null,null,null,null,null,"RWJ09","University College Hospital Elizabeth Garrett Anderson Wing"]
[null,null,null,null,null,null,null,null,null,null,null,null,null,null,null,null,null,null,null,null,"QWE","RAX","KINGSTON AND RICHMOND NHS FOUNDATION TRUST","RAX01","Kingston Hospital",null,null,null,null,null,null,"RWP50","University Hospital (Coventry)"]
[null,null,null,null,null,null,null,null,null,null,null,null,null,null,null,null,null,null,null,null,"QWE","RJ7","ST GEORGE'S UNIVERSITY HOSPITALS NHS FOUNDATION TRUST","RJ701","St George's Hospital (Tooting)",null,null,null,null,null,null,"RWY02","University Hospital Lewisham"]
[null,null,null,null,null,null,null,null,null,null,null,null,null,null,null,null,null,null,null,null,"QWO","RAE","BRADFORD TEACHING HOSPITALS NHS FOUNDATION TRUST","RAE01","Bradford Royal Infirmary",null,null,null,null,null,null,"RX1CC","University Hospital Of North Durham"]
[null,null,null,null,null,null,null,null,null,null,null,null,null,null,null,null,null,null,null,null,"QWO","RWY","CALDERDALE AND HUDDERSFIELD NHS FOUNDATION TRUST","RWY02","Calderdale Royal Hospital",null,null,null,null,null,null,"RX1RA","University Hospital Of North Tees"]
[null,null,null,null,null,null,null,null,null,null,null,null,null,null,null,null,null,null,null,null,"QWO","RR8","LEEDS TEACHING HOSPITALS NHS TRUST","RR801","Leeds General Infirmary",null,null,null,null,null,null,"RXC01","Wallingford Community Hospital"]
[null,null,null,null,null,null,null,null,null,null,null,null,null,null,null,null,null,null,null,null,"QWO","RR8","LEEDS TEACHING HOSPITALS NHS TRUST","RR813","St James's University Hospital",null,null,null,null,null,null,"RXC02","Wantage Community Hospital"]
[null,null,null,null,null,null,null,null,null,null,null,null,null,null,null,null,null,null,null,null,"QWO","RXF","MID YORKSHIRE TEACHING NHS TRUST","RXF05","Pinderfields General Hospital",null,null,null,null,null,null,"RXF05","Warwick Hospital"]
[null,null,null,null,null,null,null,null,null,null,null,null,null,null,null,null,null,null,null,null,"QWU","RLT","GEORGE ELIOT HOSPITAL NHS TRUST","RLT01","George Eliot Hospital - Acute Services",null,null,null,null,null,null,"RXKTC","Watford General Hospital"]
[null,null,null,null,null,null,null,null,null,null,null,null,null,null,null,null,null,null,null,null,"QWU","RJC","SOUTH WARWICKSHIRE UNIVERSITY NHS FOUNDATION TRUST","RJC02","Warwick Hospital",null,null,null,null,null,null,"RXL01","West Cumberland Hospital"]
[null,null,null,null,null,null,null,null,null,null,null,null,null,null,null,null,null,null,null,null,"QWU","RKB","UNIVERSITY HOSPITALS COVENTRY AND WARWICKSHIRE NHS TRUST","RKB01","University Hospital (Coventry)",null,null,null,null,null,null,"RXN01","West Middlesex University Hospital"]
[null,null,null,null,null,null,null,null,null,null,null,null,null,null,null,null,null,null,null,null,"QXU","RTK","ASHFORD AND ST PETER'S HOSPITALS NHS FOUNDATION TRUST","RTK02","Ashford Hospital",null,null,null,null,null,null,"RXN02","West Suffolk Hospital"]
[null,null,null,null,null,null,null,null,null,null,null,null,null,null,null,null,null,null,null,null,"QXU","RA2","ROYAL SURREY COUNTY HOSPITAL NHS FOUNDATION TRUST","RA201","Royal Surrey County Hospital",null,null,null,null,null,null,"RXPCP","Westmorland General Hospital"]
[null,null,null,null,null,null,null,null,null,null,null,null,null,null,null,null,null,null,null,null,"QXU","RTP","SURREY AND SUSSEX HEALTHCARE NHS TRUST","RTP04","East Surrey Hospital",null,null,null,null,null,null,"RXPDA","Wexham Park Hospital"]
[null,null,null,null,null,null,null,null,null,null,null,null,null,null,null,null,null,null,null,null,"QYG","RJR","COUNTESS OF CHESTER HOSPITAL NHS FOUNDATION TRUST","RJR05","Countess Of Chester Hospital",null,null,null,null,null,null,"RXQ02","Whipps Cross University Hospital"]
[null,null,null,null,null,null,null,null,null,null,null,null,null,null,null,null,null,null,null,null,"QYG","RJN","EAST CHESHIRE NHS TRUST","RJN71","Macclesfield District General Hospital",null,null,null,null,null,null,"RXR20","Whiston Hospital"]
[null,null,null,null,null,null,null,null,null,null,null,null,null,null,null,null,null,null,null,null,"QYG","REP","LIVERPOOL WOMEN'S NHS FOUNDATION TRUST","REP01","Liverpool Womens Hospital",null,null,null,null,null,null,"RXWMB","William Harvey Hospital (Ashford)"]
[null,null,null,null,null,null,null,null,null,null,null,null,null,null,null,null,null,null,null,null,"QYG","RBN","MERSEY AND WEST LANCASHIRE TEACHING HOSPITALS NHS TRUST","RBN52","Ormskirk and District General Hospital",null,null,null,null,null,null,"RYJ01","Worcestershire Royal Hospital"]
[null,null,null,null,null,null,null,null,null,null,null,null,null,null,null,null,null,null,null,null,"QYG","RBN","MERSEY AND WEST LANCASHIRE TEACHING HOSPITALS NHS TRUST","RBN01","Whiston Hospital",null,null,null,null,null,null,"RYJ04","Worthing Hospital"]
[null,null,null,null,null,null,null,null,null,null,null,null,null,null,null,null,null,null,null,null,"QYG","RBT","MID CHESHIRE HOSPITALS NHS FOUNDATION TRUST","RBT20","Leighton Hospital",null,null,null,null,null,null,"RYR16","Yeovil District Hospital"]
[null,null,null,null,null,null,null,null,null,null,null,null,null,null,null,null,null,null,null,null,"QYG","RBL","WIRRAL UNIVERSITY TEACHING HOSPITAL NHS FOUNDATION TRUST","RBL14","Arrowe Park Hospital",null,null,null,null,null,null,"RYR18","York Hospital"]

{"sheet":"BSQ4","index":16,"n_rows":120,"n_cols":28,"rows_kept":120,"cut":false,"hidden":true,"merged":[]}
[null,"Sort","ICB","ICB","Trusts","Trusts",null,null,null,"Sort ranges:","Sort range…","Sort range…",null,"Reference Region List:","Code…","Name…","Linked Region List:","Code…","Name…","Reference Lists:","Code…","Code…","Name…",null,null,"Trusts Linked Lists:","Code…","Name…"]
["ICB",1,1,1,"-","-",null,null,null,null,"ICB Code","ICB Code",null,null,"QE1","LANCASHIRE AND SOUTH CUMBRIA ICB",null,"QE1","LANCASHIRE AND SOUTH CUMBRIA ICB",null,"QE1","RTX","UNIVERSITY HOSPITALS OF MORECAMBE BAY NHS FOUNDATION TRUST",null,null,null,"R0A","AIREDALE NHS FOUNDATION TRUST"]
["Trusts",1,1,1,1,1,null,null,null,null,"ICB Name","Trust Code",null,null,"QF7","SOUTH YORKSHIRE ICB",null,"QF7","SOUTH YORKSHIRE ICB",null,"QE1","RXL","BLACKPOOL TEACHING HOSPITALS NHS FOUNDATION TRUST",null,null,null,"R0B","ASHFORD AND ST PETER'S HOSPITALS NHS FOUNDATION TRUST"]
[null,null,null,null,null,null,null,null,null,null,"Total Responses","Trust Name",null,null,"QGH","HEREFORDSHIRE AND WORCESTERSHIRE ICB",null,"QGH","HEREFORDSHIRE AND WORCESTERSHIRE ICB",null,"QE1","RXN","LANCASHIRE TEACHING HOSPITALS NHS FOUNDATION TRUST",null,null,null,"R0D","BARKING, HAVERING AND REDBRIDGE UNIVERSITY HOSPITALS NHS TRUST"]
[null,null,null,null,null,null,null,null,null,null,"Percentage Positive","Total Responses",null,null,"QH8","MID AND SOUTH ESSEX ICB",null,"QH8","MID AND SOUTH ESSEX ICB",null,"QE1","RXR","EAST LANCASHIRE HOSPITALS NHS TRUST",null,null,null,"R1F","BARNSLEY HOSPITAL NHS FOUNDATION TRUST"]
[null,null,null,null,null,null,null,null,null,null,"Percentage Negative","Percentage Positive",null,null,"QHG","BEDFORDSHIRE, LUTON AND MILTON KEYNES ICB",null,"QHG","BEDFORDSHIRE, LUTON AND MILTON KEYNES ICB",null,"QF7","RP5","DONCASTER AND BASSETLAW TEACHING HOSPITALS NHS FOUNDATION TRUST",null,null,null,"R1H","BARTS HEALTH NHS TRUST"]
[null,null,null,null,null,null,null,null,null,null,"Very Good","Percentage Negative",null,null,"QHL","BIRMINGHAM AND SOLIHULL ICB",null,"QHL","BIRMINGHAM AND SOLIHULL ICB",null,"QF7","RFR","THE ROTHERHAM NHS FOUNDATION TRUST",null,null,null,"R1K","BEDFORDSHIRE HOSPITALS NHS FOUNDATION TRUST"]
[null,null,null,null,null,null,null,null,null,null,"Good","Very Good",null,null,"QHM","NORTH EAST AND NORTH CUMBRIA ICB",null,"QHM","NORTH EAST AND NORTH CUMBRIA ICB",null,"QF7","RFF","BARNSLEY HOSPITAL NHS FOUNDATION TRUST",null,null,null,"RA2","BIRMINGHAM WOMEN'S AND CHILDREN'S NHS FOUNDATION TRUST"]
[null,null,null,null,null,null,null,null,null,null,"Neither Good nor Poor","Good",null,null,"QJ2","DERBY AND DERBYSHIRE ICB",null,"QJ2","DERBY AND DERBYSHIRE ICB",null,"QF7","RHQ","SHEFFIELD TEACHING HOSPITALS NHS FOUNDATION TRUST",null,null,null,"RA7","BLACKPOOL TEACHING HOSPITALS NHS FOUNDATION TRUST"]
[null,null,null,null,null,null,null,null,null,null,"Poor","Neither Good nor Poor",null,null,"QJG","SUFFOLK AND NORTH EAST ESSEX ICB",null,"QJG","SUFFOLK AND NORTH EAST ESSEX ICB",null,"QGH","RLQ","WYE VALLEY NHS TRUST",null,null,null,"RA9","BOLTON NHS FOUNDATION TRUST"]
[null,null,null,null,null,null,null,null,null,null,"Very Poor","Poor",null,null,"QJK","DEVON ICB",null,"QJK","DEVON ICB",null,"QGH","RWP","WORCESTERSHIRE ACUTE HOSPITALS NHS TRUST",null,null,null,"RAE","BRADFORD TEACHING HOSPITALS NHS FOUNDATION TRUST"]
[null,null,null,null,null,null,null,null,null,null,"Don't Know","Very Poor",null,null,"QJM","LINCOLNSHIRE ICB",null,"QJM","LINCOLNSHIRE ICB",null,"QH8","RAJ","MID AND SOUTH ESSEX NHS FOUNDATION TRUST",null,null,null,"RAJ","BUCKINGHAMSHIRE HEALTHCARE NHS TRUST"]
[null,null,null,null,null,null,null,null,null,null,null,"Don't Know",null,null,"QK1","LEICESTER, LEICESTERSHIRE AND RUTLAND ICB",null,"QK1","LEICESTER, LEICESTERSHIRE AND RUTLAND ICB",null,"QHG","RC9","BEDFORDSHIRE HOSPITALS NHS FOUNDATION TRUST",null,null,null,"RAL","CALDERDALE AND HUDDERSFIELD NHS FOUNDATION TRUST"]
[null,null,null,null,null,null,null,null,null,null,null,"Mode SMS",null,null,"QKK","SOUTH EAST LONDON ICB",null,"QKK","SOUTH EAST LONDON ICB",null,"QHG","RD8","MILTON KEYNES UNIVERSITY HOSPITAL NHS FOUNDATION TRUST",null,null,null,"RAS","CAMBRIDGE UNIVERSITY HOSPITALS NHS FOUNDATION TRUST"]
[null,null,null,null,null,null,null,null,null,null,null,"Mode Electronic Discharge",null,null,"QKS","KENT AND MEDWAY ICB",null,"QKS","KENT AND MEDWAY ICB",null,"QHL","RXK","SANDWELL AND WEST BIRMINGHAM HOSPITALS NHS TRUST",null,null,null,"RAX","CHELSEA AND WESTMINSTER HOSPITAL NHS FOUNDATION TRUST"]
[null,null,null,null,null,null,null,null,null,null,null,"Mode Electronic Home",null,null,"QM7","HERTFORDSHIRE AND WEST ESSEX ICB",null,"QM7","HERTFORDSHIRE AND WEST ESSEX ICB",null,"QHL","RRK","UNIVERSITY HOSPITALS BIRMINGHAM NHS FOUNDATION TRUST",null,null,null,"RBD","CHESTERFIELD ROYAL HOSPITAL NHS FOUNDATION TRUST"]
[null,null,null,null,null,null,null,null,null,null,null,"Mode Paper Discharge",null,null,"QMF","NORTH EAST LONDON ICB",null,"QMF","NORTH EAST LONDON ICB",null,"QHL","RQ3","BIRMINGHAM WOMEN'S AND CHILDREN'S NHS FOUNDATION TRUST",null,null,null,"RBK","COUNTESS OF CHESTER HOSPITAL NHS FOUNDATION TRUST"]
[null,null,null,null,null,null,null,null,null,null,null,"Mode Paper Home",null,null,"QMJ","NORTH CENTRAL LONDON ICB",null,"QMJ","NORTH CENTRAL LONDON ICB",null,"QHM","RXP","COUNTY DURHAM AND DARLINGTON NHS FOUNDATION TRUST",null,null,null,"RBL","COUNTY DURHAM AND DARLINGTON NHS FOUNDATION TRUST"]
[null,null,null,null,null,null,null,null,null,null,null,"Mode Telephone",null,null,"QMM","NORFOLK AND WAVENEY ICB",null,"QMM","NORFOLK AND WAVENEY ICB",null,"QHM","R0B","SOUTH TYNESIDE AND SUNDERLAND NHS FOUNDATION TRUST",null,null,null,"RBN","CROYDON HEALTH SERVICES NHS TRUST"]
[null,null,null,null,null,null,null,null,null,null,null,"Mode Online",null,null,"QNC","STAFFORDSHIRE AND STOKE-ON-TRENT ICB",null,"QNC","STAFFORDSHIRE AND STOKE-ON-TRENT ICB",null,"QHM","RNN","NORTH CUMBRIA INTEGRATED CARE NHS FOUNDATION TRUST",null,null,null,"RBT","DARTFORD AND GRAVESHAM NHS TRUST"]
[null,null,null,null,null,null,null,null,null,null,null,"Mode Other",null,null,"QNQ","FRIMLEY ICB",null,"QNQ","FRIMLEY ICB",null,"QHM","RR7","GATESHEAD HEALTH NHS FOUNDATION TRUST",null,null,null,"RC9","DONCASTER AND BASSETLAW TEACHING HOSPITALS NHS FOUNDATION TRUST"]
[null,null,null,null,null,null,null,null,null,null,null,null,null,null,"QNX","SUSSEX ICB",null,"QNX","SUSSEX ICB",null,"QHM","RTF","NORTHUMBRIA HEALTHCARE NHS FOUNDATION TRUST",null,null,null,"RCB","DORSET COUNTY HOSPITAL NHS FOUNDATION TRUST"]
[null,null,null,null,null,null,null,null,null,null,null,null,null,null,"QOC","SHROPSHIRE, TELFORD AND WREKIN ICB",null,"QOC","SHROPSHIRE, TELFORD AND WREKIN ICB",null,"QHM","RVW","NORTH TEES AND HARTLEPOOL NHS FOUNDATION TRUST",null,null,null,"RCD","EAST AND NORTH HERTFORDSHIRE NHS TRUST"]
[null,null,null,null,null,null,null,null,null,null,null,null,null,null,"QOP","GREATER MANCHESTER ICB",null,"QOP","GREATER MANCHESTER ICB",null,"QHM","RTR","SOUTH TEES HOSPITALS NHS FOUNDATION TRUST",null,null,null,"RCF","EAST CHESHIRE NHS TRUST"]
[null,null,null,null,null,null,null,null,null,null,null,null,null,null,"QOQ","HUMBER AND NORTH YORKSHIRE ICB",null,"QOQ","HUMBER AND NORTH YORKSHIRE ICB",null,"QHM","RTD","THE NEWCASTLE UPON TYNE HOSPITALS NHS FOUNDATION TRUST",null,null,null,"RCX","EAST KENT HOSPITALS UNIVERSITY NHS FOUNDATION TRUST"]
[null,null,null,null,null,null,null,null,null,null,null,null,null,null,"QOX","BATH AND NORTH EAST SOMERSET, SWINDON AND WILTSHIRE ICB",null,"QOX","BATH AND NORTH EAST SOMERSET, SWINDON AND WILTSHIRE ICB",null,"QJ2","RFS","CHESTERFIELD ROYAL HOSPITAL NHS FOUNDATION TRUST",null,null,null,"RD1","EAST LANCASHIRE HOSPITALS NHS TRUST"]
[null,null,null,null,null,null,null,null,null,null,null,null,null,null,"QPM","NORTHAMPTONSHIRE ICB",null,"QPM","NORTHAMPTONSHIRE ICB",null,"QJ2","RTG","UNIVERSITY HOSPITALS OF DERBY AND BURTON NHS FOUNDATION TRUST",null,null,null,"RD8","EAST SUFFOLK AND NORTH ESSEX NHS FOUNDATION TRUST"]
[null,null,null,null,null,null,null,null,null,null,null,null,null,null,"QR1","GLOUCESTERSHIRE ICB",null,"QR1","GLOUCESTERSHIRE ICB",null,"QJG","RDE","EAST SUFFOLK AND NORTH ESSEX NHS FOUNDATION TRUST",null,null,null,"RDE","EAST SUSSEX HEALTHCARE NHS TRUST"]
[null,null,null,null,null,null,null,null,null,null,null,null,null,null,"QRL","HAMPSHIRE AND ISLE OF WIGHT ICB",null,"QRL","HAMPSHIRE AND ISLE OF WIGHT ICB",null,"QJG","RGR","WEST SUFFOLK NHS FOUNDATION TRUST",null,null,null,"RDU","EPSOM AND ST HELIER UNIVERSITY HOSPITALS NHS TRUST"]
[null,null,null,null,null,null,null,null,null,null,null,null,null,null,"QRV","NORTH WEST LONDON ICB",null,"QRV","NORTH WEST LONDON ICB",null,"QJK","RA9","TORBAY AND SOUTH DEVON NHS FOUNDATION TRUST",null,null,null,"REF","FRIMLEY HEALTH NHS FOUNDATION TRUST"]
[null,null,null,null,null,null,null,null,null,null,null,null,null,null,"QSL","SOMERSET ICB",null,"QSL","SOMERSET ICB",null,"QJK","RH8","ROYAL DEVON UNIVERSITY HEALTHCARE NHS FOUNDATION TRUST",null,null,null,"REP","GATESHEAD HEALTH NHS FOUNDATION TRUST"]
[null,null,null,null,null,null,null,null,null,null,null,null,null,null,"QT1","NOTTINGHAM AND NOTTINGHAMSHIRE ICB",null,"QT1","NOTTINGHAM AND NOTTINGHAMSHIRE ICB",null,"QJK","RK9","UNIVERSITY HOSPITALS PLYMOUTH NHS TRUST",null,null,null,"RF4","GEORGE ELIOT HOSPITAL NHS TRUST"]
[null,null,null,null,null,null,null,null,null,null,null,null,null,null,"QT6","CORNWALL AND THE ISLES OF SCILLY ICB",null,"QT6","CORNWALL AND THE ISLES OF SCILLY ICB",null,"QJM","RWD","UNITED LINCOLNSHIRE TEACHING HOSPITALS NHS TRUST",null,null,null,"RFF","GLOUCESTERSHIRE HOSPITALS NHS FOUNDATION TRUST"]
[null,null,null,null,null,null,null,null,null,null,null,null,null,null,"QU9","BUCKINGHAMSHIRE, OXFORDSHIRE AND BERKSHIRE WEST ICB",null,"QU9","BUCKINGHAMSHIRE, OXFORDSHIRE AND BERKSHIRE WEST ICB",null,"QK1","RWE","UNIVERSITY HOSPITALS OF LEICESTER NHS TRUST",null,null,null,"RFR","GREAT WESTERN HOSPITALS NHS FOUNDATION TRUST"]
[null,null,null,null,null,null,null,null,null,null,null,null,null,null,"QUA","BLACK COUNTRY ICB",null,"QUA","BLACK COUNTRY ICB",null,"QKK","RJZ","KING'S COLLEGE HOSPITAL NHS FOUNDATION TRUST",null,null,null,"RFS","GUY'S AND ST THOMAS' NHS FOUNDATION TRUST"]
[null,null,null,null,null,null,null,null,null,null,null,null,null,null,"QUE","CAMBRIDGESHIRE AND PETERBOROUGH ICB",null,"QUE","CAMBRIDGESHIRE AND PETERBOROUGH ICB",null,"QKK","RJ1","GUY'S AND ST THOMAS' NHS FOUNDATION TRUST",null,null,null,"RGN","HAMPSHIRE HOSPITALS NHS FOUNDATION TRUST"]
[null,null,null,null,null,null,null,null,null,null,null,null,null,null,"QUY","BRISTOL, NORTH SOMERSET AND SOUTH GLOUCESTERSHIRE ICB",null,"QUY","BRISTOL, NORTH SOMERSET AND SOUTH GLOUCESTERSHIRE ICB",null,"QKK","RJ2","LEWISHAM AND GREENWICH NHS TRUST",null,null,null,"RGP","HARROGATE AND DISTRICT NHS FOUNDATION TRUST"]
[null,null,null,null,null,null,null,null,null,null,null,null,null,null,"QVV","DORSET ICB",null,"QVV","DORSET ICB",null,"QKS","RVV","EAST KENT HOSPITALS UNIVERSITY NHS FOUNDATION TRUST",null,null,null,"RGR","HOMERTON HEALTHCARE NHS FOUNDATION TRUST"]
[null,null,null,null,null,null,null,null,null,null,null,null,null,null,"QWE","SOUTH WEST LONDON ICB",null,"QWE","SOUTH WEST LONDON ICB",null,"QKS","RWF","MAIDSTONE AND TUNBRIDGE WELLS NHS TRUST",null,null,null,"RGT","HULL UNIVERSITY TEACHING HOSPITALS NHS TRUST"]
[null,null,null,null,null,null,null,null,null,null,null,null,null,null,"QWO","WEST YORKSHIRE ICB",null,"QWO","WEST YORKSHIRE ICB",null,"QKS","RN7","DARTFORD AND GRAVESHAM NHS TRUST",null,null,null,"RH5","IMPERIAL COLLEGE HEALTHCARE NHS TRUST"]
[null,null,null,null,null,null,null,null,null,null,null,null,null,null,"QWU","COVENTRY AND WARWICKSHIRE ICB",null,"QWU","COVENTRY AND WARWICKSHIRE ICB",null,"QKS","RPA","MEDWAY NHS FOUNDATION TRUST",null,null,null,"RH8","ISLE OF WIGHT NHS TRUST"]
[null,null,null,null,null,null,null,null,null,null,null,null,null,null,"QXU","SURREY HEARTLANDS ICB",null,"QXU","SURREY HEARTLANDS ICB",null,"QM7","RQW","THE PRINCESS ALEXANDRA HOSPITAL NHS TRUST",null,null,null,"RHM","JAMES PAGET UNIVERSITY HOSPITALS NHS FOUNDATION TRUST"]
[null,null,null,null,null,null,null,null,null,null,null,null,null,null,"QYG","CHESHIRE AND MERSEYSIDE ICB",null,"QYG","CHESHIRE AND MERSEYSIDE ICB",null,"QM7","RWG","WEST HERTFORDSHIRE TEACHING HOSPITALS NHS TRUST",null,null,null,"RHQ","KETTERING GENERAL HOSPITAL NHS FOUNDATION TRUST"]
[null,null,null,null,null,null,null,null,null,null,null,null,null,null,null,null,null,null,null,null,"QM7","RWH","EAST AND NORTH HERTFORDSHIRE NHS TRUST",null,null,null,"RHU","KING'S COLLEGE HOSPITAL NHS FOUNDATION TRUST"]
[null,null,null,null,null,null,null,null,null,null,null,null,null,null,null,null,null,null,null,null,"QMF","RQX","HOMERTON HEALTHCARE NHS FOUNDATION TRUST",null,null,null,"RHW","KINGSTON AND RICHMOND NHS FOUNDATION TRUST"]
[null,null,null,null,null,null,null,null,null,null,null,null,null,null,null,null,null,null,null,null,"QMF","R1H","BARTS HEALTH NHS TRUST",null,null,null,"RJ1","LANCASHIRE TEACHING HOSPITALS NHS FOUNDATION TRUST"]
[null,null,null,null,null,null,null,null,null,null,null,null,null,null,null,null,null,null,null,null,"QMF","RF4","BARKING, HAVERING AND REDBRIDGE UNIVERSITY HOSPITALS NHS TRUST",null,null,null,"RJ2","LEEDS TEACHING HOSPITALS NHS TRUST"]
[null,null,null,null,null,null,null,null,null,null,null,null,null,null,null,null,null,null,null,null,"QMJ","RRV","UNIVERSITY COLLEGE LONDON HOSPITALS NHS FOUNDATION TRUST",null,null,null,"RJ6","LEWISHAM AND GREENWICH NHS TRUST"]
[null,null,null,null,null,null,null,null,null,null,null,null,null,null,null,null,null,null,null,null,"QMJ","RKE","WHITTINGTON HEALTH NHS TRUST",null,null,null,"RJ7","LIVERPOOL WOMEN'S NHS FOUNDATION TRUST"]
[null,null,null,null,null,null,null,null,null,null,null,null,null,null,null,null,null,null,null,null,"QMJ","RAL","ROYAL FREE LONDON NHS FOUNDATION TRUST",null,null,null,"RJC","LONDON NORTH WEST UNIVERSITY HEALTHCARE NHS TRUST"]
[null,null,null,null,null,null,null,null,null,null,null,null,null,null,null,null,null,null,null,null,"QMM","RGP","JAMES PAGET UNIVERSITY HOSPITALS NHS FOUNDATION TRUST",null,null,null,"RJE","MAIDSTONE AND TUNBRIDGE WELLS NHS TRUST"]
[null,null,null,null,null,null,null,null,null,null,null,null,null,null,null,null,null,null,null,null,"QMM","RM1","NORFOLK AND NORWICH UNIVERSITY HOSPITALS NHS FOUNDATION TRUST",null,null,null,"RJL","MANCHESTER UNIVERSITY NHS FOUNDATION TRUST"]
[null,null,null,null,null,null,null,null,null,null,null,null,null,null,null,null,null,null,null,null,"QMM","RCX","THE QUEEN ELIZABETH HOSPITAL, KING'S LYNN, NHS FOUNDATION TRUST",null,null,null,"RJN","MEDWAY NHS FOUNDATION TRUST"]
[null,null,null,null,null,null,null,null,null,null,null,null,null,null,null,null,null,null,null,null,"QNC","RJE","UNIVERSITY HOSPITALS OF NORTH MIDLANDS NHS TRUST",null,null,null,"RJR","MERSEY AND WEST LANCASHIRE TEACHING HOSPITALS NHS TRUST"]
[null,null,null,null,null,null,null,null,null,null,null,null,null,null,null,null,null,null,null,null,"QNQ","RDU","FRIMLEY HEALTH NHS FOUNDATION TRUST",null,null,null,"RJZ","MID AND SOUTH ESSEX NHS FOUNDATION TRUST"]
[null,null,null,null,null,null,null,null,null,null,null,null,null,null,null,null,null,null,null,null,"QNX","RXC","EAST SUSSEX HEALTHCARE NHS TRUST",null,null,null,"RK5","MID CHESHIRE HOSPITALS NHS FOUNDATION TRUST"]
[null,null,null,null,null,null,null,null,null,null,null,null,null,null,null,null,null,null,null,null,"QNX","RYR","UNIVERSITY HOSPITALS SUSSEX NHS FOUNDATION TRUST",null,null,null,"RK9","MID YORKSHIRE TEACHING NHS TRUST"]
[null,null,null,null,null,null,null,null,null,null,null,null,null,null,null,null,null,null,null,null,"QOC","RXW","THE SHREWSBURY AND TELFORD HOSPITAL NHS TRUST",null,null,null,"RKB","MILTON KEYNES UNIVERSITY HOSPITAL NHS FOUNDATION TRUST"]
[null,null,null,null,null,null,null,null,null,null,null,null,null,null,null,null,null,null,null,null,"QOP","RM3","NORTHERN CARE ALLIANCE NHS FOUNDATION TRUST",null,null,null,"RKE","NORFOLK AND NORWICH UNIVERSITY HOSPITALS NHS FOUNDATION TRUST"]
[null,null,null,null,null,null,null,null,null,null,null,null,null,null,null,null,null,null,null,null,"QOP","RMP","TAMESIDE AND GLOSSOP INTEGRATED CARE NHS FOUNDATION TRUST",null,null,null,"RL4","NORTH BRISTOL NHS TRUST"]
[null,null,null,null,null,null,null,null,null,null,null,null,null,null,null,null,null,null,null,null,"QOP","RWJ","STOCKPORT NHS FOUNDATION TRUST",null,null,null,"RLQ","NORTH CUMBRIA INTEGRATED CARE NHS FOUNDATION TRUST"]
[null,null,null,null,null,null,null,null,null,null,null,null,null,null,null,null,null,null,null,null,"QOP","R0A","MANCHESTER UNIVERSITY NHS FOUNDATION TRUST",null,null,null,"RLT","NORTH TEES AND HARTLEPOOL NHS FOUNDATION TRUST"]
[null,null,null,null,null,null,null,null,null,null,null,null,null,null,null,null,null,null,null,null,"QOP","RRF","WRIGHTINGTON, WIGAN AND LEIGH NHS FOUNDATION TRUST",null,null,null,"RM1","NORTH WEST ANGLIA NHS FOUNDATION TRUST"]
[null,null,null,null,null,null,null,null,null,null,null,null,null,null,null,null,null,null,null,null,"QOP","RMC","BOLTON NHS FOUNDATION TRUST",null,null,null,"RM3","NORTHAMPTON GENERAL HOSPITAL NHS TRUST"]
[null,null,null,null,null,null,null,null,null,null,null,null,null,null,null,null,null,null,null,null,"QOQ","RCB","YORK AND SCARBOROUGH TEACHING HOSPITALS NHS FOUNDATION TRUST",null,null,null,"RMC","NORTHERN CARE ALLIANCE NHS FOUNDATION TRUST"]
[null,null,null,null,null,null,null,null,null,null,null,null,null,null,null,null,null,null,null,null,"QOQ","RCD","HARROGATE AND DISTRICT NHS FOUNDATION TRUST",null,null,null,"RMP","NORTHERN LINCOLNSHIRE AND GOOLE NHS FOUNDATION TRUST"]
[null,null,null,null,null,null,null,null,null,null,null,null,null,null,null,null,null,null,null,null,"QOQ","RWA","HULL UNIVERSITY TEACHING HOSPITALS NHS TRUST",null,null,null,"RN3","NORTHUMBRIA HEALTHCARE NHS FOUNDATION TRUST"]
[null,null,null,null,null,null,null,null,null,null,null,null,null,null,null,null,null,null,null,null,"QOQ","RJL","NORTHERN LINCOLNSHIRE AND GOOLE NHS FOUNDATION TRUST",null,null,null,"RN5","NOTTINGHAM UNIVERSITY HOSPITALS NHS TRUST"]
[null,null,null,null,null,null,null,null,null,null,null,null,null,null,null,null,null,null,null,null,"QOX","RNZ","SALISBURY NHS FOUNDATION TRUST",null,null,null,"RN7","OXFORD UNIVERSITY HOSPITALS NHS FOUNDATION TRUST"]
[null,null,null,null,null,null,null,null,null,null,null,null,null,null,null,null,null,null,null,null,"QOX","RD1","ROYAL UNITED HOSPITALS BATH NHS FOUNDATION TRUST",null,null,null,"RNA","PORTSMOUTH HOSPITALS UNIVERSITY NATIONAL HEALTH SERVICE TRUST"]
[null,null,null,null,null,null,null,null,null,null,null,null,null,null,null,null,null,null,null,null,"QOX","RN3","GREAT WESTERN HOSPITALS NHS FOUNDATION TRUST",null,null,null,"RNN","ROYAL BERKSHIRE NHS FOUNDATION TRUST"]
[null,null,null,null,null,null,null,null,null,null,null,null,null,null,null,null,null,null,null,null,"QPM","RNS","NORTHAMPTON GENERAL HOSPITAL NHS TRUST",null,null,null,"RNQ","ROYAL CORNWALL HOSPITALS NHS TRUST"]
[null,null,null,null,null,null,null,null,null,null,null,null,null,null,null,null,null,null,null,null,"QPM","RNQ","KETTERING GENERAL HOSPITAL NHS FOUNDATION TRUST",null,null,null,"RNS","ROYAL DEVON UNIVERSITY HEALTHCARE NHS FOUNDATION TRUST"]
[null,null,null,null,null,null,null,null,null,null,null,null,null,null,null,null,null,null,null,null,"QR1","RTE","GLOUCESTERSHIRE HOSPITALS NHS FOUNDATION TRUST",null,null,null,"RNZ","ROYAL FREE LONDON NHS FOUNDATION TRUST"]
[null,null,null,null,null,null,null,null,null,null,null,null,null,null,null,null,null,null,null,null,"QRL","R1F","ISLE OF WIGHT NHS TRUST",null,null,null,"RP5","ROYAL SURREY COUNTY HOSPITAL NHS FOUNDATION TRUST"]
[null,null,null,null,null,null,null,null,null,null,null,null,null,null,null,null,null,null,null,null,"QRL","RHU","PORTSMOUTH HOSPITALS UNIVERSITY NATIONAL HEALTH SERVICE TRUST",null,null,null,"RPA","ROYAL UNITED HOSPITALS BATH NHS FOUNDATION TRUST"]
[null,null,null,null,null,null,null,null,null,null,null,null,null,null,null,null,null,null,null,null,"QRL","RN5","HAMPSHIRE HOSPITALS NHS FOUNDATION TRUST",null,null,null,"RQ3","SALISBURY NHS FOUNDATION TRUST"]
[null,null,null,null,null,null,null,null,null,null,null,null,null,null,null,null,null,null,null,null,"QRL","RHM","UNIVERSITY HOSPITAL SOUTHAMPTON NHS FOUNDATION TRUST",null,null,null,"RQM","SANDWELL AND WEST BIRMINGHAM HOSPITALS NHS TRUST"]
[null,null,null,null,null,null,null,null,null,null,null,null,null,null,null,null,null,null,null,null,"QRV","R1K","LONDON NORTH WEST UNIVERSITY HEALTHCARE NHS TRUST",null,null,null,"RQW","SHEFFIELD TEACHING HOSPITALS NHS FOUNDATION TRUST"]
[null,null,null,null,null,null,null,null,null,null,null,null,null,null,null,null,null,null,null,null,"QRV","RAS","THE HILLINGDON HOSPITALS NHS FOUNDATION TRUST",null,null,null,"RQX","SHERWOOD FOREST HOSPITALS NHS FOUNDATION TRUST"]
[null,null,null,null,null,null,null,null,null,null,null,null,null,null,null,null,null,null,null,null,"QRV","RQM","CHELSEA AND WESTMINSTER HOSPITAL NHS FOUNDATION TRUST",null,null,null,"RR7","SOMERSET NHS FOUNDATION TRUST"]
[null,null,null,null,null,null,null,null,null,null,null,null,null,null,null,null,null,null,null,null,"QRV","RYJ","IMPERIAL COLLEGE HEALTHCARE NHS TRUST",null,null,null,"RR8","SOUTH TEES HOSPITALS NHS FOUNDATION TRUST"]
[null,null,null,null,null,null,null,null,null,null,null,null,null,null,null,null,null,null,null,null,"QSL","RH5","SOMERSET NHS FOUNDATION TRUST",null,null,null,"RRF","SOUTH TYNESIDE AND SUNDERLAND NHS FOUNDATION TRUST"]
[null,null,null,null,null,null,null,null,null,null,null,null,null,null,null,null,null,null,null,null,"QT1","RK5","SHERWOOD FOREST HOSPITALS NHS FOUNDATION TRUST",null,null,null,"RRK","SOUTH WARWICKSHIRE UNIVERSITY NHS FOUNDATION TRUST"]
[null,null,null,null,null,null,null,null,null,null,null,null,null,null,null,null,null,null,null,null,"QT1","RX1","NOTTINGHAM UNIVERSITY HOSPITALS NHS TRUST",null,null,null,"RRV","ST GEORGE'S UNIVERSITY HOSPITALS NHS FOUNDATION TRUST"]
[null,null,null,null,null,null,null,null,null,null,null,null,null,null,null,null,null,null,null,null,"QT6","REF","ROYAL CORNWALL HOSPITALS NHS TRUST",null,null,null,"RTD","STOCKPORT NHS FOUNDATION TRUST"]
[null,null,null,null,null,null,null,null,null,null,null,null,null,null,null,null,null,null,null,null,"QU9","RHW","ROYAL BERKSHIRE NHS FOUNDATION TRUST",null,null,null,"RTE","SURREY AND SUSSEX HEALTHCARE NHS TRUST"]
[null,null,null,null,null,null,null,null,null,null,null,null,null,null,null,null,null,null,null,null,"QU9","RTH","OXFORD UNIVERSITY HOSPITALS NHS FOUNDATION TRUST",null,null,null,"RTF","TAMESIDE AND GLOSSOP INTEGRATED CARE NHS FOUNDATION TRUST"]
[null,null,null,null,null,null,null,null,null,null,null,null,null,null,null,null,null,null,null,null,"QU9","RXQ","BUCKINGHAMSHIRE HEALTHCARE NHS TRUST",null,null,null,"RTG","THE DUDLEY GROUP NHS FOUNDATION TRUST"]
[null,null,null,null,null,null,null,null,null,null,null,null,null,null,null,null,null,null,null,null,"QUA","RNA","THE DUDLEY GROUP NHS FOUNDATION TRUST",null,null,null,"RTH","THE HILLINGDON HOSPITALS NHS FOUNDATION TRUST"]
[null,null,null,null,null,null,null,null,null,null,null,null,null,null,null,null,null,null,null,null,"QUA","RBK","WALSALL HEALTHCARE NHS TRUST",null,null,null,"RTK","THE NEWCASTLE UPON TYNE HOSPITALS NHS FOUNDATION TRUST"]
[null,null,null,null,null,null,null,null,null,null,null,null,null,null,null,null,null,null,null,null,"QUA","RL4","THE ROYAL WOLVERHAMPTON NHS TRUST",null,null,null,"RTP","THE PRINCESS ALEXANDRA HOSPITAL NHS TRUST"]
[null,null,null,null,null,null,null,null,null,null,null,null,null,null,null,null,null,null,null,null,"QUE","RGT","CAMBRIDGE UNIVERSITY HOSPITALS NHS FOUNDATION TRUST",null,null,null,"RTR","THE QUEEN ELIZABETH HOSPITAL, KING'S LYNN, NHS FOUNDATION TRUST"]
[null,null,null,null,null,null,null,null,null,null,null,null,null,null,null,null,null,null,null,null,"QUE","RGN","NORTH WEST ANGLIA NHS FOUNDATION TRUST",null,null,null,"RTX","THE ROTHERHAM NHS FOUNDATION TRUST"]
[null,null,null,null,null,null,null,null,null,null,null,null,null,null,null,null,null,null,null,null,"QUY","RA7","UNIVERSITY HOSPITALS BRISTOL AND WESTON NHS FOUNDATION TRUST",null,null,null,"RVJ","THE ROYAL WOLVERHAMPTON NHS TRUST"]
[null,null,null,null,null,null,null,null,null,null,null,null,null,null,null,null,null,null,null,null,"QUY","RVJ","NORTH BRISTOL NHS TRUST",null,null,null,"RVR","THE SHREWSBURY AND TELFORD HOSPITAL NHS TRUST"]
[null,null,null,null,null,null,null,null,null,null,null,null,null,null,null,null,null,null,null,null,"QVV","R0D","UNIVERSITY HOSPITALS DORSET NHS FOUNDATION TRUST",null,null,null,"RVV","TORBAY AND SOUTH DEVON NHS FOUNDATION TRUST"]
[null,null,null,null,null,null,null,null,null,null,null,null,null,null,null,null,null,null,null,null,"QVV","RBD","DORSET COUNTY HOSPITAL NHS FOUNDATION TRUST",null,null,null,"RVW","UNITED LINCOLNSHIRE TEACHING HOSPITALS NHS TRUST"]
[null,null,null,null,null,null,null,null,null,null,null,null,null,null,null,null,null,null,null,null,"QWE","RJ6","CROYDON HEALTH SERVICES NHS TRUST",null,null,null,"RWA","UNIVERSITY COLLEGE LONDON HOSPITALS NHS FOUNDATION TRUST"]
[null,null,null,null,null,null,null,null,null,null,null,null,null,null,null,null,null,null,null,null,"QWE","RJ7","ST GEORGE'S UNIVERSITY HOSPITALS NHS FOUNDATION TRUST",null,null,null,"RWD","UNIVERSITY HOSPITAL SOUTHAMPTON NHS FOUNDATION TRUST"]
[null,null,null,null,null,null,null,null,null,null,null,null,null,null,null,null,null,null,null,null,"QWE","RVR","EPSOM AND ST HELIER UNIVERSITY HOSPITALS NHS TRUST",null,null,null,"RWE","UNIVERSITY HOSPITALS BIRMINGHAM NHS FOUNDATION TRUST"]
[null,null,null,null,null,null,null,null,null,null,null,null,null,null,null,null,null,null,null,null,"QWE","RAX","KINGSTON AND RICHMOND NHS FOUNDATION TRUST",null,null,null,"RWF","UNIVERSITY HOSPITALS BRISTOL AND WESTON NHS FOUNDATION TRUST"]
[null,null,null,null,null,null,null,null,null,null,null,null,null,null,null,null,null,null,null,null,"QWO","RAE","BRADFORD TEACHING HOSPITALS NHS FOUNDATION TRUST",null,null,null,"RWG","UNIVERSITY HOSPITALS COVENTRY AND WARWICKSHIRE NHS TRUST"]
[null,null,null,null,null,null,null,null,null,null,null,null,null,null,null,null,null,null,null,null,"QWO","RCF","AIREDALE NHS FOUNDATION TRUST",null,null,null,"RWH","UNIVERSITY HOSPITALS DORSET NHS FOUNDATION TRUST"]
[null,null,null,null,null,null,null,null,null,null,null,null,null,null,null,null,null,null,null,null,"QWO","RWY","CALDERDALE AND HUDDERSFIELD NHS FOUNDATION TRUST",null,null,null,"RWJ","UNIVERSITY HOSPITALS OF DERBY AND BURTON NHS FOUNDATION TRUST"]
[null,null,null,null,null,null,null,null,null,null,null,null,null,null,null,null,null,null,null,null,"QWO","RR8","LEEDS TEACHING HOSPITALS NHS TRUST",null,null,null,"RWP","UNIVERSITY HOSPITALS OF LEICESTER NHS TRUST"]
[null,null,null,null,null,null,null,null,null,null,null,null,null,null,null,null,null,null,null,null,"QWO","RXF","MID YORKSHIRE TEACHING NHS TRUST",null,null,null,"RWW","UNIVERSITY HOSPITALS OF MORECAMBE BAY NHS FOUNDATION TRUST"]
[null,null,null,null,null,null,null,null,null,null,null,null,null,null,null,null,null,null,null,null,"QWU","RJC","SOUTH WARWICKSHIRE UNIVERSITY NHS FOUNDATION TRUST",null,null,null,"RWY","UNIVERSITY HOSPITALS OF NORTH MIDLANDS NHS TRUST"]
[null,null,null,null,null,null,null,null,null,null,null,null,null,null,null,null,null,null,null,null,"QWU","RLT","GEORGE ELIOT HOSPITAL NHS TRUST",null,null,null,"RX1","UNIVERSITY HOSPITALS PLYMOUTH NHS TRUST"]
[null,null,null,null,null,null,null,null,null,null,null,null,null,null,null,null,null,null,null,null,"QWU","RKB","UNIVERSITY HOSPITALS COVENTRY AND WARWICKSHIRE NHS TRUST",null,null,null,"RXC","UNIVERSITY HOSPITALS SUSSEX NHS FOUNDATION TRUST"]
[null,null,null,null,null,null,null,null,null,null,null,null,null,null,null,null,null,null,null,null,"QXU","RTK","ASHFORD AND ST PETER'S HOSPITALS NHS FOUNDATION TRUST",null,null,null,"RXF","WALSALL HEALTHCARE NHS TRUST"]
[null,null,null,null,null,null,null,null,null,null,null,null,null,null,null,null,null,null,null,null,"QXU","RTP","SURREY AND SUSSEX HEALTHCARE NHS TRUST",null,null,null,"RXK","WARRINGTON AND HALTON TEACHING HOSPITALS NHS FOUNDATION TRUST"]
[null,null,null,null,null,null,null,null,null,null,null,null,null,null,null,null,null,null,null,null,"QXU","RA2","ROYAL SURREY COUNTY HOSPITAL NHS FOUNDATION TRUST",null,null,null,"RXL","WEST HERTFORDSHIRE TEACHING HOSPITALS NHS TRUST"]
[null,null,null,null,null,null,null,null,null,null,null,null,null,null,null,null,null,null,null,null,"QYG","RBT","MID CHESHIRE HOSPITALS NHS FOUNDATION TRUST",null,null,null,"RXN","WEST SUFFOLK NHS FOUNDATION TRUST"]
[null,null,null,null,null,null,null,null,null,null,null,null,null,null,null,null,null,null,null,null,"QYG","RWW","WARRINGTON AND HALTON TEACHING HOSPITALS NHS FOUNDATION TRUST",null,null,null,"RXP","WHITTINGTON HEALTH NHS TRUST"]
[null,null,null,null,null,null,null,null,null,null,null,null,null,null,null,null,null,null,null,null,"QYG","RBN","MERSEY AND WEST LANCASHIRE TEACHING HOSPITALS NHS TRUST",null,null,null,"RXQ","WIRRAL UNIVERSITY TEACHING HOSPITAL NHS FOUNDATION TRUST"]
[null,null,null,null,null,null,null,null,null,null,null,null,null,null,null,null,null,null,null,null,"QYG","RJR","COUNTESS OF CHESTER HOSPITAL NHS FOUNDATION TRUST",null,null,null,"RXR","WORCESTERSHIRE ACUTE HOSPITALS NHS TRUST"]
[null,null,null,null,null,null,null,null,null,null,null,null,null,null,null,null,null,null,null,null,"QYG","RBL","WIRRAL UNIVERSITY TEACHING HOSPITAL NHS FOUNDATION TRUST",null,null,null,"RXW","WRIGHTINGTON, WIGAN AND LEIGH NHS FOUNDATION TRUST"]
[null,null,null,null,null,null,null,null,null,null,null,null,null,null,null,null,null,null,null,null,"QYG","RJN","EAST CHESHIRE NHS TRUST",null,null,null,"RYJ","WYE VALLEY NHS TRUST"]
[null,null,null,null,null,null,null,null,null,null,null,null,null,null,null,null,null,null,null,null,"QYG","REP","LIVERPOOL WOMEN'S NHS FOUNDATION TRUST",null,null,null,"RYR","YORK AND SCARBOROUGH TEACHING HOSPITALS NHS FOUNDATION TRUST"]